Workbook

Sheet Feuil1
A1: ='J01'!B5:F5 -> 0 | B1: =IF('J01'!G5="","",'J01'!G5) ->  | C1: =IF('J01'!H5="","",'J01'!H5) ->  | D1: =IF('J01'!I5="","",'J01'!I5) ->  | F1: =D1 ->  | G1: =IF(N1="","",N1) ->  | H1: =IF(O1="","",O1) ->  | I1: =A1 -> 0 | J1: =IF(P1="","",P1) -> 0 | K1: 1 | M1: =F1&I1 -> 0 | N1: =VLOOKUP(M1,$R$1:$T$380,2,0) ->  | O1: =VLOOKUP(M1,$R$1:$T$380,3,0) ->  | P1: =VLOOKUP(M1,$R$1:$U$380,4,0) -> 0 | Q1: ='VUE SYNOPTIQUE'!A2&'VUE SYNOPTIQUE'!D1 -> 00 | R1: =A1&D1 -> 0 | S1: =B1 ->  | T1: =C1 ->  | U1: =E1 -> 0
A2: ='J01'!B6:F6 -> 0 | B2: =IF('J01'!G6="","",'J01'!G6) ->  | C2: =IF('J01'!H6="","",'J01'!H6) ->  | D2: =IF('J01'!I6="","",'J01'!I6) ->  | F2: =D2 ->  | G2: =IF(N2="","",N2) ->  | H2: =IF(O2="","",O2) ->  | I2: 0 | J2: =IF(P2="","",P2) -> 0 | M2: =F2&I2 -> 0 | P2: =VLOOKUP(M2,$R$1:$U$380,4,0) -> 0 | Q2: ='VUE SYNOPTIQUE'!A2&'VUE SYNOPTIQUE'!F1 -> 00 | R2: 0 | U2: =E2 -> 0
A3: ='J01'!B7:F7 -> 0 | B3: =IF('J01'!G7="","",'J01'!G7) ->  | C3: =IF('J01'!H7="","",'J01'!H7) ->  | D3: =IF('J01'!I7="","",'J01'!I7) ->  | I3: 0 | J3: 0 | M3: 0 | P3: 0 | Q3: ='VUE SYNOPTIQUE'!A2&'VUE SYNOPTIQUE'!H1 -> 00 | R3: 0 | U3: 0
A4: ='J01'!B8:F8 -> 0 | B4: =IF('J01'!G8="","",'J01'!G8) ->  | C4: =IF('J01'!H8="","",'J01'!H8) ->  | D4: =IF('J01'!I8="","",'J01'!I8) ->  | I4: 0 | J4: 0 | M4: 0 | P4: 0 | Q4: ='VUE SYNOPTIQUE'!A2&'VUE SYNOPTIQUE'!J1 -> 00 | R4: 0 | U4: 0
A5: ='J01'!B9:F9 -> 0 | B5: =IF('J01'!G9="","",'J01'!G9) ->  | C5: =IF('J01'!H9="","",'J01'!H9) ->  | D5: =IF('J01'!I9="","",'J01'!I9) ->  | I5: 0 | J5: 0 | M5: 0 | P5: 0 | Q5: ='VUE SYNOPTIQUE'!A2&'VUE SYNOPTIQUE'!L1 -> 00 | R5: 0 | U5: 0
A6: ='J01'!B10:F10 -> 0 | B6: =IF('J01'!G10="","",'J01'!G10) ->  | C6: =IF('J01'!H10="","",'J01'!H10) ->  | D6: =IF('J01'!I10="","",'J01'!I10) ->  | I6: 0 | J6: 0 | M6: 0 | P6: 0 | Q6: ='VUE SYNOPTIQUE'!A2&'VUE SYNOPTIQUE'!N1 -> 00 | R6: 0 | U6: 0
A7: ='J01'!B11:F11 -> 0 | B7: =IF('J01'!G11="","",'J01'!G11) ->  | C7: =IF('J01'!H11="","",'J01'!H11) ->  | D7: =IF('J01'!I11="","",'J01'!I11) ->  | I7: 0 | J7: 0 | M7: 0 | P7: 0 | Q7: ='VUE SYNOPTIQUE'!A2&'VUE SYNOPTIQUE'!P1 -> 00 | R7: 0 | U7: 0
A8: ='J01'!B12:F12 -> 0 | B8: =IF('J01'!G12="","",'J01'!G12) ->  | C8: =IF('J01'!H12="","",'J01'!H12) ->  | D8: =IF('J01'!I12="","",'J01'!I12) ->  | I8: 0 | J8: 0 | M8: 0 | P8: 0 | Q8: ='VUE SYNOPTIQUE'!A2&'VUE SYNOPTIQUE'!R1 -> 00 | R8: 0 | U8: 0
A9: ='J01'!B13:F13 -> 0 | B9: =IF('J01'!G13="","",'J01'!G13) ->  | C9: =IF('J01'!H13="","",'J01'!H13) ->  | D9: =IF('J01'!I13="","",'J01'!I13) ->  | I9: 0 | J9: 0 | M9: 0 | P9: 0 | Q9: ='VUE SYNOPTIQUE'!A2&'VUE SYNOPTIQUE'!T1 -> 00 | R9: 0 | U9: 0
A10: ='J01'!B14:F14 -> 0 | B10: =IF('J01'!G14="","",'J01'!G14) ->  | C10: =IF('J01'!H14="","",'J01'!H14) ->  | D10: =IF('J01'!I14="","",'J01'!I14) ->  | I10: 0 | J10: 0 | M10: 0 | P10: 0 | Q10: ='VUE SYNOPTIQUE'!A2&'VUE SYNOPTIQUE'!V1 -> 00 | R10: 0 | U10: 0
A11: ='J02'!B5:F5 -> 0 | B11: =IF('J02'!G5="","",'J02'!G5) ->  | C11: =IF('J02'!H5="","",'J02'!H5) ->  | D11: =IF('J02'!I5="","",'J02'!I5) ->  | I11: 0 | J11: 0 | K11: 2 | M11: 0 | P11: 0 | Q11: ='VUE SYNOPTIQUE'!A2&'VUE SYNOPTIQUE'!X1 -> 00 | R11: 0 | U11: 0
A12: ='J02'!B6:F6 -> 0 | B12: =IF('J02'!G6="","",'J02'!G6) ->  | C12: =IF('J02'!H6="","",'J02'!H6) ->  | D12: =IF('J02'!I6="","",'J02'!I6) ->  | I12: 0 | J12: 0 | M12: 0 | P12: 0 | Q12: ='VUE SYNOPTIQUE'!A2&'VUE SYNOPTIQUE'!Z1 -> 00 | R12: 0 | U12: 0
A13: ='J02'!B7:F7 -> 0 | B13: =IF('J02'!G7="","",'J02'!G7) ->  | C13: =IF('J02'!H7="","",'J02'!H7) ->  | D13: =IF('J02'!I7="","",'J02'!I7) ->  | I13: 0 | J13: 0 | M13: 0 | P13: 0 | Q13: ='VUE SYNOPTIQUE'!A2&'VUE SYNOPTIQUE'!AB1 -> 00 | R13: 0 | U13: 0
A14: ='J02'!B8:F8 -> 0 | B14: =IF('J02'!G8="","",'J02'!G8) ->  | C14: =IF('J02'!H8="","",'J02'!H8) ->  | D14: =IF('J02'!I8="","",'J02'!I8) ->  | I14: 0 | J14: 0 | M14: 0 | P14: 0 | Q14: ='VUE SYNOPTIQUE'!A2&'VUE SYNOPTIQUE'!AD1 -> 00 | R14: 0 | U14: 0
A15: ='J02'!B9:F9 -> 0 | B15: =IF('J02'!G9="","",'J02'!G9) ->  | C15: =IF('J02'!H9="","",'J02'!H9) ->  | D15: =IF('J02'!I9="","",'J02'!I9) ->  | I15: 0 | J15: 0 | M15: 0 | P15: 0 | Q15: ='VUE SYNOPTIQUE'!A2&'VUE SYNOPTIQUE'!AF1 -> 00 | R15: 0 | U15: 0
A16: ='J02'!B10:F10 -> 0 | B16: =IF('J02'!G10="","",'J02'!G10) ->  | C16: =IF('J02'!H10="","",'J02'!H10) ->  | D16: =IF('J02'!I10="","",'J02'!I10) ->  | I16: 0 | J16: 0 | M16: 0 | P16: 0 | Q16: ='VUE SYNOPTIQUE'!A2&'VUE SYNOPTIQUE'!AH1 -> 00 | R16: 0 | U16: 0
A17: ='J02'!B11:F11 -> 0 | B17: =IF('J02'!G11="","",'J02'!G11) ->  | C17: =IF('J02'!H11="","",'J02'!H11) ->  | D17: =IF('J02'!I11="","",'J02'!I11) ->  | I17: 0 | J17: 0 | M17: 0 | P17: 0 | Q17: ='VUE SYNOPTIQUE'!A2&'VUE SYNOPTIQUE'!AJ1 -> 00 | R17: 0 | U17: 0
A18: ='J02'!B12:F12 -> 0 | B18: =IF('J02'!G12="","",'J02'!G12) ->  | C18: =IF('J02'!H12="","",'J02'!H12) ->  | D18: =IF('J02'!I12="","",'J02'!I12) ->  | I18: 0 | J18: 0 | M18: 0 | P18: 0 | Q18: ='VUE SYNOPTIQUE'!A2&'VUE SYNOPTIQUE'!AL1 -> 00 | R18: 0 | U18: 0
A19: ='J02'!B13:F13 -> 0 | B19: =IF('J02'!G13="","",'J02'!G13) ->  | C19: =IF('J02'!H13="","",'J02'!H13) ->  | D19: =IF('J02'!I13="","",'J02'!I13) ->  | I19: 0 | J19: 0 | M19: 0 | P19: 0 | Q19: ='VUE SYNOPTIQUE'!A2&'VUE SYNOPTIQUE'!AN1 -> 00 | R19: 0 | U19: 0
A20: ='J02'!B14:F14 -> 0 | B20: =IF('J02'!G14="","",'J02'!G14) ->  | C20: =IF('J02'!H14="","",'J02'!H14) ->  | D20: =IF('J02'!I14="","",'J02'!I14) ->  | I20: 0 | J20: 0 | M20: 0 | P20: 0 | Q20: ='VUE SYNOPTIQUE'!A3&'VUE SYNOPTIQUE'!B1 -> 00 | R20: 0 | U20: 0
A21: ='J03'!B5:F5 -> 0 | B21: =IF('J03'!G5="","",'J03'!G5) ->  | C21: =IF('J03'!H5="","",'J03'!H5) ->  | D21: =IF('J03'!I5="","",'J03'!I5) ->  | I21: 0 | J21: 0 | K21: 3 | M21: 0 | P21: 0 | Q21: ='VUE SYNOPTIQUE'!A3&'VUE SYNOPTIQUE'!F1 -> 00 | R21: 0 | U21: 0
A22: ='J03'!B6:F6 -> 0 | B22: =IF('J03'!G6="","",'J03'!G6) ->  | C22: =IF('J03'!H6="","",'J03'!H6) ->  | D22: =IF('J03'!I6="","",'J03'!I6) ->  | I22: 0 | J22: 0 | M22: 0 | P22: 0 | Q22: ='VUE SYNOPTIQUE'!A3&'VUE SYNOPTIQUE'!H1 -> 00 | R22: 0 | U22: 0
A23: ='J03'!B7:F7 -> 0 | B23: =IF('J03'!G7="","",'J03'!G7) ->  | C23: =IF('J03'!H7="","",'J03'!H7) ->  | D23: =IF('J03'!I7="","",'J03'!I7) ->  | I23: 0 | J23: 0 | M23: 0 | P23: 0 | Q23: ='VUE SYNOPTIQUE'!A3&'VUE SYNOPTIQUE'!J1 -> 00 | R23: 0 | U23: 0
A24: ='J03'!B8:F8 -> 0 | B24: =IF('J03'!G8="","",'J03'!G8) ->  | C24: =IF('J03'!H8="","",'J03'!H8) ->  | D24: =IF('J03'!I8="","",'J03'!I8) ->  | I24: 0 | J24: 0 | M24: 0 | P24: 0 | Q24: ='VUE SYNOPTIQUE'!A3&'VUE SYNOPTIQUE'!L1 -> 00 | R24: 0 | U24: 0
A25: ='J03'!B9:F9 -> 0 | B25: =IF('J03'!G9="","",'J03'!G9) ->  | C25: =IF('J03'!H9="","",'J03'!H9) ->  | D25: =IF('J03'!I9="","",'J03'!I9) ->  | I25: 0 | J25: 0 | M25: 0 | P25: 0 | Q25: ='VUE SYNOPTIQUE'!A3&'VUE SYNOPTIQUE'!N1 -> 00 | R25: 0 | U25: 0
A26: ='J03'!B10:F10 -> 0 | B26: =IF('J03'!G10="","",'J03'!G10) ->  | C26: =IF('J03'!H10="","",'J03'!H10) ->  | D26: =IF('J03'!I10="","",'J03'!I10) ->  | I26: 0 | J26: 0 | M26: 0 | P26: 0 | Q26: ='VUE SYNOPTIQUE'!A3&'VUE SYNOPTIQUE'!P1 -> 00 | R26: 0 | U26: 0
A27: ='J03'!B11:F11 -> 0 | B27: =IF('J03'!G11="","",'J03'!G11) ->  | C27: =IF('J03'!H11="","",'J03'!H11) ->  | D27: =IF('J03'!I11="","",'J03'!I11) ->  | I27: 0 | J27: 0 | M27: 0 | P27: 0 | Q27: ='VUE SYNOPTIQUE'!A3&'VUE SYNOPTIQUE'!R1 -> 00 | R27: 0 | U27: 0
A28: ='J03'!B12:F12 -> 0 | B28: =IF('J03'!G12="","",'J03'!G12) ->  | C28: =IF('J03'!H12="","",'J03'!H12) ->  | D28: =IF('J03'!I12="","",'J03'!I12) ->  | I28: 0 | J28: 0 | M28: 0 | P28: 0 | Q28: ='VUE SYNOPTIQUE'!A3&'VUE SYNOPTIQUE'!T1 -> 00 | R28: 0 | U28: 0
A29: ='J03'!B13:F13 -> 0 | B29: =IF('J03'!G13="","",'J03'!G13) ->  | C29: =IF('J03'!H13="","",'J03'!H13) ->  | D29: =IF('J03'!I13="","",'J03'!I13) ->  | I29: 0 | J29: 0 | M29: 0 | P29: 0 | Q29: ='VUE SYNOPTIQUE'!A3&'VUE SYNOPTIQUE'!V1 -> 00 | R29: 0 | U29: 0
A30: ='J03'!B14:F14 -> 0 | B30: =IF('J03'!G14="","",'J03'!G14) ->  | C30: =IF('J03'!H14="","",'J03'!H14) ->  | D30: =IF('J03'!I14="","",'J03'!I14) ->  | I30: 0 | J30: 0 | M30: 0 | P30: 0 | Q30: ='VUE SYNOPTIQUE'!A3&'VUE SYNOPTIQUE'!X1 -> 00 | R30: 0 | U30: 0
A31: ='J04'!B5:F5 -> 0 | B31: =IF('J04'!G5="","",'J04'!G5) ->  | C31: =IF('J04'!H5="","",'J04'!H5) ->  | D31: =IF('J04'!I5="","",'J04'!I5) ->  | I31: 0 | J31: 0 | K31: 4 | M31: 0 | P31: 0 | Q31: ='VUE SYNOPTIQUE'!A3&'VUE SYNOPTIQUE'!Z1 -> 00 | R31: 0 | U31: 0
A32: ='J04'!B6:F6 -> 0 | B32: =IF('J04'!G6="","",'J04'!G6) ->  | C32: =IF('J04'!H6="","",'J04'!H6) ->  | D32: =IF('J04'!I6="","",'J04'!I6) ->  | I32: 0 | J32: 0 | M32: 0 | P32: 0 | Q32: ='VUE SYNOPTIQUE'!A3&'VUE SYNOPTIQUE'!AB1 -> 00 | R32: 0 | U32: 0
A33: ='J04'!B7:F7 -> 0 | B33: =IF('J04'!G7="","",'J04'!G7) ->  | C33: =IF('J04'!H7="","",'J04'!H7) ->  | D33: =IF('J04'!I7="","",'J04'!I7) ->  | I33: 0 | J33: 0 | M33: 0 | P33: 0 | Q33: ='VUE SYNOPTIQUE'!A3&'VUE SYNOPTIQUE'!AD1 -> 00 | R33: 0 | U33: 0
A34: ='J04'!B8:F8 -> 0 | B34: =IF('J04'!G8="","",'J04'!G8) ->  | C34: =IF('J04'!H8="","",'J04'!H8) ->  | D34: =IF('J04'!I8="","",'J04'!I8) ->  | I34: 0 | J34: 0 | M34: 0 | P34: 0 | Q34: ='VUE SYNOPTIQUE'!A3&'VUE SYNOPTIQUE'!AF1 -> 00 | R34: 0 | U34: 0
A35: ='J04'!B9:F9 -> 0 | B35: =IF('J04'!G9="","",'J04'!G9) ->  | C35: =IF('J04'!H9="","",'J04'!H9) ->  | D35: =IF('J04'!I9="","",'J04'!I9) ->  | I35: 0 | J35: 0 | M35: 0 | P35: 0 | Q35: ='VUE SYNOPTIQUE'!A3&'VUE SYNOPTIQUE'!AH1 -> 00 | R35: 0 | U35: 0
A36: ='J04'!B10:F10 -> 0 | B36: =IF('J04'!G10="","",'J04'!G10) ->  | C36: =IF('J04'!H10="","",'J04'!H10) ->  | D36: =IF('J04'!I10="","",'J04'!I10) ->  | I36: 0 | J36: 0 | M36: 0 | P36: 0 | Q36: ='VUE SYNOPTIQUE'!A3&'VUE SYNOPTIQUE'!AJ1 -> 00 | R36: 0 | U36: 0
A37: ='J04'!B11:F11 -> 0 | B37: =IF('J04'!G11="","",'J04'!G11) ->  | C37: =IF('J04'!H11="","",'J04'!H11) ->  | D37: =IF('J04'!I11="","",'J04'!I11) ->  | I37: 0 | J37: 0 | M37: 0 | P37: 0 | Q37: ='VUE SYNOPTIQUE'!A3&'VUE SYNOPTIQUE'!AL1 -> 00 | R37: 0 | U37: 0
A38: ='J04'!B12:F12 -> 0 | B38: =IF('J04'!G12="","",'J04'!G12) ->  | C38: =IF('J04'!H12="","",'J04'!H12) ->  | D38: =IF('J04'!I12="","",'J04'!I12) ->  | I38: 0 | J38: 0 | M38: 0 | P38: 0 | Q38: ='VUE SYNOPTIQUE'!A3&'VUE SYNOPTIQUE'!AN1 -> 00 | R38: 0 | U38: 0
A39: ='J04'!B13:F13 -> 0 | B39: =IF('J04'!G13="","",'J04'!G13) ->  | C39: =IF('J04'!H13="","",'J04'!H13) ->  | D39: =IF('J04'!I13="","",'J04'!I13) ->  | I39: 0 | J39: 0 | M39: 0 | P39: 0 | Q39: ='VUE SYNOPTIQUE'!A4&'VUE SYNOPTIQUE'!B1 -> 00 | R39: 0 | U39: 0
A40: ='J04'!B14:F14 -> 0 | B40: =IF('J04'!G14="","",'J04'!G14) ->  | C40: =IF('J04'!H14="","",'J04'!H14) ->  | D40: =IF('J04'!I14="","",'J04'!I14) ->  | I40: 0 | J40: 0 | M40: 0 | P40: 0 | Q40: ='VUE SYNOPTIQUE'!A4&'VUE SYNOPTIQUE'!D1 -> 00 | R40: 0 | U40: 0
A41: ='J05'!B5:F5 -> 0 | B41: =IF('J05'!G5="","",'J05'!G5) ->  | C41: =IF('J05'!H5="","",'J05'!H5) ->  | D41: =IF('J05'!I5="","",'J05'!I5) ->  | I41: 0 | J41: 0 | K41: 5 | M41: 0 | P41: 0 | Q41: ='VUE SYNOPTIQUE'!A4&'VUE SYNOPTIQUE'!H1 -> 00 | R41: 0 | U41: 0
A42: ='J05'!B6:F6 -> 0 | B42: =IF('J05'!G6="","",'J05'!G6) ->  | C42: =IF('J05'!H6="","",'J05'!H6) ->  | D42: =IF('J05'!I6="","",'J05'!I6) ->  | I42: 0 | J42: 0 | M42: 0 | P42: 0 | Q42: ='VUE SYNOPTIQUE'!A4&'VUE SYNOPTIQUE'!J1 -> 00 | R42: 0 | U42: 0
A43: ='J05'!B7:F7 -> 0 | B43: =IF('J05'!G7="","",'J05'!G7) ->  | C43: =IF('J05'!H7="","",'J05'!H7) ->  | D43: =IF('J05'!I7="","",'J05'!I7) ->  | I43: 0 | J43: 0 | M43: 0 | P43: 0 | Q43: ='VUE SYNOPTIQUE'!A4&'VUE SYNOPTIQUE'!L1 -> 00 | R43: 0 | U43: 0
A44: ='J05'!B8:F8 -> 0 | B44: =IF('J05'!G8="","",'J05'!G8) ->  | C44: =IF('J05'!H8="","",'J05'!H8) ->  | D44: =IF('J05'!I8="","",'J05'!I8) ->  | I44: 0 | J44: 0 | M44: 0 | P44: 0 | Q44: ='VUE SYNOPTIQUE'!A4&'VUE SYNOPTIQUE'!N1 -> 00 | R44: 0 | U44: 0
A45: ='J05'!B9:F9 -> 0 | B45: =IF('J05'!G9="","",'J05'!G9) ->  | C45: =IF('J05'!H9="","",'J05'!H9) ->  | D45: =IF('J05'!I9="","",'J05'!I9) ->  | I45: 0 | J45: 0 | M45: 0 | P45: 0 | Q45: ='VUE SYNOPTIQUE'!A4&'VUE SYNOPTIQUE'!P1 -> 00 | R45: 0 | U45: 0
A46: ='J05'!B10:F10 -> 0 | B46: =IF('J05'!G10="","",'J05'!G10) ->  | C46: =IF('J05'!H10="","",'J05'!H10) ->  | D46: =IF('J05'!I10="","",'J05'!I10) ->  | I46: 0 | J46: 0 | M46: 0 | P46: 0 | Q46: ='VUE SYNOPTIQUE'!A4&'VUE SYNOPTIQUE'!R1 -> 00 | R46: 0 | U46: 0
A47: ='J05'!B11:F11 -> 0 | B47: =IF('J05'!G11="","",'J05'!G11) ->  | C47: =IF('J05'!H11="","",'J05'!H11) ->  | D47: =IF('J05'!I11="","",'J05'!I11) ->  | I47: 0 | J47: 0 | M47: 0 | P47: 0 | Q47: ='VUE SYNOPTIQUE'!A4&'VUE SYNOPTIQUE'!T1 -> 00 | R47: 0 | U47: 0
A48: ='J05'!B12:F12 -> 0 | B48: =IF('J05'!G12="","",'J05'!G12) ->  | C48: =IF('J05'!H12="","",'J05'!H12) ->  | D48: =IF('J05'!I12="","",'J05'!I12) ->  | I48: 0 | J48: 0 | M48: 0 | P48: 0 | Q48: ='VUE SYNOPTIQUE'!A4&'VUE SYNOPTIQUE'!V1 -> 00 | R48: 0 | U48: 0
A49: ='J05'!B13:F13 -> 0 | B49: =IF('J05'!G13="","",'J05'!G13) ->  | C49: =IF('J05'!H13="","",'J05'!H13) ->  | D49: =IF('J05'!I13="","",'J05'!I13) ->  | I49: 0 | J49: 0 | M49: 0 | P49: 0 | Q49: ='VUE SYNOPTIQUE'!A4&'VUE SYNOPTIQUE'!X1 -> 00 | R49: 0 | U49: 0
A50: ='J05'!B14:F14 -> 0 | B50: =IF('J05'!G14="","",'J05'!G14) ->  | C50: =IF('J05'!H14="","",'J05'!H14) ->  | D50: =IF('J05'!I14="","",'J05'!I14) ->  | I50: 0 | J50: 0 | M50: 0 | P50: 0 | Q50: ='VUE SYNOPTIQUE'!A4&'VUE SYNOPTIQUE'!Z1 -> 00 | R50: 0 | U50: 0
A51: ='J06'!B5:F5 -> 0 | B51: =IF('J06'!G5="","",'J06'!G5) ->  | C51: =IF('J06'!H5="","",'J06'!H5) ->  | D51: =IF('J06'!I5="","",'J06'!I5) ->  | I51: 0 | J51: 0 | K51: 6 | M51: 0 | P51: 0 | Q51: ='VUE SYNOPTIQUE'!A4&'VUE SYNOPTIQUE'!AB1 -> 00 | R51: 0 | U51: 0
A52: ='J06'!B6:F6 -> 0 | B52: =IF('J06'!G6="","",'J06'!G6) ->  | C52: =IF('J06'!H6="","",'J06'!H6) ->  | D52: =IF('J06'!I6="","",'J06'!I6) ->  | I52: 0 | J52: 0 | M52: 0 | P52: 0 | Q52: ='VUE SYNOPTIQUE'!A4&'VUE SYNOPTIQUE'!AD1 -> 00 | R52: 0 | U52: 0
A53: ='J06'!B7:F7 -> 0 | B53: =IF('J06'!G7="","",'J06'!G7) ->  | C53: =IF('J06'!H7="","",'J06'!H7) ->  | D53: =IF('J06'!I7="","",'J06'!I7) ->  | I53: 0 | J53: 0 | M53: 0 | P53: 0 | Q53: ='VUE SYNOPTIQUE'!A4&'VUE SYNOPTIQUE'!AF1 -> 00 | R53: 0 | U53: 0
A54: ='J06'!B8:F8 -> 0 | B54: =IF('J06'!G8="","",'J06'!G8) ->  | C54: =IF('J06'!H8="","",'J06'!H8) ->  | D54: =IF('J06'!I8="","",'J06'!I8) ->  | I54: 0 | J54: 0 | M54: 0 | P54: 0 | Q54: ='VUE SYNOPTIQUE'!A4&'VUE SYNOPTIQUE'!AH1 -> 00 | R54: 0 | U54: 0
A55: ='J06'!B9:F9 -> 0 | B55: =IF('J06'!G9="","",'J06'!G9) ->  | C55: =IF('J06'!H9="","",'J06'!H9) ->  | D55: =IF('J06'!I9="","",'J06'!I9) ->  | I55: 0 | J55: 0 | M55: 0 | P55: 0 | Q55: ='VUE SYNOPTIQUE'!A4&'VUE SYNOPTIQUE'!AJ1 -> 00 | R55: 0 | U55: 0
A56: ='J06'!B10:F10 -> 0 | B56: =IF('J06'!G10="","",'J06'!G10) ->  | C56: =IF('J06'!H10="","",'J06'!H10) ->  | D56: =IF('J06'!I10="","",'J06'!I10) ->  | I56: 0 | J56: 0 | M56: 0 | P56: 0 | Q56: ='VUE SYNOPTIQUE'!A4&'VUE SYNOPTIQUE'!AL1 -> 00 | R56: 0 | U56: 0
A57: ='J06'!B11:F11 -> 0 | B57: =IF('J06'!G11="","",'J06'!G11) ->  | C57: =IF('J06'!H11="","",'J06'!H11) ->  | D57: =IF('J06'!I11="","",'J06'!I11) ->  | I57: 0 | J57: 0 | M57: 0 | P57: 0 | Q57: ='VUE SYNOPTIQUE'!A4&'VUE SYNOPTIQUE'!AN1 -> 00 | R57: 0 | U57: 0
A58: ='J06'!B12:F12 -> 0 | B58: =IF('J06'!G12="","",'J06'!G12) ->  | C58: =IF('J06'!H12="","",'J06'!H12) ->  | D58: =IF('J06'!I12="","",'J06'!I12) ->  | I58: 0 | J58: 0 | M58: 0 | P58: 0 | Q58: ='VUE SYNOPTIQUE'!A5&'VUE SYNOPTIQUE'!B1 -> 00 | R58: 0 | U58: 0
A59: ='J06'!B13:F13 -> 0 | B59: =IF('J06'!G13="","",'J06'!G13) ->  | C59: =IF('J06'!H13="","",'J06'!H13) ->  | D59: =IF('J06'!I13="","",'J06'!I13) ->  | I59: 0 | J59: 0 | M59: 0 | P59: 0 | Q59: ='VUE SYNOPTIQUE'!A5&'VUE SYNOPTIQUE'!D1 -> 00 | R59: 0 | U59: 0
A60: ='J06'!B14:F14 -> 0 | B60: =IF('J06'!G14="","",'J06'!G14) ->  | C60: =IF('J06'!H14="","",'J06'!H14) ->  | D60: =IF('J06'!I14="","",'J06'!I14) ->  | I60: 0 | J60: 0 | M60: 0 | P60: 0 | Q60: ='VUE SYNOPTIQUE'!A5&'VUE SYNOPTIQUE'!F1 -> 00 | R60: 0 | U60: 0
A61: ='J07'!B5:F5 -> 0 | B61: =IF('J07'!G5="","",'J07'!G5) ->  | C61: =IF('J07'!H5="","",'J07'!H5) ->  | D61: =IF('J07'!I5="","",'J07'!I5) ->  | I61: 0 | J61: 0 | K61: 7 | M61: 0 | P61: 0 | Q61: ='VUE SYNOPTIQUE'!A5&'VUE SYNOPTIQUE'!J1 -> 00 | R61: 0 | U61: 0
A62: ='J07'!B6:F6 -> 0 | B62: =IF('J07'!G6="","",'J07'!G6) ->  | C62: =IF('J07'!H6="","",'J07'!H6) ->  | D62: =IF('J07'!I6="","",'J07'!I6) ->  | I62: 0 | J62: 0 | M62: 0 | P62: 0 | Q62: ='VUE SYNOPTIQUE'!A5&'VUE SYNOPTIQUE'!L1 -> 00 | R62: 0 | U62: 0
A63: ='J07'!B7:F7 -> 0 | B63: =IF('J07'!G7="","",'J07'!G7) ->  | C63: =IF('J07'!H7="","",'J07'!H7) ->  | D63: =IF('J07'!I7="","",'J07'!I7) ->  | I63: 0 | J63: 0 | M63: 0 | P63: 0 | Q63: ='VUE SYNOPTIQUE'!A5&'VUE SYNOPTIQUE'!N1 -> 00 | R63: 0 | U63: 0
A64: ='J07'!B8:F8 -> 0 | B64: =IF('J07'!G8="","",'J07'!G8) ->  | C64: =IF('J07'!H8="","",'J07'!H8) ->  | D64: =IF('J07'!I8="","",'J07'!I8) ->  | I64: 0 | J64: 0 | M64: 0 | P64: 0 | Q64: ='VUE SYNOPTIQUE'!A5&'VUE SYNOPTIQUE'!P1 -> 00 | R64: 0 | U64: 0
A65: ='J07'!B9:F9 -> 0 | B65: =IF('J07'!G9="","",'J07'!G9) ->  | C65: =IF('J07'!H9="","",'J07'!H9) ->  | D65: =IF('J07'!I9="","",'J07'!I9) ->  | I65: =A65 -> 0 | J65: 0 | M65: 0 | N65: =VLOOKUP(M65,$R$1:$T$380,2,0) ->  | O65: =VLOOKUP(M65,$R$1:$T$380,3,0) ->  | P65: 0 | Q65: ='VUE SYNOPTIQUE'!A5&'VUE SYNOPTIQUE'!R1 -> 00 | R65: =A65&D65 -> 0 | S65: =B65 ->  | T65: =C65 ->  | U65: 0
A66: ='J07'!B10:F10 -> 0 | B66: =IF('J07'!G10="","",'J07'!G10) ->  | C66: =IF('J07'!H10="","",'J07'!H10) ->  | D66: =IF('J07'!I10="","",'J07'!I10) ->  | F66: =D66 ->  | G66: =IF(N66="","",N66) ->  | H66: =IF(O66="","",O66) ->  | I66: 0 | J66: =IF(P66="","",P66) -> 0 | M66: =F66&I66 -> 0 | P66: =VLOOKUP(M66,$R$1:$U$380,4,0) -> 0 | Q66: ='VUE SYNOPTIQUE'!A5&'VUE SYNOPTIQUE'!T1 -> 00 | R66: 0 | U66: =E66 -> 0
A67: ='J07'!B11:F11 -> 0 | B67: =IF('J07'!G11="","",'J07'!G11) ->  | C67: =IF('J07'!H11="","",'J07'!H11) ->  | D67: =IF('J07'!I11="","",'J07'!I11) ->  | I67: 0 | J67: 0 | M67: 0 | P67: 0 | Q67: ='VUE SYNOPTIQUE'!A5&'VUE SYNOPTIQUE'!V1 -> 00 | R67: 0 | U67: 0
A68: ='J07'!B12:F12 -> 0 | B68: =IF('J07'!G12="","",'J07'!G12) ->  | C68: =IF('J07'!H12="","",'J07'!H12) ->  | D68: =IF('J07'!I12="","",'J07'!I12) ->  | I68: 0 | J68: 0 | M68: 0 | P68: 0 | Q68: ='VUE SYNOPTIQUE'!A5&'VUE SYNOPTIQUE'!X1 -> 00 | R68: 0 | U68: 0
A69: ='J07'!B13:F13 -> 0 | B69: =IF('J07'!G13="","",'J07'!G13) ->  | C69: =IF('J07'!H13="","",'J07'!H13) ->  | D69: =IF('J07'!I13="","",'J07'!I13) ->  | I69: 0 | J69: 0 | M69: 0 | P69: 0 | Q69: ='VUE SYNOPTIQUE'!A5&'VUE SYNOPTIQUE'!Z1 -> 00 | R69: 0 | U69: 0
A70: ='J07'!B14:F14 -> 0 | B70: =IF('J07'!G14="","",'J07'!G14) ->  | C70: =IF('J07'!H14="","",'J07'!H14) ->  | D70: =IF('J07'!I14="","",'J07'!I14) ->  | I70: 0 | J70: 0 | M70: 0 | P70: 0 | Q70: ='VUE SYNOPTIQUE'!A5&'VUE SYNOPTIQUE'!AB1 -> 00 | R70: 0 | U70: 0
A71: ='J08'!B5:F5 -> 0 | B71: =IF('J08'!G5="","",'J08'!G5) ->  | C71: =IF('J08'!H5="","",'J08'!H5) ->  | D71: =IF('J08'!I5="","",'J08'!I5) ->  | I71: 0 | J71: 0 | K71: 8 | M71: 0 | P71: 0 | Q71: ='VUE SYNOPTIQUE'!A5&'VUE SYNOPTIQUE'!AD1 -> 00 | R71: 0 | U71: 0
A72: ='J08'!B6:F6 -> 0 | B72: =IF('J08'!G6="","",'J08'!G6) ->  | C72: =IF('J08'!H6="","",'J08'!H6) ->  | D72: =IF('J08'!I6="","",'J08'!I6) ->  | I72: 0 | J72: 0 | M72: 0 | P72: 0 | Q72: ='VUE SYNOPTIQUE'!A5&'VUE SYNOPTIQUE'!AF1 -> 00 | R72: 0 | U72: 0
A73: ='J08'!B7:F7 -> 0 | B73: =IF('J08'!G7="","",'J08'!G7) ->  | C73: =IF('J08'!H7="","",'J08'!H7) ->  | D73: =IF('J08'!I7="","",'J08'!I7) ->  | I73: 0 | J73: 0 | M73: 0 | P73: 0 | Q73: ='VUE SYNOPTIQUE'!A5&'VUE SYNOPTIQUE'!AH1 -> 00 | R73: 0 | U73: 0
A74: ='J08'!B8:F8 -> 0 | B74: =IF('J08'!G8="","",'J08'!G8) ->  | C74: =IF('J08'!H8="","",'J08'!H8) ->  | D74: =IF('J08'!I8="","",'J08'!I8) ->  | I74: 0 | J74: 0 | M74: 0 | P74: 0 | Q74: ='VUE SYNOPTIQUE'!A5&'VUE SYNOPTIQUE'!AJ1 -> 00 | R74: 0 | U74: 0
A75: ='J08'!B9:F9 -> 0 | B75: =IF('J08'!G9="","",'J08'!G9) ->  | C75: =IF('J08'!H9="","",'J08'!H9) ->  | D75: =IF('J08'!I9="","",'J08'!I9) ->  | I75: 0 | J75: 0 | M75: 0 | P75: 0 | Q75: ='VUE SYNOPTIQUE'!A5&'VUE SYNOPTIQUE'!AL1 -> 00 | R75: 0 | U75: 0
A76: ='J08'!B10:F10 -> 0 | B76: =IF('J08'!G10="","",'J08'!G10) ->  | C76: =IF('J08'!H10="","",'J08'!H10) ->  | D76: =IF('J08'!I10="","",'J08'!I10) ->  | I76: 0 | J76: 0 | M76: 0 | P76: 0 | Q76: ='VUE SYNOPTIQUE'!A5&'VUE SYNOPTIQUE'!AN1 -> 00 | R76: 0 | U76: 0
A77: ='J08'!B11:F11 -> 0 | B77: =IF('J08'!G11="","",'J08'!G11) ->  | C77: =IF('J08'!H11="","",'J08'!H11) ->  | D77: =IF('J08'!I11="","",'J08'!I11) ->  | I77: 0 | J77: 0 | M77: 0 | P77: 0 | Q77: ='VUE SYNOPTIQUE'!A6&'VUE SYNOPTIQUE'!B1 -> 00 | R77: 0 | U77: 0
A78: ='J08'!B12:F12 -> 0 | B78: =IF('J08'!G12="","",'J08'!G12) ->  | C78: =IF('J08'!H12="","",'J08'!H12) ->  | D78: =IF('J08'!I12="","",'J08'!I12) ->  | I78: 0 | J78: 0 | M78: 0 | P78: 0 | Q78: ='VUE SYNOPTIQUE'!A6&'VUE SYNOPTIQUE'!D1 -> 00 | R78: 0 | U78: 0
A79: ='J08'!B13:F13 -> 0 | B79: =IF('J08'!G13="","",'J08'!G13) ->  | C79: =IF('J08'!H13="","",'J08'!H13) ->  | D79: =IF('J08'!I13="","",'J08'!I13) ->  | I79: 0 | J79: 0 | M79: 0 | P79: 0 | Q79: ='VUE SYNOPTIQUE'!A6&'VUE SYNOPTIQUE'!F1 -> 00 | R79: 0 | U79: 0
A80: ='J08'!B14:F14 -> 0 | B80: =IF('J08'!G14="","",'J08'!G14) ->  | C80: =IF('J08'!H14="","",'J08'!H14) ->  | D80: =IF('J08'!I14="","",'J08'!I14) ->  | I80: 0 | J80: 0 | M80: 0 | P80: 0 | Q80: ='VUE SYNOPTIQUE'!A6&'VUE SYNOPTIQUE'!H1 -> 00 | R80: 0 | U80: 0
A81: ='J09'!B5:F5 -> 0 | B81: =IF('J09'!G5="","",'J09'!G5) ->  | C81: =IF('J09'!H5="","",'J09'!H5) ->  | D81: =IF('J09'!I5="","",'J09'!I5) ->  | I81: 0 | J81: 0 | K81: 9 | M81: 0 | P81: 0 | Q81: ='VUE SYNOPTIQUE'!A6&'VUE SYNOPTIQUE'!L1 -> 00 | R81: 0 | U81: 0
A82: ='J09'!B6:F6 -> 0 | B82: =IF('J09'!G6="","",'J09'!G6) ->  | C82: =IF('J09'!H6="","",'J09'!H6) ->  | D82: =IF('J09'!I6="","",'J09'!I6) ->  | I82: 0 | J82: 0 | M82: 0 | P82: 0 | Q82: ='VUE SYNOPTIQUE'!A6&'VUE SYNOPTIQUE'!N1 -> 00 | R82: 0 | U82: 0
A83: ='J09'!B7:F7 -> 0 | B83: =IF('J09'!G7="","",'J09'!G7) ->  | C83: =IF('J09'!H7="","",'J09'!H7) ->  | D83: =IF('J09'!I7="","",'J09'!I7) ->  | I83: 0 | J83: 0 | M83: 0 | P83: 0 | Q83: ='VUE SYNOPTIQUE'!A6&'VUE SYNOPTIQUE'!P1 -> 00 | R83: 0 | U83: 0
A84: ='J09'!B8:F8 -> 0 | B84: =IF('J09'!G8="","",'J09'!G8) ->  | C84: =IF('J09'!H8="","",'J09'!H8) ->  | D84: =IF('J09'!I8="","",'J09'!I8) ->  | I84: 0 | J84: 0 | M84: 0 | P84: 0 | Q84: ='VUE SYNOPTIQUE'!A6&'VUE SYNOPTIQUE'!R1 -> 00 | R84: 0 | U84: 0
A85: ='J09'!B9:F9 -> 0 | B85: =IF('J09'!G9="","",'J09'!G9) ->  | C85: =IF('J09'!H9="","",'J09'!H9) ->  | D85: =IF('J09'!I9="","",'J09'!I9) ->  | I85: 0 | J85: 0 | M85: 0 | P85: 0 | Q85: ='VUE SYNOPTIQUE'!A6&'VUE SYNOPTIQUE'!T1 -> 00 | R85: 0 | U85: 0
A86: ='J09'!B10:F10 -> 0 | B86: =IF('J09'!G10="","",'J09'!G10) ->  | C86: =IF('J09'!H10="","",'J09'!H10) ->  | D86: =IF('J09'!I10="","",'J09'!I10) ->  | I86: 0 | J86: 0 | M86: 0 | P86: 0 | Q86: ='VUE SYNOPTIQUE'!A6&'VUE SYNOPTIQUE'!V1 -> 00 | R86: 0 | U86: 0
A87: ='J09'!B11:F11 -> 0 | B87: =IF('J09'!G11="","",'J09'!G11) ->  | C87: =IF('J09'!H11="","",'J09'!H11) ->  | D87: =IF('J09'!I11="","",'J09'!I11) ->  | I87: 0 | J87: 0 | M87: 0 | P87: 0 | Q87: ='VUE SYNOPTIQUE'!A6&'VUE SYNOPTIQUE'!X1 -> 00 | R87: 0 | U87: 0
A88: ='J09'!B12:F12 -> 0 | B88: =IF('J09'!G12="","",'J09'!G12) ->  | C88: =IF('J09'!H12="","",'J09'!H12) ->  | D88: =IF('J09'!I12="","",'J09'!I12) ->  | I88: 0 | J88: 0 | M88: 0 | P88: 0 | Q88: ='VUE SYNOPTIQUE'!A6&'VUE SYNOPTIQUE'!Z1 -> 00 | R88: 0 | U88: 0
A89: ='J09'!B13:F13 -> 0 | B89: =IF('J09'!G13="","",'J09'!G13) ->  | C89: =IF('J09'!H13="","",'J09'!H13) ->  | D89: =IF('J09'!I13="","",'J09'!I13) ->  | I89: 0 | J89: 0 | M89: 0 | P89: 0 | Q89: ='VUE SYNOPTIQUE'!A6&'VUE SYNOPTIQUE'!AB1 -> 00 | R89: 0 | U89: 0
A90: ='J09'!B14:F14 -> 0 | B90: =IF('J09'!G14="","",'J09'!G14) ->  | C90: =IF('J09'!H14="","",'J09'!H14) ->  | D90: =IF('J09'!I14="","",'J09'!I14) ->  | I90: 0 | J90: 0 | M90: 0 | P90: 0 | Q90: ='VUE SYNOPTIQUE'!A6&'VUE SYNOPTIQUE'!AD1 -> 00 | R90: 0 | U90: 0
A91: ='J10'!B5:F5 -> 0 | B91: =IF('J10'!G5="","",'J10'!G5) ->  | C91: =IF('J10'!H5="","",'J10'!H5) ->  | D91: =IF('J10'!I5="","",'J10'!I5) ->  | I91: 0 | J91: 0 | K91: 10 | M91: 0 | P91: 0 | Q91: ='VUE SYNOPTIQUE'!A6&'VUE SYNOPTIQUE'!AF1 -> 00 | R91: 0 | U91: 0
A92: ='J10'!B6:F6 -> 0 | B92: =IF('J10'!G6="","",'J10'!G6) ->  | C92: =IF('J10'!H6="","",'J10'!H6) ->  | D92: =IF('J10'!I6="","",'J10'!I6) ->  | I92: 0 | J92: 0 | M92: 0 | P92: 0 | Q92: ='VUE SYNOPTIQUE'!A6&'VUE SYNOPTIQUE'!AH1 -> 00 | R92: 0 | U92: 0
A93: ='J10'!B7:F7 -> 0 | B93: =IF('J10'!G7="","",'J10'!G7) ->  | C93: =IF('J10'!H7="","",'J10'!H7) ->  | D93: =IF('J10'!I7="","",'J10'!I7) ->  | I93: 0 | J93: 0 | M93: 0 | P93: 0 | Q93: ='VUE SYNOPTIQUE'!A6&'VUE SYNOPTIQUE'!AJ1 -> 00 | R93: 0 | U93: 0
A94: ='J10'!B8:F8 -> 0 | B94: =IF('J10'!G8="","",'J10'!G8) ->  | C94: =IF('J10'!H8="","",'J10'!H8) ->  | D94: =IF('J10'!I8="","",'J10'!I8) ->  | I94: 0 | J94: 0 | M94: 0 | P94: 0 | Q94: ='VUE SYNOPTIQUE'!A6&'VUE SYNOPTIQUE'!AL1 -> 00 | R94: 0 | U94: 0
A95: ='J10'!B9:F9 -> 0 | B95: =IF('J10'!G9="","",'J10'!G9) ->  | C95: =IF('J10'!H9="","",'J10'!H9) ->  | D95: =IF('J10'!I9="","",'J10'!I9) ->  | I95: 0 | J95: 0 | M95: 0 | P95: 0 | Q95: ='VUE SYNOPTIQUE'!A6&'VUE SYNOPTIQUE'!AN1 -> 00 | R95: 0 | U95: 0
A96: ='J10'!B10:F10 -> 0 | B96: =IF('J10'!G10="","",'J10'!G10) ->  | C96: =IF('J10'!H10="","",'J10'!H10) ->  | D96: =IF('J10'!I10="","",'J10'!I10) ->  | I96: 0 | J96: 0 | M96: 0 | P96: 0 | Q96: ='VUE SYNOPTIQUE'!A7&'VUE SYNOPTIQUE'!B1 -> 00 | R96: 0 | U96: 0
A97: ='J10'!B11:F11 -> 0 | B97: =IF('J10'!G11="","",'J10'!G11) ->  | C97: =IF('J10'!H11="","",'J10'!H11) ->  | D97: =IF('J10'!I11="","",'J10'!I11) ->  | I97: 0 | J97: 0 | M97: 0 | P97: 0 | Q97: ='VUE SYNOPTIQUE'!A7&'VUE SYNOPTIQUE'!D1 -> 00 | R97: 0 | U97: 0
A98: ='J10'!B12:F12 -> 0 | B98: =IF('J10'!G12="","",'J10'!G12) ->  | C98: =IF('J10'!H12="","",'J10'!H12) ->  | D98: =IF('J10'!I12="","",'J10'!I12) ->  | I98: 0 | J98: 0 | M98: 0 | P98: 0 | Q98: ='VUE SYNOPTIQUE'!A7&'VUE SYNOPTIQUE'!F1 -> 00 | R98: 0 | U98: 0
A99: ='J10'!B13:F13 -> 0 | B99: =IF('J10'!G13="","",'J10'!G13) ->  | C99: =IF('J10'!H13="","",'J10'!H13) ->  | D99: =IF('J10'!I13="","",'J10'!I13) ->  | I99: 0 | J99: 0 | M99: 0 | P99: 0 | Q99: ='VUE SYNOPTIQUE'!A7&'VUE SYNOPTIQUE'!H1 -> 00 | R99: 0 | U99: 0
A100: ='J10'!B14:F14 -> 0 | B100: =IF('J10'!G14="","",'J10'!G14) ->  | C100: =IF('J10'!H14="","",'J10'!H14) ->  | D100: =IF('J10'!I14="","",'J10'!I14) ->  | I100: 0 | J100: 0 | M100: 0 | P100: 0 | Q100: ='VUE SYNOPTIQUE'!A7&'VUE SYNOPTIQUE'!J1 -> 00 | R100: 0 | U100: 0
A101: ='J11'!B5:F5 -> 0 | B101: =IF('J11'!G5="","",'J11'!G5) ->  | C101: =IF('J11'!H5="","",'J11'!H5) ->  | D101: =IF('J11'!I5="","",'J11'!I5) ->  | I101: 0 | J101: 0 | K101: 11 | M101: 0 | P101: 0 | Q101: ='VUE SYNOPTIQUE'!A7&'VUE SYNOPTIQUE'!N1 -> 00 | R101: 0 | U101: 0
A102: ='J11'!B6:F6 -> 0 | B102: =IF('J11'!G6="","",'J11'!G6) ->  | C102: =IF('J11'!H6="","",'J11'!H6) ->  | D102: =IF('J11'!I6="","",'J11'!I6) ->  | I102: 0 | J102: 0 | M102: 0 | P102: 0 | Q102: ='VUE SYNOPTIQUE'!A7&'VUE SYNOPTIQUE'!P1 -> 00 | R102: 0 | U102: 0
A103: ='J11'!B7:F7 -> 0 | B103: =IF('J11'!G7="","",'J11'!G7) ->  | C103: =IF('J11'!H7="","",'J11'!H7) ->  | D103: =IF('J11'!I7="","",'J11'!I7) ->  | I103: 0 | J103: 0 | M103: 0 | P103: 0 | Q103: ='VUE SYNOPTIQUE'!A7&'VUE SYNOPTIQUE'!R1 -> 00 | R103: 0 | U103: 0
A104: ='J11'!B8:F8 -> 0 | B104: =IF('J11'!G8="","",'J11'!G8) ->  | C104: =IF('J11'!H8="","",'J11'!H8) ->  | D104: =IF('J11'!I8="","",'J11'!I8) ->  | I104: 0 | J104: 0 | M104: 0 | P104: 0 | Q104: ='VUE SYNOPTIQUE'!A7&'VUE SYNOPTIQUE'!T1 -> 00 | R104: 0 | U104: 0
A105: ='J11'!B9:F9 -> 0 | B105: =IF('J11'!G9="","",'J11'!G9) ->  | C105: =IF('J11'!H9="","",'J11'!H9) ->  | D105: =IF('J11'!I9="","",'J11'!I9) ->  | I105: 0 | J105: 0 | M105: 0 | P105: 0 | Q105: ='VUE SYNOPTIQUE'!A7&'VUE SYNOPTIQUE'!V1 -> 00 | R105: 0 | U105: 0
A106: ='J11'!B10:F10 -> 0 | B106: =IF('J11'!G10="","",'J11'!G10) ->  | C106: =IF('J11'!H10="","",'J11'!H10) ->  | D106: =IF('J11'!I10="","",'J11'!I10) ->  | I106: 0 | J106: 0 | M106: 0 | P106: 0 | Q106: ='VUE SYNOPTIQUE'!A7&'VUE SYNOPTIQUE'!X1 -> 00 | R106: 0 | U106: 0
A107: ='J11'!B11:F11 -> 0 | B107: =IF('J11'!G11="","",'J11'!G11) ->  | C107: =IF('J11'!H11="","",'J11'!H11) ->  | D107: =IF('J11'!I11="","",'J11'!I11) ->  | I107: 0 | J107: 0 | M107: 0 | P107: 0 | Q107: ='VUE SYNOPTIQUE'!A7&'VUE SYNOPTIQUE'!Z1 -> 00 | R107: 0 | U107: 0
A108: ='J11'!B12:F12 -> 0 | B108: =IF('J11'!G12="","",'J11'!G12) ->  | C108: =IF('J11'!H12="","",'J11'!H12) ->  | D108: =IF('J11'!I12="","",'J11'!I12) ->  | I108: 0 | J108: 0 | M108: 0 | P108: 0 | Q108: ='VUE SYNOPTIQUE'!A7&'VUE SYNOPTIQUE'!AB1 -> 00 | R108: 0 | U108: 0
A109: ='J11'!B13:F13 -> 0 | B109: =IF('J11'!G13="","",'J11'!G13) ->  | C109: =IF('J11'!H13="","",'J11'!H13) ->  | D109: =IF('J11'!I13="","",'J11'!I13) ->  | I109: 0 | J109: 0 | M109: 0 | P109: 0 | Q109: ='VUE SYNOPTIQUE'!A7&'VUE SYNOPTIQUE'!AD1 -> 00 | R109: 0 | U109: 0
A110: ='J11'!B14:F14 -> 0 | B110: =IF('J11'!G14="","",'J11'!G14) ->  | C110: =IF('J11'!H14="","",'J11'!H14) ->  | D110: =IF('J11'!I14="","",'J11'!I14) ->  | I110: 0 | J110: 0 | M110: 0 | P110: 0 | Q110: ='VUE SYNOPTIQUE'!A7&'VUE SYNOPTIQUE'!AF1 -> 00 | R110: 0 | U110: 0
A111: ='J12'!B5:F5 -> 0 | B111: =IF('J12'!G5="","",'J12'!G5) ->  | C111: =IF('J12'!H5="","",'J12'!H5) ->  | D111: =IF('J12'!I5="","",'J12'!I5) ->  | I111: 0 | J111: 0 | K111: 12 | M111: 0 | P111: 0 | Q111: ='VUE SYNOPTIQUE'!A7&'VUE SYNOPTIQUE'!AH1 -> 00 | R111: 0 | U111: 0
A112: ='J12'!B6:F6 -> 0 | B112: =IF('J12'!G6="","",'J12'!G6) ->  | C112: =IF('J12'!H6="","",'J12'!H6) ->  | D112: =IF('J12'!I6="","",'J12'!I6) ->  | I112: 0 | J112: 0 | M112: 0 | P112: 0 | Q112: ='VUE SYNOPTIQUE'!A7&'VUE SYNOPTIQUE'!AJ1 -> 00 | R112: 0 | U112: 0
A113: ='J12'!B7:F7 -> 0 | B113: =IF('J12'!G7="","",'J12'!G7) ->  | C113: =IF('J12'!H7="","",'J12'!H7) ->  | D113: =IF('J12'!I7="","",'J12'!I7) ->  | I113: 0 | J113: 0 | M113: 0 | P113: 0 | Q113: ='VUE SYNOPTIQUE'!A7&'VUE SYNOPTIQUE'!AL1 -> 00 | R113: 0 | U113: 0
A114: ='J12'!B8:F8 -> 0 | B114: =IF('J12'!G8="","",'J12'!G8) ->  | C114: =IF('J12'!H8="","",'J12'!H8) ->  | D114: =IF('J12'!I8="","",'J12'!I8) ->  | I114: 0 | J114: 0 | M114: 0 | P114: 0 | Q114: ='VUE SYNOPTIQUE'!A7&'VUE SYNOPTIQUE'!AN1 -> 00 | R114: 0 | U114: 0
A115: ='J12'!B9:F9 -> 0 | B115: =IF('J12'!G9="","",'J12'!G9) ->  | C115: =IF('J12'!H9="","",'J12'!H9) ->  | D115: =IF('J12'!I9="","",'J12'!I9) ->  | I115: 0 | J115: 0 | M115: 0 | P115: 0 | Q115: ='VUE SYNOPTIQUE'!A8&'VUE SYNOPTIQUE'!B1 -> 00 | R115: 0 | U115: 0
A116: ='J12'!B10:F10 -> 0 | B116: =IF('J12'!G10="","",'J12'!G10) ->  | C116: =IF('J12'!H10="","",'J12'!H10) ->  | D116: =IF('J12'!I10="","",'J12'!I10) ->  | I116: 0 | J116: 0 | M116: 0 | P116: 0 | Q116: ='VUE SYNOPTIQUE'!A8&'VUE SYNOPTIQUE'!D1 -> 00 | R116: 0 | U116: 0
A117: ='J12'!B11:F11 -> 0 | B117: =IF('J12'!G11="","",'J12'!G11) ->  | C117: =IF('J12'!H11="","",'J12'!H11) ->  | D117: =IF('J12'!I11="","",'J12'!I11) ->  | I117: 0 | J117: 0 | M117: 0 | P117: 0 | Q117: ='VUE SYNOPTIQUE'!A8&'VUE SYNOPTIQUE'!F1 -> 00 | R117: 0 | U117: 0
A118: ='J12'!B12:F12 -> 0 | B118: =IF('J12'!G12="","",'J12'!G12) ->  | C118: =IF('J12'!H12="","",'J12'!H12) ->  | D118: =IF('J12'!I12="","",'J12'!I12) ->  | I118: 0 | J118: 0 | M118: 0 | P118: 0 | Q118: ='VUE SYNOPTIQUE'!A8&'VUE SYNOPTIQUE'!H1 -> 00 | R118: 0 | U118: 0
A119: ='J12'!B13:F13 -> 0 | B119: =IF('J12'!G13="","",'J12'!G13) ->  | C119: =IF('J12'!H13="","",'J12'!H13) ->  | D119: =IF('J12'!I13="","",'J12'!I13) ->  | I119: 0 | J119: 0 | M119: 0 | P119: 0 | Q119: ='VUE SYNOPTIQUE'!A8&'VUE SYNOPTIQUE'!J1 -> 00 | R119: 0 | U119: 0
A120: ='J12'!B14:F14 -> 0 | B120: =IF('J12'!G14="","",'J12'!G14) ->  | C120: =IF('J12'!H14="","",'J12'!H14) ->  | D120: =IF('J12'!I14="","",'J12'!I14) ->  | I120: 0 | J120: 0 | M120: 0 | P120: 0 | Q120: ='VUE SYNOPTIQUE'!A8&'VUE SYNOPTIQUE'!L1 -> 00 | R120: 0 | U120: 0
A121: ='J13'!B5:F5 -> 0 | B121: =IF('J13'!G5="","",'J13'!G5) ->  | C121: =IF('J13'!H5="","",'J13'!H5) ->  | D121: =IF('J13'!I5="","",'J13'!I5) ->  | I121: 0 | J121: 0 | K121: 13 | M121: 0 | P121: 0 | Q121: ='VUE SYNOPTIQUE'!A8&'VUE SYNOPTIQUE'!P1 -> 00 | R121: 0 | U121: 0
A122: ='J13'!B6:F6 -> 0 | B122: =IF('J13'!G6="","",'J13'!G6) ->  | C122: =IF('J13'!H6="","",'J13'!H6) ->  | D122: =IF('J13'!I6="","",'J13'!I6) ->  | I122: 0 | J122: 0 | M122: 0 | P122: 0 | Q122: ='VUE SYNOPTIQUE'!A8&'VUE SYNOPTIQUE'!R1 -> 00 | R122: 0 | U122: 0
A123: ='J13'!B7:F7 -> 0 | B123: =IF('J13'!G7="","",'J13'!G7) ->  | C123: =IF('J13'!H7="","",'J13'!H7) ->  | D123: =IF('J13'!I7="","",'J13'!I7) ->  | I123: 0 | J123: 0 | M123: 0 | P123: 0 | Q123: ='VUE SYNOPTIQUE'!A8&'VUE SYNOPTIQUE'!T1 -> 00 | R123: 0 | U123: 0
A124: ='J13'!B8:F8 -> 0 | B124: =IF('J13'!G8="","",'J13'!G8) ->  | C124: =IF('J13'!H8="","",'J13'!H8) ->  | D124: =IF('J13'!I8="","",'J13'!I8) ->  | I124: 0 | J124: 0 | M124: 0 | P124: 0 | Q124: ='VUE SYNOPTIQUE'!A8&'VUE SYNOPTIQUE'!V1 -> 00 | R124: 0 | U124: 0
A125: ='J13'!B9:F9 -> 0 | B125: =IF('J13'!G9="","",'J13'!G9) ->  | C125: =IF('J13'!H9="","",'J13'!H9) ->  | D125: =IF('J13'!I9="","",'J13'!I9) ->  | I125: 0 | J125: 0 | M125: 0 | P125: 0 | Q125: ='VUE SYNOPTIQUE'!A8&'VUE SYNOPTIQUE'!X1 -> 00 | R125: 0 | U125: 0
A126: ='J13'!B10:F10 -> 0 | B126: =IF('J13'!G10="","",'J13'!G10) ->  | C126: =IF('J13'!H10="","",'J13'!H10) ->  | D126: =IF('J13'!I10="","",'J13'!I10) ->  | I126: 0 | J126: 0 | M126: 0 | P126: 0 | Q126: ='VUE SYNOPTIQUE'!A8&'VUE SYNOPTIQUE'!Z1 -> 00 | R126: 0 | U126: 0
A127: ='J13'!B11:F11 -> 0 | B127: =IF('J13'!G11="","",'J13'!G11) ->  | C127: =IF('J13'!H11="","",'J13'!H11) ->  | D127: =IF('J13'!I11="","",'J13'!I11) ->  | I127: 0 | J127: 0 | M127: 0 | P127: 0 | Q127: ='VUE SYNOPTIQUE'!A8&'VUE SYNOPTIQUE'!AB1 -> 00 | R127: 0 | U127: 0
A128: ='J13'!B12:F12 -> 0 | B128: =IF('J13'!G12="","",'J13'!G12) ->  | C128: =IF('J13'!H12="","",'J13'!H12) ->  | D128: =IF('J13'!I12="","",'J13'!I12) ->  | I128: 0 | J128: 0 | M128: 0 | P128: 0 | Q128: ='VUE SYNOPTIQUE'!A8&'VUE SYNOPTIQUE'!AD1 -> 00 | R128: 0 | U128: 0
A129: ='J13'!B13:F13 -> 0 | B129: =IF('J13'!G13="","",'J13'!G13) ->  | C129: =IF('J13'!H13="","",'J13'!H13) ->  | D129: =IF('J13'!I13="","",'J13'!I13) ->  | I129: =A129 -> 0 | J129: 0 | M129: 0 | N129: =VLOOKUP(M129,$R$1:$T$380,2,0) ->  | O129: =VLOOKUP(M129,$R$1:$T$380,3,0) ->  | P129: 0 | Q129: ='VUE SYNOPTIQUE'!A8&'VUE SYNOPTIQUE'!AF1 -> 00 | R129: =A129&D129 -> 0 | S129: =B129 ->  | T129: =C129 ->  | U129: 0
A130: ='J13'!B14:F14 -> 0 | B130: =IF('J13'!G14="","",'J13'!G14) ->  | C130: =IF('J13'!H14="","",'J13'!H14) ->  | D130: =IF('J13'!I14="","",'J13'!I14) ->  | F130: =D130 ->  | G130: =IF(N130="","",N130) ->  | H130: =IF(O130="","",O130) ->  | I130: 0 | J130: =IF(P130="","",P130) -> 0 | M130: =F130&I130 -> 0 | P130: =VLOOKUP(M130,$R$1:$U$380,4,0) -> 0 | Q130: ='VUE SYNOPTIQUE'!A8&'VUE SYNOPTIQUE'!AH1 -> 00 | R130: 0 | U130: =E130 -> 0
A131: ='J14'!B5:F5 -> 0 | B131: =IF('J14'!G5="","",'J14'!G5) ->  | C131: =IF('J14'!H5="","",'J14'!H5) ->  | D131: =IF('J14'!I5="","",'J14'!I5) ->  | I131: 0 | J131: 0 | K131: 14 | M131: 0 | P131: 0 | Q131: ='VUE SYNOPTIQUE'!A8&'VUE SYNOPTIQUE'!AJ1 -> 00 | R131: 0 | U131: 0
A132: ='J14'!B6:F6 -> 0 | B132: =IF('J14'!G6="","",'J14'!G6) ->  | C132: =IF('J14'!H6="","",'J14'!H6) ->  | D132: =IF('J14'!I6="","",'J14'!I6) ->  | I132: 0 | J132: 0 | M132: 0 | P132: 0 | Q132: ='VUE SYNOPTIQUE'!A8&'VUE SYNOPTIQUE'!AL1 -> 00 | R132: 0 | U132: 0
A133: ='J14'!B7:F7 -> 0 | B133: =IF('J14'!G7="","",'J14'!G7) ->  | C133: =IF('J14'!H7="","",'J14'!H7) ->  | D133: =IF('J14'!I7="","",'J14'!I7) ->  | I133: 0 | J133: 0 | M133: 0 | P133: 0 | Q133: ='VUE SYNOPTIQUE'!A8&'VUE SYNOPTIQUE'!AN1 -> 00 | R133: 0 | U133: 0
A134: ='J14'!B8:F8 -> 0 | B134: =IF('J14'!G8="","",'J14'!G8) ->  | C134: =IF('J14'!H8="","",'J14'!H8) ->  | D134: =IF('J14'!I8="","",'J14'!I8) ->  | I134: 0 | J134: 0 | M134: 0 | P134: 0 | Q134: ='VUE SYNOPTIQUE'!A9&'VUE SYNOPTIQUE'!B1 -> 00 | R134: 0 | U134: 0
A135: ='J14'!B9:F9 -> 0 | B135: =IF('J14'!G9="","",'J14'!G9) ->  | C135: =IF('J14'!H9="","",'J14'!H9) ->  | D135: =IF('J14'!I9="","",'J14'!I9) ->  | I135: 0 | J135: 0 | M135: 0 | P135: 0 | Q135: ='VUE SYNOPTIQUE'!A9&'VUE SYNOPTIQUE'!D1 -> 00 | R135: 0 | U135: 0
A136: ='J14'!B10:F10 -> 0 | B136: =IF('J14'!G10="","",'J14'!G10) ->  | C136: =IF('J14'!H10="","",'J14'!H10) ->  | D136: =IF('J14'!I10="","",'J14'!I10) ->  | I136: 0 | J136: 0 | M136: 0 | P136: 0 | Q136: ='VUE SYNOPTIQUE'!A9&'VUE SYNOPTIQUE'!F1 -> 00 | R136: 0 | U136: 0
A137: ='J14'!B11:F11 -> 0 | B137: =IF('J14'!G11="","",'J14'!G11) ->  | C137: =IF('J14'!H11="","",'J14'!H11) ->  | D137: =IF('J14'!I11="","",'J14'!I11) ->  | I137: 0 | J137: 0 | M137: 0 | P137: 0 | Q137: ='VUE SYNOPTIQUE'!A9&'VUE SYNOPTIQUE'!H1 -> 00 | R137: 0 | U137: 0
A138: ='J14'!B12:F12 -> 0 | B138: =IF('J14'!G12="","",'J14'!G12) ->  | C138: =IF('J14'!H12="","",'J14'!H12) ->  | D138: =IF('J14'!I12="","",'J14'!I12) ->  | I138: 0 | J138: 0 | M138: 0 | P138: 0 | Q138: ='VUE SYNOPTIQUE'!A9&'VUE SYNOPTIQUE'!J1 -> 00 | R138: 0 | U138: 0
A139: ='J14'!B13:F13 -> 0 | B139: =IF('J14'!G13="","",'J14'!G13) ->  | C139: =IF('J14'!H13="","",'J14'!H13) ->  | D139: =IF('J14'!I13="","",'J14'!I13) ->  | I139: 0 | J139: 0 | M139: 0 | P139: 0 | Q139: ='VUE SYNOPTIQUE'!A9&'VUE SYNOPTIQUE'!L1 -> 00 | R139: 0 | U139: 0
A140: ='J14'!B14:F14 -> 0 | B140: =IF('J14'!G14="","",'J14'!G14) ->  | C140: =IF('J14'!H14="","",'J14'!H14) ->  | D140: =IF('J14'!I14="","",'J14'!I14) ->  | I140: 0 | J140: 0 | M140: 0 | P140: 0 | Q140: ='VUE SYNOPTIQUE'!A9&'VUE SYNOPTIQUE'!N1 -> 00 | R140: 0 | U140: 0
A141: ='J15'!B5:F5 -> 0 | B141: =IF('J15'!G5="","",'J15'!G5) ->  | C141: =IF('J15'!H5="","",'J15'!H5) ->  | D141: =IF('J15'!I5="","",'J15'!I5) ->  | I141: 0 | J141: 0 | K141: 15 | M141: 0 | P141: 0 | Q141: ='VUE SYNOPTIQUE'!A9&'VUE SYNOPTIQUE'!R1 -> 00 | R141: 0 | U141: 0
A142: ='J15'!B6:F6 -> 0 | B142: =IF('J15'!G6="","",'J15'!G6) ->  | C142: =IF('J15'!H6="","",'J15'!H6) ->  | D142: =IF('J15'!I6="","",'J15'!I6) ->  | I142: 0 | J142: 0 | M142: 0 | P142: 0 | Q142: ='VUE SYNOPTIQUE'!A9&'VUE SYNOPTIQUE'!T1 -> 00 | R142: 0 | U142: 0
A143: ='J15'!B7:F7 -> 0 | B143: =IF('J15'!G7="","",'J15'!G7) ->  | C143: =IF('J15'!H7="","",'J15'!H7) ->  | D143: =IF('J15'!I7="","",'J15'!I7) ->  | I143: 0 | J143: 0 | M143: 0 | P143: 0 | Q143: ='VUE SYNOPTIQUE'!A9&'VUE SYNOPTIQUE'!V1 -> 00 | R143: 0 | U143: 0
A144: ='J15'!B8:F8 -> 0 | B144: =IF('J15'!G8="","",'J15'!G8) ->  | C144: =IF('J15'!H8="","",'J15'!H8) ->  | D144: =IF('J15'!I8="","",'J15'!I8) ->  | I144: 0 | J144: 0 | M144: 0 | P144: 0 | Q144: ='VUE SYNOPTIQUE'!A9&'VUE SYNOPTIQUE'!X1 -> 00 | R144: 0 | U144: 0
A145: ='J15'!B9:F9 -> 0 | B145: =IF('J15'!G9="","",'J15'!G9) ->  | C145: =IF('J15'!H9="","",'J15'!H9) ->  | D145: =IF('J15'!I9="","",'J15'!I9) ->  | I145: 0 | J145: 0 | M145: 0 | P145: 0 | Q145: ='VUE SYNOPTIQUE'!A9&'VUE SYNOPTIQUE'!Z1 -> 00 | R145: 0 | U145: 0
A146: ='J15'!B10:F10 -> 0 | B146: =IF('J15'!G10="","",'J15'!G10) ->  | C146: =IF('J15'!H10="","",'J15'!H10) ->  | D146: =IF('J15'!I10="","",'J15'!I10) ->  | I146: 0 | J146: 0 | M146: 0 | P146: 0 | Q146: ='VUE SYNOPTIQUE'!A9&'VUE SYNOPTIQUE'!AB1 -> 00 | R146: 0 | U146: 0
A147: ='J15'!B11:F11 -> 0 | B147: =IF('J15'!G11="","",'J15'!G11) ->  | C147: =IF('J15'!H11="","",'J15'!H11) ->  | D147: =IF('J15'!I11="","",'J15'!I11) ->  | I147: 0 | J147: 0 | M147: 0 | P147: 0 | Q147: ='VUE SYNOPTIQUE'!A9&'VUE SYNOPTIQUE'!AD1 -> 00 | R147: 0 | U147: 0
A148: ='J15'!B12:F12 -> 0 | B148: =IF('J15'!G12="","",'J15'!G12) ->  | C148: =IF('J15'!H12="","",'J15'!H12) ->  | D148: =IF('J15'!I12="","",'J15'!I12) ->  | I148: 0 | J148: 0 | M148: 0 | P148: 0 | Q148: ='VUE SYNOPTIQUE'!A9&'VUE SYNOPTIQUE'!AF1 -> 00 | R148: 0 | U148: 0
A149: ='J15'!B13:F13 -> 0 | B149: =IF('J15'!G13="","",'J15'!G13) ->  | C149: =IF('J15'!H13="","",'J15'!H13) ->  | D149: =IF('J15'!I13="","",'J15'!I13) ->  | I149: 0 | J149: 0 | M149: 0 | P149: 0 | Q149: ='VUE SYNOPTIQUE'!A9&'VUE SYNOPTIQUE'!AH1 -> 00 | R149: 0 | U149: 0
A150: ='J15'!B14:F14 -> 0 | B150: =IF('J15'!G14="","",'J15'!G14) ->  | C150: =IF('J15'!H14="","",'J15'!H14) ->  | D150: =IF('J15'!I14="","",'J15'!I14) ->  | I150: 0 | J150: 0 | M150: 0 | P150: 0 | Q150: ='VUE SYNOPTIQUE'!A9&'VUE SYNOPTIQUE'!AJ1 -> 00 | R150: 0 | U150: 0
A151: ='J16'!B5:F5 -> 0 | B151: =IF('J16'!G5="","",'J16'!G5) ->  | C151: =IF('J16'!H5="","",'J16'!H5) ->  | D151: =IF('J16'!I5="","",'J16'!I5) ->  | I151: 0 | J151: 0 | K151: 16 | M151: 0 | P151: 0 | Q151: ='VUE SYNOPTIQUE'!A9&'VUE SYNOPTIQUE'!AL1 -> 00 | R151: 0 | U151: 0
A152: ='J16'!B6:F6 -> 0 | B152: =IF('J16'!G6="","",'J16'!G6) ->  | C152: =IF('J16'!H6="","",'J16'!H6) ->  | D152: =IF('J16'!I6="","",'J16'!I6) ->  | I152: 0 | J152: 0 | M152: 0 | P152: 0 | Q152: ='VUE SYNOPTIQUE'!A9&'VUE SYNOPTIQUE'!AN1 -> 00 | R152: 0 | U152: 0
A153: ='J16'!B7:F7 -> 0 | B153: =IF('J16'!G7="","",'J16'!G7) ->  | C153: =IF('J16'!H7="","",'J16'!H7) ->  | D153: =IF('J16'!I7="","",'J16'!I7) ->  | I153: 0 | J153: 0 | M153: 0 | P153: 0 | Q153: ='VUE SYNOPTIQUE'!A10&'VUE SYNOPTIQUE'!B1 -> 00 | R153: 0 | U153: 0
A154: ='J16'!B8:F8 -> 0 | B154: =IF('J16'!G8="","",'J16'!G8) ->  | C154: =IF('J16'!H8="","",'J16'!H8) ->  | D154: =IF('J16'!I8="","",'J16'!I8) ->  | I154: 0 | J154: 0 | M154: 0 | P154: 0 | Q154: ='VUE SYNOPTIQUE'!A10&'VUE SYNOPTIQUE'!D1 -> 00 | R154: 0 | U154: 0
A155: ='J16'!B9:F9 -> 0 | B155: =IF('J16'!G9="","",'J16'!G9) ->  | C155: =IF('J16'!H9="","",'J16'!H9) ->  | D155: =IF('J16'!I9="","",'J16'!I9) ->  | I155: 0 | J155: 0 | M155: 0 | P155: 0 | Q155: ='VUE SYNOPTIQUE'!A10&'VUE SYNOPTIQUE'!F1 -> 00 | R155: 0 | U155: 0
A156: ='J16'!B10:F10 -> 0 | B156: =IF('J16'!G10="","",'J16'!G10) ->  | C156: =IF('J16'!H10="","",'J16'!H10) ->  | D156: =IF('J16'!I10="","",'J16'!I10) ->  | I156: 0 | J156: 0 | M156: 0 | P156: 0 | Q156: ='VUE SYNOPTIQUE'!A10&'VUE SYNOPTIQUE'!H1 -> 00 | R156: 0 | U156: 0
A157: ='J16'!B11:F11 -> 0 | B157: =IF('J16'!G11="","",'J16'!G11) ->  | C157: =IF('J16'!H11="","",'J16'!H11) ->  | D157: =IF('J16'!I11="","",'J16'!I11) ->  | I157: 0 | J157: 0 | M157: 0 | P157: 0 | Q157: ='VUE SYNOPTIQUE'!A10&'VUE SYNOPTIQUE'!J1 -> 00 | R157: 0 | U157: 0
A158: ='J16'!B12:F12 -> 0 | B158: =IF('J16'!G12="","",'J16'!G12) ->  | C158: =IF('J16'!H12="","",'J16'!H12) ->  | D158: =IF('J16'!I12="","",'J16'!I12) ->  | I158: 0 | J158: 0 | M158: 0 | P158: 0 | Q158: ='VUE SYNOPTIQUE'!A10&'VUE SYNOPTIQUE'!L1 -> 00 | R158: 0 | U158: 0
A159: ='J16'!B13:F13 -> 0 | B159: =IF('J16'!G13="","",'J16'!G13) ->  | C159: =IF('J16'!H13="","",'J16'!H13) ->  | D159: =IF('J16'!I13="","",'J16'!I13) ->  | I159: 0 | J159: 0 | M159: 0 | P159: 0 | Q159: ='VUE SYNOPTIQUE'!A10&'VUE SYNOPTIQUE'!N1 -> 00 | R159: 0 | U159: 0
A160: ='J16'!B14:F14 -> 0 | B160: =IF('J16'!G14="","",'J16'!G14) ->  | C160: =IF('J16'!H14="","",'J16'!H14) ->  | D160: =IF('J16'!I14="","",'J16'!I14) ->  | I160: 0 | J160: 0 | M160: 0 | P160: 0 | Q160: ='VUE SYNOPTIQUE'!A10&'VUE SYNOPTIQUE'!P1 -> 00 | R160: 0 | U160: 0
A161: ='J17'!B5:F5 -> 0 | B161: =IF('J17'!G5="","",'J17'!G5) ->  | C161: =IF('J17'!H5="","",'J17'!H5) ->  | D161: =IF('J17'!I5="","",'J17'!I5) ->  | I161: 0 | J161: 0 | K161: 17 | M161: 0 | P161: 0 | Q161: ='VUE SYNOPTIQUE'!A10&'VUE SYNOPTIQUE'!T1 -> 00 | R161: 0 | U161: 0
A162: ='J17'!B6:F6 -> 0 | B162: =IF('J17'!G6="","",'J17'!G6) ->  | C162: =IF('J17'!H6="","",'J17'!H6) ->  | D162: =IF('J17'!I6="","",'J17'!I6) ->  | I162: 0 | J162: 0 | M162: 0 | P162: 0 | Q162: ='VUE SYNOPTIQUE'!A10&'VUE SYNOPTIQUE'!V1 -> 00 | R162: 0 | U162: 0
A163: ='J17'!B7:F7 -> 0 | B163: =IF('J17'!G7="","",'J17'!G7) ->  | C163: =IF('J17'!H7="","",'J17'!H7) ->  | D163: =IF('J17'!I7="","",'J17'!I7) ->  | I163: 0 | J163: 0 | M163: 0 | P163: 0 | Q163: ='VUE SYNOPTIQUE'!A10&'VUE SYNOPTIQUE'!X1 -> 00 | R163: 0 | U163: 0
A164: ='J17'!B8:F8 -> 0 | B164: =IF('J17'!G8="","",'J17'!G8) ->  | C164: =IF('J17'!H8="","",'J17'!H8) ->  | D164: =IF('J17'!I8="","",'J17'!I8) ->  | I164: 0 | J164: 0 | M164: 0 | P164: 0 | Q164: ='VUE SYNOPTIQUE'!A10&'VUE SYNOPTIQUE'!Z1 -> 00 | R164: 0 | U164: 0
A165: ='J17'!B9:F9 -> 0 | B165: =IF('J17'!G9="","",'J17'!G9) ->  | C165: =IF('J17'!H9="","",'J17'!H9) ->  | D165: =IF('J17'!I9="","",'J17'!I9) ->  | I165: 0 | J165: 0 | M165: 0 | P165: 0 | Q165: ='VUE SYNOPTIQUE'!A10&'VUE SYNOPTIQUE'!AB1 -> 00 | R165: 0 | U165: 0
A166: ='J17'!B10:F10 -> 0 | B166: =IF('J17'!G10="","",'J17'!G10) ->  | C166: =IF('J17'!H10="","",'J17'!H10) ->  | D166: =IF('J17'!I10="","",'J17'!I10) ->  | I166: 0 | J166: 0 | M166: 0 | P166: 0 | Q166: ='VUE SYNOPTIQUE'!A10&'VUE SYNOPTIQUE'!AD1 -> 00 | R166: 0 | U166: 0
A167: ='J17'!B11:F11 -> 0 | B167: =IF('J17'!G11="","",'J17'!G11) ->  | C167: =IF('J17'!H11="","",'J17'!H11) ->  | D167: =IF('J17'!I11="","",'J17'!I11) ->  | I167: 0 | J167: 0 | M167: 0 | P167: 0 | Q167: ='VUE SYNOPTIQUE'!A10&'VUE SYNOPTIQUE'!AF1 -> 00 | R167: 0 | U167: 0
A168: ='J17'!B12:F12 -> 0 | B168: =IF('J17'!G12="","",'J17'!G12) ->  | C168: =IF('J17'!H12="","",'J17'!H12) ->  | D168: =IF('J17'!I12="","",'J17'!I12) ->  | I168: 0 | J168: 0 | M168: 0 | P168: 0 | Q168: ='VUE SYNOPTIQUE'!A10&'VUE SYNOPTIQUE'!AH1 -> 00 | R168: 0 | U168: 0
A169: ='J17'!B13:F13 -> 0 | B169: =IF('J17'!G13="","",'J17'!G13) ->  | C169: =IF('J17'!H13="","",'J17'!H13) ->  | D169: =IF('J17'!I13="","",'J17'!I13) ->  | I169: 0 | J169: 0 | M169: 0 | P169: 0 | Q169: ='VUE SYNOPTIQUE'!A10&'VUE SYNOPTIQUE'!AJ1 -> 00 | R169: 0 | U169: 0
A170: ='J17'!B14:F14 -> 0 | B170: =IF('J17'!G14="","",'J17'!G14) ->  | C170: =IF('J17'!H14="","",'J17'!H14) ->  | D170: =IF('J17'!I14="","",'J17'!I14) ->  | I170: 0 | J170: 0 | M170: 0 | P170: 0 | Q170: ='VUE SYNOPTIQUE'!A10&'VUE SYNOPTIQUE'!AL1 -> 00 | R170: 0 | U170: 0
A171: ='J18'!B5:F5 -> 0 | B171: =IF('J18'!G5="","",'J18'!G5) ->  | C171: =IF('J18'!H5="","",'J18'!H5) ->  | D171: =IF('J18'!I5="","",'J18'!I5) ->  | I171: 0 | J171: 0 | K171: 18 | M171: 0 | P171: 0 | Q171: ='VUE SYNOPTIQUE'!A10&'VUE SYNOPTIQUE'!AN1 -> 00 | R171: 0 | U171: 0
A172: ='J18'!B6:F6 -> 0 | B172: =IF('J18'!G6="","",'J18'!G6) ->  | C172: =IF('J18'!H6="","",'J18'!H6) ->  | D172: =IF('J18'!I6="","",'J18'!I6) ->  | I172: 0 | J172: 0 | M172: 0 | P172: 0 | Q172: ='VUE SYNOPTIQUE'!A11&'VUE SYNOPTIQUE'!B1 -> 00 | R172: 0 | U172: 0
A173: ='J18'!B7:F7 -> 0 | B173: =IF('J18'!G7="","",'J18'!G7) ->  | C173: =IF('J18'!H7="","",'J18'!H7) ->  | D173: =IF('J18'!I7="","",'J18'!I7) ->  | I173: 0 | J173: 0 | M173: 0 | P173: 0 | Q173: ='VUE SYNOPTIQUE'!A11&'VUE SYNOPTIQUE'!D1 -> 00 | R173: 0 | U173: 0
A174: ='J18'!B8:F8 -> 0 | B174: =IF('J18'!G8="","",'J18'!G8) ->  | C174: =IF('J18'!H8="","",'J18'!H8) ->  | D174: =IF('J18'!I8="","",'J18'!I8) ->  | I174: 0 | J174: 0 | M174: 0 | P174: 0 | Q174: ='VUE SYNOPTIQUE'!A11&'VUE SYNOPTIQUE'!F1 -> 00 | R174: 0 | U174: 0
A175: ='J18'!B9:F9 -> 0 | B175: =IF('J18'!G9="","",'J18'!G9) ->  | C175: =IF('J18'!H9="","",'J18'!H9) ->  | D175: =IF('J18'!I9="","",'J18'!I9) ->  | I175: 0 | J175: 0 | M175: 0 | P175: 0 | Q175: ='VUE SYNOPTIQUE'!A11&'VUE SYNOPTIQUE'!H1 -> 00 | R175: 0 | U175: 0
A176: ='J18'!B10:F10 -> 0 | B176: =IF('J18'!G10="","",'J18'!G10) ->  | C176: =IF('J18'!H10="","",'J18'!H10) ->  | D176: =IF('J18'!I10="","",'J18'!I10) ->  | I176: 0 | J176: 0 | M176: 0 | P176: 0 | Q176: ='VUE SYNOPTIQUE'!A11&'VUE SYNOPTIQUE'!J1 -> 00 | R176: 0 | U176: 0
A177: ='J18'!B11:F11 -> 0 | B177: =IF('J18'!G11="","",'J18'!G11) ->  | C177: =IF('J18'!H11="","",'J18'!H11) ->  | D177: =IF('J18'!I11="","",'J18'!I11) ->  | I177: 0 | J177: 0 | M177: 0 | P177: 0 | Q177: ='VUE SYNOPTIQUE'!A11&'VUE SYNOPTIQUE'!L1 -> 00 | R177: 0 | U177: 0
A178: ='J18'!B12:F12 -> 0 | B178: =IF('J18'!G12="","",'J18'!G12) ->  | C178: =IF('J18'!H12="","",'J18'!H12) ->  | D178: =IF('J18'!I12="","",'J18'!I12) ->  | I178: 0 | J178: 0 | M178: 0 | P178: 0 | Q178: ='VUE SYNOPTIQUE'!A11&'VUE SYNOPTIQUE'!N1 -> 00 | R178: 0 | U178: 0
A179: ='J18'!B13:F13 -> 0 | B179: =IF('J18'!G13="","",'J18'!G13) ->  | C179: =IF('J18'!H13="","",'J18'!H13) ->  | D179: =IF('J18'!I13="","",'J18'!I13) ->  | I179: 0 | J179: 0 | M179: 0 | P179: 0 | Q179: ='VUE SYNOPTIQUE'!A11&'VUE SYNOPTIQUE'!P1 -> 00 | R179: 0 | U179: 0
A180: ='J18'!B14:F14 -> 0 | B180: =IF('J18'!G14="","",'J18'!G14) ->  | C180: =IF('J18'!H14="","",'J18'!H14) ->  | D180: =IF('J18'!I14="","",'J18'!I14) ->  | I180: 0 | J180: 0 | M180: 0 | P180: 0 | Q180: ='VUE SYNOPTIQUE'!A11&'VUE SYNOPTIQUE'!R1 -> 00 | R180: 0 | U180: 0
A181: ='J19'!B5:F5 -> 0 | B181: =IF('J19'!G5="","",'J19'!G5) ->  | C181: =IF('J19'!H5="","",'J19'!H5) ->  | D181: =IF('J19'!I5="","",'J19'!I5) ->  | I181: 0 | J181: 0 | K181: 19 | M181: 0 | P181: 0 | Q181: ='VUE SYNOPTIQUE'!A11&'VUE SYNOPTIQUE'!V1 -> 00 | R181: 0 | U181: 0
A182: ='J19'!B6:F6 -> 0 | B182: =IF('J19'!G6="","",'J19'!G6) ->  | C182: =IF('J19'!H6="","",'J19'!H6) ->  | D182: =IF('J19'!I6="","",'J19'!I6) ->  | I182: 0 | J182: 0 | M182: 0 | P182: 0 | Q182: ='VUE SYNOPTIQUE'!A11&'VUE SYNOPTIQUE'!X1 -> 00 | R182: 0 | U182: 0
A183: ='J19'!B7:F7 -> 0 | B183: =IF('J19'!G7="","",'J19'!G7) ->  | C183: =IF('J19'!H7="","",'J19'!H7) ->  | D183: =IF('J19'!I7="","",'J19'!I7) ->  | I183: 0 | J183: 0 | M183: 0 | P183: 0 | Q183: ='VUE SYNOPTIQUE'!A11&'VUE SYNOPTIQUE'!Z1 -> 00 | R183: 0 | U183: 0
A184: ='J19'!B8:F8 -> 0 | B184: =IF('J19'!G8="","",'J19'!G8) ->  | C184: =IF('J19'!H8="","",'J19'!H8) ->  | D184: =IF('J19'!I8="","",'J19'!I8) ->  | I184: 0 | J184: 0 | M184: 0 | P184: 0 | Q184: ='VUE SYNOPTIQUE'!A11&'VUE SYNOPTIQUE'!AB1 -> 00 | R184: 0 | U184: 0
A185: ='J19'!B9:F9 -> 0 | B185: =IF('J19'!G9="","",'J19'!G9) ->  | C185: =IF('J19'!H9="","",'J19'!H9) ->  | D185: =IF('J19'!I9="","",'J19'!I9) ->  | I185: 0 | J185: 0 | M185: 0 | P185: 0 | Q185: ='VUE SYNOPTIQUE'!A11&'VUE SYNOPTIQUE'!AD1 -> 00 | R185: 0 | U185: 0
A186: ='J19'!B10:F10 -> 0 | B186: =IF('J19'!G10="","",'J19'!G10) ->  | C186: =IF('J19'!H10="","",'J19'!H10) ->  | D186: =IF('J19'!I10="","",'J19'!I10) ->  | I186: 0 | J186: 0 | M186: 0 | P186: 0 | Q186: ='VUE SYNOPTIQUE'!A11&'VUE SYNOPTIQUE'!AF1 -> 00 | R186: 0 | U186: 0
A187: ='J19'!B11:F11 -> 0 | B187: =IF('J19'!G11="","",'J19'!G11) ->  | C187: =IF('J19'!H11="","",'J19'!H11) ->  | D187: =IF('J19'!I11="","",'J19'!I11) ->  | I187: 0 | J187: 0 | M187: 0 | P187: 0 | Q187: ='VUE SYNOPTIQUE'!A11&'VUE SYNOPTIQUE'!AH1 -> 00 | R187: 0 | U187: 0
A188: ='J19'!B12:F12 -> 0 | B188: =IF('J19'!G12="","",'J19'!G12) ->  | C188: =IF('J19'!H12="","",'J19'!H12) ->  | D188: =IF('J19'!I12="","",'J19'!I12) ->  | I188: 0 | J188: 0 | M188: 0 | P188: 0 | Q188: ='VUE SYNOPTIQUE'!A11&'VUE SYNOPTIQUE'!AJ1 -> 00 | R188: 0 | U188: 0
A189: ='J19'!B13:F13 -> 0 | B189: =IF('J19'!G13="","",'J19'!G13) ->  | C189: =IF('J19'!H13="","",'J19'!H13) ->  | D189: =IF('J19'!I13="","",'J19'!I13) ->  | I189: 0 | J189: 0 | M189: 0 | P189: 0 | Q189: ='VUE SYNOPTIQUE'!A11&'VUE SYNOPTIQUE'!AL1 -> 00 | R189: 0 | U189: 0
A190: ='J19'!B14:F14 -> 0 | B190: =IF('J19'!G14="","",'J19'!G14) ->  | C190: =IF('J19'!H14="","",'J19'!H14) ->  | D190: =IF('J19'!I14="","",'J19'!I14) ->  | I190: 0 | J190: 0 | M190: 0 | P190: 0 | Q190: ='VUE SYNOPTIQUE'!A11&'VUE SYNOPTIQUE'!AN1 -> 00 | R190: 0 | U190: 0
A191: ='J20'!B5:F5 -> 0 | B191: =IF('J20'!G5="","",'J20'!G5) ->  | C191: =IF('J20'!H5="","",'J20'!H5) ->  | D191: =IF('J20'!I5="","",'J20'!I5) ->  | I191: 0 | J191: 0 | K191: 20 | M191: 0 | P191: 0 | Q191: ='VUE SYNOPTIQUE'!A12&'VUE SYNOPTIQUE'!B1 -> 00 | R191: 0 | U191: 0
A192: ='J20'!B6:F6 -> 0 | B192: =IF('J20'!G6="","",'J20'!G6) ->  | C192: =IF('J20'!H6="","",'J20'!H6) ->  | D192: =IF('J20'!I6="","",'J20'!I6) ->  | I192: 0 | J192: 0 | M192: 0 | P192: 0 | Q192: ='VUE SYNOPTIQUE'!A12&'VUE SYNOPTIQUE'!D1 -> 00 | R192: 0 | U192: 0
A193: ='J20'!B7:F7 -> 0 | B193: =IF('J20'!G7="","",'J20'!G7) ->  | C193: =IF('J20'!H7="","",'J20'!H7) ->  | D193: =IF('J20'!I7="","",'J20'!I7) ->  | I193: =A193 -> 0 | J193: 0 | M193: 0 | N193: =VLOOKUP(M193,$R$1:$T$380,2,0) ->  | O193: =VLOOKUP(M193,$R$1:$T$380,3,0) ->  | P193: 0 | Q193: ='VUE SYNOPTIQUE'!A12&'VUE SYNOPTIQUE'!F1 -> 00 | R193: =A193&D193 -> 0 | S193: =B193 ->  | T193: =C193 ->  | U193: 0
A194: ='J20'!B8:F8 -> 0 | B194: =IF('J20'!G8="","",'J20'!G8) ->  | C194: =IF('J20'!H8="","",'J20'!H8) ->  | D194: =IF('J20'!I8="","",'J20'!I8) ->  | F194: =D194 ->  | G194: =IF(N194="","",N194) ->  | H194: =IF(O194="","",O194) ->  | I194: 0 | J194: =IF(P194="","",P194) -> 0 | M194: =F194&I194 -> 0 | P194: =VLOOKUP(M194,$R$1:$U$380,4,0) -> 0 | Q194: ='VUE SYNOPTIQUE'!A12&'VUE SYNOPTIQUE'!H1 -> 00 | R194: 0 | U194: =E194 -> 0
A195: ='J20'!B9:F9 -> 0 | B195: =IF('J20'!G9="","",'J20'!G9) ->  | C195: =IF('J20'!H9="","",'J20'!H9) ->  | D195: =IF('J20'!I9="","",'J20'!I9) ->  | I195: 0 | J195: 0 | M195: 0 | P195: 0 | Q195: ='VUE SYNOPTIQUE'!A12&'VUE SYNOPTIQUE'!J1 -> 00 | R195: 0 | U195: 0
A196: ='J20'!B10:F10 -> 0 | B196: =IF('J20'!G10="","",'J20'!G10) ->  | C196: =IF('J20'!H10="","",'J20'!H10) ->  | D196: =IF('J20'!I10="","",'J20'!I10) ->  | I196: 0 | J196: 0 | M196: 0 | P196: 0 | Q196: ='VUE SYNOPTIQUE'!A12&'VUE SYNOPTIQUE'!L1 -> 00 | R196: 0 | U196: 0
A197: ='J20'!B11:F11 -> 0 | B197: =IF('J20'!G11="","",'J20'!G11) ->  | C197: =IF('J20'!H11="","",'J20'!H11) ->  | D197: =IF('J20'!I11="","",'J20'!I11) ->  | I197: 0 | J197: 0 | M197: 0 | P197: 0 | Q197: ='VUE SYNOPTIQUE'!A12&'VUE SYNOPTIQUE'!N1 -> 00 | R197: 0 | U197: 0
A198: ='J20'!B12:F12 -> 0 | B198: =IF('J20'!G12="","",'J20'!G12) ->  | C198: =IF('J20'!H12="","",'J20'!H12) ->  | D198: =IF('J20'!I12="","",'J20'!I12) ->  | I198: 0 | J198: 0 | M198: 0 | P198: 0 | Q198: ='VUE SYNOPTIQUE'!A12&'VUE SYNOPTIQUE'!P1 -> 00 | R198: 0 | U198: 0
A199: ='J20'!B13:F13 -> 0 | B199: =IF('J20'!G13="","",'J20'!G13) ->  | C199: =IF('J20'!H13="","",'J20'!H13) ->  | D199: =IF('J20'!I13="","",'J20'!I13) ->  | I199: 0 | J199: 0 | M199: 0 | P199: 0 | Q199: ='VUE SYNOPTIQUE'!A12&'VUE SYNOPTIQUE'!R1 -> 00 | R199: 0 | U199: 0
A200: ='J20'!B14:F14 -> 0 | B200: =IF('J20'!G14="","",'J20'!G14) ->  | C200: =IF('J20'!H14="","",'J20'!H14) ->  | D200: =IF('J20'!I14="","",'J20'!I14) ->  | I200: 0 | J200: 0 | M200: 0 | P200: 0 | Q200: ='VUE SYNOPTIQUE'!A12&'VUE SYNOPTIQUE'!T1 -> 00 | R200: 0 | U200: 0
... 180 more rows

Sheet VUE SYNOPTIQUE
B1: =A2 -> 0 | D1: =A3 -> 0 | F1: =A4 -> 0 | H1: =A5 -> 0 | J1: =A6 -> 0 | L1: =A7 -> 0 | N1: =A8 -> 0 | P1: =A9 -> 0 | R1: =A10 -> 0 | T1: =A11 -> 0 | V1: =A12 -> 0 | X1: =A13 -> 0 | Z1: =A14 -> 0 | AB1: =A15 -> 0 | AD1: =A16 -> 0 | AF1: =A17 -> 0 | AH1: =A18 -> 0 | AJ1: =A19 -> 0 | AL1: =A20 -> 0 | AN1: =A21 -> 0 | AP1: GAGNÉ | AR1: PERDU | AT1: NUL
A2: ='J01'!AN5:AR5 -> 0 | D2: =IF(ISERROR(VLOOKUP(Feuil1!$Q1,Feuil1!$R$1:$T$380,2,0)),"",(VLOOKUP(Feuil1!$Q1,Feuil1!$R$1:$T$380,2,0))) ->  | E2: =IF(ISERROR(VLOOKUP(Feuil1!$Q1,Feuil1!$R$1:$T$380,3,0)),"",(VLOOKUP(Feuil1!$Q1,Feuil1!$R$1:$T$380,3,0))) ->  | F2: =IF(ISERROR(VLOOKUP(Feuil1!$Q2,Feuil1!$R$1:$T$380,2,0)),"",(VLOOKUP(Feuil1!$Q2,Feuil1!$R$1:$T$380,2,0))) ->  | G2: =IF(ISERROR(VLOOKUP(Feuil1!$Q2,Feuil1!$R$1:$T$380,3,0)),"",(VLOOKUP(Feuil1!$Q2,Feuil1!$R$1:$T$380,3,0))) ->  | H2: =IF(ISERROR(VLOOKUP(Feuil1!$Q3,Feuil1!$R$1:$T$380,2,0)),"",(VLOOKUP(Feuil1!$Q3,Feuil1!$R$1:$T$380,2,0))) ->  | I2: =IF(ISERROR(VLOOKUP(Feuil1!$Q3,Feuil1!$R$1:$T$380,3,0)),"",(VLOOKUP(Feuil1!$Q3,Feuil1!$R$1:$T$380,3,0))) ->  | J2: =IF(ISERROR(VLOOKUP(Feuil1!$Q4,Feuil1!$R$1:$T$380,2,0)),"",(VLOOKUP(Feuil1!$Q4,Feuil1!$R$1:$T$380,2,0))) ->  | K2: =IF(ISERROR(VLOOKUP(Feuil1!$Q4,Feuil1!$R$1:$T$380,3,0)),"",(VLOOKUP(Feuil1!$Q4,Feuil1!$R$1:$T$380,3,0))) ->  | L2: =IF(ISERROR(VLOOKUP(Feuil1!$Q5,Feuil1!$R$1:$T$380,2,0)),"",(VLOOKUP(Feuil1!$Q5,Feuil1!$R$1:$T$380,2,0))) ->  | M2: =IF(ISERROR(VLOOKUP(Feuil1!$Q5,Feuil1!$R$1:$T$380,3,0)),"",(VLOOKUP(Feuil1!$Q5,Feuil1!$R$1:$T$380,3,0))) ->  | N2: =IF(ISERROR(VLOOKUP(Feuil1!$Q6,Feuil1!$R$1:$T$380,2,0)),"",(VLOOKUP(Feuil1!$Q6,Feuil1!$R$1:$T$380,2,0))) ->  | O2: =IF(ISERROR(VLOOKUP(Feuil1!$Q6,Feuil1!$R$1:$T$380,3,0)),"",(VLOOKUP(Feuil1!$Q6,Feuil1!$R$1:$T$380,3,0))) ->  | P2: =IF(ISERROR(VLOOKUP(Feuil1!$Q7,Feuil1!$R$1:$T$380,2,0)),"",(VLOOKUP(Feuil1!$Q7,Feuil1!$R$1:$T$380,2,0))) ->  | Q2: =IF(ISERROR(VLOOKUP(Feuil1!$Q7,Feuil1!$R$1:$T$380,3,0)),"",(VLOOKUP(Feuil1!$Q7,Feuil1!$R$1:$T$380,3,0))) ->  | R2: =IF(ISERROR(VLOOKUP(Feuil1!$Q8,Feuil1!$R$1:$T$380,2,0)),"",(VLOOKUP(Feuil1!$Q8,Feuil1!$R$1:$T$380,2,0))) ->  | S2: =IF(ISERROR(VLOOKUP(Feuil1!$Q8,Feuil1!$R$1:$T$380,3,0)),"",(VLOOKUP(Feuil1!$Q8,Feuil1!$R$1:$T$380,3,0))) ->  | T2: =IF(ISERROR(VLOOKUP(Feuil1!$Q9,Feuil1!$R$1:$T$380,2,0)),"",(VLOOKUP(Feuil1!$Q9,Feuil1!$R$1:$T$380,2,0))) ->  | U2: =IF(ISERROR(VLOOKUP(Feuil1!$Q9,Feuil1!$R$1:$T$380,3,0)),"",(VLOOKUP(Feuil1!$Q9,Feuil1!$R$1:$T$380,3,0))) ->  | V2: =IF(ISERROR(VLOOKUP(Feuil1!$Q10,Feuil1!$R$1:$T$380,2,0)),"",(VLOOKUP(Feuil1!$Q10,Feuil1!$R$1:$T$380,2,0))) ->  | W2: =IF(ISERROR(VLOOKUP(Feuil1!$Q10,Feuil1!$R$1:$T$380,3,0)),"",(VLOOKUP(Feuil1!$Q10,Feuil1!$R$1:$T$380,3,0))) ->  | X2: =IF(ISERROR(VLOOKUP(Feuil1!$Q11,Feuil1!$R$1:$T$380,2,0)),"",(VLOOKUP(Feuil1!$Q11,Feuil1!$R$1:$T$380,2,0))) ->  | Y2: =IF(ISERROR(VLOOKUP(Feuil1!$Q11,Feuil1!$R$1:$T$380,3,0)),"",(VLOOKUP(Feuil1!$Q11,Feuil1!$R$1:$T$380,3,0))) ->  | Z2: =IF(ISERROR(VLOOKUP(Feuil1!$Q12,Feuil1!$R$1:$T$380,2,0)),"",(VLOOKUP(Feuil1!$Q12,Feuil1!$R$1:$T$380,2,0))) ->  | AA2: =IF(ISERROR(VLOOKUP(Feuil1!$Q12,Feuil1!$R$1:$T$380,3,0)),"",(VLOOKUP(Feuil1!$Q12,Feuil1!$R$1:$T$380,3,0))) ->  | AB2: =IF(ISERROR(VLOOKUP(Feuil1!$Q13,Feuil1!$R$1:$T$380,2,0)),"",(VLOOKUP(Feuil1!$Q13,Feuil1!$R$1:$T$380,2,0))) ->  | AC2: =IF(ISERROR(VLOOKUP(Feuil1!$Q13,Feuil1!$R$1:$T$380,3,0)),"",(VLOOKUP(Feuil1!$Q13,Feuil1!$R$1:$T$380,3,0))) ->  | AD2: =IF(ISERROR(VLOOKUP(Feuil1!$Q14,Feuil1!$R$1:$T$380,2,0)),"",(VLOOKUP(Feuil1!$Q14,Feuil1!$R$1:$T$380,2,0))) ->  | AE2: =IF(ISERROR(VLOOKUP(Feuil1!$Q14,Feuil1!$R$1:$T$380,3,0)),"",(VLOOKUP(Feuil1!$Q14,Feuil1!$R$1:$T$380,3,0))) ->  | AF2: =IF(ISERROR(VLOOKUP(Feuil1!$Q15,Feuil1!$R$1:$T$380,2,0)),"",(VLOOKUP(Feuil1!$Q15,Feuil1!$R$1:$T$380,2,0))) ->  | AG2: =IF(ISERROR(VLOOKUP(Feuil1!$Q15,Feuil1!$R$1:$T$380,3,0)),"",(VLOOKUP(Feuil1!$Q15,Feuil1!$R$1:$T$380,3,0))) ->  | AH2: =IF(ISERROR(VLOOKUP(Feuil1!$Q16,Feuil1!$R$1:$T$380,2,0)),"",(VLOOKUP(Feuil1!$Q16,Feuil1!$R$1:$T$380,2,0))) ->  | AI2: =IF(ISERROR(VLOOKUP(Feuil1!$Q16,Feuil1!$R$1:$T$380,3,0)),"",(VLOOKUP(Feuil1!$Q16,Feuil1!$R$1:$T$380,3,0))) ->  | AJ2: =IF(ISERROR(VLOOKUP(Feuil1!$Q17,Feuil1!$R$1:$T$380,2,0)),"",(VLOOKUP(Feuil1!$Q17,Feuil1!$R$1:$T$380,2,0))) ->  | AK2: =IF(ISERROR(VLOOKUP(Feuil1!$Q17,Feuil1!$R$1:$T$380,3,0)),"",(VLOOKUP(Feuil1!$Q17,Feuil1!$R$1:$T$380,3,0))) ->  | AL2: =IF(ISERROR(VLOOKUP(Feuil1!$Q18,Feuil1!$R$1:$T$380,2,0)),"",(VLOOKUP(Feuil1!$Q18,Feuil1!$R$1:$T$380,2,0))) ->  | AM2: =IF(ISERROR(VLOOKUP(Feuil1!$Q18,Feuil1!$R$1:$T$380,3,0)),"",(VLOOKUP(Feuil1!$Q18,Feuil1!$R$1:$T$380,3,0))) ->  | AN2: =IF(ISERROR(VLOOKUP(Feuil1!$Q19,Feuil1!$R$1:$T$380,2,0)),"",(VLOOKUP(Feuil1!$Q19,Feuil1!$R$1:$T$380,2,0))) ->  | AO2: =IF(ISERROR(VLOOKUP(Feuil1!$Q19,Feuil1!$R$1:$T$380,3,0)),"",(VLOOKUP(Feuil1!$Q19,Feuil1!$R$1:$T$380,3,0))) ->  | AP2: ='J38'!AY5 -> 0 | AR2: ='J38'!BA5 -> 0 | AT2: ='J38'!AZ5 -> 0 | AW2: =IF(B2="","",IF(B2>C2,"g",IF(B2=C2,"n",IF(B2<C2,"p")))) ->  | AY2: =IF(D2="","",IF(D2>E2,"g",IF(D2=E2,"n",IF(D2<E2,"p")))) ->  | BA2: =IF(F2="","",IF(F2>G2,"g",IF(F2=G2,"n",IF(F2<G2,"p")))) ->  | BC2: =IF(H2="","",IF(H2>I2,"g",IF(H2=I2,"n",IF(H2<I2,"p")))) ->  | BE2: =IF(J2="","",IF(J2>K2,"g",IF(J2=K2,"n",IF(J2<K2,"p")))) ->  | BG2: =IF(L2="","",IF(L2>M2,"g",IF(L2=M2,"n",IF(L2<M2,"p")))) ->  | BI2: =IF(N2="","",IF(N2>O2,"g",IF(N2=O2,"n",IF(N2<O2,"p")))) ->  | BK2: =IF(P2="","",IF(P2>Q2,"g",IF(P2=Q2,"n",IF(P2<Q2,"p")))) ->  | BM2: =IF(R2="","",IF(R2>S2,"g",IF(R2=S2,"n",IF(R2<S2,"p")))) ->  | BO2: =IF(T2="","",IF(T2>U2,"g",IF(T2=U2,"n",IF(T2<U2,"p")))) ->  | BQ2: =IF(V2="","",IF(V2>W2,"g",IF(V2=W2,"n",IF(V2<W2,"p")))) ->  | BS2: =IF(X2="","",IF(X2>Y2,"g",IF(X2=Y2,"n",IF(X2<Y2,"p")))) ->  | BU2: =IF(Z2="","",IF(Z2>AA2,"g",IF(Z2=AA2,"n",IF(Z2<AA2,"p")))) ->  | BW2: =IF(AB2="","",IF(AB2>AC2,"g",IF(AB2=AC2,"n",IF(AB2<AC2,"p")))) ->  | BY2: =IF(AD2="","",IF(AD2>AE2,"g",IF(AD2=AE2,"n",IF(AD2<AE2,"p")))) ->  | CA2: =IF(AF2="","",IF(AF2>AG2,"g",IF(AF2=AG2,"n",IF(AF2<AG2,"p")))) ->  | CC2: =IF(AH2="","",IF(AH2>AI2,"g",IF(AH2=AI2,"n",IF(AH2<AI2,"p")))) ->  | CE2: =IF(AJ2="","",IF(AJ2>AK2,"g",IF(AJ2=AK2,"n",IF(AJ2<AK2,"p")))) ->  | CG2: =IF(AL2="","",IF(AL2>AM2,"g",IF(AL2=AM2,"n",IF(AL2<AM2,"p")))) ->  | CI2: =IF(AN2="","",IF(AN2>AO2,"g",IF(AN2=AO2,"n",IF(AN2<AO2,"p")))) -> 
A3: ='J01'!AN6:AR6 -> 0 | B3: =IF(ISERROR(VLOOKUP(Feuil1!$Q20,Feuil1!$R$1:$T$380,2,0)),"",(VLOOKUP(Feuil1!$Q20,Feuil1!$R$1:$T$380,2,0))) ->  | C3: =IF(ISERROR(VLOOKUP(Feuil1!$Q20,Feuil1!$R$1:$T$380,3,0)),"",(VLOOKUP(Feuil1!$Q20,Feuil1!$R$1:$T$380,3,0))) ->  | F3: =IF(ISERROR(VLOOKUP(Feuil1!$Q21,Feuil1!$R$1:$T$380,2,0)),"",(VLOOKUP(Feuil1!$Q21,Feuil1!$R$1:$T$380,2,0))) ->  | G3: =IF(ISERROR(VLOOKUP(Feuil1!$Q21,Feuil1!$R$1:$T$380,3,0)),"",(VLOOKUP(Feuil1!$Q21,Feuil1!$R$1:$T$380,3,0))) ->  | H3: =IF(ISERROR(VLOOKUP(Feuil1!$Q22,Feuil1!$R$1:$T$380,2,0)),"",(VLOOKUP(Feuil1!$Q22,Feuil1!$R$1:$T$380,2,0))) ->  | I3: =IF(ISERROR(VLOOKUP(Feuil1!$Q22,Feuil1!$R$1:$T$380,3,0)),"",(VLOOKUP(Feuil1!$Q22,Feuil1!$R$1:$T$380,3,0))) ->  | J3: =IF(ISERROR(VLOOKUP(Feuil1!$Q23,Feuil1!$R$1:$T$380,2,0)),"",(VLOOKUP(Feuil1!$Q23,Feuil1!$R$1:$T$380,2,0))) ->  | K3: =IF(ISERROR(VLOOKUP(Feuil1!$Q23,Feuil1!$R$1:$T$380,3,0)),"",(VLOOKUP(Feuil1!$Q23,Feuil1!$R$1:$T$380,3,0))) ->  | L3: =IF(ISERROR(VLOOKUP(Feuil1!$Q24,Feuil1!$R$1:$T$380,2,0)),"",(VLOOKUP(Feuil1!$Q24,Feuil1!$R$1:$T$380,2,0))) ->  | M3: =IF(ISERROR(VLOOKUP(Feuil1!$Q24,Feuil1!$R$1:$T$380,3,0)),"",(VLOOKUP(Feuil1!$Q24,Feuil1!$R$1:$T$380,3,0))) ->  | N3: =IF(ISERROR(VLOOKUP(Feuil1!$Q25,Feuil1!$R$1:$T$380,2,0)),"",(VLOOKUP(Feuil1!$Q25,Feuil1!$R$1:$T$380,2,0))) ->  | O3: =IF(ISERROR(VLOOKUP(Feuil1!$Q25,Feuil1!$R$1:$T$380,3,0)),"",(VLOOKUP(Feuil1!$Q25,Feuil1!$R$1:$T$380,3,0))) ->  | P3: =IF(ISERROR(VLOOKUP(Feuil1!$Q26,Feuil1!$R$1:$T$380,2,0)),"",(VLOOKUP(Feuil1!$Q26,Feuil1!$R$1:$T$380,2,0))) ->  | Q3: =IF(ISERROR(VLOOKUP(Feuil1!$Q26,Feuil1!$R$1:$T$380,3,0)),"",(VLOOKUP(Feuil1!$Q26,Feuil1!$R$1:$T$380,3,0))) ->  | R3: =IF(ISERROR(VLOOKUP(Feuil1!$Q27,Feuil1!$R$1:$T$380,2,0)),"",(VLOOKUP(Feuil1!$Q27,Feuil1!$R$1:$T$380,2,0))) ->  | S3: =IF(ISERROR(VLOOKUP(Feuil1!$Q27,Feuil1!$R$1:$T$380,3,0)),"",(VLOOKUP(Feuil1!$Q27,Feuil1!$R$1:$T$380,3,0))) ->  | T3: =IF(ISERROR(VLOOKUP(Feuil1!$Q28,Feuil1!$R$1:$T$380,2,0)),"",(VLOOKUP(Feuil1!$Q28,Feuil1!$R$1:$T$380,2,0))) ->  | U3: =IF(ISERROR(VLOOKUP(Feuil1!$Q28,Feuil1!$R$1:$T$380,3,0)),"",(VLOOKUP(Feuil1!$Q28,Feuil1!$R$1:$T$380,3,0))) ->  | V3: =IF(ISERROR(VLOOKUP(Feuil1!$Q29,Feuil1!$R$1:$T$380,2,0)),"",(VLOOKUP(Feuil1!$Q29,Feuil1!$R$1:$T$380,2,0))) ->  | W3: =IF(ISERROR(VLOOKUP(Feuil1!$Q29,Feuil1!$R$1:$T$380,3,0)),"",(VLOOKUP(Feuil1!$Q29,Feuil1!$R$1:$T$380,3,0))) ->  | X3: =IF(ISERROR(VLOOKUP(Feuil1!$Q30,Feuil1!$R$1:$T$380,2,0)),"",(VLOOKUP(Feuil1!$Q30,Feuil1!$R$1:$T$380,2,0))) ->  | Y3: =IF(ISERROR(VLOOKUP(Feuil1!$Q30,Feuil1!$R$1:$T$380,3,0)),"",(VLOOKUP(Feuil1!$Q30,Feuil1!$R$1:$T$380,3,0))) ->  | Z3: =IF(ISERROR(VLOOKUP(Feuil1!$Q31,Feuil1!$R$1:$T$380,2,0)),"",(VLOOKUP(Feuil1!$Q31,Feuil1!$R$1:$T$380,2,0))) ->  | AA3: =IF(ISERROR(VLOOKUP(Feuil1!$Q31,Feuil1!$R$1:$T$380,3,0)),"",(VLOOKUP(Feuil1!$Q31,Feuil1!$R$1:$T$380,3,0))) ->  | AB3: =IF(ISERROR(VLOOKUP(Feuil1!$Q32,Feuil1!$R$1:$T$380,2,0)),"",(VLOOKUP(Feuil1!$Q32,Feuil1!$R$1:$T$380,2,0))) ->  | AC3: =IF(ISERROR(VLOOKUP(Feuil1!$Q32,Feuil1!$R$1:$T$380,3,0)),"",(VLOOKUP(Feuil1!$Q32,Feuil1!$R$1:$T$380,3,0))) ->  | AD3: =IF(ISERROR(VLOOKUP(Feuil1!$Q33,Feuil1!$R$1:$T$380,2,0)),"",(VLOOKUP(Feuil1!$Q33,Feuil1!$R$1:$T$380,2,0))) ->  | AE3: =IF(ISERROR(VLOOKUP(Feuil1!$Q33,Feuil1!$R$1:$T$380,3,0)),"",(VLOOKUP(Feuil1!$Q33,Feuil1!$R$1:$T$380,3,0))) ->  | AF3: =IF(ISERROR(VLOOKUP(Feuil1!$Q34,Feuil1!$R$1:$T$380,2,0)),"",(VLOOKUP(Feuil1!$Q34,Feuil1!$R$1:$T$380,2,0))) ->  | AG3: =IF(ISERROR(VLOOKUP(Feuil1!$Q34,Feuil1!$R$1:$T$380,3,0)),"",(VLOOKUP(Feuil1!$Q34,Feuil1!$R$1:$T$380,3,0))) ->  | AH3: =IF(ISERROR(VLOOKUP(Feuil1!$Q35,Feuil1!$R$1:$T$380,2,0)),"",(VLOOKUP(Feuil1!$Q35,Feuil1!$R$1:$T$380,2,0))) ->  | AI3: =IF(ISERROR(VLOOKUP(Feuil1!$Q35,Feuil1!$R$1:$T$380,3,0)),"",(VLOOKUP(Feuil1!$Q35,Feuil1!$R$1:$T$380,3,0))) ->  | AJ3: =IF(ISERROR(VLOOKUP(Feuil1!$Q36,Feuil1!$R$1:$T$380,2,0)),"",(VLOOKUP(Feuil1!$Q36,Feuil1!$R$1:$T$380,2,0))) ->  | AK3: =IF(ISERROR(VLOOKUP(Feuil1!$Q36,Feuil1!$R$1:$T$380,3,0)),"",(VLOOKUP(Feuil1!$Q36,Feuil1!$R$1:$T$380,3,0))) ->  | AL3: =IF(ISERROR(VLOOKUP(Feuil1!$Q37,Feuil1!$R$1:$T$380,2,0)),"",(VLOOKUP(Feuil1!$Q37,Feuil1!$R$1:$T$380,2,0))) ->  | AM3: =IF(ISERROR(VLOOKUP(Feuil1!$Q37,Feuil1!$R$1:$T$380,3,0)),"",(VLOOKUP(Feuil1!$Q37,Feuil1!$R$1:$T$380,3,0))) ->  | AN3: =IF(ISERROR(VLOOKUP(Feuil1!$Q38,Feuil1!$R$1:$T$380,2,0)),"",(VLOOKUP(Feuil1!$Q38,Feuil1!$R$1:$T$380,2,0))) ->  | AO3: =IF(ISERROR(VLOOKUP(Feuil1!$Q38,Feuil1!$R$1:$T$380,3,0)),"",(VLOOKUP(Feuil1!$Q38,Feuil1!$R$1:$T$380,3,0))) ->  | AP3: ='J38'!AY6 -> 0 | AR3: ='J38'!BA6 -> 0 | AT3: ='J38'!AZ6 -> 0 | AW3: =IF(B3="","",IF(B3>C3,"g",IF(B3=C3,"n",IF(B3<C3,"p")))) ->  | AY3: =IF(D3="","",IF(D3>E3,"g",IF(D3=E3,"n",IF(D3<E3,"p")))) ->  | BA3: =IF(F3="","",IF(F3>G3,"g",IF(F3=G3,"n",IF(F3<G3,"p")))) ->  | BC3: =IF(H3="","",IF(H3>I3,"g",IF(H3=I3,"n",IF(H3<I3,"p")))) ->  | BE3: =IF(J3="","",IF(J3>K3,"g",IF(J3=K3,"n",IF(J3<K3,"p")))) ->  | BG3: =IF(L3="","",IF(L3>M3,"g",IF(L3=M3,"n",IF(L3<M3,"p")))) ->  | BI3: =IF(N3="","",IF(N3>O3,"g",IF(N3=O3,"n",IF(N3<O3,"p")))) ->  | BK3: =IF(P3="","",IF(P3>Q3,"g",IF(P3=Q3,"n",IF(P3<Q3,"p")))) ->  | BM3: =IF(R3="","",IF(R3>S3,"g",IF(R3=S3,"n",IF(R3<S3,"p")))) ->  | BO3: =IF(T3="","",IF(T3>U3,"g",IF(T3=U3,"n",IF(T3<U3,"p")))) ->  | BQ3: =IF(V3="","",IF(V3>W3,"g",IF(V3=W3,"n",IF(V3<W3,"p")))) ->  | BS3: =IF(X3="","",IF(X3>Y3,"g",IF(X3=Y3,"n",IF(X3<Y3,"p")))) ->  | BU3: =IF(Z3="","",IF(Z3>AA3,"g",IF(Z3=AA3,"n",IF(Z3<AA3,"p")))) ->  | BW3: =IF(AB3="","",IF(AB3>AC3,"g",IF(AB3=AC3,"n",IF(AB3<AC3,"p")))) ->  | BY3: =IF(AD3="","",IF(AD3>AE3,"g",IF(AD3=AE3,"n",IF(AD3<AE3,"p")))) ->  | CA3: =IF(AF3="","",IF(AF3>AG3,"g",IF(AF3=AG3,"n",IF(AF3<AG3,"p")))) ->  | CC3: =IF(AH3="","",IF(AH3>AI3,"g",IF(AH3=AI3,"n",IF(AH3<AI3,"p")))) ->  | CE3: =IF(AJ3="","",IF(AJ3>AK3,"g",IF(AJ3=AK3,"n",IF(AJ3<AK3,"p")))) ->  | CG3: =IF(AL3="","",IF(AL3>AM3,"g",IF(AL3=AM3,"n",IF(AL3<AM3,"p")))) ->  | CI3: =IF(AN3="","",IF(AN3>AO3,"g",IF(AN3=AO3,"n",IF(AN3<AO3,"p")))) -> 
A4: ='J01'!AN7:AR7 -> 0 | B4: =IF(ISERROR(VLOOKUP(Feuil1!$Q39,Feuil1!$R$1:$T$380,2,0)),"",(VLOOKUP(Feuil1!$Q39,Feuil1!$R$1:$T$380,2,0))) ->  | C4: =IF(ISERROR(VLOOKUP(Feuil1!$Q39,Feuil1!$R$1:$T$380,3,0)),"",(VLOOKUP(Feuil1!$Q39,Feuil1!$R$1:$T$380,3,0))) ->  | D4: =IF(ISERROR(VLOOKUP(Feuil1!$Q40,Feuil1!$R$1:$T$380,2,0)),"",(VLOOKUP(Feuil1!$Q40,Feuil1!$R$1:$T$380,2,0))) ->  | E4: =IF(ISERROR(VLOOKUP(Feuil1!$Q40,Feuil1!$R$1:$T$380,3,0)),"",(VLOOKUP(Feuil1!$Q40,Feuil1!$R$1:$T$380,3,0))) ->  | H4: =IF(ISERROR(VLOOKUP(Feuil1!$Q41,Feuil1!$R$1:$T$380,2,0)),"",(VLOOKUP(Feuil1!$Q41,Feuil1!$R$1:$T$380,2,0))) ->  | I4: =IF(ISERROR(VLOOKUP(Feuil1!$Q41,Feuil1!$R$1:$T$380,3,0)),"",(VLOOKUP(Feuil1!$Q41,Feuil1!$R$1:$T$380,3,0))) ->  | J4: =IF(ISERROR(VLOOKUP(Feuil1!$Q42,Feuil1!$R$1:$T$380,2,0)),"",(VLOOKUP(Feuil1!$Q42,Feuil1!$R$1:$T$380,2,0))) ->  | K4: =IF(ISERROR(VLOOKUP(Feuil1!$Q42,Feuil1!$R$1:$T$380,3,0)),"",(VLOOKUP(Feuil1!$Q42,Feuil1!$R$1:$T$380,3,0))) ->  | L4: =IF(ISERROR(VLOOKUP(Feuil1!$Q43,Feuil1!$R$1:$T$380,2,0)),"",(VLOOKUP(Feuil1!$Q43,Feuil1!$R$1:$T$380,2,0))) ->  | M4: =IF(ISERROR(VLOOKUP(Feuil1!$Q43,Feuil1!$R$1:$T$380,3,0)),"",(VLOOKUP(Feuil1!$Q43,Feuil1!$R$1:$T$380,3,0))) ->  | N4: =IF(ISERROR(VLOOKUP(Feuil1!$Q44,Feuil1!$R$1:$T$380,2,0)),"",(VLOOKUP(Feuil1!$Q44,Feuil1!$R$1:$T$380,2,0))) ->  | O4: =IF(ISERROR(VLOOKUP(Feuil1!$Q44,Feuil1!$R$1:$T$380,3,0)),"",(VLOOKUP(Feuil1!$Q44,Feuil1!$R$1:$T$380,3,0))) ->  | P4: =IF(ISERROR(VLOOKUP(Feuil1!$Q45,Feuil1!$R$1:$T$380,2,0)),"",(VLOOKUP(Feuil1!$Q45,Feuil1!$R$1:$T$380,2,0))) ->  | Q4: =IF(ISERROR(VLOOKUP(Feuil1!$Q45,Feuil1!$R$1:$T$380,3,0)),"",(VLOOKUP(Feuil1!$Q45,Feuil1!$R$1:$T$380,3,0))) ->  | R4: =IF(ISERROR(VLOOKUP(Feuil1!$Q46,Feuil1!$R$1:$T$380,2,0)),"",(VLOOKUP(Feuil1!$Q46,Feuil1!$R$1:$T$380,2,0))) ->  | S4: =IF(ISERROR(VLOOKUP(Feuil1!$Q46,Feuil1!$R$1:$T$380,3,0)),"",(VLOOKUP(Feuil1!$Q46,Feuil1!$R$1:$T$380,3,0))) ->  | T4: =IF(ISERROR(VLOOKUP(Feuil1!$Q47,Feuil1!$R$1:$T$380,2,0)),"",(VLOOKUP(Feuil1!$Q47,Feuil1!$R$1:$T$380,2,0))) ->  | U4: =IF(ISERROR(VLOOKUP(Feuil1!$Q47,Feuil1!$R$1:$T$380,3,0)),"",(VLOOKUP(Feuil1!$Q47,Feuil1!$R$1:$T$380,3,0))) ->  | V4: =IF(ISERROR(VLOOKUP(Feuil1!$Q48,Feuil1!$R$1:$T$380,2,0)),"",(VLOOKUP(Feuil1!$Q48,Feuil1!$R$1:$T$380,2,0))) ->  | W4: =IF(ISERROR(VLOOKUP(Feuil1!$Q48,Feuil1!$R$1:$T$380,3,0)),"",(VLOOKUP(Feuil1!$Q48,Feuil1!$R$1:$T$380,3,0))) ->  | X4: =IF(ISERROR(VLOOKUP(Feuil1!$Q49,Feuil1!$R$1:$T$380,2,0)),"",(VLOOKUP(Feuil1!$Q49,Feuil1!$R$1:$T$380,2,0))) ->  | Y4: =IF(ISERROR(VLOOKUP(Feuil1!$Q49,Feuil1!$R$1:$T$380,3,0)),"",(VLOOKUP(Feuil1!$Q49,Feuil1!$R$1:$T$380,3,0))) ->  | Z4: =IF(ISERROR(VLOOKUP(Feuil1!$Q50,Feuil1!$R$1:$T$380,2,0)),"",(VLOOKUP(Feuil1!$Q50,Feuil1!$R$1:$T$380,2,0))) ->  | AA4: =IF(ISERROR(VLOOKUP(Feuil1!$Q50,Feuil1!$R$1:$T$380,3,0)),"",(VLOOKUP(Feuil1!$Q50,Feuil1!$R$1:$T$380,3,0))) ->  | AB4: =IF(ISERROR(VLOOKUP(Feuil1!$Q51,Feuil1!$R$1:$T$380,2,0)),"",(VLOOKUP(Feuil1!$Q51,Feuil1!$R$1:$T$380,2,0))) ->  | AC4: =IF(ISERROR(VLOOKUP(Feuil1!$Q51,Feuil1!$R$1:$T$380,3,0)),"",(VLOOKUP(Feuil1!$Q51,Feuil1!$R$1:$T$380,3,0))) ->  | AD4: =IF(ISERROR(VLOOKUP(Feuil1!$Q52,Feuil1!$R$1:$T$380,2,0)),"",(VLOOKUP(Feuil1!$Q52,Feuil1!$R$1:$T$380,2,0))) ->  | AE4: =IF(ISERROR(VLOOKUP(Feuil1!$Q52,Feuil1!$R$1:$T$380,3,0)),"",(VLOOKUP(Feuil1!$Q52,Feuil1!$R$1:$T$380,3,0))) ->  | AF4: =IF(ISERROR(VLOOKUP(Feuil1!$Q53,Feuil1!$R$1:$T$380,2,0)),"",(VLOOKUP(Feuil1!$Q53,Feuil1!$R$1:$T$380,2,0))) ->  | AG4: =IF(ISERROR(VLOOKUP(Feuil1!$Q53,Feuil1!$R$1:$T$380,3,0)),"",(VLOOKUP(Feuil1!$Q53,Feuil1!$R$1:$T$380,3,0))) ->  | AH4: =IF(ISERROR(VLOOKUP(Feuil1!$Q54,Feuil1!$R$1:$T$380,2,0)),"",(VLOOKUP(Feuil1!$Q54,Feuil1!$R$1:$T$380,2,0))) ->  | AI4: =IF(ISERROR(VLOOKUP(Feuil1!$Q54,Feuil1!$R$1:$T$380,3,0)),"",(VLOOKUP(Feuil1!$Q54,Feuil1!$R$1:$T$380,3,0))) ->  | AJ4: =IF(ISERROR(VLOOKUP(Feuil1!$Q55,Feuil1!$R$1:$T$380,2,0)),"",(VLOOKUP(Feuil1!$Q55,Feuil1!$R$1:$T$380,2,0))) ->  | AK4: =IF(ISERROR(VLOOKUP(Feuil1!$Q55,Feuil1!$R$1:$T$380,3,0)),"",(VLOOKUP(Feuil1!$Q55,Feuil1!$R$1:$T$380,3,0))) ->  | AL4: =IF(ISERROR(VLOOKUP(Feuil1!$Q56,Feuil1!$R$1:$T$380,2,0)),"",(VLOOKUP(Feuil1!$Q56,Feuil1!$R$1:$T$380,2,0))) ->  | AM4: =IF(ISERROR(VLOOKUP(Feuil1!$Q56,Feuil1!$R$1:$T$380,3,0)),"",(VLOOKUP(Feuil1!$Q56,Feuil1!$R$1:$T$380,3,0))) ->  | AN4: =IF(ISERROR(VLOOKUP(Feuil1!$Q57,Feuil1!$R$1:$T$380,2,0)),"",(VLOOKUP(Feuil1!$Q57,Feuil1!$R$1:$T$380,2,0))) ->  | AO4: =IF(ISERROR(VLOOKUP(Feuil1!$Q57,Feuil1!$R$1:$T$380,3,0)),"",(VLOOKUP(Feuil1!$Q57,Feuil1!$R$1:$T$380,3,0))) ->  | AP4: ='J38'!AY7 -> 0 | AR4: ='J38'!BA7 -> 0 | AT4: ='J38'!AZ7 -> 0
A5: ='J01'!AN8:AR8 -> 0 | B5: =IF(ISERROR(VLOOKUP(Feuil1!$Q58,Feuil1!$R$1:$T$380,2,0)),"",(VLOOKUP(Feuil1!$Q58,Feuil1!$R$1:$T$380,2,0))) ->  | C5: =IF(ISERROR(VLOOKUP(Feuil1!$Q58,Feuil1!$R$1:$T$380,3,0)),"",(VLOOKUP(Feuil1!$Q58,Feuil1!$R$1:$T$380,3,0))) ->  | D5: =IF(ISERROR(VLOOKUP(Feuil1!$Q59,Feuil1!$R$1:$T$380,2,0)),"",(VLOOKUP(Feuil1!$Q59,Feuil1!$R$1:$T$380,2,0))) ->  | E5: =IF(ISERROR(VLOOKUP(Feuil1!$Q59,Feuil1!$R$1:$T$380,3,0)),"",(VLOOKUP(Feuil1!$Q59,Feuil1!$R$1:$T$380,3,0))) ->  | F5: =IF(ISERROR(VLOOKUP(Feuil1!$Q60,Feuil1!$R$1:$T$380,2,0)),"",(VLOOKUP(Feuil1!$Q60,Feuil1!$R$1:$T$380,2,0))) ->  | G5: =IF(ISERROR(VLOOKUP(Feuil1!$Q60,Feuil1!$R$1:$T$380,3,0)),"",(VLOOKUP(Feuil1!$Q60,Feuil1!$R$1:$T$380,3,0))) ->  | J5: =IF(ISERROR(VLOOKUP(Feuil1!$Q61,Feuil1!$R$1:$T$380,2,0)),"",(VLOOKUP(Feuil1!$Q61,Feuil1!$R$1:$T$380,2,0))) ->  | K5: =IF(ISERROR(VLOOKUP(Feuil1!$Q61,Feuil1!$R$1:$T$380,3,0)),"",(VLOOKUP(Feuil1!$Q61,Feuil1!$R$1:$T$380,3,0))) ->  | L5: =IF(ISERROR(VLOOKUP(Feuil1!$Q62,Feuil1!$R$1:$T$380,2,0)),"",(VLOOKUP(Feuil1!$Q62,Feuil1!$R$1:$T$380,2,0))) ->  | M5: =IF(ISERROR(VLOOKUP(Feuil1!$Q62,Feuil1!$R$1:$T$380,3,0)),"",(VLOOKUP(Feuil1!$Q62,Feuil1!$R$1:$T$380,3,0))) ->  | N5: =IF(ISERROR(VLOOKUP(Feuil1!$Q63,Feuil1!$R$1:$T$380,2,0)),"",(VLOOKUP(Feuil1!$Q63,Feuil1!$R$1:$T$380,2,0))) ->  | O5: =IF(ISERROR(VLOOKUP(Feuil1!$Q63,Feuil1!$R$1:$T$380,3,0)),"",(VLOOKUP(Feuil1!$Q63,Feuil1!$R$1:$T$380,3,0))) ->  | P5: =IF(ISERROR(VLOOKUP(Feuil1!$Q64,Feuil1!$R$1:$T$380,2,0)),"",(VLOOKUP(Feuil1!$Q64,Feuil1!$R$1:$T$380,2,0))) ->  | Q5: =IF(ISERROR(VLOOKUP(Feuil1!$Q64,Feuil1!$R$1:$T$380,3,0)),"",(VLOOKUP(Feuil1!$Q64,Feuil1!$R$1:$T$380,3,0))) ->  | R5: =IF(ISERROR(VLOOKUP(Feuil1!$Q65,Feuil1!$R$1:$T$380,2,0)),"",(VLOOKUP(Feuil1!$Q65,Feuil1!$R$1:$T$380,2,0))) ->  | S5: =IF(ISERROR(VLOOKUP(Feuil1!$Q65,Feuil1!$R$1:$T$380,3,0)),"",(VLOOKUP(Feuil1!$Q65,Feuil1!$R$1:$T$380,3,0))) ->  | T5: =IF(ISERROR(VLOOKUP(Feuil1!$Q66,Feuil1!$R$1:$T$380,2,0)),"",(VLOOKUP(Feuil1!$Q66,Feuil1!$R$1:$T$380,2,0))) ->  | U5: =IF(ISERROR(VLOOKUP(Feuil1!$Q66,Feuil1!$R$1:$T$380,3,0)),"",(VLOOKUP(Feuil1!$Q66,Feuil1!$R$1:$T$380,3,0))) ->  | V5: =IF(ISERROR(VLOOKUP(Feuil1!$Q67,Feuil1!$R$1:$T$380,2,0)),"",(VLOOKUP(Feuil1!$Q67,Feuil1!$R$1:$T$380,2,0))) ->  | W5: =IF(ISERROR(VLOOKUP(Feuil1!$Q67,Feuil1!$R$1:$T$380,3,0)),"",(VLOOKUP(Feuil1!$Q67,Feuil1!$R$1:$T$380,3,0))) ->  | X5: =IF(ISERROR(VLOOKUP(Feuil1!$Q68,Feuil1!$R$1:$T$380,2,0)),"",(VLOOKUP(Feuil1!$Q68,Feuil1!$R$1:$T$380,2,0))) ->  | Y5: =IF(ISERROR(VLOOKUP(Feuil1!$Q68,Feuil1!$R$1:$T$380,3,0)),"",(VLOOKUP(Feuil1!$Q68,Feuil1!$R$1:$T$380,3,0))) ->  | Z5: =IF(ISERROR(VLOOKUP(Feuil1!$Q69,Feuil1!$R$1:$T$380,2,0)),"",(VLOOKUP(Feuil1!$Q69,Feuil1!$R$1:$T$380,2,0))) ->  | AA5: =IF(ISERROR(VLOOKUP(Feuil1!$Q69,Feuil1!$R$1:$T$380,3,0)),"",(VLOOKUP(Feuil1!$Q69,Feuil1!$R$1:$T$380,3,0))) ->  | AB5: =IF(ISERROR(VLOOKUP(Feuil1!$Q70,Feuil1!$R$1:$T$380,2,0)),"",(VLOOKUP(Feuil1!$Q70,Feuil1!$R$1:$T$380,2,0))) ->  | AC5: =IF(ISERROR(VLOOKUP(Feuil1!$Q70,Feuil1!$R$1:$T$380,3,0)),"",(VLOOKUP(Feuil1!$Q70,Feuil1!$R$1:$T$380,3,0))) ->  | AD5: =IF(ISERROR(VLOOKUP(Feuil1!$Q71,Feuil1!$R$1:$T$380,2,0)),"",(VLOOKUP(Feuil1!$Q71,Feuil1!$R$1:$T$380,2,0))) ->  | AE5: =IF(ISERROR(VLOOKUP(Feuil1!$Q71,Feuil1!$R$1:$T$380,3,0)),"",(VLOOKUP(Feuil1!$Q71,Feuil1!$R$1:$T$380,3,0))) ->  | AF5: =IF(ISERROR(VLOOKUP(Feuil1!$Q72,Feuil1!$R$1:$T$380,2,0)),"",(VLOOKUP(Feuil1!$Q72,Feuil1!$R$1:$T$380,2,0))) ->  | AG5: =IF(ISERROR(VLOOKUP(Feuil1!$Q72,Feuil1!$R$1:$T$380,3,0)),"",(VLOOKUP(Feuil1!$Q72,Feuil1!$R$1:$T$380,3,0))) ->  | AH5: =IF(ISERROR(VLOOKUP(Feuil1!$Q73,Feuil1!$R$1:$T$380,2,0)),"",(VLOOKUP(Feuil1!$Q73,Feuil1!$R$1:$T$380,2,0))) ->  | AI5: =IF(ISERROR(VLOOKUP(Feuil1!$Q73,Feuil1!$R$1:$T$380,3,0)),"",(VLOOKUP(Feuil1!$Q73,Feuil1!$R$1:$T$380,3,0))) ->  | AJ5: =IF(ISERROR(VLOOKUP(Feuil1!$Q74,Feuil1!$R$1:$T$380,2,0)),"",(VLOOKUP(Feuil1!$Q74,Feuil1!$R$1:$T$380,2,0))) ->  | AK5: =IF(ISERROR(VLOOKUP(Feuil1!$Q74,Feuil1!$R$1:$T$380,3,0)),"",(VLOOKUP(Feuil1!$Q74,Feuil1!$R$1:$T$380,3,0))) ->  | AL5: =IF(ISERROR(VLOOKUP(Feuil1!$Q75,Feuil1!$R$1:$T$380,2,0)),"",(VLOOKUP(Feuil1!$Q75,Feuil1!$R$1:$T$380,2,0))) ->  | AM5: =IF(ISERROR(VLOOKUP(Feuil1!$Q75,Feuil1!$R$1:$T$380,3,0)),"",(VLOOKUP(Feuil1!$Q75,Feuil1!$R$1:$T$380,3,0))) ->  | AN5: =IF(ISERROR(VLOOKUP(Feuil1!$Q76,Feuil1!$R$1:$T$380,2,0)),"",(VLOOKUP(Feuil1!$Q76,Feuil1!$R$1:$T$380,2,0))) ->  | AO5: =IF(ISERROR(VLOOKUP(Feuil1!$Q76,Feuil1!$R$1:$T$380,3,0)),"",(VLOOKUP(Feuil1!$Q76,Feuil1!$R$1:$T$380,3,0))) ->  | AP5: ='J38'!AY8 -> 0 | AR5: ='J38'!BA8 -> 0 | AT5: ='J38'!AZ8 -> 0
A6: ='J01'!AN9:AR9 -> 0 | B6: =IF(ISERROR(VLOOKUP(Feuil1!$Q77,Feuil1!$R$1:$T$380,2,0)),"",(VLOOKUP(Feuil1!$Q77,Feuil1!$R$1:$T$380,2,0))) ->  | C6: =IF(ISERROR(VLOOKUP(Feuil1!$Q77,Feuil1!$R$1:$T$380,3,0)),"",(VLOOKUP(Feuil1!$Q77,Feuil1!$R$1:$T$380,3,0))) ->  | D6: =IF(ISERROR(VLOOKUP(Feuil1!$Q78,Feuil1!$R$1:$T$380,2,0)),"",(VLOOKUP(Feuil1!$Q78,Feuil1!$R$1:$T$380,2,0))) ->  | E6: =IF(ISERROR(VLOOKUP(Feuil1!$Q78,Feuil1!$R$1:$T$380,3,0)),"",(VLOOKUP(Feuil1!$Q78,Feuil1!$R$1:$T$380,3,0))) ->  | F6: =IF(ISERROR(VLOOKUP(Feuil1!$Q79,Feuil1!$R$1:$T$380,2,0)),"",(VLOOKUP(Feuil1!$Q79,Feuil1!$R$1:$T$380,2,0))) ->  | G6: =IF(ISERROR(VLOOKUP(Feuil1!$Q79,Feuil1!$R$1:$T$380,3,0)),"",(VLOOKUP(Feuil1!$Q79,Feuil1!$R$1:$T$380,3,0))) ->  | H6: =IF(ISERROR(VLOOKUP(Feuil1!$Q80,Feuil1!$R$1:$T$380,2,0)),"",(VLOOKUP(Feuil1!$Q80,Feuil1!$R$1:$T$380,2,0))) ->  | I6: =IF(ISERROR(VLOOKUP(Feuil1!$Q80,Feuil1!$R$1:$T$380,3,0)),"",(VLOOKUP(Feuil1!$Q80,Feuil1!$R$1:$T$380,3,0))) ->  | L6: =IF(ISERROR(VLOOKUP(Feuil1!$Q81,Feuil1!$R$1:$T$380,2,0)),"",(VLOOKUP(Feuil1!$Q81,Feuil1!$R$1:$T$380,2,0))) ->  | M6: =IF(ISERROR(VLOOKUP(Feuil1!$Q81,Feuil1!$R$1:$T$380,3,0)),"",(VLOOKUP(Feuil1!$Q81,Feuil1!$R$1:$T$380,3,0))) ->  | N6: =IF(ISERROR(VLOOKUP(Feuil1!$Q82,Feuil1!$R$1:$T$380,2,0)),"",(VLOOKUP(Feuil1!$Q82,Feuil1!$R$1:$T$380,2,0))) ->  | O6: =IF(ISERROR(VLOOKUP(Feuil1!$Q82,Feuil1!$R$1:$T$380,3,0)),"",(VLOOKUP(Feuil1!$Q82,Feuil1!$R$1:$T$380,3,0))) ->  | P6: =IF(ISERROR(VLOOKUP(Feuil1!$Q83,Feuil1!$R$1:$T$380,2,0)),"",(VLOOKUP(Feuil1!$Q83,Feuil1!$R$1:$T$380,2,0))) ->  | Q6: =IF(ISERROR(VLOOKUP(Feuil1!$Q83,Feuil1!$R$1:$T$380,3,0)),"",(VLOOKUP(Feuil1!$Q83,Feuil1!$R$1:$T$380,3,0))) ->  | R6: =IF(ISERROR(VLOOKUP(Feuil1!$Q84,Feuil1!$R$1:$T$380,2,0)),"",(VLOOKUP(Feuil1!$Q84,Feuil1!$R$1:$T$380,2,0))) ->  | S6: =IF(ISERROR(VLOOKUP(Feuil1!$Q84,Feuil1!$R$1:$T$380,3,0)),"",(VLOOKUP(Feuil1!$Q84,Feuil1!$R$1:$T$380,3,0))) ->  | T6: =IF(ISERROR(VLOOKUP(Feuil1!$Q85,Feuil1!$R$1:$T$380,2,0)),"",(VLOOKUP(Feuil1!$Q85,Feuil1!$R$1:$T$380,2,0))) ->  | U6: =IF(ISERROR(VLOOKUP(Feuil1!$Q85,Feuil1!$R$1:$T$380,3,0)),"",(VLOOKUP(Feuil1!$Q85,Feuil1!$R$1:$T$380,3,0))) ->  | V6: =IF(ISERROR(VLOOKUP(Feuil1!$Q86,Feuil1!$R$1:$T$380,2,0)),"",(VLOOKUP(Feuil1!$Q86,Feuil1!$R$1:$T$380,2,0))) ->  | W6: =IF(ISERROR(VLOOKUP(Feuil1!$Q86,Feuil1!$R$1:$T$380,3,0)),"",(VLOOKUP(Feuil1!$Q86,Feuil1!$R$1:$T$380,3,0))) ->  | X6: =IF(ISERROR(VLOOKUP(Feuil1!$Q87,Feuil1!$R$1:$T$380,2,0)),"",(VLOOKUP(Feuil1!$Q87,Feuil1!$R$1:$T$380,2,0))) ->  | Y6: =IF(ISERROR(VLOOKUP(Feuil1!$Q87,Feuil1!$R$1:$T$380,3,0)),"",(VLOOKUP(Feuil1!$Q87,Feuil1!$R$1:$T$380,3,0))) ->  | Z6: =IF(ISERROR(VLOOKUP(Feuil1!$Q88,Feuil1!$R$1:$T$380,2,0)),"",(VLOOKUP(Feuil1!$Q88,Feuil1!$R$1:$T$380,2,0))) ->  | AA6: =IF(ISERROR(VLOOKUP(Feuil1!$Q88,Feuil1!$R$1:$T$380,3,0)),"",(VLOOKUP(Feuil1!$Q88,Feuil1!$R$1:$T$380,3,0))) ->  | AB6: =IF(ISERROR(VLOOKUP(Feuil1!$Q89,Feuil1!$R$1:$T$380,2,0)),"",(VLOOKUP(Feuil1!$Q89,Feuil1!$R$1:$T$380,2,0))) ->  | AC6: =IF(ISERROR(VLOOKUP(Feuil1!$Q89,Feuil1!$R$1:$T$380,3,0)),"",(VLOOKUP(Feuil1!$Q89,Feuil1!$R$1:$T$380,3,0))) ->  | AD6: =IF(ISERROR(VLOOKUP(Feuil1!$Q90,Feuil1!$R$1:$T$380,2,0)),"",(VLOOKUP(Feuil1!$Q90,Feuil1!$R$1:$T$380,2,0))) ->  | AE6: =IF(ISERROR(VLOOKUP(Feuil1!$Q90,Feuil1!$R$1:$T$380,3,0)),"",(VLOOKUP(Feuil1!$Q90,Feuil1!$R$1:$T$380,3,0))) ->  | AF6: =IF(ISERROR(VLOOKUP(Feuil1!$Q91,Feuil1!$R$1:$T$380,2,0)),"",(VLOOKUP(Feuil1!$Q91,Feuil1!$R$1:$T$380,2,0))) ->  | AG6: =IF(ISERROR(VLOOKUP(Feuil1!$Q91,Feuil1!$R$1:$T$380,3,0)),"",(VLOOKUP(Feuil1!$Q91,Feuil1!$R$1:$T$380,3,0))) ->  | AH6: =IF(ISERROR(VLOOKUP(Feuil1!$Q92,Feuil1!$R$1:$T$380,2,0)),"",(VLOOKUP(Feuil1!$Q92,Feuil1!$R$1:$T$380,2,0))) ->  | AI6: =IF(ISERROR(VLOOKUP(Feuil1!$Q92,Feuil1!$R$1:$T$380,3,0)),"",(VLOOKUP(Feuil1!$Q92,Feuil1!$R$1:$T$380,3,0))) ->  | AJ6: =IF(ISERROR(VLOOKUP(Feuil1!$Q93,Feuil1!$R$1:$T$380,2,0)),"",(VLOOKUP(Feuil1!$Q93,Feuil1!$R$1:$T$380,2,0))) ->  | AK6: =IF(ISERROR(VLOOKUP(Feuil1!$Q93,Feuil1!$R$1:$T$380,3,0)),"",(VLOOKUP(Feuil1!$Q93,Feuil1!$R$1:$T$380,3,0))) ->  | AL6: =IF(ISERROR(VLOOKUP(Feuil1!$Q94,Feuil1!$R$1:$T$380,2,0)),"",(VLOOKUP(Feuil1!$Q94,Feuil1!$R$1:$T$380,2,0))) ->  | AM6: =IF(ISERROR(VLOOKUP(Feuil1!$Q94,Feuil1!$R$1:$T$380,3,0)),"",(VLOOKUP(Feuil1!$Q94,Feuil1!$R$1:$T$380,3,0))) ->  | AN6: =IF(ISERROR(VLOOKUP(Feuil1!$Q95,Feuil1!$R$1:$T$380,2,0)),"",(VLOOKUP(Feuil1!$Q95,Feuil1!$R$1:$T$380,2,0))) ->  | AO6: =IF(ISERROR(VLOOKUP(Feuil1!$Q95,Feuil1!$R$1:$T$380,3,0)),"",(VLOOKUP(Feuil1!$Q95,Feuil1!$R$1:$T$380,3,0))) ->  | AP6: ='J38'!AY9 -> 0 | AR6: ='J38'!BA9 -> 0 | AT6: ='J38'!AZ9 -> 0
A7: ='J01'!AN10:AR10 -> 0 | B7: =IF(ISERROR(VLOOKUP(Feuil1!$Q96,Feuil1!$R$1:$T$380,2,0)),"",(VLOOKUP(Feuil1!$Q96,Feuil1!$R$1:$T$380,2,0))) ->  | C7: =IF(ISERROR(VLOOKUP(Feuil1!$Q96,Feuil1!$R$1:$T$380,3,0)),"",(VLOOKUP(Feuil1!$Q96,Feuil1!$R$1:$T$380,3,0))) ->  | D7: =IF(ISERROR(VLOOKUP(Feuil1!$Q97,Feuil1!$R$1:$T$380,2,0)),"",(VLOOKUP(Feuil1!$Q97,Feuil1!$R$1:$T$380,2,0))) ->  | E7: =IF(ISERROR(VLOOKUP(Feuil1!$Q97,Feuil1!$R$1:$T$380,3,0)),"",(VLOOKUP(Feuil1!$Q97,Feuil1!$R$1:$T$380,3,0))) ->  | F7: =IF(ISERROR(VLOOKUP(Feuil1!$Q98,Feuil1!$R$1:$T$380,2,0)),"",(VLOOKUP(Feuil1!$Q98,Feuil1!$R$1:$T$380,2,0))) ->  | G7: =IF(ISERROR(VLOOKUP(Feuil1!$Q98,Feuil1!$R$1:$T$380,3,0)),"",(VLOOKUP(Feuil1!$Q98,Feuil1!$R$1:$T$380,3,0))) ->  | H7: =IF(ISERROR(VLOOKUP(Feuil1!$Q99,Feuil1!$R$1:$T$380,2,0)),"",(VLOOKUP(Feuil1!$Q99,Feuil1!$R$1:$T$380,2,0))) ->  | I7: =IF(ISERROR(VLOOKUP(Feuil1!$Q99,Feuil1!$R$1:$T$380,3,0)),"",(VLOOKUP(Feuil1!$Q99,Feuil1!$R$1:$T$380,3,0))) ->  | J7: =IF(ISERROR(VLOOKUP(Feuil1!$Q100,Feuil1!$R$1:$T$380,2,0)),"",(VLOOKUP(Feuil1!$Q100,Feuil1!$R$1:$T$380,2,0))) ->  | K7: =IF(ISERROR(VLOOKUP(Feuil1!$Q100,Feuil1!$R$1:$T$380,3,0)),"",(VLOOKUP(Feuil1!$Q100,Feuil1!$R$1:$T$380,3,0))) ->  | N7: =IF(ISERROR(VLOOKUP(Feuil1!$Q101,Feuil1!$R$1:$T$380,2,0)),"",(VLOOKUP(Feuil1!$Q101,Feuil1!$R$1:$T$380,2,0))) ->  | O7: =IF(ISERROR(VLOOKUP(Feuil1!$Q101,Feuil1!$R$1:$T$380,3,0)),"",(VLOOKUP(Feuil1!$Q101,Feuil1!$R$1:$T$380,3,0))) ->  | P7: =IF(ISERROR(VLOOKUP(Feuil1!$Q102,Feuil1!$R$1:$T$380,2,0)),"",(VLOOKUP(Feuil1!$Q102,Feuil1!$R$1:$T$380,2,0))) ->  | Q7: =IF(ISERROR(VLOOKUP(Feuil1!$Q102,Feuil1!$R$1:$T$380,3,0)),"",(VLOOKUP(Feuil1!$Q102,Feuil1!$R$1:$T$380,3,0))) ->  | R7: =IF(ISERROR(VLOOKUP(Feuil1!$Q103,Feuil1!$R$1:$T$380,2,0)),"",(VLOOKUP(Feuil1!$Q103,Feuil1!$R$1:$T$380,2,0))) ->  | S7: =IF(ISERROR(VLOOKUP(Feuil1!$Q103,Feuil1!$R$1:$T$380,3,0)),"",(VLOOKUP(Feuil1!$Q103,Feuil1!$R$1:$T$380,3,0))) ->  | T7: =IF(ISERROR(VLOOKUP(Feuil1!$Q104,Feuil1!$R$1:$T$380,2,0)),"",(VLOOKUP(Feuil1!$Q104,Feuil1!$R$1:$T$380,2,0))) ->  | U7: =IF(ISERROR(VLOOKUP(Feuil1!$Q104,Feuil1!$R$1:$T$380,3,0)),"",(VLOOKUP(Feuil1!$Q104,Feuil1!$R$1:$T$380,3,0))) ->  | V7: =IF(ISERROR(VLOOKUP(Feuil1!$Q105,Feuil1!$R$1:$T$380,2,0)),"",(VLOOKUP(Feuil1!$Q105,Feuil1!$R$1:$T$380,2,0))) ->  | W7: =IF(ISERROR(VLOOKUP(Feuil1!$Q105,Feuil1!$R$1:$T$380,3,0)),"",(VLOOKUP(Feuil1!$Q105,Feuil1!$R$1:$T$380,3,0))) ->  | X7: =IF(ISERROR(VLOOKUP(Feuil1!$Q106,Feuil1!$R$1:$T$380,2,0)),"",(VLOOKUP(Feuil1!$Q106,Feuil1!$R$1:$T$380,2,0))) ->  | Y7: =IF(ISERROR(VLOOKUP(Feuil1!$Q106,Feuil1!$R$1:$T$380,3,0)),"",(VLOOKUP(Feuil1!$Q106,Feuil1!$R$1:$T$380,3,0))) ->  | Z7: =IF(ISERROR(VLOOKUP(Feuil1!$Q107,Feuil1!$R$1:$T$380,2,0)),"",(VLOOKUP(Feuil1!$Q107,Feuil1!$R$1:$T$380,2,0))) ->  | AA7: =IF(ISERROR(VLOOKUP(Feuil1!$Q107,Feuil1!$R$1:$T$380,3,0)),"",(VLOOKUP(Feuil1!$Q107,Feuil1!$R$1:$T$380,3,0))) ->  | AB7: =IF(ISERROR(VLOOKUP(Feuil1!$Q108,Feuil1!$R$1:$T$380,2,0)),"",(VLOOKUP(Feuil1!$Q108,Feuil1!$R$1:$T$380,2,0))) ->  | AC7: =IF(ISERROR(VLOOKUP(Feuil1!$Q108,Feuil1!$R$1:$T$380,3,0)),"",(VLOOKUP(Feuil1!$Q108,Feuil1!$R$1:$T$380,3,0))) ->  | AD7: =IF(ISERROR(VLOOKUP(Feuil1!$Q109,Feuil1!$R$1:$T$380,2,0)),"",(VLOOKUP(Feuil1!$Q109,Feuil1!$R$1:$T$380,2,0))) ->  | AE7: =IF(ISERROR(VLOOKUP(Feuil1!$Q109,Feuil1!$R$1:$T$380,3,0)),"",(VLOOKUP(Feuil1!$Q109,Feuil1!$R$1:$T$380,3,0))) ->  | AF7: =IF(ISERROR(VLOOKUP(Feuil1!$Q110,Feuil1!$R$1:$T$380,2,0)),"",(VLOOKUP(Feuil1!$Q110,Feuil1!$R$1:$T$380,2,0))) ->  | AG7: =IF(ISERROR(VLOOKUP(Feuil1!$Q110,Feuil1!$R$1:$T$380,3,0)),"",(VLOOKUP(Feuil1!$Q110,Feuil1!$R$1:$T$380,3,0))) ->  | AH7: =IF(ISERROR(VLOOKUP(Feuil1!$Q111,Feuil1!$R$1:$T$380,2,0)),"",(VLOOKUP(Feuil1!$Q111,Feuil1!$R$1:$T$380,2,0))) ->  | AI7: =IF(ISERROR(VLOOKUP(Feuil1!$Q111,Feuil1!$R$1:$T$380,3,0)),"",(VLOOKUP(Feuil1!$Q111,Feuil1!$R$1:$T$380,3,0))) ->  | AJ7: =IF(ISERROR(VLOOKUP(Feuil1!$Q112,Feuil1!$R$1:$T$380,2,0)),"",(VLOOKUP(Feuil1!$Q112,Feuil1!$R$1:$T$380,2,0))) ->  | AK7: =IF(ISERROR(VLOOKUP(Feuil1!$Q112,Feuil1!$R$1:$T$380,3,0)),"",(VLOOKUP(Feuil1!$Q112,Feuil1!$R$1:$T$380,3,0))) ->  | AL7: =IF(ISERROR(VLOOKUP(Feuil1!$Q113,Feuil1!$R$1:$T$380,2,0)),"",(VLOOKUP(Feuil1!$Q113,Feuil1!$R$1:$T$380,2,0))) ->  | AM7: =IF(ISERROR(VLOOKUP(Feuil1!$Q113,Feuil1!$R$1:$T$380,3,0)),"",(VLOOKUP(Feuil1!$Q113,Feuil1!$R$1:$T$380,3,0))) ->  | AN7: =IF(ISERROR(VLOOKUP(Feuil1!$Q114,Feuil1!$R$1:$T$380,2,0)),"",(VLOOKUP(Feuil1!$Q114,Feuil1!$R$1:$T$380,2,0))) ->  | AO7: =IF(ISERROR(VLOOKUP(Feuil1!$Q114,Feuil1!$R$1:$T$380,3,0)),"",(VLOOKUP(Feuil1!$Q114,Feuil1!$R$1:$T$380,3,0))) ->  | AP7: ='J38'!AY10 -> 0 | AR7: ='J38'!BA10 -> 0 | AT7: ='J38'!AZ10 -> 0
A8: ='J01'!AN11:AR11 -> 0 | B8: =IF(ISERROR(VLOOKUP(Feuil1!$Q115,Feuil1!$R$1:$T$380,2,0)),"",(VLOOKUP(Feuil1!$Q115,Feuil1!$R$1:$T$380,2,0))) ->  | C8: =IF(ISERROR(VLOOKUP(Feuil1!$Q115,Feuil1!$R$1:$T$380,3,0)),"",(VLOOKUP(Feuil1!$Q115,Feuil1!$R$1:$T$380,3,0))) ->  | D8: =IF(ISERROR(VLOOKUP(Feuil1!$Q116,Feuil1!$R$1:$T$380,2,0)),"",(VLOOKUP(Feuil1!$Q116,Feuil1!$R$1:$T$380,2,0))) ->  | E8: =IF(ISERROR(VLOOKUP(Feuil1!$Q116,Feuil1!$R$1:$T$380,3,0)),"",(VLOOKUP(Feuil1!$Q116,Feuil1!$R$1:$T$380,3,0))) ->  | F8: =IF(ISERROR(VLOOKUP(Feuil1!$Q117,Feuil1!$R$1:$T$380,2,0)),"",(VLOOKUP(Feuil1!$Q117,Feuil1!$R$1:$T$380,2,0))) ->  | G8: =IF(ISERROR(VLOOKUP(Feuil1!$Q117,Feuil1!$R$1:$T$380,3,0)),"",(VLOOKUP(Feuil1!$Q117,Feuil1!$R$1:$T$380,3,0))) ->  | H8: =IF(ISERROR(VLOOKUP(Feuil1!$Q118,Feuil1!$R$1:$T$380,2,0)),"",(VLOOKUP(Feuil1!$Q118,Feuil1!$R$1:$T$380,2,0))) ->  | I8: =IF(ISERROR(VLOOKUP(Feuil1!$Q118,Feuil1!$R$1:$T$380,3,0)),"",(VLOOKUP(Feuil1!$Q118,Feuil1!$R$1:$T$380,3,0))) ->  | J8: =IF(ISERROR(VLOOKUP(Feuil1!$Q119,Feuil1!$R$1:$T$380,2,0)),"",(VLOOKUP(Feuil1!$Q119,Feuil1!$R$1:$T$380,2,0))) ->  | K8: =IF(ISERROR(VLOOKUP(Feuil1!$Q119,Feuil1!$R$1:$T$380,3,0)),"",(VLOOKUP(Feuil1!$Q119,Feuil1!$R$1:$T$380,3,0))) ->  | L8: =IF(ISERROR(VLOOKUP(Feuil1!$Q120,Feuil1!$R$1:$T$380,2,0)),"",(VLOOKUP(Feuil1!$Q120,Feuil1!$R$1:$T$380,2,0))) ->  | M8: =IF(ISERROR(VLOOKUP(Feuil1!$Q120,Feuil1!$R$1:$T$380,3,0)),"",(VLOOKUP(Feuil1!$Q120,Feuil1!$R$1:$T$380,3,0))) ->  | P8: =IF(ISERROR(VLOOKUP(Feuil1!$Q121,Feuil1!$R$1:$T$380,2,0)),"",(VLOOKUP(Feuil1!$Q121,Feuil1!$R$1:$T$380,2,0))) ->  | Q8: =IF(ISERROR(VLOOKUP(Feuil1!$Q121,Feuil1!$R$1:$T$380,3,0)),"",(VLOOKUP(Feuil1!$Q121,Feuil1!$R$1:$T$380,3,0))) ->  | R8: =IF(ISERROR(VLOOKUP(Feuil1!$Q122,Feuil1!$R$1:$T$380,2,0)),"",(VLOOKUP(Feuil1!$Q122,Feuil1!$R$1:$T$380,2,0))) ->  | S8: =IF(ISERROR(VLOOKUP(Feuil1!$Q122,Feuil1!$R$1:$T$380,3,0)),"",(VLOOKUP(Feuil1!$Q122,Feuil1!$R$1:$T$380,3,0))) ->  | T8: =IF(ISERROR(VLOOKUP(Feuil1!$Q123,Feuil1!$R$1:$T$380,2,0)),"",(VLOOKUP(Feuil1!$Q123,Feuil1!$R$1:$T$380,2,0))) ->  | U8: =IF(ISERROR(VLOOKUP(Feuil1!$Q123,Feuil1!$R$1:$T$380,3,0)),"",(VLOOKUP(Feuil1!$Q123,Feuil1!$R$1:$T$380,3,0))) ->  | V8: =IF(ISERROR(VLOOKUP(Feuil1!$Q124,Feuil1!$R$1:$T$380,2,0)),"",(VLOOKUP(Feuil1!$Q124,Feuil1!$R$1:$T$380,2,0))) ->  | W8: =IF(ISERROR(VLOOKUP(Feuil1!$Q124,Feuil1!$R$1:$T$380,3,0)),"",(VLOOKUP(Feuil1!$Q124,Feuil1!$R$1:$T$380,3,0))) ->  | X8: =IF(ISERROR(VLOOKUP(Feuil1!$Q125,Feuil1!$R$1:$T$380,2,0)),"",(VLOOKUP(Feuil1!$Q125,Feuil1!$R$1:$T$380,2,0))) ->  | Y8: =IF(ISERROR(VLOOKUP(Feuil1!$Q125,Feuil1!$R$1:$T$380,3,0)),"",(VLOOKUP(Feuil1!$Q125,Feuil1!$R$1:$T$380,3,0))) ->  | Z8: =IF(ISERROR(VLOOKUP(Feuil1!$Q126,Feuil1!$R$1:$T$380,2,0)),"",(VLOOKUP(Feuil1!$Q126,Feuil1!$R$1:$T$380,2,0))) ->  | AA8: =IF(ISERROR(VLOOKUP(Feuil1!$Q126,Feuil1!$R$1:$T$380,3,0)),"",(VLOOKUP(Feuil1!$Q126,Feuil1!$R$1:$T$380,3,0))) ->  | AB8: =IF(ISERROR(VLOOKUP(Feuil1!$Q127,Feuil1!$R$1:$T$380,2,0)),"",(VLOOKUP(Feuil1!$Q127,Feuil1!$R$1:$T$380,2,0))) ->  | AC8: =IF(ISERROR(VLOOKUP(Feuil1!$Q127,Feuil1!$R$1:$T$380,3,0)),"",(VLOOKUP(Feuil1!$Q127,Feuil1!$R$1:$T$380,3,0))) ->  | AD8: =IF(ISERROR(VLOOKUP(Feuil1!$Q128,Feuil1!$R$1:$T$380,2,0)),"",(VLOOKUP(Feuil1!$Q128,Feuil1!$R$1:$T$380,2,0))) ->  | AE8: =IF(ISERROR(VLOOKUP(Feuil1!$Q128,Feuil1!$R$1:$T$380,3,0)),"",(VLOOKUP(Feuil1!$Q128,Feuil1!$R$1:$T$380,3,0))) ->  | AF8: =IF(ISERROR(VLOOKUP(Feuil1!$Q129,Feuil1!$R$1:$T$380,2,0)),"",(VLOOKUP(Feuil1!$Q129,Feuil1!$R$1:$T$380,2,0))) ->  | AG8: =IF(ISERROR(VLOOKUP(Feuil1!$Q129,Feuil1!$R$1:$T$380,3,0)),"",(VLOOKUP(Feuil1!$Q129,Feuil1!$R$1:$T$380,3,0))) ->  | AH8: =IF(ISERROR(VLOOKUP(Feuil1!$Q130,Feuil1!$R$1:$T$380,2,0)),"",(VLOOKUP(Feuil1!$Q130,Feuil1!$R$1:$T$380,2,0))) ->  | AI8: =IF(ISERROR(VLOOKUP(Feuil1!$Q130,Feuil1!$R$1:$T$380,3,0)),"",(VLOOKUP(Feuil1!$Q130,Feuil1!$R$1:$T$380,3,0))) ->  | AJ8: =IF(ISERROR(VLOOKUP(Feuil1!$Q131,Feuil1!$R$1:$T$380,2,0)),"",(VLOOKUP(Feuil1!$Q131,Feuil1!$R$1:$T$380,2,0))) ->  | AK8: =IF(ISERROR(VLOOKUP(Feuil1!$Q131,Feuil1!$R$1:$T$380,3,0)),"",(VLOOKUP(Feuil1!$Q131,Feuil1!$R$1:$T$380,3,0))) ->  | AL8: =IF(ISERROR(VLOOKUP(Feuil1!$Q132,Feuil1!$R$1:$T$380,2,0)),"",(VLOOKUP(Feuil1!$Q132,Feuil1!$R$1:$T$380,2,0))) ->  | AM8: =IF(ISERROR(VLOOKUP(Feuil1!$Q132,Feuil1!$R$1:$T$380,3,0)),"",(VLOOKUP(Feuil1!$Q132,Feuil1!$R$1:$T$380,3,0))) ->  | AN8: =IF(ISERROR(VLOOKUP(Feuil1!$Q133,Feuil1!$R$1:$T$380,2,0)),"",(VLOOKUP(Feuil1!$Q133,Feuil1!$R$1:$T$380,2,0))) ->  | AO8: =IF(ISERROR(VLOOKUP(Feuil1!$Q133,Feuil1!$R$1:$T$380,3,0)),"",(VLOOKUP(Feuil1!$Q133,Feuil1!$R$1:$T$380,3,0))) ->  | AP8: ='J38'!AY11 -> 0 | AR8: ='J38'!BA11 -> 0 | AT8: ='J38'!AZ11 -> 0
A9: ='J01'!AN12:AR12 -> 0 | B9: =IF(ISERROR(VLOOKUP(Feuil1!$Q134,Feuil1!$R$1:$T$380,2,0)),"",(VLOOKUP(Feuil1!$Q134,Feuil1!$R$1:$T$380,2,0))) ->  | C9: =IF(ISERROR(VLOOKUP(Feuil1!$Q134,Feuil1!$R$1:$T$380,3,0)),"",(VLOOKUP(Feuil1!$Q134,Feuil1!$R$1:$T$380,3,0))) ->  | D9: =IF(ISERROR(VLOOKUP(Feuil1!$Q135,Feuil1!$R$1:$T$380,2,0)),"",(VLOOKUP(Feuil1!$Q135,Feuil1!$R$1:$T$380,2,0))) ->  | E9: =IF(ISERROR(VLOOKUP(Feuil1!$Q135,Feuil1!$R$1:$T$380,3,0)),"",(VLOOKUP(Feuil1!$Q135,Feuil1!$R$1:$T$380,3,0))) ->  | F9: =IF(ISERROR(VLOOKUP(Feuil1!$Q136,Feuil1!$R$1:$T$380,2,0)),"",(VLOOKUP(Feuil1!$Q136,Feuil1!$R$1:$T$380,2,0))) ->  | G9: =IF(ISERROR(VLOOKUP(Feuil1!$Q136,Feuil1!$R$1:$T$380,3,0)),"",(VLOOKUP(Feuil1!$Q136,Feuil1!$R$1:$T$380,3,0))) ->  | H9: =IF(ISERROR(VLOOKUP(Feuil1!$Q137,Feuil1!$R$1:$T$380,2,0)),"",(VLOOKUP(Feuil1!$Q137,Feuil1!$R$1:$T$380,2,0))) ->  | I9: =IF(ISERROR(VLOOKUP(Feuil1!$Q137,Feuil1!$R$1:$T$380,3,0)),"",(VLOOKUP(Feuil1!$Q137,Feuil1!$R$1:$T$380,3,0))) ->  | J9: =IF(ISERROR(VLOOKUP(Feuil1!$Q138,Feuil1!$R$1:$T$380,2,0)),"",(VLOOKUP(Feuil1!$Q138,Feuil1!$R$1:$T$380,2,0))) ->  | K9: =IF(ISERROR(VLOOKUP(Feuil1!$Q138,Feuil1!$R$1:$T$380,3,0)),"",(VLOOKUP(Feuil1!$Q138,Feuil1!$R$1:$T$380,3,0))) ->  | L9: =IF(ISERROR(VLOOKUP(Feuil1!$Q139,Feuil1!$R$1:$T$380,2,0)),"",(VLOOKUP(Feuil1!$Q139,Feuil1!$R$1:$T$380,2,0))) ->  | M9: =IF(ISERROR(VLOOKUP(Feuil1!$Q139,Feuil1!$R$1:$T$380,3,0)),"",(VLOOKUP(Feuil1!$Q139,Feuil1!$R$1:$T$380,3,0))) ->  | N9: =IF(ISERROR(VLOOKUP(Feuil1!$Q140,Feuil1!$R$1:$T$380,2,0)),"",(VLOOKUP(Feuil1!$Q140,Feuil1!$R$1:$T$380,2,0))) ->  | O9: =IF(ISERROR(VLOOKUP(Feuil1!$Q140,Feuil1!$R$1:$T$380,3,0)),"",(VLOOKUP(Feuil1!$Q140,Feuil1!$R$1:$T$380,3,0))) ->  | R9: =IF(ISERROR(VLOOKUP(Feuil1!$Q141,Feuil1!$R$1:$T$380,2,0)),"",(VLOOKUP(Feuil1!$Q141,Feuil1!$R$1:$T$380,2,0))) ->  | S9: =IF(ISERROR(VLOOKUP(Feuil1!$Q141,Feuil1!$R$1:$T$380,3,0)),"",(VLOOKUP(Feuil1!$Q141,Feuil1!$R$1:$T$380,3,0))) ->  | T9: =IF(ISERROR(VLOOKUP(Feuil1!$Q142,Feuil1!$R$1:$T$380,2,0)),"",(VLOOKUP(Feuil1!$Q142,Feuil1!$R$1:$T$380,2,0))) ->  | U9: =IF(ISERROR(VLOOKUP(Feuil1!$Q142,Feuil1!$R$1:$T$380,3,0)),"",(VLOOKUP(Feuil1!$Q142,Feuil1!$R$1:$T$380,3,0))) ->  | V9: =IF(ISERROR(VLOOKUP(Feuil1!$Q143,Feuil1!$R$1:$T$380,2,0)),"",(VLOOKUP(Feuil1!$Q143,Feuil1!$R$1:$T$380,2,0))) ->  | W9: =IF(ISERROR(VLOOKUP(Feuil1!$Q143,Feuil1!$R$1:$T$380,3,0)),"",(VLOOKUP(Feuil1!$Q143,Feuil1!$R$1:$T$380,3,0))) ->  | X9: =IF(ISERROR(VLOOKUP(Feuil1!$Q144,Feuil1!$R$1:$T$380,2,0)),"",(VLOOKUP(Feuil1!$Q144,Feuil1!$R$1:$T$380,2,0))) ->  | Y9: =IF(ISERROR(VLOOKUP(Feuil1!$Q144,Feuil1!$R$1:$T$380,3,0)),"",(VLOOKUP(Feuil1!$Q144,Feuil1!$R$1:$T$380,3,0))) ->  | Z9: =IF(ISERROR(VLOOKUP(Feuil1!$Q145,Feuil1!$R$1:$T$380,2,0)),"",(VLOOKUP(Feuil1!$Q145,Feuil1!$R$1:$T$380,2,0))) ->  | AA9: =IF(ISERROR(VLOOKUP(Feuil1!$Q145,Feuil1!$R$1:$T$380,3,0)),"",(VLOOKUP(Feuil1!$Q145,Feuil1!$R$1:$T$380,3,0))) ->  | AB9: =IF(ISERROR(VLOOKUP(Feuil1!$Q146,Feuil1!$R$1:$T$380,2,0)),"",(VLOOKUP(Feuil1!$Q146,Feuil1!$R$1:$T$380,2,0))) ->  | AC9: =IF(ISERROR(VLOOKUP(Feuil1!$Q146,Feuil1!$R$1:$T$380,3,0)),"",(VLOOKUP(Feuil1!$Q146,Feuil1!$R$1:$T$380,3,0))) ->  | AD9: =IF(ISERROR(VLOOKUP(Feuil1!$Q147,Feuil1!$R$1:$T$380,2,0)),"",(VLOOKUP(Feuil1!$Q147,Feuil1!$R$1:$T$380,2,0))) ->  | AE9: =IF(ISERROR(VLOOKUP(Feuil1!$Q147,Feuil1!$R$1:$T$380,3,0)),"",(VLOOKUP(Feuil1!$Q147,Feuil1!$R$1:$T$380,3,0))) ->  | AF9: =IF(ISERROR(VLOOKUP(Feuil1!$Q148,Feuil1!$R$1:$T$380,2,0)),"",(VLOOKUP(Feuil1!$Q148,Feuil1!$R$1:$T$380,2,0))) ->  | AG9: =IF(ISERROR(VLOOKUP(Feuil1!$Q148,Feuil1!$R$1:$T$380,3,0)),"",(VLOOKUP(Feuil1!$Q148,Feuil1!$R$1:$T$380,3,0))) ->  | AH9: =IF(ISERROR(VLOOKUP(Feuil1!$Q149,Feuil1!$R$1:$T$380,2,0)),"",(VLOOKUP(Feuil1!$Q149,Feuil1!$R$1:$T$380,2,0))) ->  | AI9: =IF(ISERROR(VLOOKUP(Feuil1!$Q149,Feuil1!$R$1:$T$380,3,0)),"",(VLOOKUP(Feuil1!$Q149,Feuil1!$R$1:$T$380,3,0))) ->  | AJ9: =IF(ISERROR(VLOOKUP(Feuil1!$Q150,Feuil1!$R$1:$T$380,2,0)),"",(VLOOKUP(Feuil1!$Q150,Feuil1!$R$1:$T$380,2,0))) ->  | AK9: =IF(ISERROR(VLOOKUP(Feuil1!$Q150,Feuil1!$R$1:$T$380,3,0)),"",(VLOOKUP(Feuil1!$Q150,Feuil1!$R$1:$T$380,3,0))) ->  | AL9: =IF(ISERROR(VLOOKUP(Feuil1!$Q151,Feuil1!$R$1:$T$380,2,0)),"",(VLOOKUP(Feuil1!$Q151,Feuil1!$R$1:$T$380,2,0))) ->  | AM9: =IF(ISERROR(VLOOKUP(Feuil1!$Q151,Feuil1!$R$1:$T$380,3,0)),"",(VLOOKUP(Feuil1!$Q151,Feuil1!$R$1:$T$380,3,0))) ->  | AN9: =IF(ISERROR(VLOOKUP(Feuil1!$Q152,Feuil1!$R$1:$T$380,2,0)),"",(VLOOKUP(Feuil1!$Q152,Feuil1!$R$1:$T$380,2,0))) ->  | AO9: =IF(ISERROR(VLOOKUP(Feuil1!$Q152,Feuil1!$R$1:$T$380,3,0)),"",(VLOOKUP(Feuil1!$Q152,Feuil1!$R$1:$T$380,3,0))) ->  | AP9: ='J38'!AY12 -> 0 | AR9: ='J38'!BA12 -> 0 | AT9: ='J38'!AZ12 -> 0
A10: ='J01'!AN13:AR13 -> 0 | B10: =IF(ISERROR(VLOOKUP(Feuil1!$Q153,Feuil1!$R$1:$T$380,2,0)),"",(VLOOKUP(Feuil1!$Q153,Feuil1!$R$1:$T$380,2,0))) ->  | C10: =IF(ISERROR(VLOOKUP(Feuil1!$Q153,Feuil1!$R$1:$T$380,3,0)),"",(VLOOKUP(Feuil1!$Q153,Feuil1!$R$1:$T$380,3,0))) ->  | D10: =IF(ISERROR(VLOOKUP(Feuil1!$Q154,Feuil1!$R$1:$T$380,2,0)),"",(VLOOKUP(Feuil1!$Q154,Feuil1!$R$1:$T$380,2,0))) ->  | E10: =IF(ISERROR(VLOOKUP(Feuil1!$Q154,Feuil1!$R$1:$T$380,3,0)),"",(VLOOKUP(Feuil1!$Q154,Feuil1!$R$1:$T$380,3,0))) ->  | F10: =IF(ISERROR(VLOOKUP(Feuil1!$Q155,Feuil1!$R$1:$T$380,2,0)),"",(VLOOKUP(Feuil1!$Q155,Feuil1!$R$1:$T$380,2,0))) ->  | G10: =IF(ISERROR(VLOOKUP(Feuil1!$Q155,Feuil1!$R$1:$T$380,3,0)),"",(VLOOKUP(Feuil1!$Q155,Feuil1!$R$1:$T$380,3,0))) ->  | H10: =IF(ISERROR(VLOOKUP(Feuil1!$Q156,Feuil1!$R$1:$T$380,2,0)),"",(VLOOKUP(Feuil1!$Q156,Feuil1!$R$1:$T$380,2,0))) ->  | I10: =IF(ISERROR(VLOOKUP(Feuil1!$Q156,Feuil1!$R$1:$T$380,3,0)),"",(VLOOKUP(Feuil1!$Q156,Feuil1!$R$1:$T$380,3,0))) ->  | J10: =IF(ISERROR(VLOOKUP(Feuil1!$Q157,Feuil1!$R$1:$T$380,2,0)),"",(VLOOKUP(Feuil1!$Q157,Feuil1!$R$1:$T$380,2,0))) ->  | K10: =IF(ISERROR(VLOOKUP(Feuil1!$Q157,Feuil1!$R$1:$T$380,3,0)),"",(VLOOKUP(Feuil1!$Q157,Feuil1!$R$1:$T$380,3,0))) ->  | L10: =IF(ISERROR(VLOOKUP(Feuil1!$Q158,Feuil1!$R$1:$T$380,2,0)),"",(VLOOKUP(Feuil1!$Q158,Feuil1!$R$1:$T$380,2,0))) ->  | M10: =IF(ISERROR(VLOOKUP(Feuil1!$Q158,Feuil1!$R$1:$T$380,3,0)),"",(VLOOKUP(Feuil1!$Q158,Feuil1!$R$1:$T$380,3,0))) ->  | N10: =IF(ISERROR(VLOOKUP(Feuil1!$Q159,Feuil1!$R$1:$T$380,2,0)),"",(VLOOKUP(Feuil1!$Q159,Feuil1!$R$1:$T$380,2,0))) ->  | O10: =IF(ISERROR(VLOOKUP(Feuil1!$Q159,Feuil1!$R$1:$T$380,3,0)),"",(VLOOKUP(Feuil1!$Q159,Feuil1!$R$1:$T$380,3,0))) ->  | P10: =IF(ISERROR(VLOOKUP(Feuil1!$Q160,Feuil1!$R$1:$T$380,2,0)),"",(VLOOKUP(Feuil1!$Q160,Feuil1!$R$1:$T$380,2,0))) ->  | Q10: =IF(ISERROR(VLOOKUP(Feuil1!$Q160,Feuil1!$R$1:$T$380,3,0)),"",(VLOOKUP(Feuil1!$Q160,Feuil1!$R$1:$T$380,3,0))) ->  | T10: =IF(ISERROR(VLOOKUP(Feuil1!$Q161,Feuil1!$R$1:$T$380,2,0)),"",(VLOOKUP(Feuil1!$Q161,Feuil1!$R$1:$T$380,2,0))) ->  | U10: =IF(ISERROR(VLOOKUP(Feuil1!$Q161,Feuil1!$R$1:$T$380,3,0)),"",(VLOOKUP(Feuil1!$Q161,Feuil1!$R$1:$T$380,3,0))) ->  | V10: =IF(ISERROR(VLOOKUP(Feuil1!$Q162,Feuil1!$R$1:$T$380,2,0)),"",(VLOOKUP(Feuil1!$Q162,Feuil1!$R$1:$T$380,2,0))) ->  | W10: =IF(ISERROR(VLOOKUP(Feuil1!$Q162,Feuil1!$R$1:$T$380,3,0)),"",(VLOOKUP(Feuil1!$Q162,Feuil1!$R$1:$T$380,3,0))) ->  | X10: =IF(ISERROR(VLOOKUP(Feuil1!$Q163,Feuil1!$R$1:$T$380,2,0)),"",(VLOOKUP(Feuil1!$Q163,Feuil1!$R$1:$T$380,2,0))) ->  | Y10: =IF(ISERROR(VLOOKUP(Feuil1!$Q163,Feuil1!$R$1:$T$380,3,0)),"",(VLOOKUP(Feuil1!$Q163,Feuil1!$R$1:$T$380,3,0))) ->  | Z10: =IF(ISERROR(VLOOKUP(Feuil1!$Q164,Feuil1!$R$1:$T$380,2,0)),"",(VLOOKUP(Feuil1!$Q164,Feuil1!$R$1:$T$380,2,0))) ->  | AA10: =IF(ISERROR(VLOOKUP(Feuil1!$Q164,Feuil1!$R$1:$T$380,3,0)),"",(VLOOKUP(Feuil1!$Q164,Feuil1!$R$1:$T$380,3,0))) ->  | AB10: =IF(ISERROR(VLOOKUP(Feuil1!$Q165,Feuil1!$R$1:$T$380,2,0)),"",(VLOOKUP(Feuil1!$Q165,Feuil1!$R$1:$T$380,2,0))) ->  | AC10: =IF(ISERROR(VLOOKUP(Feuil1!$Q165,Feuil1!$R$1:$T$380,3,0)),"",(VLOOKUP(Feuil1!$Q165,Feuil1!$R$1:$T$380,3,0))) ->  | AD10: =IF(ISERROR(VLOOKUP(Feuil1!$Q166,Feuil1!$R$1:$T$380,2,0)),"",(VLOOKUP(Feuil1!$Q166,Feuil1!$R$1:$T$380,2,0))) ->  | AE10: =IF(ISERROR(VLOOKUP(Feuil1!$Q166,Feuil1!$R$1:$T$380,3,0)),"",(VLOOKUP(Feuil1!$Q166,Feuil1!$R$1:$T$380,3,0))) ->  | AF10: =IF(ISERROR(VLOOKUP(Feuil1!$Q167,Feuil1!$R$1:$T$380,2,0)),"",(VLOOKUP(Feuil1!$Q167,Feuil1!$R$1:$T$380,2,0))) ->  | AG10: =IF(ISERROR(VLOOKUP(Feuil1!$Q167,Feuil1!$R$1:$T$380,3,0)),"",(VLOOKUP(Feuil1!$Q167,Feuil1!$R$1:$T$380,3,0))) ->  | AH10: =IF(ISERROR(VLOOKUP(Feuil1!$Q168,Feuil1!$R$1:$T$380,2,0)),"",(VLOOKUP(Feuil1!$Q168,Feuil1!$R$1:$T$380,2,0))) ->  | AI10: =IF(ISERROR(VLOOKUP(Feuil1!$Q168,Feuil1!$R$1:$T$380,3,0)),"",(VLOOKUP(Feuil1!$Q168,Feuil1!$R$1:$T$380,3,0))) ->  | AJ10: =IF(ISERROR(VLOOKUP(Feuil1!$Q169,Feuil1!$R$1:$T$380,2,0)),"",(VLOOKUP(Feuil1!$Q169,Feuil1!$R$1:$T$380,2,0))) ->  | AK10: =IF(ISERROR(VLOOKUP(Feuil1!$Q169,Feuil1!$R$1:$T$380,3,0)),"",(VLOOKUP(Feuil1!$Q169,Feuil1!$R$1:$T$380,3,0))) ->  | AL10: =IF(ISERROR(VLOOKUP(Feuil1!$Q170,Feuil1!$R$1:$T$380,2,0)),"",(VLOOKUP(Feuil1!$Q170,Feuil1!$R$1:$T$380,2,0))) ->  | AM10: =IF(ISERROR(VLOOKUP(Feuil1!$Q170,Feuil1!$R$1:$T$380,3,0)),"",(VLOOKUP(Feuil1!$Q170,Feuil1!$R$1:$T$380,3,0))) ->  | AN10: =IF(ISERROR(VLOOKUP(Feuil1!$Q171,Feuil1!$R$1:$T$380,2,0)),"",(VLOOKUP(Feuil1!$Q171,Feuil1!$R$1:$T$380,2,0))) ->  | AO10: =IF(ISERROR(VLOOKUP(Feuil1!$Q171,Feuil1!$R$1:$T$380,3,0)),"",(VLOOKUP(Feuil1!$Q171,Feuil1!$R$1:$T$380,3,0))) ->  | AP10: ='J38'!AY13 -> 0 | AR10: ='J38'!BA13 -> 0 | AT10: ='J38'!AZ13 -> 0
A11: ='J01'!AN14:AR14 -> 0 | B11: =IF(ISERROR(VLOOKUP(Feuil1!$Q172,Feuil1!$R$1:$T$380,2,0)),"",(VLOOKUP(Feuil1!$Q172,Feuil1!$R$1:$T$380,2,0))) ->  | C11: =IF(ISERROR(VLOOKUP(Feuil1!$Q172,Feuil1!$R$1:$T$380,3,0)),"",(VLOOKUP(Feuil1!$Q172,Feuil1!$R$1:$T$380,3,0))) ->  | D11: =IF(ISERROR(VLOOKUP(Feuil1!$Q173,Feuil1!$R$1:$T$380,2,0)),"",(VLOOKUP(Feuil1!$Q173,Feuil1!$R$1:$T$380,2,0))) ->  | E11: =IF(ISERROR(VLOOKUP(Feuil1!$Q173,Feuil1!$R$1:$T$380,3,0)),"",(VLOOKUP(Feuil1!$Q173,Feuil1!$R$1:$T$380,3,0))) ->  | F11: =IF(ISERROR(VLOOKUP(Feuil1!$Q174,Feuil1!$R$1:$T$380,2,0)),"",(VLOOKUP(Feuil1!$Q174,Feuil1!$R$1:$T$380,2,0))) ->  | G11: =IF(ISERROR(VLOOKUP(Feuil1!$Q174,Feuil1!$R$1:$T$380,3,0)),"",(VLOOKUP(Feuil1!$Q174,Feuil1!$R$1:$T$380,3,0))) ->  | H11: =IF(ISERROR(VLOOKUP(Feuil1!$Q175,Feuil1!$R$1:$T$380,2,0)),"",(VLOOKUP(Feuil1!$Q175,Feuil1!$R$1:$T$380,2,0))) ->  | I11: =IF(ISERROR(VLOOKUP(Feuil1!$Q175,Feuil1!$R$1:$T$380,3,0)),"",(VLOOKUP(Feuil1!$Q175,Feuil1!$R$1:$T$380,3,0))) ->  | J11: =IF(ISERROR(VLOOKUP(Feuil1!$Q176,Feuil1!$R$1:$T$380,2,0)),"",(VLOOKUP(Feuil1!$Q176,Feuil1!$R$1:$T$380,2,0))) ->  | K11: =IF(ISERROR(VLOOKUP(Feuil1!$Q176,Feuil1!$R$1:$T$380,3,0)),"",(VLOOKUP(Feuil1!$Q176,Feuil1!$R$1:$T$380,3,0))) ->  | L11: =IF(ISERROR(VLOOKUP(Feuil1!$Q177,Feuil1!$R$1:$T$380,2,0)),"",(VLOOKUP(Feuil1!$Q177,Feuil1!$R$1:$T$380,2,0))) ->  | M11: =IF(ISERROR(VLOOKUP(Feuil1!$Q177,Feuil1!$R$1:$T$380,3,0)),"",(VLOOKUP(Feuil1!$Q177,Feuil1!$R$1:$T$380,3,0))) ->  | N11: =IF(ISERROR(VLOOKUP(Feuil1!$Q178,Feuil1!$R$1:$T$380,2,0)),"",(VLOOKUP(Feuil1!$Q178,Feuil1!$R$1:$T$380,2,0))) ->  | O11: =IF(ISERROR(VLOOKUP(Feuil1!$Q178,Feuil1!$R$1:$T$380,3,0)),"",(VLOOKUP(Feuil1!$Q178,Feuil1!$R$1:$T$380,3,0))) ->  | P11: =IF(ISERROR(VLOOKUP(Feuil1!$Q179,Feuil1!$R$1:$T$380,2,0)),"",(VLOOKUP(Feuil1!$Q179,Feuil1!$R$1:$T$380,2,0))) ->  | Q11: =IF(ISERROR(VLOOKUP(Feuil1!$Q179,Feuil1!$R$1:$T$380,3,0)),"",(VLOOKUP(Feuil1!$Q179,Feuil1!$R$1:$T$380,3,0))) ->  | R11: =IF(ISERROR(VLOOKUP(Feuil1!$Q180,Feuil1!$R$1:$T$380,2,0)),"",(VLOOKUP(Feuil1!$Q180,Feuil1!$R$1:$T$380,2,0))) ->  | S11: =IF(ISERROR(VLOOKUP(Feuil1!$Q180,Feuil1!$R$1:$T$380,3,0)),"",(VLOOKUP(Feuil1!$Q180,Feuil1!$R$1:$T$380,3,0))) ->  | V11: =IF(ISERROR(VLOOKUP(Feuil1!$Q181,Feuil1!$R$1:$T$380,2,0)),"",(VLOOKUP(Feuil1!$Q181,Feuil1!$R$1:$T$380,2,0))) ->  | W11: =IF(ISERROR(VLOOKUP(Feuil1!$Q181,Feuil1!$R$1:$T$380,3,0)),"",(VLOOKUP(Feuil1!$Q181,Feuil1!$R$1:$T$380,3,0))) ->  | X11: =IF(ISERROR(VLOOKUP(Feuil1!$Q182,Feuil1!$R$1:$T$380,2,0)),"",(VLOOKUP(Feuil1!$Q182,Feuil1!$R$1:$T$380,2,0))) ->  | Y11: =IF(ISERROR(VLOOKUP(Feuil1!$Q182,Feuil1!$R$1:$T$380,3,0)),"",(VLOOKUP(Feuil1!$Q182,Feuil1!$R$1:$T$380,3,0))) ->  | Z11: =IF(ISERROR(VLOOKUP(Feuil1!$Q183,Feuil1!$R$1:$T$380,2,0)),"",(VLOOKUP(Feuil1!$Q183,Feuil1!$R$1:$T$380,2,0))) ->  | AA11: =IF(ISERROR(VLOOKUP(Feuil1!$Q183,Feuil1!$R$1:$T$380,3,0)),"",(VLOOKUP(Feuil1!$Q183,Feuil1!$R$1:$T$380,3,0))) ->  | AB11: =IF(ISERROR(VLOOKUP(Feuil1!$Q184,Feuil1!$R$1:$T$380,2,0)),"",(VLOOKUP(Feuil1!$Q184,Feuil1!$R$1:$T$380,2,0))) ->  | AC11: =IF(ISERROR(VLOOKUP(Feuil1!$Q184,Feuil1!$R$1:$T$380,3,0)),"",(VLOOKUP(Feuil1!$Q184,Feuil1!$R$1:$T$380,3,0))) ->  | AD11: =IF(ISERROR(VLOOKUP(Feuil1!$Q185,Feuil1!$R$1:$T$380,2,0)),"",(VLOOKUP(Feuil1!$Q185,Feuil1!$R$1:$T$380,2,0))) ->  | AE11: =IF(ISERROR(VLOOKUP(Feuil1!$Q185,Feuil1!$R$1:$T$380,3,0)),"",(VLOOKUP(Feuil1!$Q185,Feuil1!$R$1:$T$380,3,0))) ->  | AF11: =IF(ISERROR(VLOOKUP(Feuil1!$Q186,Feuil1!$R$1:$T$380,2,0)),"",(VLOOKUP(Feuil1!$Q186,Feuil1!$R$1:$T$380,2,0))) ->  | AG11: =IF(ISERROR(VLOOKUP(Feuil1!$Q186,Feuil1!$R$1:$T$380,3,0)),"",(VLOOKUP(Feuil1!$Q186,Feuil1!$R$1:$T$380,3,0))) ->  | AH11: =IF(ISERROR(VLOOKUP(Feuil1!$Q187,Feuil1!$R$1:$T$380,2,0)),"",(VLOOKUP(Feuil1!$Q187,Feuil1!$R$1:$T$380,2,0))) ->  | AI11: =IF(ISERROR(VLOOKUP(Feuil1!$Q187,Feuil1!$R$1:$T$380,3,0)),"",(VLOOKUP(Feuil1!$Q187,Feuil1!$R$1:$T$380,3,0))) ->  | AJ11: =IF(ISERROR(VLOOKUP(Feuil1!$Q188,Feuil1!$R$1:$T$380,2,0)),"",(VLOOKUP(Feuil1!$Q188,Feuil1!$R$1:$T$380,2,0))) ->  | AK11: =IF(ISERROR(VLOOKUP(Feuil1!$Q188,Feuil1!$R$1:$T$380,3,0)),"",(VLOOKUP(Feuil1!$Q188,Feuil1!$R$1:$T$380,3,0))) ->  | AL11: =IF(ISERROR(VLOOKUP(Feuil1!$Q189,Feuil1!$R$1:$T$380,2,0)),"",(VLOOKUP(Feuil1!$Q189,Feuil1!$R$1:$T$380,2,0))) ->  | AM11: =IF(ISERROR(VLOOKUP(Feuil1!$Q189,Feuil1!$R$1:$T$380,3,0)),"",(VLOOKUP(Feuil1!$Q189,Feuil1!$R$1:$T$380,3,0))) ->  | AN11: =IF(ISERROR(VLOOKUP(Feuil1!$Q190,Feuil1!$R$1:$T$380,2,0)),"",(VLOOKUP(Feuil1!$Q190,Feuil1!$R$1:$T$380,2,0))) ->  | AO11: =IF(ISERROR(VLOOKUP(Feuil1!$Q190,Feuil1!$R$1:$T$380,3,0)),"",(VLOOKUP(Feuil1!$Q190,Feuil1!$R$1:$T$380,3,0))) ->  | AP11: ='J38'!AY14 -> 0 | AR11: ='J38'!BA14 -> 0 | AT11: ='J38'!AZ14 -> 0
A12: ='J01'!AN15:AR15 -> 0 | B12: =IF(ISERROR(VLOOKUP(Feuil1!$Q191,Feuil1!$R$1:$T$380,2,0)),"",(VLOOKUP(Feuil1!$Q191,Feuil1!$R$1:$T$380,2,0))) ->  | C12: =IF(ISERROR(VLOOKUP(Feuil1!$Q191,Feuil1!$R$1:$T$380,3,0)),"",(VLOOKUP(Feuil1!$Q191,Feuil1!$R$1:$T$380,3,0))) ->  | D12: =IF(ISERROR(VLOOKUP(Feuil1!$Q192,Feuil1!$R$1:$T$380,2,0)),"",(VLOOKUP(Feuil1!$Q192,Feuil1!$R$1:$T$380,2,0))) ->  | E12: =IF(ISERROR(VLOOKUP(Feuil1!$Q192,Feuil1!$R$1:$T$380,3,0)),"",(VLOOKUP(Feuil1!$Q192,Feuil1!$R$1:$T$380,3,0))) ->  | F12: =IF(ISERROR(VLOOKUP(Feuil1!$Q193,Feuil1!$R$1:$T$380,2,0)),"",(VLOOKUP(Feuil1!$Q193,Feuil1!$R$1:$T$380,2,0))) ->  | G12: =IF(ISERROR(VLOOKUP(Feuil1!$Q193,Feuil1!$R$1:$T$380,3,0)),"",(VLOOKUP(Feuil1!$Q193,Feuil1!$R$1:$T$380,3,0))) ->  | H12: =IF(ISERROR(VLOOKUP(Feuil1!$Q194,Feuil1!$R$1:$T$380,2,0)),"",(VLOOKUP(Feuil1!$Q194,Feuil1!$R$1:$T$380,2,0))) ->  | I12: =IF(ISERROR(VLOOKUP(Feuil1!$Q194,Feuil1!$R$1:$T$380,3,0)),"",(VLOOKUP(Feuil1!$Q194,Feuil1!$R$1:$T$380,3,0))) ->  | J12: =IF(ISERROR(VLOOKUP(Feuil1!$Q195,Feuil1!$R$1:$T$380,2,0)),"",(VLOOKUP(Feuil1!$Q195,Feuil1!$R$1:$T$380,2,0))) ->  | K12: =IF(ISERROR(VLOOKUP(Feuil1!$Q195,Feuil1!$R$1:$T$380,3,0)),"",(VLOOKUP(Feuil1!$Q195,Feuil1!$R$1:$T$380,3,0))) ->  | L12: =IF(ISERROR(VLOOKUP(Feuil1!$Q196,Feuil1!$R$1:$T$380,2,0)),"",(VLOOKUP(Feuil1!$Q196,Feuil1!$R$1:$T$380,2,0))) ->  | M12: =IF(ISERROR(VLOOKUP(Feuil1!$Q196,Feuil1!$R$1:$T$380,3,0)),"",(VLOOKUP(Feuil1!$Q196,Feuil1!$R$1:$T$380,3,0))) ->  | N12: =IF(ISERROR(VLOOKUP(Feuil1!$Q197,Feuil1!$R$1:$T$380,2,0)),"",(VLOOKUP(Feuil1!$Q197,Feuil1!$R$1:$T$380,2,0))) ->  | O12: =IF(ISERROR(VLOOKUP(Feuil1!$Q197,Feuil1!$R$1:$T$380,3,0)),"",(VLOOKUP(Feuil1!$Q197,Feuil1!$R$1:$T$380,3,0))) ->  | P12: =IF(ISERROR(VLOOKUP(Feuil1!$Q198,Feuil1!$R$1:$T$380,2,0)),"",(VLOOKUP(Feuil1!$Q198,Feuil1!$R$1:$T$380,2,0))) ->  | Q12: =IF(ISERROR(VLOOKUP(Feuil1!$Q198,Feuil1!$R$1:$T$380,3,0)),"",(VLOOKUP(Feuil1!$Q198,Feuil1!$R$1:$T$380,3,0))) ->  | R12: =IF(ISERROR(VLOOKUP(Feuil1!$Q199,Feuil1!$R$1:$T$380,2,0)),"",(VLOOKUP(Feuil1!$Q199,Feuil1!$R$1:$T$380,2,0))) ->  | S12: =IF(ISERROR(VLOOKUP(Feuil1!$Q199,Feuil1!$R$1:$T$380,3,0)),"",(VLOOKUP(Feuil1!$Q199,Feuil1!$R$1:$T$380,3,0))) ->  | T12: =IF(ISERROR(VLOOKUP(Feuil1!$Q200,Feuil1!$R$1:$T$380,2,0)),"",(VLOOKUP(Feuil1!$Q200,Feuil1!$R$1:$T$380,2,0))) ->  | U12: =IF(ISERROR(VLOOKUP(Feuil1!$Q200,Feuil1!$R$1:$T$380,3,0)),"",(VLOOKUP(Feuil1!$Q200,Feuil1!$R$1:$T$380,3,0))) ->  | X12: =IF(ISERROR(VLOOKUP(Feuil1!$Q201,Feuil1!$R$1:$T$380,2,0)),"",(VLOOKUP(Feuil1!$Q201,Feuil1!$R$1:$T$380,2,0))) ->  | Y12: =IF(ISERROR(VLOOKUP(Feuil1!$Q201,Feuil1!$R$1:$T$380,3,0)),"",(VLOOKUP(Feuil1!$Q201,Feuil1!$R$1:$T$380,3,0))) ->  | Z12: =IF(ISERROR(VLOOKUP(Feuil1!$Q202,Feuil1!$R$1:$T$380,2,0)),"",(VLOOKUP(Feuil1!$Q202,Feuil1!$R$1:$T$380,2,0))) ->  | AA12: =IF(ISERROR(VLOOKUP(Feuil1!$Q202,Feuil1!$R$1:$T$380,3,0)),"",(VLOOKUP(Feuil1!$Q202,Feuil1!$R$1:$T$380,3,0))) ->  | AB12: =IF(ISERROR(VLOOKUP(Feuil1!$Q203,Feuil1!$R$1:$T$380,2,0)),"",(VLOOKUP(Feuil1!$Q203,Feuil1!$R$1:$T$380,2,0))) ->  | AC12: =IF(ISERROR(VLOOKUP(Feuil1!$Q203,Feuil1!$R$1:$T$380,3,0)),"",(VLOOKUP(Feuil1!$Q203,Feuil1!$R$1:$T$380,3,0))) ->  | AD12: =IF(ISERROR(VLOOKUP(Feuil1!$Q204,Feuil1!$R$1:$T$380,2,0)),"",(VLOOKUP(Feuil1!$Q204,Feuil1!$R$1:$T$380,2,0))) ->  | AE12: =IF(ISERROR(VLOOKUP(Feuil1!$Q204,Feuil1!$R$1:$T$380,3,0)),"",(VLOOKUP(Feuil1!$Q204,Feuil1!$R$1:$T$380,3,0))) ->  | AF12: =IF(ISERROR(VLOOKUP(Feuil1!$Q205,Feuil1!$R$1:$T$380,2,0)),"",(VLOOKUP(Feuil1!$Q205,Feuil1!$R$1:$T$380,2,0))) ->  | AG12: =IF(ISERROR(VLOOKUP(Feuil1!$Q205,Feuil1!$R$1:$T$380,3,0)),"",(VLOOKUP(Feuil1!$Q205,Feuil1!$R$1:$T$380,3,0))) ->  | AH12: =IF(ISERROR(VLOOKUP(Feuil1!$Q206,Feuil1!$R$1:$T$380,2,0)),"",(VLOOKUP(Feuil1!$Q206,Feuil1!$R$1:$T$380,2,0))) ->  | AI12: =IF(ISERROR(VLOOKUP(Feuil1!$Q206,Feuil1!$R$1:$T$380,3,0)),"",(VLOOKUP(Feuil1!$Q206,Feuil1!$R$1:$T$380,3,0))) ->  | AJ12: =IF(ISERROR(VLOOKUP(Feuil1!$Q207,Feuil1!$R$1:$T$380,2,0)),"",(VLOOKUP(Feuil1!$Q207,Feuil1!$R$1:$T$380,2,0))) ->  | AK12: =IF(ISERROR(VLOOKUP(Feuil1!$Q207,Feuil1!$R$1:$T$380,3,0)),"",(VLOOKUP(Feuil1!$Q207,Feuil1!$R$1:$T$380,3,0))) ->  | AL12: =IF(ISERROR(VLOOKUP(Feuil1!$Q208,Feuil1!$R$1:$T$380,2,0)),"",(VLOOKUP(Feuil1!$Q208,Feuil1!$R$1:$T$380,2,0))) ->  | AM12: =IF(ISERROR(VLOOKUP(Feuil1!$Q208,Feuil1!$R$1:$T$380,3,0)),"",(VLOOKUP(Feuil1!$Q208,Feuil1!$R$1:$T$380,3,0))) ->  | AN12: =IF(ISERROR(VLOOKUP(Feuil1!$Q209,Feuil1!$R$1:$T$380,2,0)),"",(VLOOKUP(Feuil1!$Q209,Feuil1!$R$1:$T$380,2,0))) ->  | AO12: =IF(ISERROR(VLOOKUP(Feuil1!$Q209,Feuil1!$R$1:$T$380,3,0)),"",(VLOOKUP(Feuil1!$Q209,Feuil1!$R$1:$T$380,3,0))) ->  | AP12: ='J38'!AY15 -> 0 | AR12: ='J38'!BA15 -> 0 | AT12: ='J38'!AZ15 -> 0
A13: ='J01'!AN16:AR16 -> 0 | B13: =IF(ISERROR(VLOOKUP(Feuil1!$Q210,Feuil1!$R$1:$T$380,2,0)),"",(VLOOKUP(Feuil1!$Q210,Feuil1!$R$1:$T$380,2,0))) ->  | C13: =IF(ISERROR(VLOOKUP(Feuil1!$Q210,Feuil1!$R$1:$T$380,3,0)),"",(VLOOKUP(Feuil1!$Q210,Feuil1!$R$1:$T$380,3,0))) ->  | D13: =IF(ISERROR(VLOOKUP(Feuil1!$Q211,Feuil1!$R$1:$T$380,2,0)),"",(VLOOKUP(Feuil1!$Q211,Feuil1!$R$1:$T$380,2,0))) ->  | E13: =IF(ISERROR(VLOOKUP(Feuil1!$Q211,Feuil1!$R$1:$T$380,3,0)),"",(VLOOKUP(Feuil1!$Q211,Feuil1!$R$1:$T$380,3,0))) ->  | F13: =IF(ISERROR(VLOOKUP(Feuil1!$Q212,Feuil1!$R$1:$T$380,2,0)),"",(VLOOKUP(Feuil1!$Q212,Feuil1!$R$1:$T$380,2,0))) ->  | G13: =IF(ISERROR(VLOOKUP(Feuil1!$Q212,Feuil1!$R$1:$T$380,3,0)),"",(VLOOKUP(Feuil1!$Q212,Feuil1!$R$1:$T$380,3,0))) ->  | H13: =IF(ISERROR(VLOOKUP(Feuil1!$Q213,Feuil1!$R$1:$T$380,2,0)),"",(VLOOKUP(Feuil1!$Q213,Feuil1!$R$1:$T$380,2,0))) ->  | I13: =IF(ISERROR(VLOOKUP(Feuil1!$Q213,Feuil1!$R$1:$T$380,3,0)),"",(VLOOKUP(Feuil1!$Q213,Feuil1!$R$1:$T$380,3,0))) ->  | J13: =IF(ISERROR(VLOOKUP(Feuil1!$Q214,Feuil1!$R$1:$T$380,2,0)),"",(VLOOKUP(Feuil1!$Q214,Feuil1!$R$1:$T$380,2,0))) ->  | K13: =IF(ISERROR(VLOOKUP(Feuil1!$Q214,Feuil1!$R$1:$T$380,3,0)),"",(VLOOKUP(Feuil1!$Q214,Feuil1!$R$1:$T$380,3,0))) ->  | L13: =IF(ISERROR(VLOOKUP(Feuil1!$Q215,Feuil1!$R$1:$T$380,2,0)),"",(VLOOKUP(Feuil1!$Q215,Feuil1!$R$1:$T$380,2,0))) ->  | M13: =IF(ISERROR(VLOOKUP(Feuil1!$Q215,Feuil1!$R$1:$T$380,3,0)),"",(VLOOKUP(Feuil1!$Q215,Feuil1!$R$1:$T$380,3,0))) ->  | N13: =IF(ISERROR(VLOOKUP(Feuil1!$Q216,Feuil1!$R$1:$T$380,2,0)),"",(VLOOKUP(Feuil1!$Q216,Feuil1!$R$1:$T$380,2,0))) ->  | O13: =IF(ISERROR(VLOOKUP(Feuil1!$Q216,Feuil1!$R$1:$T$380,3,0)),"",(VLOOKUP(Feuil1!$Q216,Feuil1!$R$1:$T$380,3,0))) ->  | P13: =IF(ISERROR(VLOOKUP(Feuil1!$Q217,Feuil1!$R$1:$T$380,2,0)),"",(VLOOKUP(Feuil1!$Q217,Feuil1!$R$1:$T$380,2,0))) ->  | Q13: =IF(ISERROR(VLOOKUP(Feuil1!$Q217,Feuil1!$R$1:$T$380,3,0)),"",(VLOOKUP(Feuil1!$Q217,Feuil1!$R$1:$T$380,3,0))) ->  | R13: =IF(ISERROR(VLOOKUP(Feuil1!$Q218,Feuil1!$R$1:$T$380,2,0)),"",(VLOOKUP(Feuil1!$Q218,Feuil1!$R$1:$T$380,2,0))) ->  | S13: =IF(ISERROR(VLOOKUP(Feuil1!$Q218,Feuil1!$R$1:$T$380,3,0)),"",(VLOOKUP(Feuil1!$Q218,Feuil1!$R$1:$T$380,3,0))) ->  | T13: =IF(ISERROR(VLOOKUP(Feuil1!$Q219,Feuil1!$R$1:$T$380,2,0)),"",(VLOOKUP(Feuil1!$Q219,Feuil1!$R$1:$T$380,2,0))) ->  | U13: =IF(ISERROR(VLOOKUP(Feuil1!$Q219,Feuil1!$R$1:$T$380,3,0)),"",(VLOOKUP(Feuil1!$Q219,Feuil1!$R$1:$T$380,3,0))) ->  | V13: =IF(ISERROR(VLOOKUP(Feuil1!$Q220,Feuil1!$R$1:$T$380,2,0)),"",(VLOOKUP(Feuil1!$Q220,Feuil1!$R$1:$T$380,2,0))) ->  | W13: =IF(ISERROR(VLOOKUP(Feuil1!$Q220,Feuil1!$R$1:$T$380,3,0)),"",(VLOOKUP(Feuil1!$Q220,Feuil1!$R$1:$T$380,3,0))) ->  | Z13: =IF(ISERROR(VLOOKUP(Feuil1!$Q221,Feuil1!$R$1:$T$380,2,0)),"",(VLOOKUP(Feuil1!$Q221,Feuil1!$R$1:$T$380,2,0))) ->  | AA13: =IF(ISERROR(VLOOKUP(Feuil1!$Q221,Feuil1!$R$1:$T$380,3,0)),"",(VLOOKUP(Feuil1!$Q221,Feuil1!$R$1:$T$380,3,0))) ->  | AB13: =IF(ISERROR(VLOOKUP(Feuil1!$Q222,Feuil1!$R$1:$T$380,2,0)),"",(VLOOKUP(Feuil1!$Q222,Feuil1!$R$1:$T$380,2,0))) ->  | AC13: =IF(ISERROR(VLOOKUP(Feuil1!$Q222,Feuil1!$R$1:$T$380,3,0)),"",(VLOOKUP(Feuil1!$Q222,Feuil1!$R$1:$T$380,3,0))) ->  | AD13: =IF(ISERROR(VLOOKUP(Feuil1!$Q223,Feuil1!$R$1:$T$380,2,0)),"",(VLOOKUP(Feuil1!$Q223,Feuil1!$R$1:$T$380,2,0))) ->  | AE13: =IF(ISERROR(VLOOKUP(Feuil1!$Q223,Feuil1!$R$1:$T$380,3,0)),"",(VLOOKUP(Feuil1!$Q223,Feuil1!$R$1:$T$380,3,0))) ->  | AF13: =IF(ISERROR(VLOOKUP(Feuil1!$Q224,Feuil1!$R$1:$T$380,2,0)),"",(VLOOKUP(Feuil1!$Q224,Feuil1!$R$1:$T$380,2,0))) ->  | AG13: =IF(ISERROR(VLOOKUP(Feuil1!$Q224,Feuil1!$R$1:$T$380,3,0)),"",(VLOOKUP(Feuil1!$Q224,Feuil1!$R$1:$T$380,3,0))) ->  | AH13: =IF(ISERROR(VLOOKUP(Feuil1!$Q225,Feuil1!$R$1:$T$380,2,0)),"",(VLOOKUP(Feuil1!$Q225,Feuil1!$R$1:$T$380,2,0))) ->  | AI13: =IF(ISERROR(VLOOKUP(Feuil1!$Q225,Feuil1!$R$1:$T$380,3,0)),"",(VLOOKUP(Feuil1!$Q225,Feuil1!$R$1:$T$380,3,0))) ->  | AJ13: =IF(ISERROR(VLOOKUP(Feuil1!$Q226,Feuil1!$R$1:$T$380,2,0)),"",(VLOOKUP(Feuil1!$Q226,Feuil1!$R$1:$T$380,2,0))) ->  | AK13: =IF(ISERROR(VLOOKUP(Feuil1!$Q226,Feuil1!$R$1:$T$380,3,0)),"",(VLOOKUP(Feuil1!$Q226,Feuil1!$R$1:$T$380,3,0))) ->  | AL13: =IF(ISERROR(VLOOKUP(Feuil1!$Q227,Feuil1!$R$1:$T$380,2,0)),"",(VLOOKUP(Feuil1!$Q227,Feuil1!$R$1:$T$380,2,0))) ->  | AM13: =IF(ISERROR(VLOOKUP(Feuil1!$Q227,Feuil1!$R$1:$T$380,3,0)),"",(VLOOKUP(Feuil1!$Q227,Feuil1!$R$1:$T$380,3,0))) ->  | AN13: =IF(ISERROR(VLOOKUP(Feuil1!$Q228,Feuil1!$R$1:$T$380,2,0)),"",(VLOOKUP(Feuil1!$Q228,Feuil1!$R$1:$T$380,2,0))) ->  | AO13: =IF(ISERROR(VLOOKUP(Feuil1!$Q228,Feuil1!$R$1:$T$380,3,0)),"",(VLOOKUP(Feuil1!$Q228,Feuil1!$R$1:$T$380,3,0))) ->  | AP13: ='J38'!AY16 -> 0 | AR13: ='J38'!BA16 -> 0 | AT13: ='J38'!AZ16 -> 0
A14: ='J01'!AN17:AR17 -> 0 | B14: =IF(ISERROR(VLOOKUP(Feuil1!$Q229,Feuil1!$R$1:$T$380,2,0)),"",(VLOOKUP(Feuil1!$Q229,Feuil1!$R$1:$T$380,2,0))) ->  | C14: =IF(ISERROR(VLOOKUP(Feuil1!$Q229,Feuil1!$R$1:$T$380,3,0)),"",(VLOOKUP(Feuil1!$Q229,Feuil1!$R$1:$T$380,3,0))) ->  | D14: =IF(ISERROR(VLOOKUP(Feuil1!$Q230,Feuil1!$R$1:$T$380,2,0)),"",(VLOOKUP(Feuil1!$Q230,Feuil1!$R$1:$T$380,2,0))) ->  | E14: =IF(ISERROR(VLOOKUP(Feuil1!$Q230,Feuil1!$R$1:$T$380,3,0)),"",(VLOOKUP(Feuil1!$Q230,Feuil1!$R$1:$T$380,3,0))) ->  | F14: =IF(ISERROR(VLOOKUP(Feuil1!$Q231,Feuil1!$R$1:$T$380,2,0)),"",(VLOOKUP(Feuil1!$Q231,Feuil1!$R$1:$T$380,2,0))) ->  | G14: =IF(ISERROR(VLOOKUP(Feuil1!$Q231,Feuil1!$R$1:$T$380,3,0)),"",(VLOOKUP(Feuil1!$Q231,Feuil1!$R$1:$T$380,3,0))) ->  | H14: =IF(ISERROR(VLOOKUP(Feuil1!$Q232,Feuil1!$R$1:$T$380,2,0)),"",(VLOOKUP(Feuil1!$Q232,Feuil1!$R$1:$T$380,2,0))) ->  | I14: =IF(ISERROR(VLOOKUP(Feuil1!$Q232,Feuil1!$R$1:$T$380,3,0)),"",(VLOOKUP(Feuil1!$Q232,Feuil1!$R$1:$T$380,3,0))) ->  | J14: =IF(ISERROR(VLOOKUP(Feuil1!$Q233,Feuil1!$R$1:$T$380,2,0)),"",(VLOOKUP(Feuil1!$Q233,Feuil1!$R$1:$T$380,2,0))) ->  | K14: =IF(ISERROR(VLOOKUP(Feuil1!$Q233,Feuil1!$R$1:$T$380,3,0)),"",(VLOOKUP(Feuil1!$Q233,Feuil1!$R$1:$T$380,3,0))) ->  | L14: =IF(ISERROR(VLOOKUP(Feuil1!$Q234,Feuil1!$R$1:$T$380,2,0)),"",(VLOOKUP(Feuil1!$Q234,Feuil1!$R$1:$T$380,2,0))) ->  | M14: =IF(ISERROR(VLOOKUP(Feuil1!$Q234,Feuil1!$R$1:$T$380,3,0)),"",(VLOOKUP(Feuil1!$Q234,Feuil1!$R$1:$T$380,3,0))) ->  | N14: =IF(ISERROR(VLOOKUP(Feuil1!$Q235,Feuil1!$R$1:$T$380,2,0)),"",(VLOOKUP(Feuil1!$Q235,Feuil1!$R$1:$T$380,2,0))) ->  | O14: =IF(ISERROR(VLOOKUP(Feuil1!$Q235,Feuil1!$R$1:$T$380,3,0)),"",(VLOOKUP(Feuil1!$Q235,Feuil1!$R$1:$T$380,3,0))) ->  | P14: =IF(ISERROR(VLOOKUP(Feuil1!$Q236,Feuil1!$R$1:$T$380,2,0)),"",(VLOOKUP(Feuil1!$Q236,Feuil1!$R$1:$T$380,2,0))) ->  | Q14: =IF(ISERROR(VLOOKUP(Feuil1!$Q236,Feuil1!$R$1:$T$380,3,0)),"",(VLOOKUP(Feuil1!$Q236,Feuil1!$R$1:$T$380,3,0))) ->  | R14: =IF(ISERROR(VLOOKUP(Feuil1!$Q237,Feuil1!$R$1:$T$380,2,0)),"",(VLOOKUP(Feuil1!$Q237,Feuil1!$R$1:$T$380,2,0))) ->  | S14: =IF(ISERROR(VLOOKUP(Feuil1!$Q237,Feuil1!$R$1:$T$380,3,0)),"",(VLOOKUP(Feuil1!$Q237,Feuil1!$R$1:$T$380,3,0))) ->  | T14: =IF(ISERROR(VLOOKUP(Feuil1!$Q238,Feuil1!$R$1:$T$380,2,0)),"",(VLOOKUP(Feuil1!$Q238,Feuil1!$R$1:$T$380,2,0))) ->  | U14: =IF(ISERROR(VLOOKUP(Feuil1!$Q238,Feuil1!$R$1:$T$380,3,0)),"",(VLOOKUP(Feuil1!$Q238,Feuil1!$R$1:$T$380,3,0))) ->  | V14: =IF(ISERROR(VLOOKUP(Feuil1!$Q239,Feuil1!$R$1:$T$380,2,0)),"",(VLOOKUP(Feuil1!$Q239,Feuil1!$R$1:$T$380,2,0))) ->  | W14: =IF(ISERROR(VLOOKUP(Feuil1!$Q239,Feuil1!$R$1:$T$380,3,0)),"",(VLOOKUP(Feuil1!$Q239,Feuil1!$R$1:$T$380,3,0))) ->  | X14: =IF(ISERROR(VLOOKUP(Feuil1!$Q240,Feuil1!$R$1:$T$380,2,0)),"",(VLOOKUP(Feuil1!$Q240,Feuil1!$R$1:$T$380,2,0))) ->  | Y14: =IF(ISERROR(VLOOKUP(Feuil1!$Q240,Feuil1!$R$1:$T$380,3,0)),"",(VLOOKUP(Feuil1!$Q240,Feuil1!$R$1:$T$380,3,0))) ->  | AB14: =IF(ISERROR(VLOOKUP(Feuil1!$Q241,Feuil1!$R$1:$T$380,2,0)),"",(VLOOKUP(Feuil1!$Q241,Feuil1!$R$1:$T$380,2,0))) ->  | AC14: =IF(ISERROR(VLOOKUP(Feuil1!$Q241,Feuil1!$R$1:$T$380,3,0)),"",(VLOOKUP(Feuil1!$Q241,Feuil1!$R$1:$T$380,3,0))) ->  | AD14: =IF(ISERROR(VLOOKUP(Feuil1!$Q242,Feuil1!$R$1:$T$380,2,0)),"",(VLOOKUP(Feuil1!$Q242,Feuil1!$R$1:$T$380,2,0))) ->  | AE14: =IF(ISERROR(VLOOKUP(Feuil1!$Q242,Feuil1!$R$1:$T$380,3,0)),"",(VLOOKUP(Feuil1!$Q242,Feuil1!$R$1:$T$380,3,0))) ->  | AF14: =IF(ISERROR(VLOOKUP(Feuil1!$Q243,Feuil1!$R$1:$T$380,2,0)),"",(VLOOKUP(Feuil1!$Q243,Feuil1!$R$1:$T$380,2,0))) ->  | AG14: =IF(ISERROR(VLOOKUP(Feuil1!$Q243,Feuil1!$R$1:$T$380,3,0)),"",(VLOOKUP(Feuil1!$Q243,Feuil1!$R$1:$T$380,3,0))) ->  | AH14: =IF(ISERROR(VLOOKUP(Feuil1!$Q244,Feuil1!$R$1:$T$380,2,0)),"",(VLOOKUP(Feuil1!$Q244,Feuil1!$R$1:$T$380,2,0))) ->  | AI14: =IF(ISERROR(VLOOKUP(Feuil1!$Q244,Feuil1!$R$1:$T$380,3,0)),"",(VLOOKUP(Feuil1!$Q244,Feuil1!$R$1:$T$380,3,0))) ->  | AJ14: =IF(ISERROR(VLOOKUP(Feuil1!$Q245,Feuil1!$R$1:$T$380,2,0)),"",(VLOOKUP(Feuil1!$Q245,Feuil1!$R$1:$T$380,2,0))) ->  | AK14: =IF(ISERROR(VLOOKUP(Feuil1!$Q245,Feuil1!$R$1:$T$380,3,0)),"",(VLOOKUP(Feuil1!$Q245,Feuil1!$R$1:$T$380,3,0))) ->  | AL14: =IF(ISERROR(VLOOKUP(Feuil1!$Q246,Feuil1!$R$1:$T$380,2,0)),"",(VLOOKUP(Feuil1!$Q246,Feuil1!$R$1:$T$380,2,0))) ->  | AM14: =IF(ISERROR(VLOOKUP(Feuil1!$Q246,Feuil1!$R$1:$T$380,3,0)),"",(VLOOKUP(Feuil1!$Q246,Feuil1!$R$1:$T$380,3,0))) ->  | AN14: =IF(ISERROR(VLOOKUP(Feuil1!$Q247,Feuil1!$R$1:$T$380,2,0)),"",(VLOOKUP(Feuil1!$Q247,Feuil1!$R$1:$T$380,2,0))) ->  | AO14: =IF(ISERROR(VLOOKUP(Feuil1!$Q247,Feuil1!$R$1:$T$380,3,0)),"",(VLOOKUP(Feuil1!$Q247,Feuil1!$R$1:$T$380,3,0))) ->  | AP14: ='J38'!AY17 -> 0 | AR14: ='J38'!BA17 -> 0 | AT14: ='J38'!AZ17 -> 0
A15: ='J01'!AN18:AR18 -> 0 | B15: =IF(ISERROR(VLOOKUP(Feuil1!$Q248,Feuil1!$R$1:$T$380,2,0)),"",(VLOOKUP(Feuil1!$Q248,Feuil1!$R$1:$T$380,2,0))) ->  | C15: =IF(ISERROR(VLOOKUP(Feuil1!$Q248,Feuil1!$R$1:$T$380,3,0)),"",(VLOOKUP(Feuil1!$Q248,Feuil1!$R$1:$T$380,3,0))) ->  | D15: =IF(ISERROR(VLOOKUP(Feuil1!$Q249,Feuil1!$R$1:$T$380,2,0)),"",(VLOOKUP(Feuil1!$Q249,Feuil1!$R$1:$T$380,2,0))) ->  | E15: =IF(ISERROR(VLOOKUP(Feuil1!$Q249,Feuil1!$R$1:$T$380,3,0)),"",(VLOOKUP(Feuil1!$Q249,Feuil1!$R$1:$T$380,3,0))) ->  | F15: =IF(ISERROR(VLOOKUP(Feuil1!$Q250,Feuil1!$R$1:$T$380,2,0)),"",(VLOOKUP(Feuil1!$Q250,Feuil1!$R$1:$T$380,2,0))) ->  | G15: =IF(ISERROR(VLOOKUP(Feuil1!$Q250,Feuil1!$R$1:$T$380,3,0)),"",(VLOOKUP(Feuil1!$Q250,Feuil1!$R$1:$T$380,3,0))) ->  | H15: =IF(ISERROR(VLOOKUP(Feuil1!$Q251,Feuil1!$R$1:$T$380,2,0)),"",(VLOOKUP(Feuil1!$Q251,Feuil1!$R$1:$T$380,2,0))) ->  | I15: =IF(ISERROR(VLOOKUP(Feuil1!$Q251,Feuil1!$R$1:$T$380,3,0)),"",(VLOOKUP(Feuil1!$Q251,Feuil1!$R$1:$T$380,3,0))) ->  | J15: =IF(ISERROR(VLOOKUP(Feuil1!$Q252,Feuil1!$R$1:$T$380,2,0)),"",(VLOOKUP(Feuil1!$Q252,Feuil1!$R$1:$T$380,2,0))) ->  | K15: =IF(ISERROR(VLOOKUP(Feuil1!$Q252,Feuil1!$R$1:$T$380,3,0)),"",(VLOOKUP(Feuil1!$Q252,Feuil1!$R$1:$T$380,3,0))) ->  | L15: =IF(ISERROR(VLOOKUP(Feuil1!$Q253,Feuil1!$R$1:$T$380,2,0)),"",(VLOOKUP(Feuil1!$Q253,Feuil1!$R$1:$T$380,2,0))) ->  | M15: =IF(ISERROR(VLOOKUP(Feuil1!$Q253,Feuil1!$R$1:$T$380,3,0)),"",(VLOOKUP(Feuil1!$Q253,Feuil1!$R$1:$T$380,3,0))) ->  | N15: =IF(ISERROR(VLOOKUP(Feuil1!$Q254,Feuil1!$R$1:$T$380,2,0)),"",(VLOOKUP(Feuil1!$Q254,Feuil1!$R$1:$T$380,2,0))) ->  | O15: =IF(ISERROR(VLOOKUP(Feuil1!$Q254,Feuil1!$R$1:$T$380,3,0)),"",(VLOOKUP(Feuil1!$Q254,Feuil1!$R$1:$T$380,3,0))) ->  | P15: =IF(ISERROR(VLOOKUP(Feuil1!$Q255,Feuil1!$R$1:$T$380,2,0)),"",(VLOOKUP(Feuil1!$Q255,Feuil1!$R$1:$T$380,2,0))) ->  | Q15: =IF(ISERROR(VLOOKUP(Feuil1!$Q255,Feuil1!$R$1:$T$380,3,0)),"",(VLOOKUP(Feuil1!$Q255,Feuil1!$R$1:$T$380,3,0))) ->  | R15: =IF(ISERROR(VLOOKUP(Feuil1!$Q256,Feuil1!$R$1:$T$380,2,0)),"",(VLOOKUP(Feuil1!$Q256,Feuil1!$R$1:$T$380,2,0))) ->  | S15: =IF(ISERROR(VLOOKUP(Feuil1!$Q256,Feuil1!$R$1:$T$380,3,0)),"",(VLOOKUP(Feuil1!$Q256,Feuil1!$R$1:$T$380,3,0))) ->  | T15: =IF(ISERROR(VLOOKUP(Feuil1!$Q257,Feuil1!$R$1:$T$380,2,0)),"",(VLOOKUP(Feuil1!$Q257,Feuil1!$R$1:$T$380,2,0))) ->  | U15: =IF(ISERROR(VLOOKUP(Feuil1!$Q257,Feuil1!$R$1:$T$380,3,0)),"",(VLOOKUP(Feuil1!$Q257,Feuil1!$R$1:$T$380,3,0))) ->  | V15: =IF(ISERROR(VLOOKUP(Feuil1!$Q258,Feuil1!$R$1:$T$380,2,0)),"",(VLOOKUP(Feuil1!$Q258,Feuil1!$R$1:$T$380,2,0))) ->  | W15: =IF(ISERROR(VLOOKUP(Feuil1!$Q258,Feuil1!$R$1:$T$380,3,0)),"",(VLOOKUP(Feuil1!$Q258,Feuil1!$R$1:$T$380,3,0))) ->  | X15: =IF(ISERROR(VLOOKUP(Feuil1!$Q259,Feuil1!$R$1:$T$380,2,0)),"",(VLOOKUP(Feuil1!$Q259,Feuil1!$R$1:$T$380,2,0))) ->  | Y15: =IF(ISERROR(VLOOKUP(Feuil1!$Q259,Feuil1!$R$1:$T$380,3,0)),"",(VLOOKUP(Feuil1!$Q259,Feuil1!$R$1:$T$380,3,0))) ->  | Z15: =IF(ISERROR(VLOOKUP(Feuil1!$Q260,Feuil1!$R$1:$T$380,2,0)),"",(VLOOKUP(Feuil1!$Q260,Feuil1!$R$1:$T$380,2,0))) ->  | AA15: =IF(ISERROR(VLOOKUP(Feuil1!$Q260,Feuil1!$R$1:$T$380,3,0)),"",(VLOOKUP(Feuil1!$Q260,Feuil1!$R$1:$T$380,3,0))) ->  | AD15: =IF(ISERROR(VLOOKUP(Feuil1!$Q261,Feuil1!$R$1:$T$380,2,0)),"",(VLOOKUP(Feuil1!$Q261,Feuil1!$R$1:$T$380,2,0))) ->  | AE15: =IF(ISERROR(VLOOKUP(Feuil1!$Q261,Feuil1!$R$1:$T$380,3,0)),"",(VLOOKUP(Feuil1!$Q261,Feuil1!$R$1:$T$380,3,0))) ->  | AF15: =IF(ISERROR(VLOOKUP(Feuil1!$Q262,Feuil1!$R$1:$T$380,2,0)),"",(VLOOKUP(Feuil1!$Q262,Feuil1!$R$1:$T$380,2,0))) ->  | AG15: =IF(ISERROR(VLOOKUP(Feuil1!$Q262,Feuil1!$R$1:$T$380,3,0)),"",(VLOOKUP(Feuil1!$Q262,Feuil1!$R$1:$T$380,3,0))) ->  | AH15: =IF(ISERROR(VLOOKUP(Feuil1!$Q263,Feuil1!$R$1:$T$380,2,0)),"",(VLOOKUP(Feuil1!$Q263,Feuil1!$R$1:$T$380,2,0))) ->  | AI15: =IF(ISERROR(VLOOKUP(Feuil1!$Q263,Feuil1!$R$1:$T$380,3,0)),"",(VLOOKUP(Feuil1!$Q263,Feuil1!$R$1:$T$380,3,0))) ->  | AJ15: =IF(ISERROR(VLOOKUP(Feuil1!$Q264,Feuil1!$R$1:$T$380,2,0)),"",(VLOOKUP(Feuil1!$Q264,Feuil1!$R$1:$T$380,2,0))) ->  | AK15: =IF(ISERROR(VLOOKUP(Feuil1!$Q264,Feuil1!$R$1:$T$380,3,0)),"",(VLOOKUP(Feuil1!$Q264,Feuil1!$R$1:$T$380,3,0))) ->  | AL15: =IF(ISERROR(VLOOKUP(Feuil1!$Q265,Feuil1!$R$1:$T$380,2,0)),"",(VLOOKUP(Feuil1!$Q265,Feuil1!$R$1:$T$380,2,0))) ->  | AM15: =IF(ISERROR(VLOOKUP(Feuil1!$Q265,Feuil1!$R$1:$T$380,3,0)),"",(VLOOKUP(Feuil1!$Q265,Feuil1!$R$1:$T$380,3,0))) ->  | AN15: =IF(ISERROR(VLOOKUP(Feuil1!$Q266,Feuil1!$R$1:$T$380,2,0)),"",(VLOOKUP(Feuil1!$Q266,Feuil1!$R$1:$T$380,2,0))) ->  | AO15: =IF(ISERROR(VLOOKUP(Feuil1!$Q266,Feuil1!$R$1:$T$380,3,0)),"",(VLOOKUP(Feuil1!$Q266,Feuil1!$R$1:$T$380,3,0))) ->  | AP15: ='J38'!AY18 -> 0 | AR15: ='J38'!BA18 -> 0 | AT15: ='J38'!AZ18 -> 0
A16: ='J01'!AN19:AR19 -> 0 | B16: =IF(ISERROR(VLOOKUP(Feuil1!$Q267,Feuil1!$R$1:$T$380,2,0)),"",(VLOOKUP(Feuil1!$Q267,Feuil1!$R$1:$T$380,2,0))) ->  | C16: =IF(ISERROR(VLOOKUP(Feuil1!$Q267,Feuil1!$R$1:$T$380,3,0)),"",(VLOOKUP(Feuil1!$Q267,Feuil1!$R$1:$T$380,3,0))) ->  | D16: =IF(ISERROR(VLOOKUP(Feuil1!$Q268,Feuil1!$R$1:$T$380,2,0)),"",(VLOOKUP(Feuil1!$Q268,Feuil1!$R$1:$T$380,2,0))) ->  | E16: =IF(ISERROR(VLOOKUP(Feuil1!$Q268,Feuil1!$R$1:$T$380,3,0)),"",(VLOOKUP(Feuil1!$Q268,Feuil1!$R$1:$T$380,3,0))) ->  | F16: =IF(ISERROR(VLOOKUP(Feuil1!$Q269,Feuil1!$R$1:$T$380,2,0)),"",(VLOOKUP(Feuil1!$Q269,Feuil1!$R$1:$T$380,2,0))) ->  | G16: =IF(ISERROR(VLOOKUP(Feuil1!$Q269,Feuil1!$R$1:$T$380,3,0)),"",(VLOOKUP(Feuil1!$Q269,Feuil1!$R$1:$T$380,3,0))) ->  | H16: =IF(ISERROR(VLOOKUP(Feuil1!$Q270,Feuil1!$R$1:$T$380,2,0)),"",(VLOOKUP(Feuil1!$Q270,Feuil1!$R$1:$T$380,2,0))) ->  | I16: =IF(ISERROR(VLOOKUP(Feuil1!$Q270,Feuil1!$R$1:$T$380,3,0)),"",(VLOOKUP(Feuil1!$Q270,Feuil1!$R$1:$T$380,3,0))) ->  | J16: =IF(ISERROR(VLOOKUP(Feuil1!$Q271,Feuil1!$R$1:$T$380,2,0)),"",(VLOOKUP(Feuil1!$Q271,Feuil1!$R$1:$T$380,2,0))) ->  | K16: =IF(ISERROR(VLOOKUP(Feuil1!$Q271,Feuil1!$R$1:$T$380,3,0)),"",(VLOOKUP(Feuil1!$Q271,Feuil1!$R$1:$T$380,3,0))) ->  | L16: =IF(ISERROR(VLOOKUP(Feuil1!$Q272,Feuil1!$R$1:$T$380,2,0)),"",(VLOOKUP(Feuil1!$Q272,Feuil1!$R$1:$T$380,2,0))) ->  | M16: =IF(ISERROR(VLOOKUP(Feuil1!$Q272,Feuil1!$R$1:$T$380,3,0)),"",(VLOOKUP(Feuil1!$Q272,Feuil1!$R$1:$T$380,3,0))) ->  | N16: =IF(ISERROR(VLOOKUP(Feuil1!$Q273,Feuil1!$R$1:$T$380,2,0)),"",(VLOOKUP(Feuil1!$Q273,Feuil1!$R$1:$T$380,2,0))) ->  | O16: =IF(ISERROR(VLOOKUP(Feuil1!$Q273,Feuil1!$R$1:$T$380,3,0)),"",(VLOOKUP(Feuil1!$Q273,Feuil1!$R$1:$T$380,3,0))) ->  | P16: =IF(ISERROR(VLOOKUP(Feuil1!$Q274,Feuil1!$R$1:$T$380,2,0)),"",(VLOOKUP(Feuil1!$Q274,Feuil1!$R$1:$T$380,2,0))) ->  | Q16: =IF(ISERROR(VLOOKUP(Feuil1!$Q274,Feuil1!$R$1:$T$380,3,0)),"",(VLOOKUP(Feuil1!$Q274,Feuil1!$R$1:$T$380,3,0))) ->  | R16: =IF(ISERROR(VLOOKUP(Feuil1!$Q275,Feuil1!$R$1:$T$380,2,0)),"",(VLOOKUP(Feuil1!$Q275,Feuil1!$R$1:$T$380,2,0))) ->  | S16: =IF(ISERROR(VLOOKUP(Feuil1!$Q275,Feuil1!$R$1:$T$380,3,0)),"",(VLOOKUP(Feuil1!$Q275,Feuil1!$R$1:$T$380,3,0))) ->  | T16: =IF(ISERROR(VLOOKUP(Feuil1!$Q276,Feuil1!$R$1:$T$380,2,0)),"",(VLOOKUP(Feuil1!$Q276,Feuil1!$R$1:$T$380,2,0))) ->  | U16: =IF(ISERROR(VLOOKUP(Feuil1!$Q276,Feuil1!$R$1:$T$380,3,0)),"",(VLOOKUP(Feuil1!$Q276,Feuil1!$R$1:$T$380,3,0))) ->  | V16: =IF(ISERROR(VLOOKUP(Feuil1!$Q277,Feuil1!$R$1:$T$380,2,0)),"",(VLOOKUP(Feuil1!$Q277,Feuil1!$R$1:$T$380,2,0))) ->  | W16: =IF(ISERROR(VLOOKUP(Feuil1!$Q277,Feuil1!$R$1:$T$380,3,0)),"",(VLOOKUP(Feuil1!$Q277,Feuil1!$R$1:$T$380,3,0))) ->  | X16: =IF(ISERROR(VLOOKUP(Feuil1!$Q278,Feuil1!$R$1:$T$380,2,0)),"",(VLOOKUP(Feuil1!$Q278,Feuil1!$R$1:$T$380,2,0))) ->  | Y16: =IF(ISERROR(VLOOKUP(Feuil1!$Q278,Feuil1!$R$1:$T$380,3,0)),"",(VLOOKUP(Feuil1!$Q278,Feuil1!$R$1:$T$380,3,0))) ->  | Z16: =IF(ISERROR(VLOOKUP(Feuil1!$Q279,Feuil1!$R$1:$T$380,2,0)),"",(VLOOKUP(Feuil1!$Q279,Feuil1!$R$1:$T$380,2,0))) ->  | AA16: =IF(ISERROR(VLOOKUP(Feuil1!$Q279,Feuil1!$R$1:$T$380,3,0)),"",(VLOOKUP(Feuil1!$Q279,Feuil1!$R$1:$T$380,3,0))) ->  | AB16: =IF(ISERROR(VLOOKUP(Feuil1!$Q280,Feuil1!$R$1:$T$380,2,0)),"",(VLOOKUP(Feuil1!$Q280,Feuil1!$R$1:$T$380,2,0))) ->  | AC16: =IF(ISERROR(VLOOKUP(Feuil1!$Q280,Feuil1!$R$1:$T$380,3,0)),"",(VLOOKUP(Feuil1!$Q280,Feuil1!$R$1:$T$380,3,0))) ->  | AF16: =IF(ISERROR(VLOOKUP(Feuil1!$Q281,Feuil1!$R$1:$T$380,2,0)),"",(VLOOKUP(Feuil1!$Q281,Feuil1!$R$1:$T$380,2,0))) ->  | AG16: =IF(ISERROR(VLOOKUP(Feuil1!$Q281,Feuil1!$R$1:$T$380,3,0)),"",(VLOOKUP(Feuil1!$Q281,Feuil1!$R$1:$T$380,3,0))) ->  | AH16: =IF(ISERROR(VLOOKUP(Feuil1!$Q282,Feuil1!$R$1:$T$380,2,0)),"",(VLOOKUP(Feuil1!$Q282,Feuil1!$R$1:$T$380,2,0))) ->  | AI16: =IF(ISERROR(VLOOKUP(Feuil1!$Q282,Feuil1!$R$1:$T$380,3,0)),"",(VLOOKUP(Feuil1!$Q282,Feuil1!$R$1:$T$380,3,0))) ->  | AJ16: =IF(ISERROR(VLOOKUP(Feuil1!$Q283,Feuil1!$R$1:$T$380,2,0)),"",(VLOOKUP(Feuil1!$Q283,Feuil1!$R$1:$T$380,2,0))) ->  | AK16: =IF(ISERROR(VLOOKUP(Feuil1!$Q283,Feuil1!$R$1:$T$380,3,0)),"",(VLOOKUP(Feuil1!$Q283,Feuil1!$R$1:$T$380,3,0))) ->  | AL16: =IF(ISERROR(VLOOKUP(Feuil1!$Q284,Feuil1!$R$1:$T$380,2,0)),"",(VLOOKUP(Feuil1!$Q284,Feuil1!$R$1:$T$380,2,0))) ->  | AM16: =IF(ISERROR(VLOOKUP(Feuil1!$Q284,Feuil1!$R$1:$T$380,3,0)),"",(VLOOKUP(Feuil1!$Q284,Feuil1!$R$1:$T$380,3,0))) ->  | AN16: =IF(ISERROR(VLOOKUP(Feuil1!$Q285,Feuil1!$R$1:$T$380,2,0)),"",(VLOOKUP(Feuil1!$Q285,Feuil1!$R$1:$T$380,2,0))) ->  | AO16: =IF(ISERROR(VLOOKUP(Feuil1!$Q285,Feuil1!$R$1:$T$380,3,0)),"",(VLOOKUP(Feuil1!$Q285,Feuil1!$R$1:$T$380,3,0))) ->  | AP16: ='J38'!AY19 -> 0 | AR16: ='J38'!BA19 -> 0 | AT16: ='J38'!AZ19 -> 0
A17: ='J01'!AN20:AR20 -> 0 | B17: =IF(ISERROR(VLOOKUP(Feuil1!$Q286,Feuil1!$R$1:$T$380,2,0)),"",(VLOOKUP(Feuil1!$Q286,Feuil1!$R$1:$T$380,2,0))) ->  | C17: =IF(ISERROR(VLOOKUP(Feuil1!$Q286,Feuil1!$R$1:$T$380,3,0)),"",(VLOOKUP(Feuil1!$Q286,Feuil1!$R$1:$T$380,3,0))) ->  | D17: =IF(ISERROR(VLOOKUP(Feuil1!$Q287,Feuil1!$R$1:$T$380,2,0)),"",(VLOOKUP(Feuil1!$Q287,Feuil1!$R$1:$T$380,2,0))) ->  | E17: =IF(ISERROR(VLOOKUP(Feuil1!$Q287,Feuil1!$R$1:$T$380,3,0)),"",(VLOOKUP(Feuil1!$Q287,Feuil1!$R$1:$T$380,3,0))) ->  | F17: =IF(ISERROR(VLOOKUP(Feuil1!$Q288,Feuil1!$R$1:$T$380,2,0)),"",(VLOOKUP(Feuil1!$Q288,Feuil1!$R$1:$T$380,2,0))) ->  | G17: =IF(ISERROR(VLOOKUP(Feuil1!$Q288,Feuil1!$R$1:$T$380,3,0)),"",(VLOOKUP(Feuil1!$Q288,Feuil1!$R$1:$T$380,3,0))) ->  | H17: =IF(ISERROR(VLOOKUP(Feuil1!$Q289,Feuil1!$R$1:$T$380,2,0)),"",(VLOOKUP(Feuil1!$Q289,Feuil1!$R$1:$T$380,2,0))) ->  | I17: =IF(ISERROR(VLOOKUP(Feuil1!$Q289,Feuil1!$R$1:$T$380,3,0)),"",(VLOOKUP(Feuil1!$Q289,Feuil1!$R$1:$T$380,3,0))) ->  | J17: =IF(ISERROR(VLOOKUP(Feuil1!$Q290,Feuil1!$R$1:$T$380,2,0)),"",(VLOOKUP(Feuil1!$Q290,Feuil1!$R$1:$T$380,2,0))) ->  | K17: =IF(ISERROR(VLOOKUP(Feuil1!$Q290,Feuil1!$R$1:$T$380,3,0)),"",(VLOOKUP(Feuil1!$Q290,Feuil1!$R$1:$T$380,3,0))) ->  | L17: =IF(ISERROR(VLOOKUP(Feuil1!$Q291,Feuil1!$R$1:$T$380,2,0)),"",(VLOOKUP(Feuil1!$Q291,Feuil1!$R$1:$T$380,2,0))) ->  | M17: =IF(ISERROR(VLOOKUP(Feuil1!$Q291,Feuil1!$R$1:$T$380,3,0)),"",(VLOOKUP(Feuil1!$Q291,Feuil1!$R$1:$T$380,3,0))) ->  | N17: =IF(ISERROR(VLOOKUP(Feuil1!$Q292,Feuil1!$R$1:$T$380,2,0)),"",(VLOOKUP(Feuil1!$Q292,Feuil1!$R$1:$T$380,2,0))) ->  | O17: =IF(ISERROR(VLOOKUP(Feuil1!$Q292,Feuil1!$R$1:$T$380,3,0)),"",(VLOOKUP(Feuil1!$Q292,Feuil1!$R$1:$T$380,3,0))) ->  | P17: =IF(ISERROR(VLOOKUP(Feuil1!$Q293,Feuil1!$R$1:$T$380,2,0)),"",(VLOOKUP(Feuil1!$Q293,Feuil1!$R$1:$T$380,2,0))) ->  | Q17: =IF(ISERROR(VLOOKUP(Feuil1!$Q293,Feuil1!$R$1:$T$380,3,0)),"",(VLOOKUP(Feuil1!$Q293,Feuil1!$R$1:$T$380,3,0))) ->  | R17: =IF(ISERROR(VLOOKUP(Feuil1!$Q294,Feuil1!$R$1:$T$380,2,0)),"",(VLOOKUP(Feuil1!$Q294,Feuil1!$R$1:$T$380,2,0))) ->  | S17: =IF(ISERROR(VLOOKUP(Feuil1!$Q294,Feuil1!$R$1:$T$380,3,0)),"",(VLOOKUP(Feuil1!$Q294,Feuil1!$R$1:$T$380,3,0))) ->  | T17: =IF(ISERROR(VLOOKUP(Feuil1!$Q295,Feuil1!$R$1:$T$380,2,0)),"",(VLOOKUP(Feuil1!$Q295,Feuil1!$R$1:$T$380,2,0))) ->  | U17: =IF(ISERROR(VLOOKUP(Feuil1!$Q295,Feuil1!$R$1:$T$380,3,0)),"",(VLOOKUP(Feuil1!$Q295,Feuil1!$R$1:$T$380,3,0))) ->  | V17: =IF(ISERROR(VLOOKUP(Feuil1!$Q296,Feuil1!$R$1:$T$380,2,0)),"",(VLOOKUP(Feuil1!$Q296,Feuil1!$R$1:$T$380,2,0))) ->  | W17: =IF(ISERROR(VLOOKUP(Feuil1!$Q296,Feuil1!$R$1:$T$380,3,0)),"",(VLOOKUP(Feuil1!$Q296,Feuil1!$R$1:$T$380,3,0))) ->  | X17: =IF(ISERROR(VLOOKUP(Feuil1!$Q297,Feuil1!$R$1:$T$380,2,0)),"",(VLOOKUP(Feuil1!$Q297,Feuil1!$R$1:$T$380,2,0))) ->  | Y17: =IF(ISERROR(VLOOKUP(Feuil1!$Q297,Feuil1!$R$1:$T$380,3,0)),"",(VLOOKUP(Feuil1!$Q297,Feuil1!$R$1:$T$380,3,0))) ->  | Z17: =IF(ISERROR(VLOOKUP(Feuil1!$Q298,Feuil1!$R$1:$T$380,2,0)),"",(VLOOKUP(Feuil1!$Q298,Feuil1!$R$1:$T$380,2,0))) ->  | AA17: =IF(ISERROR(VLOOKUP(Feuil1!$Q298,Feuil1!$R$1:$T$380,3,0)),"",(VLOOKUP(Feuil1!$Q298,Feuil1!$R$1:$T$380,3,0))) ->  | AB17: =IF(ISERROR(VLOOKUP(Feuil1!$Q299,Feuil1!$R$1:$T$380,2,0)),"",(VLOOKUP(Feuil1!$Q299,Feuil1!$R$1:$T$380,2,0))) ->  | AC17: =IF(ISERROR(VLOOKUP(Feuil1!$Q299,Feuil1!$R$1:$T$380,3,0)),"",(VLOOKUP(Feuil1!$Q299,Feuil1!$R$1:$T$380,3,0))) ->  | AD17: =IF(ISERROR(VLOOKUP(Feuil1!$Q300,Feuil1!$R$1:$T$380,2,0)),"",(VLOOKUP(Feuil1!$Q300,Feuil1!$R$1:$T$380,2,0))) ->  | AE17: =IF(ISERROR(VLOOKUP(Feuil1!$Q300,Feuil1!$R$1:$T$380,3,0)),"",(VLOOKUP(Feuil1!$Q300,Feuil1!$R$1:$T$380,3,0))) ->  | AH17: =IF(ISERROR(VLOOKUP(Feuil1!$Q301,Feuil1!$R$1:$T$380,2,0)),"",(VLOOKUP(Feuil1!$Q301,Feuil1!$R$1:$T$380,2,0))) ->  | AI17: =IF(ISERROR(VLOOKUP(Feuil1!$Q301,Feuil1!$R$1:$T$380,3,0)),"",(VLOOKUP(Feuil1!$Q301,Feuil1!$R$1:$T$380,3,0))) ->  | AJ17: =IF(ISERROR(VLOOKUP(Feuil1!$Q302,Feuil1!$R$1:$T$380,2,0)),"",(VLOOKUP(Feuil1!$Q302,Feuil1!$R$1:$T$380,2,0))) ->  | AK17: =IF(ISERROR(VLOOKUP(Feuil1!$Q302,Feuil1!$R$1:$T$380,3,0)),"",(VLOOKUP(Feuil1!$Q302,Feuil1!$R$1:$T$380,3,0))) ->  | AL17: =IF(ISERROR(VLOOKUP(Feuil1!$Q303,Feuil1!$R$1:$T$380,2,0)),"",(VLOOKUP(Feuil1!$Q303,Feuil1!$R$1:$T$380,2,0))) ->  | AM17: =IF(ISERROR(VLOOKUP(Feuil1!$Q303,Feuil1!$R$1:$T$380,3,0)),"",(VLOOKUP(Feuil1!$Q303,Feuil1!$R$1:$T$380,3,0))) ->  | AN17: =IF(ISERROR(VLOOKUP(Feuil1!$Q304,Feuil1!$R$1:$T$380,2,0)),"",(VLOOKUP(Feuil1!$Q304,Feuil1!$R$1:$T$380,2,0))) ->  | AO17: =IF(ISERROR(VLOOKUP(Feuil1!$Q304,Feuil1!$R$1:$T$380,3,0)),"",(VLOOKUP(Feuil1!$Q304,Feuil1!$R$1:$T$380,3,0))) ->  | AP17: ='J38'!AY20 -> 0 | AR17: ='J38'!BA20 -> 0 | AT17: ='J38'!AZ20 -> 0
A18: ='J01'!AN21:AR21 -> 0 | B18: =IF(ISERROR(VLOOKUP(Feuil1!$Q305,Feuil1!$R$1:$T$380,2,0)),"",(VLOOKUP(Feuil1!$Q305,Feuil1!$R$1:$T$380,2,0))) ->  | C18: =IF(ISERROR(VLOOKUP(Feuil1!$Q305,Feuil1!$R$1:$T$380,3,0)),"",(VLOOKUP(Feuil1!$Q305,Feuil1!$R$1:$T$380,3,0))) ->  | D18: =IF(ISERROR(VLOOKUP(Feuil1!$Q306,Feuil1!$R$1:$T$380,2,0)),"",(VLOOKUP(Feuil1!$Q306,Feuil1!$R$1:$T$380,2,0))) ->  | E18: =IF(ISERROR(VLOOKUP(Feuil1!$Q306,Feuil1!$R$1:$T$380,3,0)),"",(VLOOKUP(Feuil1!$Q306,Feuil1!$R$1:$T$380,3,0))) ->  | F18: =IF(ISERROR(VLOOKUP(Feuil1!$Q307,Feuil1!$R$1:$T$380,2,0)),"",(VLOOKUP(Feuil1!$Q307,Feuil1!$R$1:$T$380,2,0))) ->  | G18: =IF(ISERROR(VLOOKUP(Feuil1!$Q307,Feuil1!$R$1:$T$380,3,0)),"",(VLOOKUP(Feuil1!$Q307,Feuil1!$R$1:$T$380,3,0))) ->  | H18: =IF(ISERROR(VLOOKUP(Feuil1!$Q308,Feuil1!$R$1:$T$380,2,0)),"",(VLOOKUP(Feuil1!$Q308,Feuil1!$R$1:$T$380,2,0))) ->  | I18: =IF(ISERROR(VLOOKUP(Feuil1!$Q308,Feuil1!$R$1:$T$380,3,0)),"",(VLOOKUP(Feuil1!$Q308,Feuil1!$R$1:$T$380,3,0))) ->  | J18: =IF(ISERROR(VLOOKUP(Feuil1!$Q309,Feuil1!$R$1:$T$380,2,0)),"",(VLOOKUP(Feuil1!$Q309,Feuil1!$R$1:$T$380,2,0))) ->  | K18: =IF(ISERROR(VLOOKUP(Feuil1!$Q309,Feuil1!$R$1:$T$380,3,0)),"",(VLOOKUP(Feuil1!$Q309,Feuil1!$R$1:$T$380,3,0))) ->  | L18: =IF(ISERROR(VLOOKUP(Feuil1!$Q310,Feuil1!$R$1:$T$380,2,0)),"",(VLOOKUP(Feuil1!$Q310,Feuil1!$R$1:$T$380,2,0))) ->  | M18: =IF(ISERROR(VLOOKUP(Feuil1!$Q310,Feuil1!$R$1:$T$380,3,0)),"",(VLOOKUP(Feuil1!$Q310,Feuil1!$R$1:$T$380,3,0))) ->  | N18: =IF(ISERROR(VLOOKUP(Feuil1!$Q311,Feuil1!$R$1:$T$380,2,0)),"",(VLOOKUP(Feuil1!$Q311,Feuil1!$R$1:$T$380,2,0))) ->  | O18: =IF(ISERROR(VLOOKUP(Feuil1!$Q311,Feuil1!$R$1:$T$380,3,0)),"",(VLOOKUP(Feuil1!$Q311,Feuil1!$R$1:$T$380,3,0))) ->  | P18: =IF(ISERROR(VLOOKUP(Feuil1!$Q312,Feuil1!$R$1:$T$380,2,0)),"",(VLOOKUP(Feuil1!$Q312,Feuil1!$R$1:$T$380,2,0))) ->  | Q18: =IF(ISERROR(VLOOKUP(Feuil1!$Q312,Feuil1!$R$1:$T$380,3,0)),"",(VLOOKUP(Feuil1!$Q312,Feuil1!$R$1:$T$380,3,0))) ->  | R18: =IF(ISERROR(VLOOKUP(Feuil1!$Q313,Feuil1!$R$1:$T$380,2,0)),"",(VLOOKUP(Feuil1!$Q313,Feuil1!$R$1:$T$380,2,0))) ->  | S18: =IF(ISERROR(VLOOKUP(Feuil1!$Q313,Feuil1!$R$1:$T$380,3,0)),"",(VLOOKUP(Feuil1!$Q313,Feuil1!$R$1:$T$380,3,0))) ->  | T18: =IF(ISERROR(VLOOKUP(Feuil1!$Q314,Feuil1!$R$1:$T$380,2,0)),"",(VLOOKUP(Feuil1!$Q314,Feuil1!$R$1:$T$380,2,0))) ->  | U18: =IF(ISERROR(VLOOKUP(Feuil1!$Q314,Feuil1!$R$1:$T$380,3,0)),"",(VLOOKUP(Feuil1!$Q314,Feuil1!$R$1:$T$380,3,0))) ->  | V18: =IF(ISERROR(VLOOKUP(Feuil1!$Q315,Feuil1!$R$1:$T$380,2,0)),"",(VLOOKUP(Feuil1!$Q315,Feuil1!$R$1:$T$380,2,0))) ->  | W18: =IF(ISERROR(VLOOKUP(Feuil1!$Q315,Feuil1!$R$1:$T$380,3,0)),"",(VLOOKUP(Feuil1!$Q315,Feuil1!$R$1:$T$380,3,0))) ->  | X18: =IF(ISERROR(VLOOKUP(Feuil1!$Q316,Feuil1!$R$1:$T$380,2,0)),"",(VLOOKUP(Feuil1!$Q316,Feuil1!$R$1:$T$380,2,0))) ->  | Y18: =IF(ISERROR(VLOOKUP(Feuil1!$Q316,Feuil1!$R$1:$T$380,3,0)),"",(VLOOKUP(Feuil1!$Q316,Feuil1!$R$1:$T$380,3,0))) ->  | Z18: =IF(ISERROR(VLOOKUP(Feuil1!$Q317,Feuil1!$R$1:$T$380,2,0)),"",(VLOOKUP(Feuil1!$Q317,Feuil1!$R$1:$T$380,2,0))) ->  | AA18: =IF(ISERROR(VLOOKUP(Feuil1!$Q317,Feuil1!$R$1:$T$380,3,0)),"",(VLOOKUP(Feuil1!$Q317,Feuil1!$R$1:$T$380,3,0))) ->  | AB18: =IF(ISERROR(VLOOKUP(Feuil1!$Q318,Feuil1!$R$1:$T$380,2,0)),"",(VLOOKUP(Feuil1!$Q318,Feuil1!$R$1:$T$380,2,0))) ->  | AC18: =IF(ISERROR(VLOOKUP(Feuil1!$Q318,Feuil1!$R$1:$T$380,3,0)),"",(VLOOKUP(Feuil1!$Q318,Feuil1!$R$1:$T$380,3,0))) ->  | AD18: =IF(ISERROR(VLOOKUP(Feuil1!$Q319,Feuil1!$R$1:$T$380,2,0)),"",(VLOOKUP(Feuil1!$Q319,Feuil1!$R$1:$T$380,2,0))) ->  | AE18: =IF(ISERROR(VLOOKUP(Feuil1!$Q319,Feuil1!$R$1:$T$380,3,0)),"",(VLOOKUP(Feuil1!$Q319,Feuil1!$R$1:$T$380,3,0))) ->  | AF18: =IF(ISERROR(VLOOKUP(Feuil1!$Q320,Feuil1!$R$1:$T$380,2,0)),"",(VLOOKUP(Feuil1!$Q320,Feuil1!$R$1:$T$380,2,0))) ->  | AG18: =IF(ISERROR(VLOOKUP(Feuil1!$Q320,Feuil1!$R$1:$T$380,3,0)),"",(VLOOKUP(Feuil1!$Q320,Feuil1!$R$1:$T$380,3,0))) ->  | AJ18: =IF(ISERROR(VLOOKUP(Feuil1!$Q321,Feuil1!$R$1:$T$380,2,0)),"",(VLOOKUP(Feuil1!$Q321,Feuil1!$R$1:$T$380,2,0))) ->  | AK18: =IF(ISERROR(VLOOKUP(Feuil1!$Q321,Feuil1!$R$1:$T$380,3,0)),"",(VLOOKUP(Feuil1!$Q321,Feuil1!$R$1:$T$380,3,0))) ->  | AL18: =IF(ISERROR(VLOOKUP(Feuil1!$Q322,Feuil1!$R$1:$T$380,2,0)),"",(VLOOKUP(Feuil1!$Q322,Feuil1!$R$1:$T$380,2,0))) ->  | AM18: =IF(ISERROR(VLOOKUP(Feuil1!$Q322,Feuil1!$R$1:$T$380,3,0)),"",(VLOOKUP(Feuil1!$Q322,Feuil1!$R$1:$T$380,3,0))) ->  | AN18: =IF(ISERROR(VLOOKUP(Feuil1!$Q323,Feuil1!$R$1:$T$380,2,0)),"",(VLOOKUP(Feuil1!$Q323,Feuil1!$R$1:$T$380,2,0))) ->  | AO18: =IF(ISERROR(VLOOKUP(Feuil1!$Q323,Feuil1!$R$1:$T$380,3,0)),"",(VLOOKUP(Feuil1!$Q323,Feuil1!$R$1:$T$380,3,0))) ->  | AP18: ='J38'!AY21 -> 0 | AR18: ='J38'!BA21 -> 0 | AT18: ='J38'!AZ21 -> 0
A19: ='J01'!AN22:AR22 -> 0 | B19: =IF(ISERROR(VLOOKUP(Feuil1!$Q324,Feuil1!$R$1:$T$380,2,0)),"",(VLOOKUP(Feuil1!$Q324,Feuil1!$R$1:$T$380,2,0))) ->  | C19: =IF(ISERROR(VLOOKUP(Feuil1!$Q324,Feuil1!$R$1:$T$380,3,0)),"",(VLOOKUP(Feuil1!$Q324,Feuil1!$R$1:$T$380,3,0))) ->  | D19: =IF(ISERROR(VLOOKUP(Feuil1!$Q325,Feuil1!$R$1:$T$380,2,0)),"",(VLOOKUP(Feuil1!$Q325,Feuil1!$R$1:$T$380,2,0))) ->  | E19: =IF(ISERROR(VLOOKUP(Feuil1!$Q325,Feuil1!$R$1:$T$380,3,0)),"",(VLOOKUP(Feuil1!$Q325,Feuil1!$R$1:$T$380,3,0))) ->  | F19: =IF(ISERROR(VLOOKUP(Feuil1!$Q326,Feuil1!$R$1:$T$380,2,0)),"",(VLOOKUP(Feuil1!$Q326,Feuil1!$R$1:$T$380,2,0))) ->  | G19: =IF(ISERROR(VLOOKUP(Feuil1!$Q326,Feuil1!$R$1:$T$380,3,0)),"",(VLOOKUP(Feuil1!$Q326,Feuil1!$R$1:$T$380,3,0))) ->  | H19: =IF(ISERROR(VLOOKUP(Feuil1!$Q327,Feuil1!$R$1:$T$380,2,0)),"",(VLOOKUP(Feuil1!$Q327,Feuil1!$R$1:$T$380,2,0))) ->  | I19: =IF(ISERROR(VLOOKUP(Feuil1!$Q327,Feuil1!$R$1:$T$380,3,0)),"",(VLOOKUP(Feuil1!$Q327,Feuil1!$R$1:$T$380,3,0))) ->  | J19: =IF(ISERROR(VLOOKUP(Feuil1!$Q328,Feuil1!$R$1:$T$380,2,0)),"",(VLOOKUP(Feuil1!$Q328,Feuil1!$R$1:$T$380,2,0))) ->  | K19: =IF(ISERROR(VLOOKUP(Feuil1!$Q328,Feuil1!$R$1:$T$380,3,0)),"",(VLOOKUP(Feuil1!$Q328,Feuil1!$R$1:$T$380,3,0))) ->  | L19: =IF(ISERROR(VLOOKUP(Feuil1!$Q329,Feuil1!$R$1:$T$380,2,0)),"",(VLOOKUP(Feuil1!$Q329,Feuil1!$R$1:$T$380,2,0))) ->  | M19: =IF(ISERROR(VLOOKUP(Feuil1!$Q329,Feuil1!$R$1:$T$380,3,0)),"",(VLOOKUP(Feuil1!$Q329,Feuil1!$R$1:$T$380,3,0))) ->  | N19: =IF(ISERROR(VLOOKUP(Feuil1!$Q330,Feuil1!$R$1:$T$380,2,0)),"",(VLOOKUP(Feuil1!$Q330,Feuil1!$R$1:$T$380,2,0))) ->  | O19: =IF(ISERROR(VLOOKUP(Feuil1!$Q330,Feuil1!$R$1:$T$380,3,0)),"",(VLOOKUP(Feuil1!$Q330,Feuil1!$R$1:$T$380,3,0))) ->  | P19: =IF(ISERROR(VLOOKUP(Feuil1!$Q331,Feuil1!$R$1:$T$380,2,0)),"",(VLOOKUP(Feuil1!$Q331,Feuil1!$R$1:$T$380,2,0))) ->  | Q19: =IF(ISERROR(VLOOKUP(Feuil1!$Q331,Feuil1!$R$1:$T$380,3,0)),"",(VLOOKUP(Feuil1!$Q331,Feuil1!$R$1:$T$380,3,0))) ->  | R19: =IF(ISERROR(VLOOKUP(Feuil1!$Q332,Feuil1!$R$1:$T$380,2,0)),"",(VLOOKUP(Feuil1!$Q332,Feuil1!$R$1:$T$380,2,0))) ->  | S19: =IF(ISERROR(VLOOKUP(Feuil1!$Q332,Feuil1!$R$1:$T$380,3,0)),"",(VLOOKUP(Feuil1!$Q332,Feuil1!$R$1:$T$380,3,0))) ->  | T19: =IF(ISERROR(VLOOKUP(Feuil1!$Q333,Feuil1!$R$1:$T$380,2,0)),"",(VLOOKUP(Feuil1!$Q333,Feuil1!$R$1:$T$380,2,0))) ->  | U19: =IF(ISERROR(VLOOKUP(Feuil1!$Q333,Feuil1!$R$1:$T$380,3,0)),"",(VLOOKUP(Feuil1!$Q333,Feuil1!$R$1:$T$380,3,0))) ->  | V19: =IF(ISERROR(VLOOKUP(Feuil1!$Q334,Feuil1!$R$1:$T$380,2,0)),"",(VLOOKUP(Feuil1!$Q334,Feuil1!$R$1:$T$380,2,0))) ->  | W19: =IF(ISERROR(VLOOKUP(Feuil1!$Q334,Feuil1!$R$1:$T$380,3,0)),"",(VLOOKUP(Feuil1!$Q334,Feuil1!$R$1:$T$380,3,0))) ->  | X19: =IF(ISERROR(VLOOKUP(Feuil1!$Q335,Feuil1!$R$1:$T$380,2,0)),"",(VLOOKUP(Feuil1!$Q335,Feuil1!$R$1:$T$380,2,0))) ->  | Y19: =IF(ISERROR(VLOOKUP(Feuil1!$Q335,Feuil1!$R$1:$T$380,3,0)),"",(VLOOKUP(Feuil1!$Q335,Feuil1!$R$1:$T$380,3,0))) ->  | Z19: =IF(ISERROR(VLOOKUP(Feuil1!$Q336,Feuil1!$R$1:$T$380,2,0)),"",(VLOOKUP(Feuil1!$Q336,Feuil1!$R$1:$T$380,2,0))) ->  | AA19: =IF(ISERROR(VLOOKUP(Feuil1!$Q336,Feuil1!$R$1:$T$380,3,0)),"",(VLOOKUP(Feuil1!$Q336,Feuil1!$R$1:$T$380,3,0))) ->  | AB19: =IF(ISERROR(VLOOKUP(Feuil1!$Q337,Feuil1!$R$1:$T$380,2,0)),"",(VLOOKUP(Feuil1!$Q337,Feuil1!$R$1:$T$380,2,0))) ->  | AC19: =IF(ISERROR(VLOOKUP(Feuil1!$Q337,Feuil1!$R$1:$T$380,3,0)),"",(VLOOKUP(Feuil1!$Q337,Feuil1!$R$1:$T$380,3,0))) ->  | AD19: =IF(ISERROR(VLOOKUP(Feuil1!$Q338,Feuil1!$R$1:$T$380,2,0)),"",(VLOOKUP(Feuil1!$Q338,Feuil1!$R$1:$T$380,2,0))) ->  | AE19: =IF(ISERROR(VLOOKUP(Feuil1!$Q338,Feuil1!$R$1:$T$380,3,0)),"",(VLOOKUP(Feuil1!$Q338,Feuil1!$R$1:$T$380,3,0))) ->  | AF19: =IF(ISERROR(VLOOKUP(Feuil1!$Q339,Feuil1!$R$1:$T$380,2,0)),"",(VLOOKUP(Feuil1!$Q339,Feuil1!$R$1:$T$380,2,0))) ->  | AG19: =IF(ISERROR(VLOOKUP(Feuil1!$Q339,Feuil1!$R$1:$T$380,3,0)),"",(VLOOKUP(Feuil1!$Q339,Feuil1!$R$1:$T$380,3,0))) ->  | AH19: =IF(ISERROR(VLOOKUP(Feuil1!$Q340,Feuil1!$R$1:$T$380,2,0)),"",(VLOOKUP(Feuil1!$Q340,Feuil1!$R$1:$T$380,2,0))) ->  | AI19: =IF(ISERROR(VLOOKUP(Feuil1!$Q340,Feuil1!$R$1:$T$380,3,0)),"",(VLOOKUP(Feuil1!$Q340,Feuil1!$R$1:$T$380,3,0))) ->  | AL19: =IF(ISERROR(VLOOKUP(Feuil1!$Q341,Feuil1!$R$1:$T$380,2,0)),"",(VLOOKUP(Feuil1!$Q341,Feuil1!$R$1:$T$380,2,0))) ->  | AM19: =IF(ISERROR(VLOOKUP(Feuil1!$Q341,Feuil1!$R$1:$T$380,3,0)),"",(VLOOKUP(Feuil1!$Q341,Feuil1!$R$1:$T$380,3,0))) ->  | AN19: =IF(ISERROR(VLOOKUP(Feuil1!$Q342,Feuil1!$R$1:$T$380,2,0)),"",(VLOOKUP(Feuil1!$Q342,Feuil1!$R$1:$T$380,2,0))) ->  | AO19: =IF(ISERROR(VLOOKUP(Feuil1!$Q342,Feuil1!$R$1:$T$380,3,0)),"",(VLOOKUP(Feuil1!$Q342,Feuil1!$R$1:$T$380,3,0))) ->  | AP19: ='J38'!AY22 -> 0 | AR19: ='J38'!BA22 -> 0 | AT19: ='J38'!AZ22 -> 0
A20: ='J01'!AN23:AR23 -> 0 | B20: =IF(ISERROR(VLOOKUP(Feuil1!$Q343,Feuil1!$R$1:$T$380,2,0)),"",(VLOOKUP(Feuil1!$Q343,Feuil1!$R$1:$T$380,2,0))) ->  | C20: =IF(ISERROR(VLOOKUP(Feuil1!$Q343,Feuil1!$R$1:$T$380,3,0)),"",(VLOOKUP(Feuil1!$Q343,Feuil1!$R$1:$T$380,3,0))) ->  | D20: =IF(ISERROR(VLOOKUP(Feuil1!$Q344,Feuil1!$R$1:$T$380,2,0)),"",(VLOOKUP(Feuil1!$Q344,Feuil1!$R$1:$T$380,2,0))) ->  | E20: =IF(ISERROR(VLOOKUP(Feuil1!$Q344,Feuil1!$R$1:$T$380,3,0)),"",(VLOOKUP(Feuil1!$Q344,Feuil1!$R$1:$T$380,3,0))) ->  | F20: =IF(ISERROR(VLOOKUP(Feuil1!$Q345,Feuil1!$R$1:$T$380,2,0)),"",(VLOOKUP(Feuil1!$Q345,Feuil1!$R$1:$T$380,2,0))) ->  | G20: =IF(ISERROR(VLOOKUP(Feuil1!$Q345,Feuil1!$R$1:$T$380,3,0)),"",(VLOOKUP(Feuil1!$Q345,Feuil1!$R$1:$T$380,3,0))) ->  | H20: =IF(ISERROR(VLOOKUP(Feuil1!$Q346,Feuil1!$R$1:$T$380,2,0)),"",(VLOOKUP(Feuil1!$Q346,Feuil1!$R$1:$T$380,2,0))) ->  | I20: =IF(ISERROR(VLOOKUP(Feuil1!$Q346,Feuil1!$R$1:$T$380,3,0)),"",(VLOOKUP(Feuil1!$Q346,Feuil1!$R$1:$T$380,3,0))) ->  | J20: =IF(ISERROR(VLOOKUP(Feuil1!$Q347,Feuil1!$R$1:$T$380,2,0)),"",(VLOOKUP(Feuil1!$Q347,Feuil1!$R$1:$T$380,2,0))) ->  | K20: =IF(ISERROR(VLOOKUP(Feuil1!$Q347,Feuil1!$R$1:$T$380,3,0)),"",(VLOOKUP(Feuil1!$Q347,Feuil1!$R$1:$T$380,3,0))) ->  | L20: =IF(ISERROR(VLOOKUP(Feuil1!$Q348,Feuil1!$R$1:$T$380,2,0)),"",(VLOOKUP(Feuil1!$Q348,Feuil1!$R$1:$T$380,2,0))) ->  | M20: =IF(ISERROR(VLOOKUP(Feuil1!$Q348,Feuil1!$R$1:$T$380,3,0)),"",(VLOOKUP(Feuil1!$Q348,Feuil1!$R$1:$T$380,3,0))) ->  | N20: =IF(ISERROR(VLOOKUP(Feuil1!$Q349,Feuil1!$R$1:$T$380,2,0)),"",(VLOOKUP(Feuil1!$Q349,Feuil1!$R$1:$T$380,2,0))) ->  | O20: =IF(ISERROR(VLOOKUP(Feuil1!$Q349,Feuil1!$R$1:$T$380,3,0)),"",(VLOOKUP(Feuil1!$Q349,Feuil1!$R$1:$T$380,3,0))) ->  | P20: =IF(ISERROR(VLOOKUP(Feuil1!$Q350,Feuil1!$R$1:$T$380,2,0)),"",(VLOOKUP(Feuil1!$Q350,Feuil1!$R$1:$T$380,2,0))) ->  | Q20: =IF(ISERROR(VLOOKUP(Feuil1!$Q350,Feuil1!$R$1:$T$380,3,0)),"",(VLOOKUP(Feuil1!$Q350,Feuil1!$R$1:$T$380,3,0))) ->  | R20: =IF(ISERROR(VLOOKUP(Feuil1!$Q351,Feuil1!$R$1:$T$380,2,0)),"",(VLOOKUP(Feuil1!$Q351,Feuil1!$R$1:$T$380,2,0))) ->  | S20: =IF(ISERROR(VLOOKUP(Feuil1!$Q351,Feuil1!$R$1:$T$380,3,0)),"",(VLOOKUP(Feuil1!$Q351,Feuil1!$R$1:$T$380,3,0))) ->  | T20: =IF(ISERROR(VLOOKUP(Feuil1!$Q352,Feuil1!$R$1:$T$380,2,0)),"",(VLOOKUP(Feuil1!$Q352,Feuil1!$R$1:$T$380,2,0))) ->  | U20: =IF(ISERROR(VLOOKUP(Feuil1!$Q352,Feuil1!$R$1:$T$380,3,0)),"",(VLOOKUP(Feuil1!$Q352,Feuil1!$R$1:$T$380,3,0))) ->  | V20: =IF(ISERROR(VLOOKUP(Feuil1!$Q353,Feuil1!$R$1:$T$380,2,0)),"",(VLOOKUP(Feuil1!$Q353,Feuil1!$R$1:$T$380,2,0))) ->  | W20: =IF(ISERROR(VLOOKUP(Feuil1!$Q353,Feuil1!$R$1:$T$380,3,0)),"",(VLOOKUP(Feuil1!$Q353,Feuil1!$R$1:$T$380,3,0))) ->  | X20: =IF(ISERROR(VLOOKUP(Feuil1!$Q354,Feuil1!$R$1:$T$380,2,0)),"",(VLOOKUP(Feuil1!$Q354,Feuil1!$R$1:$T$380,2,0))) ->  | Y20: =IF(ISERROR(VLOOKUP(Feuil1!$Q354,Feuil1!$R$1:$T$380,3,0)),"",(VLOOKUP(Feuil1!$Q354,Feuil1!$R$1:$T$380,3,0))) ->  | Z20: =IF(ISERROR(VLOOKUP(Feuil1!$Q355,Feuil1!$R$1:$T$380,2,0)),"",(VLOOKUP(Feuil1!$Q355,Feuil1!$R$1:$T$380,2,0))) ->  | AA20: =IF(ISERROR(VLOOKUP(Feuil1!$Q355,Feuil1!$R$1:$T$380,3,0)),"",(VLOOKUP(Feuil1!$Q355,Feuil1!$R$1:$T$380,3,0))) ->  | AB20: =IF(ISERROR(VLOOKUP(Feuil1!$Q356,Feuil1!$R$1:$T$380,2,0)),"",(VLOOKUP(Feuil1!$Q356,Feuil1!$R$1:$T$380,2,0))) ->  | AC20: =IF(ISERROR(VLOOKUP(Feuil1!$Q356,Feuil1!$R$1:$T$380,3,0)),"",(VLOOKUP(Feuil1!$Q356,Feuil1!$R$1:$T$380,3,0))) ->  | AD20: =IF(ISERROR(VLOOKUP(Feuil1!$Q357,Feuil1!$R$1:$T$380,2,0)),"",(VLOOKUP(Feuil1!$Q357,Feuil1!$R$1:$T$380,2,0))) ->  | AE20: =IF(ISERROR(VLOOKUP(Feuil1!$Q357,Feuil1!$R$1:$T$380,3,0)),"",(VLOOKUP(Feuil1!$Q357,Feuil1!$R$1:$T$380,3,0))) ->  | AF20: =IF(ISERROR(VLOOKUP(Feuil1!$Q358,Feuil1!$R$1:$T$380,2,0)),"",(VLOOKUP(Feuil1!$Q358,Feuil1!$R$1:$T$380,2,0))) ->  | AG20: =IF(ISERROR(VLOOKUP(Feuil1!$Q358,Feuil1!$R$1:$T$380,3,0)),"",(VLOOKUP(Feuil1!$Q358,Feuil1!$R$1:$T$380,3,0))) ->  | AH20: =IF(ISERROR(VLOOKUP(Feuil1!$Q359,Feuil1!$R$1:$T$380,2,0)),"",(VLOOKUP(Feuil1!$Q359,Feuil1!$R$1:$T$380,2,0))) ->  | AI20: =IF(ISERROR(VLOOKUP(Feuil1!$Q359,Feuil1!$R$1:$T$380,3,0)),"",(VLOOKUP(Feuil1!$Q359,Feuil1!$R$1:$T$380,3,0))) ->  | AJ20: =IF(ISERROR(VLOOKUP(Feuil1!$Q360,Feuil1!$R$1:$T$380,2,0)),"",(VLOOKUP(Feuil1!$Q360,Feuil1!$R$1:$T$380,2,0))) ->  | AK20: =IF(ISERROR(VLOOKUP(Feuil1!$Q360,Feuil1!$R$1:$T$380,3,0)),"",(VLOOKUP(Feuil1!$Q360,Feuil1!$R$1:$T$380,3,0))) ->  | AN20: =IF(ISERROR(VLOOKUP(Feuil1!$Q361,Feuil1!$R$1:$T$380,2,0)),"",(VLOOKUP(Feuil1!$Q361,Feuil1!$R$1:$T$380,2,0))) ->  | AO20: =IF(ISERROR(VLOOKUP(Feuil1!$Q361,Feuil1!$R$1:$T$380,3,0)),"",(VLOOKUP(Feuil1!$Q361,Feuil1!$R$1:$T$380,3,0))) ->  | AP20: ='J38'!AY23 -> 0 | AR20: ='J38'!BA23 -> 0 | AT20: ='J38'!AZ23 -> 0
A21: ='J01'!AN24:AR24 -> 0 | B21: =IF(ISERROR(VLOOKUP(Feuil1!$Q362,Feuil1!$R$1:$T$380,2,0)),"",(VLOOKUP(Feuil1!$Q362,Feuil1!$R$1:$T$380,2,0))) ->  | C21: =IF(ISERROR(VLOOKUP(Feuil1!$Q362,Feuil1!$R$1:$T$380,3,0)),"",(VLOOKUP(Feuil1!$Q362,Feuil1!$R$1:$T$380,3,0))) ->  | D21: =IF(ISERROR(VLOOKUP(Feuil1!$Q363,Feuil1!$R$1:$T$380,2,0)),"",(VLOOKUP(Feuil1!$Q363,Feuil1!$R$1:$T$380,2,0))) ->  | E21: =IF(ISERROR(VLOOKUP(Feuil1!$Q363,Feuil1!$R$1:$T$380,3,0)),"",(VLOOKUP(Feuil1!$Q363,Feuil1!$R$1:$T$380,3,0))) ->  | F21: =IF(ISERROR(VLOOKUP(Feuil1!$Q364,Feuil1!$R$1:$T$380,2,0)),"",(VLOOKUP(Feuil1!$Q364,Feuil1!$R$1:$T$380,2,0))) ->  | G21: =IF(ISERROR(VLOOKUP(Feuil1!$Q364,Feuil1!$R$1:$T$380,3,0)),"",(VLOOKUP(Feuil1!$Q364,Feuil1!$R$1:$T$380,3,0))) ->  | H21: =IF(ISERROR(VLOOKUP(Feuil1!$Q365,Feuil1!$R$1:$T$380,2,0)),"",(VLOOKUP(Feuil1!$Q365,Feuil1!$R$1:$T$380,2,0))) ->  | I21: =IF(ISERROR(VLOOKUP(Feuil1!$Q365,Feuil1!$R$1:$T$380,3,0)),"",(VLOOKUP(Feuil1!$Q365,Feuil1!$R$1:$T$380,3,0))) ->  | J21: =IF(ISERROR(VLOOKUP(Feuil1!$Q366,Feuil1!$R$1:$T$380,2,0)),"",(VLOOKUP(Feuil1!$Q366,Feuil1!$R$1:$T$380,2,0))) ->  | K21: =IF(ISERROR(VLOOKUP(Feuil1!$Q366,Feuil1!$R$1:$T$380,3,0)),"",(VLOOKUP(Feuil1!$Q366,Feuil1!$R$1:$T$380,3,0))) ->  | L21: =IF(ISERROR(VLOOKUP(Feuil1!$Q367,Feuil1!$R$1:$T$380,2,0)),"",(VLOOKUP(Feuil1!$Q367,Feuil1!$R$1:$T$380,2,0))) ->  | M21: =IF(ISERROR(VLOOKUP(Feuil1!$Q367,Feuil1!$R$1:$T$380,3,0)),"",(VLOOKUP(Feuil1!$Q367,Feuil1!$R$1:$T$380,3,0))) ->  | N21: =IF(ISERROR(VLOOKUP(Feuil1!$Q368,Feuil1!$R$1:$T$380,2,0)),"",(VLOOKUP(Feuil1!$Q368,Feuil1!$R$1:$T$380,2,0))) ->  | O21: =IF(ISERROR(VLOOKUP(Feuil1!$Q368,Feuil1!$R$1:$T$380,3,0)),"",(VLOOKUP(Feuil1!$Q368,Feuil1!$R$1:$T$380,3,0))) ->  | P21: =IF(ISERROR(VLOOKUP(Feuil1!$Q369,Feuil1!$R$1:$T$380,2,0)),"",(VLOOKUP(Feuil1!$Q369,Feuil1!$R$1:$T$380,2,0))) ->  | Q21: =IF(ISERROR(VLOOKUP(Feuil1!$Q369,Feuil1!$R$1:$T$380,3,0)),"",(VLOOKUP(Feuil1!$Q369,Feuil1!$R$1:$T$380,3,0))) ->  | R21: =IF(ISERROR(VLOOKUP(Feuil1!$Q370,Feuil1!$R$1:$T$380,2,0)),"",(VLOOKUP(Feuil1!$Q370,Feuil1!$R$1:$T$380,2,0))) ->  | S21: =IF(ISERROR(VLOOKUP(Feuil1!$Q370,Feuil1!$R$1:$T$380,3,0)),"",(VLOOKUP(Feuil1!$Q370,Feuil1!$R$1:$T$380,3,0))) ->  | T21: =IF(ISERROR(VLOOKUP(Feuil1!$Q371,Feuil1!$R$1:$T$380,2,0)),"",(VLOOKUP(Feuil1!$Q371,Feuil1!$R$1:$T$380,2,0))) ->  | U21: =IF(ISERROR(VLOOKUP(Feuil1!$Q371,Feuil1!$R$1:$T$380,3,0)),"",(VLOOKUP(Feuil1!$Q371,Feuil1!$R$1:$T$380,3,0))) ->  | V21: =IF(ISERROR(VLOOKUP(Feuil1!$Q372,Feuil1!$R$1:$T$380,2,0)),"",(VLOOKUP(Feuil1!$Q372,Feuil1!$R$1:$T$380,2,0))) ->  | W21: =IF(ISERROR(VLOOKUP(Feuil1!$Q372,Feuil1!$R$1:$T$380,3,0)),"",(VLOOKUP(Feuil1!$Q372,Feuil1!$R$1:$T$380,3,0))) ->  | X21: =IF(ISERROR(VLOOKUP(Feuil1!$Q373,Feuil1!$R$1:$T$380,2,0)),"",(VLOOKUP(Feuil1!$Q373,Feuil1!$R$1:$T$380,2,0))) ->  | Y21: =IF(ISERROR(VLOOKUP(Feuil1!$Q373,Feuil1!$R$1:$T$380,3,0)),"",(VLOOKUP(Feuil1!$Q373,Feuil1!$R$1:$T$380,3,0))) ->  | Z21: =IF(ISERROR(VLOOKUP(Feuil1!$Q374,Feuil1!$R$1:$T$380,2,0)),"",(VLOOKUP(Feuil1!$Q374,Feuil1!$R$1:$T$380,2,0))) ->  | AA21: =IF(ISERROR(VLOOKUP(Feuil1!$Q374,Feuil1!$R$1:$T$380,3,0)),"",(VLOOKUP(Feuil1!$Q374,Feuil1!$R$1:$T$380,3,0))) ->  | AB21: =IF(ISERROR(VLOOKUP(Feuil1!$Q375,Feuil1!$R$1:$T$380,2,0)),"",(VLOOKUP(Feuil1!$Q375,Feuil1!$R$1:$T$380,2,0))) ->  | AC21: =IF(ISERROR(VLOOKUP(Feuil1!$Q375,Feuil1!$R$1:$T$380,3,0)),"",(VLOOKUP(Feuil1!$Q375,Feuil1!$R$1:$T$380,3,0))) ->  | AD21: =IF(ISERROR(VLOOKUP(Feuil1!$Q376,Feuil1!$R$1:$T$380,2,0)),"",(VLOOKUP(Feuil1!$Q376,Feuil1!$R$1:$T$380,2,0))) ->  | AE21: =IF(ISERROR(VLOOKUP(Feuil1!$Q376,Feuil1!$R$1:$T$380,3,0)),"",(VLOOKUP(Feuil1!$Q376,Feuil1!$R$1:$T$380,3,0))) ->  | AF21: =IF(ISERROR(VLOOKUP(Feuil1!$Q377,Feuil1!$R$1:$T$380,2,0)),"",(VLOOKUP(Feuil1!$Q377,Feuil1!$R$1:$T$380,2,0))) ->  | AG21: =IF(ISERROR(VLOOKUP(Feuil1!$Q377,Feuil1!$R$1:$T$380,3,0)),"",(VLOOKUP(Feuil1!$Q377,Feuil1!$R$1:$T$380,3,0))) ->  | AH21: =IF(ISERROR(VLOOKUP(Feuil1!$Q378,Feuil1!$R$1:$T$380,2,0)),"",(VLOOKUP(Feuil1!$Q378,Feuil1!$R$1:$T$380,2,0))) ->  | AI21: =IF(ISERROR(VLOOKUP(Feuil1!$Q378,Feuil1!$R$1:$T$380,3,0)),"",(VLOOKUP(Feuil1!$Q378,Feuil1!$R$1:$T$380,3,0))) ->  | AJ21: =IF(ISERROR(VLOOKUP(Feuil1!$Q379,Feuil1!$R$1:$T$380,2,0)),"",(VLOOKUP(Feuil1!$Q379,Feuil1!$R$1:$T$380,2,0))) ->  | AK21: =IF(ISERROR(VLOOKUP(Feuil1!$Q379,Feuil1!$R$1:$T$380,3,0)),"",(VLOOKUP(Feuil1!$Q379,Feuil1!$R$1:$T$380,3,0))) ->  | AL21: =IF(ISERROR(VLOOKUP(Feuil1!$Q380,Feuil1!$R$1:$T$380,2,0)),"",(VLOOKUP(Feuil1!$Q380,Feuil1!$R$1:$T$380,2,0))) ->  | AM21: =IF(ISERROR(VLOOKUP(Feuil1!$Q380,Feuil1!$R$1:$T$380,3,0)),"",(VLOOKUP(Feuil1!$Q380,Feuil1!$R$1:$T$380,3,0))) ->  | AP21: ='J38'!AY24 -> 0 | AR21: ='J38'!BA24 -> 0 | AT21: ='J38'!AZ24 -> 0

Sheet STATS
A1: MEILLEURE ATTAQUE | D1: MEILLEURE DEFENSE | G1: MEILLEUR GOAL AVERAGE
A2: ='J01'!AN5:AR5 -> 0 | B2: =IF(A2<>"",REPT("g",ROUND(C2*21,3)),"") ->  | C2: =PERCENTRANK($K$2:$K$21,K2) -> 0 | D2: =A2 -> 0 | E2: =IF(D2<>"",REPT("g",ROUND(F2*21,3)),"") ->  | F2: =PERCENTRANK($M$2:$M$21,M2) -> 0 | G2: =A2 -> 0 | H2: =IF(G2<>"",REPT("g",ROUND(I2*21,3)),"") ->  | I2: =PERCENTRANK($N$2:$N$21,N2) -> 0 | K2: ='J38'!BB5 -> 0 | L2: ='J38'!BC5 -> 0 | M2: =RANK(L2,$L$2:$L$21) -> 1 | N2: ='J38'!BD5 -> 0 | O2: =SUM(('J38'!BE5*3)+'J38'!BF5) -> 0 | P2: =SUM(('J38'!BH5*3)+'J38'!BI5) -> 0
A3: ='J01'!AN6:AR6 -> 0 | B3: =IF(A3<>"",REPT("g",ROUND(C3*21,3)),"") ->  | C3: 0 | D3: =A3 -> 0 | E3: =IF(D3<>"",REPT("g",ROUND(F3*21,3)),"") ->  | F3: =PERCENTRANK($M$2:$M$21,M3) -> 0 | G3: =A3 -> 0 | H3: =IF(G3<>"",REPT("g",ROUND(I3*21,3)),"") ->  | I3: =PERCENTRANK($N$2:$N$21,N3) -> 0 | K3: ='J38'!BB6 -> 0 | L3: ='J38'!BC6 -> 0 | M3: =RANK(L3,$L$2:$L$21) -> 1 | N3: ='J38'!BD6 -> 0 | O3: =SUM(('J38'!BE6*3)+'J38'!BF6) -> 0 | P3: =SUM(('J38'!BH6*3)+'J38'!BI6) -> 0
A4: ='J01'!AN7:AR7 -> 0 | C4: 0 | D4: 0 | F4: 0 | G4: 0 | I4: 0 | K4: ='J38'!BB7 -> 0 | L4: ='J38'!BC7 -> 0 | M4: 1 | N4: ='J38'!BD7 -> 0 | O4: =SUM(('J38'!BE7*3)+'J38'!BF7) -> 0 | P4: =SUM(('J38'!BH7*3)+'J38'!BI7) -> 0
A5: ='J01'!AN8:AR8 -> 0 | C5: 0 | D5: 0 | F5: 0 | G5: 0 | I5: 0 | K5: ='J38'!BB8 -> 0 | L5: ='J38'!BC8 -> 0 | M5: 1 | N5: ='J38'!BD8 -> 0 | O5: =SUM(('J38'!BE8*3)+'J38'!BF8) -> 0 | P5: =SUM(('J38'!BH8*3)+'J38'!BI8) -> 0
A6: ='J01'!AN9:AR9 -> 0 | C6: 0 | D6: 0 | F6: 0 | G6: 0 | I6: 0 | K6: ='J38'!BB9 -> 0 | L6: ='J38'!BC9 -> 0 | M6: 1 | N6: ='J38'!BD9 -> 0 | O6: =SUM(('J38'!BE9*3)+'J38'!BF9) -> 0 | P6: =SUM(('J38'!BH9*3)+'J38'!BI9) -> 0
A7: ='J01'!AN10:AR10 -> 0 | C7: 0 | D7: 0 | F7: 0 | G7: 0 | I7: 0 | K7: ='J38'!BB10 -> 0 | L7: ='J38'!BC10 -> 0 | M7: 1 | N7: ='J38'!BD10 -> 0 | O7: =SUM(('J38'!BE10*3)+'J38'!BF10) -> 0 | P7: =SUM(('J38'!BH10*3)+'J38'!BI10) -> 0
A8: ='J01'!AN11:AR11 -> 0 | C8: 0 | D8: 0 | F8: 0 | G8: 0 | I8: 0 | K8: ='J38'!BB11 -> 0 | L8: ='J38'!BC11 -> 0 | M8: 1 | N8: ='J38'!BD11 -> 0 | O8: =SUM(('J38'!BE11*3)+'J38'!BF11) -> 0 | P8: =SUM(('J38'!BH11*3)+'J38'!BI11) -> 0
A9: ='J01'!AN12:AR12 -> 0 | C9: 0 | D9: 0 | F9: 0 | G9: 0 | I9: 0 | K9: ='J38'!BB12 -> 0 | L9: ='J38'!BC12 -> 0 | M9: 1 | N9: ='J38'!BD12 -> 0 | O9: =SUM(('J38'!BE12*3)+'J38'!BF12) -> 0 | P9: =SUM(('J38'!BH12*3)+'J38'!BI12) -> 0
A10: ='J01'!AN13:AR13 -> 0 | C10: 0 | D10: 0 | F10: 0 | G10: 0 | I10: 0 | K10: ='J38'!BB13 -> 0 | L10: ='J38'!BC13 -> 0 | M10: 1 | N10: ='J38'!BD13 -> 0 | O10: =SUM(('J38'!BE13*3)+'J38'!BF13) -> 0 | P10: =SUM(('J38'!BH13*3)+'J38'!BI13) -> 0
A11: ='J01'!AN14:AR14 -> 0 | C11: 0 | D11: 0 | F11: 0 | G11: 0 | I11: 0 | K11: ='J38'!BB14 -> 0 | L11: ='J38'!BC14 -> 0 | M11: 1 | N11: ='J38'!BD14 -> 0 | O11: =SUM(('J38'!BE14*3)+'J38'!BF14) -> 0 | P11: =SUM(('J38'!BH14*3)+'J38'!BI14) -> 0
A12: ='J01'!AN15:AR15 -> 0 | C12: 0 | D12: 0 | F12: 0 | G12: 0 | I12: 0 | K12: ='J38'!BB15 -> 0 | L12: ='J38'!BC15 -> 0 | M12: 1 | N12: ='J38'!BD15 -> 0 | O12: =SUM(('J38'!BE15*3)+'J38'!BF15) -> 0 | P12: =SUM(('J38'!BH15*3)+'J38'!BI15) -> 0
A13: ='J01'!AN16:AR16 -> 0 | C13: 0 | D13: 0 | F13: 0 | G13: 0 | I13: 0 | K13: ='J38'!BB16 -> 0 | L13: ='J38'!BC16 -> 0 | M13: 1 | N13: ='J38'!BD16 -> 0 | O13: =SUM(('J38'!BE16*3)+'J38'!BF16) -> 0 | P13: =SUM(('J38'!BH16*3)+'J38'!BI16) -> 0
A14: ='J01'!AN17:AR17 -> 0 | C14: 0 | D14: 0 | F14: 0 | G14: 0 | I14: 0 | K14: ='J38'!BB17 -> 0 | L14: ='J38'!BC17 -> 0 | M14: 1 | N14: ='J38'!BD17 -> 0 | O14: =SUM(('J38'!BE17*3)+'J38'!BF17) -> 0 | P14: =SUM(('J38'!BH17*3)+'J38'!BI17) -> 0
A15: ='J01'!AN18:AR18 -> 0 | C15: 0 | D15: 0 | F15: 0 | G15: 0 | I15: 0 | K15: ='J38'!BB18 -> 0 | L15: ='J38'!BC18 -> 0 | M15: 1 | N15: ='J38'!BD18 -> 0 | O15: =SUM(('J38'!BE18*3)+'J38'!BF18) -> 0 | P15: =SUM(('J38'!BH18*3)+'J38'!BI18) -> 0
A16: ='J01'!AN19:AR19 -> 0 | C16: 0 | D16: 0 | F16: 0 | G16: 0 | I16: 0 | K16: ='J38'!BB19 -> 0 | L16: ='J38'!BC19 -> 0 | M16: 1 | N16: ='J38'!BD19 -> 0 | O16: =SUM(('J38'!BE19*3)+'J38'!BF19) -> 0 | P16: =SUM(('J38'!BH19*3)+'J38'!BI19) -> 0
A17: ='J01'!AN20:AR20 -> 0 | C17: 0 | D17: 0 | F17: 0 | G17: 0 | I17: 0 | K17: ='J38'!BB20 -> 0 | L17: ='J38'!BC20 -> 0 | M17: 1 | N17: ='J38'!BD20 -> 0 | O17: =SUM(('J38'!BE20*3)+'J38'!BF20) -> 0 | P17: =SUM(('J38'!BH20*3)+'J38'!BI20) -> 0
A18: ='J01'!AN21:AR21 -> 0 | C18: 0 | D18: 0 | F18: 0 | G18: 0 | I18: 0 | K18: ='J38'!BB21 -> 0 | L18: ='J38'!BC21 -> 0 | M18: 1 | N18: ='J38'!BD21 -> 0 | O18: =SUM(('J38'!BE21*3)+'J38'!BF21) -> 0 | P18: =SUM(('J38'!BH21*3)+'J38'!BI21) -> 0
A19: ='J01'!AN22:AR22 -> 0 | C19: 0 | D19: 0 | F19: 0 | G19: 0 | I19: 0 | K19: ='J38'!BB22 -> 0 | L19: ='J38'!BC22 -> 0 | M19: 1 | N19: ='J38'!BD22 -> 0 | O19: =SUM(('J38'!BE22*3)+'J38'!BF22) -> 0 | P19: =SUM(('J38'!BH22*3)+'J38'!BI22) -> 0
A20: ='J01'!AN23:AR23 -> 0 | C20: 0 | D20: 0 | F20: 0 | G20: 0 | I20: 0 | K20: ='J38'!BB23 -> 0 | L20: ='J38'!BC23 -> 0 | M20: 1 | N20: ='J38'!BD23 -> 0 | O20: =SUM(('J38'!BE23*3)+'J38'!BF23) -> 0 | P20: =SUM(('J38'!BH23*3)+'J38'!BI23) -> 0
A21: ='J01'!AN24:AR24 -> 0 | C21: 0 | D21: 0 | F21: 0 | G21: 0 | I21: 0 | K21: ='J38'!BB24 -> 0 | L21: ='J38'!BC24 -> 0 | M21: 1 | N21: ='J38'!BD24 -> 0 | O21: =SUM(('J38'!BE24*3)+'J38'!BF24) -> 0 | P21: =SUM(('J38'!BH24*3)+'J38'!BI24) -> 0
A22: MEILLEURE EQUIPE DOMICILE | D22: MEILLEURE EQUIPE EXTERIEUR
A23: =A2 -> 0 | B23: =IF(A23<>"",REPT("g",ROUND(C23*21,3)),"") ->  | C23: =PERCENTRANK($O$2:$O$21,O2) -> 0 | D23: =A23 -> 0 | E23: =IF(D23<>"",REPT("g",ROUND(F23*21,3)),"") ->  | F23: =PERCENTRANK($P$2:$P$21,P2) -> 0
A24: =A3 -> 0 | B24: =IF(A24<>"",REPT("g",ROUND(C24*21,3)),"") ->  | C24: =PERCENTRANK($O$2:$O$21,O3) -> 0 | D24: =A24 -> 0 | E24: =IF(D24<>"",REPT("g",ROUND(F24*21,3)),"") ->  | F24: =PERCENTRANK($P$2:$P$21,P3) -> 0
A25: 0 | C25: 0 | D25: 0 | F25: 0
A26: 0 | C26: 0 | D26: 0 | F26: 0
A27: 0 | C27: 0 | D27: 0 | F27: 0
A28: 0 | C28: 0 | D28: 0 | F28: 0
A29: 0 | C29: 0 | D29: 0 | F29: 0
A30: 0 | C30: 0 | D30: 0 | F30: 0
A31: 0 | C31: 0 | D31: 0 | F31: 0
A32: 0 | C32: 0 | D32: 0 | F32: 0
A33: 0 | C33: 0 | D33: 0 | F33: 0
A34: 0 | C34: 0 | D34: 0 | F34: 0
A35: 0 | C35: 0 | D35: 0 | F35: 0
A36: 0 | C36: 0 | D36: 0 | F36: 0
A37: 0 | C37: 0 | D37: 0 | F37: 0
A38: 0 | C38: 0 | D38: 0 | F38: 0
A39: 0 | C39: 0 | D39: 0 | F39: 0
A40: 0 | C40: 0 | D40: 0 | F40: 0
A41: 0 | C41: 0 | D41: 0 | F41: 0
A42: 0 | C42: 0 | D42: 0 | F42: 0

Sheet J01
H1: JOURNÉE 01 | P1: CLASSEMENT | AN1: CLASSEMENT
A3: p | B3: Équipes | G3: Buts | H3: Buts | I3: Équipes | N3: p | P3: Équipes | U3: Évolution | W3: R | X3: Pts | Y3: J | Z3: G | AA3: N | AB3: P | AC3: B + | AD3: B - | AE3: Diff | AF3: Domicile | AI3: Extérieur | AN3: Équipes | AS3: R | AT3: Evolution | AV3: R | AW3: Pts | AX3: J | AY3: G | AZ3: N | BA3: P | BB3: B + | BC3: B - | BD3: Diff | BE3: Domicile | BH3: Exterieur | CE3: DOMICILE | CH3: EXTERIRUR
AF4: G | AG4: N | AH4: P | AI4: G | AJ4: N | AK4: P | AM4: R | BE4: G | BF4: N | BG4: P | BH4: G | BI4: N | BJ4: P | BK4: % | BL4: % | BM4: P | BN4: P | BO4: Pts | BP4: Pts | BQ4: T Pts | BR4: T Pts | BS4: J | BT4: J | BU4: G | BV4: G | BW4: N | BX4: N | BY4: P | BZ4: P | CA4: B + | CB4: B + | CC4: B - | CD4: B - | CE4: G | CF4: N | CG4: P | CH4: G | CI4: N | CJ4: P | CL4: Equipes | CM4: % | CN4: R
P5: =VLOOKUP(AL5,$AM$5:$AR$24,2,0) -> 0 | U5: =VLOOKUP(P5,$AN$5:$BJ$24,7,0) ->  | V5: =VLOOKUP(P5,$AN$5:$BJ$24,8,0) ->  | W5: 1 | X5: =VLOOKUP(P5,$AN$5:$BJ$24,10,0) ->  | Y5: =VLOOKUP(P5,$AN$5:$BJ$24,11,0) ->  | Z5: =VLOOKUP(P5,$AN$5:$BJ$24,12,0) ->  | AA5: =VLOOKUP(P5,$AN$5:$BJ$24,13,0) ->  | AB5: =VLOOKUP(P5,$AN$5:$BJ$24,14,0) ->  | AC5: =VLOOKUP(P5,$AN$5:$BJ$24,15,0) ->  | AD5: =VLOOKUP(P5,$AN$5:$BJ$24,16,0) ->  | AE5: =VLOOKUP(P5,$AN$5:$BJ$24,17,0) ->  | AF5: =VLOOKUP(P5,$AN$5:$BJ$24,18,0) ->  | AG5: =VLOOKUP(P5,$AN$5:$BJ$24,19,0) ->  | AH5: =VLOOKUP(P5,$AN$5:$BJ$24,20,0) ->  | AI5: =VLOOKUP(P5,$AN$5:$BJ$24,21,0) ->  | AJ5: =VLOOKUP(P5,$AN$5:$BJ$24,22,0) ->  | AK5: =VLOOKUP(P5,$AN$5:$BJ$24,23,0) ->  | AL5: 1 | AM5: =AV5 -> 1 | AS5: =RANK(BK5,$BK$5:$BK$24) -> 1 | AT5: 0 | AU5: u | AV5: =RANK(BL5,$BL$5:$BL$24) -> 1 | AW5: =SUMPRODUCT(($B$5:$F$14=AN5)*($BQ$5:$BQ$14))+SUMPRODUCT(($I$5:$M$14=AN5)*($BR$5:$BR$14)) -> 0 | AX5: =SUMPRODUCT(($B$5:$F$14=AN5)*($BS$5:$BS$14))+SUMPRODUCT(($I$5:$M$14=AN5)*($BT$5:$BT$14)) -> 0 | AY5: =SUMPRODUCT(($B$5:$F$14=AN5)*($BU$5:$BU$14))+SUMPRODUCT(($I$5:$M$14=AN5)*($BV$5:$BV$14)) -> 0 | AZ5: =SUMPRODUCT(($B$5:$F$14=AN5)*($BW$5:$BW$14))+SUMPRODUCT(($I$5:$M$14=AN5)*($BX$5:$BX$14)) -> 0 | BA5: =SUMPRODUCT(($B$5:$F$14=AN5)*($BY$5:$BY$14))+SUMPRODUCT(($I$5:$M$14=AN5)*($BZ$5:$BZ$14)) -> 0 | BB5: =SUMPRODUCT(($B$5:$F$14=AN5)*($CA$5:$CA$14))+SUMPRODUCT(($I$5:$M$14=AN5)*($CB$5:$CB$14)) -> 0 | BC5: =SUMPRODUCT(($B$5:$F$14=AN5)*($CC$5:$CC$14))+SUMPRODUCT(($I$5:$M$14=AN5)*($CD$5:$CD$14)) -> 0 | BD5: =BB5-BC5 -> 0 | BE5: =SUMPRODUCT(($B$5:$F$14=AN5)*($CE$5:$CE$14)) -> 0 | BF5: =SUMPRODUCT(($B$5:$F$14=AN5)*($CF$5:$CF$14)) -> 0 | BG5: =SUMPRODUCT(($B$5:$F$14=AN5)*($CG$5:$CG$14)) -> 0 | BH5: =SUMPRODUCT(($I$5:$M$14=AN5)*($CH$5:$CH$14)) -> 0 | BI5: =SUMPRODUCT(($I$5:$M$14=AN5)*($CI$5:$CI$14)) -> 0 | BJ5: =SUMPRODUCT(($I$5:$M$14=AN5)*($CJ$5:$CJ$14)) -> 0 | BK5: =SUM(AW5*1000+(BD5)/100+(BB5)/1000) -> 0 | BL5: =BK5+0.000002 -> 2e-06 | BM5: =A5 -> 0 | BN5: =N5 -> 0 | BO5: =IF(G5="",0,IF(G5>H5,3,IF(G5=H5,1,IF(G5<H5,0)))) -> 0 | BP5: =IF(H5="",0,IF(H5>G5,3,IF(H5=G5,1,IF(H5<G5,0)))) -> 0 | BQ5: =BO5-BM5 -> 0 | BR5: =BP5-BN5 -> 0 | BS5: =IF(G5="",0,1) -> 0 | BT5: =IF(H5="",0,1) -> 0 | BU5: =IF(G5<>"",IF(G5>H5,1)) -> FALSE | BV5: =IF(H5<>"",IF(H5>G5,1)) -> FALSE | BW5: =IF(G5<>"",IF(G5=H5,1)) -> FALSE | BX5: =IF(H5<>"",IF(H5=G5,1)) -> FALSE | BY5: =IF(G5<>"",IF(G5<H5,1)) -> FALSE | BZ5: =IF(H5<>"",IF(H5<G5,1)) -> FALSE | CA5: =G5 -> 0 | CB5: =H5 -> 0 | CC5: =H5 -> 0 | CD5: =G5 -> 0 | CE5: =IF(G5<>"",IF(G5>H5,1)) -> FALSE | CF5: =IF(G5<>"",IF(G5=H5,1)) -> FALSE | CG5: =IF(G5<>"",IF(G5<H5,1)) -> FALSE | CH5: =IF(H5<>"",IF(H5>G5,1)) -> FALSE | CI5: =IF(H5<>"",IF(H5=G5,1)) -> FALSE | CJ5: =IF(H5<>"",IF(H5<G5,1)) -> FALSE | CL5: =VLOOKUP(AL5,$AM$5:$AR$24,2,0) -> 0 | CM5: =VLOOKUP(CL5,$AN$5:$BK$24,24,0) ->  | CN5: =RANK(CM5,$CM$5:$CM$24) ->  | CO5: =AN5 -> 0
P6: =VLOOKUP(AL6,$AM$5:$AR$24,2,0) -> 0 | U6: =VLOOKUP(P6,$AN$5:$BJ$24,7,0) ->  | V6: =VLOOKUP(P6,$AN$5:$BJ$24,8,0) ->  | W6: =IF(CM6=CM5,CN5,CN6) ->  | X6: =VLOOKUP(P6,$AN$5:$BJ$24,10,0) ->  | Y6: =VLOOKUP(P6,$AN$5:$BJ$24,11,0) ->  | Z6: =VLOOKUP(P6,$AN$5:$BJ$24,12,0) ->  | AA6: =VLOOKUP(P6,$AN$5:$BJ$24,13,0) ->  | AB6: =VLOOKUP(P6,$AN$5:$BJ$24,14,0) ->  | AC6: =VLOOKUP(P6,$AN$5:$BJ$24,15,0) ->  | AD6: =VLOOKUP(P6,$AN$5:$BJ$24,16,0) ->  | AE6: =VLOOKUP(P6,$AN$5:$BJ$24,17,0) ->  | AF6: =VLOOKUP(P6,$AN$5:$BJ$24,18,0) ->  | AG6: =VLOOKUP(P6,$AN$5:$BJ$24,19,0) ->  | AH6: =VLOOKUP(P6,$AN$5:$BJ$24,20,0) ->  | AI6: =VLOOKUP(P6,$AN$5:$BJ$24,21,0) ->  | AJ6: =VLOOKUP(P6,$AN$5:$BJ$24,22,0) ->  | AK6: =VLOOKUP(P6,$AN$5:$BJ$24,23,0) ->  | AL6: 2 | AM6: =AV6 -> 2 | AS6: =RANK(BK6,$BK$5:$BK$24) -> 1 | AT6: 0 | AU6: u | AV6: =RANK(BL6,$BL$5:$BL$24) -> 2 | AW6: =SUMPRODUCT(($B$5:$F$14=AN6)*($BQ$5:$BQ$14))+SUMPRODUCT(($I$5:$M$14=AN6)*($BR$5:$BR$14)) -> 0 | AX6: =SUMPRODUCT(($B$5:$F$14=AN6)*($BS$5:$BS$14))+SUMPRODUCT(($I$5:$M$14=AN6)*($BT$5:$BT$14)) -> 0 | AY6: =SUMPRODUCT(($B$5:$F$14=AN6)*($BU$5:$BU$14))+SUMPRODUCT(($I$5:$M$14=AN6)*($BV$5:$BV$14)) -> 0 | AZ6: =SUMPRODUCT(($B$5:$F$14=AN6)*($BW$5:$BW$14))+SUMPRODUCT(($I$5:$M$14=AN6)*($BX$5:$BX$14)) -> 0 | BA6: =SUMPRODUCT(($B$5:$F$14=AN6)*($BY$5:$BY$14))+SUMPRODUCT(($I$5:$M$14=AN6)*($BZ$5:$BZ$14)) -> 0 | BB6: =SUMPRODUCT(($B$5:$F$14=AN6)*($CA$5:$CA$14))+SUMPRODUCT(($I$5:$M$14=AN6)*($CB$5:$CB$14)) -> 0 | BC6: =SUMPRODUCT(($B$5:$F$14=AN6)*($CC$5:$CC$14))+SUMPRODUCT(($I$5:$M$14=AN6)*($CD$5:$CD$14)) -> 0 | BD6: =BB6-BC6 -> 0 | BE6: =SUMPRODUCT(($B$5:$F$14=AN6)*($CE$5:$CE$14)) -> 0 | BF6: =SUMPRODUCT(($B$5:$F$14=AN6)*($CF$5:$CF$14)) -> 0 | BG6: =SUMPRODUCT(($B$5:$F$14=AN6)*($CG$5:$CG$14)) -> 0 | BH6: =SUMPRODUCT(($I$5:$M$14=AN6)*($CH$5:$CH$14)) -> 0 | BI6: =SUMPRODUCT(($I$5:$M$14=AN6)*($CI$5:$CI$14)) -> 0 | BJ6: =SUMPRODUCT(($I$5:$M$14=AN6)*($CJ$5:$CJ$14)) -> 0 | BK6: =SUM(AW6*1000+(BD6)/100+(BB6)/1000) -> 0 | BL6: =BK6+0.0000019 -> 1.9e-06 | BM6: =A6 -> 0 | BN6: =N6 -> 0 | BO6: =IF(G6="",0,IF(G6>H6,3,IF(G6=H6,1,IF(G6<H6,0)))) -> 0 | BP6: =IF(H6="",0,IF(H6>G6,3,IF(H6=G6,1,IF(H6<G6,0)))) -> 0 | BQ6: =BO6-BM6 -> 0 | BR6: =BP6-BN6 -> 0 | BS6: =IF(G6="",0,1) -> 0 | BT6: =IF(H6="",0,1) -> 0 | BU6: =IF(G6<>"",IF(G6>H6,1)) -> FALSE | BV6: =IF(H6<>"",IF(H6>G6,1)) -> FALSE | BW6: =IF(G6<>"",IF(G6=H6,1)) -> FALSE | BX6: =IF(H6<>"",IF(H6=G6,1)) -> FALSE | BY6: =IF(G6<>"",IF(G6<H6,1)) -> FALSE | BZ6: =IF(H6<>"",IF(H6<G6,1)) -> FALSE | CA6: =G6 -> 0 | CB6: =H6 -> 0 | CC6: =H6 -> 0 | CD6: =G6 -> 0 | CE6: =IF(G6<>"",IF(G6>H6,1)) -> FALSE | CF6: =IF(G6<>"",IF(G6=H6,1)) -> FALSE | CG6: =IF(G6<>"",IF(G6<H6,1)) -> FALSE | CH6: =IF(H6<>"",IF(H6>G6,1)) -> FALSE | CI6: =IF(H6<>"",IF(H6=G6,1)) -> FALSE | CJ6: =IF(H6<>"",IF(H6<G6,1)) -> FALSE | CL6: =VLOOKUP(AL6,$AM$5:$AR$24,2,0) -> 0 | CM6: =VLOOKUP(CL6,$AN$5:$BK$24,24,0) ->  | CN6: =RANK(CM6,$CM$5:$CM$24) ->  | CO6: =AN6 -> 0
P7: 0 | W7: =IF(CM7=CM6,CN6,CN7) ->  | AL7: 3 | AM7: 3 | AS7: 1 | AT7: 0 | AU7: u | AV7: 3 | AW7: 0 | AX7: 0 | AY7: 0 | AZ7: 0 | BA7: 0 | BB7: 0 | BC7: 0 | BD7: 0 | BE7: 0 | BF7: 0 | BG7: 0 | BH7: 0 | BI7: 0 | BJ7: 0 | BK7: 0 | BL7: =BK7+0.0000018 -> 1.8e-06 | BM7: 0 | BN7: 0 | BO7: 0 | BP7: 0 | BQ7: 0 | BR7: 0 | BS7: 0 | BT7: 0 | BU7: FALSE | BV7: FALSE | BW7: FALSE | BX7: FALSE | BY7: FALSE | BZ7: FALSE | CA7: 0 | CB7: 0 | CC7: 0 | CD7: 0 | CE7: FALSE | CF7: FALSE | CG7: FALSE | CH7: FALSE | CI7: FALSE | CJ7: FALSE | CL7: 0 | CO7: 0
P8: 0 | AL8: 4 | AM8: 4 | AS8: 1 | AT8: 0 | AU8: u | AV8: 4 | AW8: 0 | AX8: 0 | AY8: 0 | AZ8: 0 | BA8: 0 | BB8: 0 | BC8: 0 | BD8: 0 | BE8: 0 | BF8: 0 | BG8: 0 | BH8: 0 | BI8: 0 | BJ8: 0 | BK8: 0 | BL8: =BK8+0.0000017 -> 1.7e-06 | BM8: 0 | BN8: 0 | BO8: 0 | BP8: 0 | BQ8: 0 | BR8: 0 | BS8: 0 | BT8: 0 | BU8: FALSE | BV8: FALSE | BW8: FALSE | BX8: FALSE | BY8: FALSE | BZ8: FALSE | CA8: 0 | CB8: 0 | CC8: 0 | CD8: 0 | CE8: FALSE | CF8: FALSE | CG8: FALSE | CH8: FALSE | CI8: FALSE | CJ8: FALSE | CL8: 0 | CO8: 0
P9: 0 | AL9: 5 | AM9: 5 | AS9: 1 | AT9: 0 | AU9: u | AV9: 5 | AW9: 0 | AX9: 0 | AY9: 0 | AZ9: 0 | BA9: 0 | BB9: 0 | BC9: 0 | BD9: 0 | BE9: 0 | BF9: 0 | BG9: 0 | BH9: 0 | BI9: 0 | BJ9: 0 | BK9: 0 | BL9: =BK9+0.0000016 -> 1.6e-06 | BM9: 0 | BN9: 0 | BO9: 0 | BP9: 0 | BQ9: 0 | BR9: 0 | BS9: 0 | BT9: 0 | BU9: FALSE | BV9: FALSE | BW9: FALSE | BX9: FALSE | BY9: FALSE | BZ9: FALSE | CA9: 0 | CB9: 0 | CC9: 0 | CD9: 0 | CE9: FALSE | CF9: FALSE | CG9: FALSE | CH9: FALSE | CI9: FALSE | CJ9: FALSE | CL9: 0 | CO9: 0
P10: 0 | AL10: 6 | AM10: 6 | AS10: 1 | AT10: 0 | AU10: u | AV10: 6 | AW10: 0 | AX10: 0 | AY10: 0 | AZ10: 0 | BA10: 0 | BB10: 0 | BC10: 0 | BD10: 0 | BE10: 0 | BF10: 0 | BG10: 0 | BH10: 0 | BI10: 0 | BJ10: 0 | BK10: 0 | BL10: =BK10+0.0000015 -> 1.5e-06 | BM10: 0 | BN10: 0 | BO10: 0 | BP10: 0 | BQ10: 0 | BR10: 0 | BS10: 0 | BT10: 0 | BU10: FALSE | BV10: FALSE | BW10: FALSE | BX10: FALSE | BY10: FALSE | BZ10: FALSE | CA10: 0 | CB10: 0 | CC10: 0 | CD10: 0 | CE10: FALSE | CF10: FALSE | CG10: FALSE | CH10: FALSE | CI10: FALSE | CJ10: FALSE | CL10: 0 | CO10: 0
P11: 0 | AL11: 7 | AM11: 7 | AS11: 1 | AT11: 0 | AU11: u | AV11: 7 | AW11: 0 | AX11: 0 | AY11: 0 | AZ11: 0 | BA11: 0 | BB11: 0 | BC11: 0 | BD11: 0 | BE11: 0 | BF11: 0 | BG11: 0 | BH11: 0 | BI11: 0 | BJ11: 0 | BK11: 0 | BL11: =BK11+0.0000014 -> 1.4e-06 | BM11: 0 | BN11: 0 | BO11: 0 | BP11: 0 | BQ11: 0 | BR11: 0 | BS11: 0 | BT11: 0 | BU11: FALSE | BV11: FALSE | BW11: FALSE | BX11: FALSE | BY11: FALSE | BZ11: FALSE | CA11: 0 | CB11: 0 | CC11: 0 | CD11: 0 | CE11: FALSE | CF11: FALSE | CG11: FALSE | CH11: FALSE | CI11: FALSE | CJ11: FALSE | CL11: 0 | CO11: 0
P12: 0 | AL12: 8 | AM12: 8 | AS12: 1 | AT12: 0 | AU12: u | AV12: 8 | AW12: 0 | AX12: 0 | AY12: 0 | AZ12: 0 | BA12: 0 | BB12: 0 | BC12: 0 | BD12: 0 | BE12: 0 | BF12: 0 | BG12: 0 | BH12: 0 | BI12: 0 | BJ12: 0 | BK12: 0 | BL12: =BK12+0.0000013 -> 1.3e-06 | BM12: 0 | BN12: 0 | BO12: 0 | BP12: 0 | BQ12: 0 | BR12: 0 | BS12: 0 | BT12: 0 | BU12: FALSE | BV12: FALSE | BW12: FALSE | BX12: FALSE | BY12: FALSE | BZ12: FALSE | CA12: 0 | CB12: 0 | CC12: 0 | CD12: 0 | CE12: FALSE | CF12: FALSE | CG12: FALSE | CH12: FALSE | CI12: FALSE | CJ12: FALSE | CL12: 0 | CO12: 0
P13: 0 | AL13: 9 | AM13: 9 | AS13: 1 | AT13: 0 | AU13: u | AV13: 9 | AW13: 0 | AX13: 0 | AY13: 0 | AZ13: 0 | BA13: 0 | BB13: 0 | BC13: 0 | BD13: 0 | BE13: 0 | BF13: 0 | BG13: 0 | BH13: 0 | BI13: 0 | BJ13: 0 | BK13: 0 | BL13: =BK13+0.0000012 -> 1.2e-06 | BM13: 0 | BN13: 0 | BO13: 0 | BP13: 0 | BQ13: 0 | BR13: 0 | BS13: 0 | BT13: 0 | BU13: FALSE | BV13: FALSE | BW13: FALSE | BX13: FALSE | BY13: FALSE | BZ13: FALSE | CA13: 0 | CB13: 0 | CC13: 0 | CD13: 0 | CE13: FALSE | CF13: FALSE | CG13: FALSE | CH13: FALSE | CI13: FALSE | CJ13: FALSE | CL13: 0 | CO13: 0
P14: 0 | AL14: 10 | AM14: 10 | AS14: 1 | AT14: 0 | AU14: u | AV14: 10 | AW14: 0 | AX14: 0 | AY14: 0 | AZ14: 0 | BA14: 0 | BB14: 0 | BC14: 0 | BD14: 0 | BE14: 0 | BF14: 0 | BG14: 0 | BH14: 0 | BI14: 0 | BJ14: 0 | BK14: 0 | BL14: =BK14+0.0000011 -> 1.1e-06 | BM14: 0 | BN14: 0 | BO14: 0 | BP14: 0 | BQ14: 0 | BR14: 0 | BS14: 0 | BT14: 0 | BU14: FALSE | BV14: FALSE | BW14: FALSE | BX14: FALSE | BY14: FALSE | BZ14: FALSE | CA14: 0 | CB14: 0 | CC14: 0 | CD14: 0 | CE14: FALSE | CF14: FALSE | CG14: FALSE | CH14: FALSE | CI14: FALSE | CJ14: FALSE | CL14: 0 | CO14: 0
P15: 0 | AL15: 11 | AM15: 11 | AS15: 1 | AT15: 0 | AU15: u | AV15: 11 | AW15: 0 | AX15: 0 | AY15: 0 | AZ15: 0 | BA15: 0 | BB15: 0 | BC15: 0 | BD15: 0 | BE15: 0 | BF15: 0 | BG15: 0 | BH15: 0 | BI15: 0 | BJ15: 0 | BK15: 0 | BL15: =BK15+0.000001 -> 1e-06 | CL15: 0 | CO15: 0
P16: 0 | AL16: 12 | AM16: 12 | AS16: 1 | AT16: 0 | AU16: u | AV16: 12 | AW16: 0 | AX16: 0 | AY16: 0 | AZ16: 0 | BA16: 0 | BB16: 0 | BC16: 0 | BD16: 0 | BE16: 0 | BF16: 0 | BG16: 0 | BH16: 0 | BI16: 0 | BJ16: 0 | BK16: 0 | BL16: =BK16+0.0000009 -> 9e-07 | CL16: 0 | CO16: 0
P17: 0 | AL17: 13 | AM17: 13 | AS17: 1 | AT17: 0 | AU17: u | AV17: 13 | AW17: 0 | AX17: 0 | AY17: 0 | AZ17: 0 | BA17: 0 | BB17: 0 | BC17: 0 | BD17: 0 | BE17: 0 | BF17: 0 | BG17: 0 | BH17: 0 | BI17: 0 | BJ17: 0 | BK17: 0 | BL17: =BK17+0.0000008 -> 8e-07 | CL17: 0 | CO17: 0
P18: 0 | AL18: 14 | AM18: 14 | AS18: 1 | AT18: 0 | AU18: u | AV18: 14 | AW18: 0 | AX18: 0 | AY18: 0 | AZ18: 0 | BA18: 0 | BB18: 0 | BC18: 0 | BD18: 0 | BE18: 0 | BF18: 0 | BG18: 0 | BH18: 0 | BI18: 0 | BJ18: 0 | BK18: 0 | BL18: =BK18+0.0000007 -> 7e-07 | CL18: 0 | CO18: 0
P19: 0 | AL19: 15 | AM19: 15 | AS19: 1 | AT19: 0 | AU19: u | AV19: 15 | AW19: 0 | AX19: 0 | AY19: 0 | AZ19: 0 | BA19: 0 | BB19: 0 | BC19: 0 | BD19: 0 | BE19: 0 | BF19: 0 | BG19: 0 | BH19: 0 | BI19: 0 | BJ19: 0 | BK19: 0 | BL19: =BK19+0.0000006 -> 6e-07 | CL19: 0 | CO19: 0
P20: 0 | AL20: 16 | AM20: 16 | AS20: 1 | AT20: 0 | AU20: u | AV20: 16 | AW20: 0 | AX20: 0 | AY20: 0 | AZ20: 0 | BA20: 0 | BB20: 0 | BC20: 0 | BD20: 0 | BE20: 0 | BF20: 0 | BG20: 0 | BH20: 0 | BI20: 0 | BJ20: 0 | BK20: 0 | BL20: =BK20+0.0000005 -> 5e-07 | CL20: 0 | CO20: 0
P21: 0 | AL21: 17 | AM21: 17 | AS21: 1 | AT21: 0 | AU21: u | AV21: 17 | AW21: 0 | AX21: 0 | AY21: 0 | AZ21: 0 | BA21: 0 | BB21: 0 | BC21: 0 | BD21: 0 | BE21: 0 | BF21: 0 | BG21: 0 | BH21: 0 | BI21: 0 | BJ21: 0 | BK21: 0 | BL21: =BK21+0.0000004 -> 4e-07 | CL21: 0 | CO21: 0
P22: 0 | AL22: 18 | AM22: 18 | AS22: 1 | AT22: 0 | AU22: u | AV22: 18 | AW22: 0 | AX22: 0 | AY22: 0 | AZ22: 0 | BA22: 0 | BB22: 0 | BC22: 0 | BD22: 0 | BE22: 0 | BF22: 0 | BG22: 0 | BH22: 0 | BI22: 0 | BJ22: 0 | BK22: 0 | BL22: =BK22+0.0000003 -> 3e-07 | CL22: 0 | CO22: 0
P23: 0 | AL23: 19 | AM23: 19 | AS23: 1 | AT23: 0 | AU23: u | AV23: 19 | AW23: 0 | AX23: 0 | AY23: 0 | AZ23: 0 | BA23: 0 | BB23: 0 | BC23: 0 | BD23: 0 | BE23: 0 | BF23: 0 | BG23: 0 | BH23: 0 | BI23: 0 | BJ23: 0 | BK23: 0 | BL23: =BK23+0.0000002 -> 2e-07 | CL23: 0 | CO23: 0
P24: 0 | AL24: 20 | AM24: 20 | AS24: 1 | AT24: 0 | AU24: u | AV24: 20 | AW24: 0 | AX24: 0 | AY24: 0 | AZ24: 0 | BA24: 0 | BB24: 0 | BC24: 0 | BD24: 0 | BE24: 0 | BF24: 0 | BG24: 0 | BH24: 0 | BI24: 0 | BJ24: 0 | BK24: 0 | BL24: =BK24+0.0000001 -> 1e-07 | CL24: 0 | CO24: 0
AJ25: Buts Journée | AS25: p | AT25: u | AU25: q
AJ26: =SUM(G5:H14) -> 0 | AS26: p | AT26: u | AU26: q
AJ28: Total Buts
AJ29: =AJ26 -> 0

Sheet J02
H1: JOURNÉE 02 | P1: CLASSEMENT | AN1: CLASSEMENT
A3: p | B3: Équipes | G3: Buts | H3: Buts | I3: Équipes | N3: p | P3: Équipes | U3: Évolution | W3: R | X3: Pts | Y3: J | Z3: G | AA3: N | AB3: P | AC3: B + | AD3: B - | AE3: Diff | AF3: Domicile | AI3: Extérieur | AN3: Équipes | AS3: R | AT3: Evolution | AV3: R | AW3: Pts | AX3: J | AY3: G | AZ3: N | BA3: P | BB3: B + | BC3: B - | BD3: Diff | BE3: Domicile | BH3: Exterieur | CE3: DOMICILE | CH3: EXTERIRUR
AF4: G | AG4: N | AH4: P | AI4: G | AJ4: N | AK4: P | AM4: R | BE4: G | BF4: N | BG4: P | BH4: G | BI4: N | BJ4: P | BK4: % | BL4: % | BM4: P | BN4: P | BO4: Pts | BP4: Pts | BQ4: T Pts | BR4: T Pts | BS4: J | BT4: J | BU4: G | BV4: G | BW4: N | BX4: N | BY4: P | BZ4: P | CA4: B + | CB4: B + | CC4: B - | CD4: B - | CE4: G | CF4: N | CG4: P | CH4: G | CI4: N | CJ4: P | CL4: Equipes | CM4: % | CN4: R
P5: =VLOOKUP(AL5,$AM$5:$AR$24,2,0) -> 0 | U5: =VLOOKUP(P5,$AN$5:$BJ$24,7,0) -> 0 | V5: =VLOOKUP(P5,$AN$5:$BJ$24,8,0) -> u | W5: 1 | X5: =VLOOKUP(P5,$AN$5:$BJ$24,10,0) -> 0 | Y5: =VLOOKUP(P5,$AN$5:$BJ$24,11,0) -> 0 | Z5: =VLOOKUP(P5,$AN$5:$BJ$24,12,0) -> 0 | AA5: =VLOOKUP(P5,$AN$5:$BJ$24,13,0) -> 0 | AB5: =VLOOKUP(P5,$AN$5:$BJ$24,14,0) -> 0 | AC5: =VLOOKUP(P5,$AN$5:$BJ$24,15,0) -> 0 | AD5: =VLOOKUP(P5,$AN$5:$BJ$24,16,0) -> 0 | AE5: =VLOOKUP(P5,$AN$5:$BJ$24,17,0) -> 0 | AF5: =VLOOKUP(P5,$AN$5:$BJ$24,18,0) -> 0 | AG5: =VLOOKUP(P5,$AN$5:$BJ$24,19,0) -> 0 | AH5: =VLOOKUP(P5,$AN$5:$BJ$24,20,0) -> 0 | AI5: =VLOOKUP(P5,$AN$5:$BJ$24,21,0) -> 0 | AJ5: =VLOOKUP(P5,$AN$5:$BJ$24,22,0) -> 0 | AK5: =VLOOKUP(P5,$AN$5:$BJ$24,23,0) -> 0 | AL5: 1 | AM5: =AV5 -> 1 | AN5: ='J01'!AN5:AR5 -> 0 | AS5: =RANK(BK5,$BK$5:$BK$24) -> 1 | AT5: ='J01'!AS5-AS5 -> 0 | AU5: =IF(AS5>'J01'!AS5,'J01'!$AU$25,IF(AS5='J01'!AS5,'J01'!$AT$25,IF(AS5<'J01'!AS5,'J01'!$AS$25))) -> u | AV5: =RANK(BL5,$BL$5:$BL$24) -> 1 | AW5: =SUMPRODUCT(($B$5:$F$14=AN5)*($BQ$5:$BQ$14))+SUMPRODUCT(($I$5:$M$14=AN5)*($BR$5:$BR$14))+'J01'!AW5 -> 0 | AX5: =SUMPRODUCT(($B$5:$F$14=AN5)*($BS$5:$BS$14))+SUMPRODUCT(($I$5:$M$14=AN5)*($BT$5:$BT$14))+'J01'!AX5 -> 0 | AY5: =SUMPRODUCT(($B$5:$F$14=AN5)*($BU$5:$BU$14))+SUMPRODUCT(($I$5:$M$14=AN5)*($BV$5:$BV$14))+'J01'!AY5 -> 0 | AZ5: =SUMPRODUCT(($B$5:$F$14=AN5)*($BW$5:$BW$14))+SUMPRODUCT(($I$5:$M$14=AN5)*($BX$5:$BX$14))+'J01'!AZ5 -> 0 | BA5: =SUMPRODUCT(($B$5:$F$14=AN5)*($BY$5:$BY$14))+SUMPRODUCT(($I$5:$M$14=AN5)*($BZ$5:$BZ$14))+'J01'!BA5 -> 0 | BB5: =SUMPRODUCT(($B$5:$F$14=AN5)*($CA$5:$CA$14))+SUMPRODUCT(($I$5:$M$14=AN5)*($CB$5:$CB$14))+'J01'!BB5 -> 0 | BC5: =SUMPRODUCT(($B$5:$F$14=AN5)*($CC$5:$CC$14))+SUMPRODUCT(($I$5:$M$14=AN5)*($CD$5:$CD$14))+'J01'!BC5 -> 0 | BD5: =BB5-BC5 -> 0 | BE5: =SUMPRODUCT(($B$5:$F$14=AN5)*($CE$5:$CE$14))+'J01'!BE5 -> 0 | BF5: =SUMPRODUCT(($B$5:$F$14=AN5)*($CF$5:$CF$14))+'J01'!BF5 -> 0 | BG5: =SUMPRODUCT(($B$5:$F$14=AN5)*($CG$5:$CG$14))+'J01'!BG5 -> 0 | BH5: =SUMPRODUCT(($I$5:$M$14=AN5)*($CH$5:$CH$14))+'J01'!BH5 -> 0 | BI5: =SUMPRODUCT(($I$5:$M$14=AN5)*($CI$5:$CI$14))+'J01'!BI5 -> 0 | BJ5: =SUMPRODUCT(($I$5:$M$14=AN5)*($CJ$5:$CJ$14))+'J01'!BJ5 -> 0 | BK5: =SUM(AW5*1000+(BD5)/100+(BB5)/1000) -> 0 | BL5: =BK5+0.000002 -> 2e-06 | BM5: =A5 -> 0 | BN5: =N5 -> 0 | BO5: =IF(G5="",0,IF(G5>H5,3,IF(G5=H5,1,IF(G5<H5,0)))) -> 0 | BP5: =IF(H5="",0,IF(H5>G5,3,IF(H5=G5,1,IF(H5<G5,0)))) -> 0 | BQ5: =BO5-BM5 -> 0 | BR5: =BP5-BN5 -> 0 | BS5: =IF(G5="",0,1) -> 0 | BT5: =IF(H5="",0,1) -> 0 | BU5: =IF(G5<>"",IF(G5>H5,1)) -> FALSE | BV5: =IF(H5<>"",IF(H5>G5,1)) -> FALSE | BW5: =IF(G5<>"",IF(G5=H5,1)) -> FALSE | BX5: =IF(H5<>"",IF(H5=G5,1)) -> FALSE | BY5: =IF(G5<>"",IF(G5<H5,1)) -> FALSE | BZ5: =IF(H5<>"",IF(H5<G5,1)) -> FALSE | CA5: =G5 -> 0 | CB5: =H5 -> 0 | CC5: =H5 -> 0 | CD5: =G5 -> 0 | CE5: =IF(G5<>"",IF(G5>H5,1)) -> FALSE | CF5: =IF(G5<>"",IF(G5=H5,1)) -> FALSE | CG5: =IF(G5<>"",IF(G5<H5,1)) -> FALSE | CH5: =IF(H5<>"",IF(H5>G5,1)) -> FALSE | CI5: =IF(H5<>"",IF(H5=G5,1)) -> FALSE | CJ5: =IF(H5<>"",IF(H5<G5,1)) -> FALSE | CL5: =VLOOKUP(AL5,$AM$5:$AR$24,2,0) -> 0 | CM5: =VLOOKUP(CL5,$AN$5:$BK$24,24,0) -> 0 | CN5: =RANK(CM5,$CM$5:$CM$24) -> 1 | CO5: =AN5 -> 0
P6: =VLOOKUP(AL6,$AM$5:$AR$24,2,0) -> 0 | U6: =VLOOKUP(P6,$AN$5:$BJ$24,7,0) -> 0 | V6: =VLOOKUP(P6,$AN$5:$BJ$24,8,0) -> u | W6: =IF(CM6=CM5,CN5,CN6) -> 1 | X6: =VLOOKUP(P6,$AN$5:$BJ$24,10,0) -> 0 | Y6: =VLOOKUP(P6,$AN$5:$BJ$24,11,0) -> 0 | Z6: =VLOOKUP(P6,$AN$5:$BJ$24,12,0) -> 0 | AA6: =VLOOKUP(P6,$AN$5:$BJ$24,13,0) -> 0 | AB6: =VLOOKUP(P6,$AN$5:$BJ$24,14,0) -> 0 | AC6: =VLOOKUP(P6,$AN$5:$BJ$24,15,0) -> 0 | AD6: =VLOOKUP(P6,$AN$5:$BJ$24,16,0) -> 0 | AE6: =VLOOKUP(P6,$AN$5:$BJ$24,17,0) -> 0 | AF6: =VLOOKUP(P6,$AN$5:$BJ$24,18,0) -> 0 | AG6: =VLOOKUP(P6,$AN$5:$BJ$24,19,0) -> 0 | AH6: =VLOOKUP(P6,$AN$5:$BJ$24,20,0) -> 0 | AI6: =VLOOKUP(P6,$AN$5:$BJ$24,21,0) -> 0 | AJ6: =VLOOKUP(P6,$AN$5:$BJ$24,22,0) -> 0 | AK6: =VLOOKUP(P6,$AN$5:$BJ$24,23,0) -> 0 | AL6: 2 | AM6: =AV6 -> 2 | AN6: ='J01'!AN6:AR6 -> 0 | AS6: =RANK(BK6,$BK$5:$BK$24) -> 1 | AT6: ='J01'!AS6-AS6 -> 0 | AU6: =IF(AS6>'J01'!AS6,'J01'!$AU$25,IF(AS6='J01'!AS6,'J01'!$AT$25,IF(AS6<'J01'!AS6,'J01'!$AS$25))) -> u | AV6: =RANK(BL6,$BL$5:$BL$24) -> 2 | AW6: =SUMPRODUCT(($B$5:$F$14=AN6)*($BQ$5:$BQ$14))+SUMPRODUCT(($I$5:$M$14=AN6)*($BR$5:$BR$14))+'J01'!AW6 -> 0 | AX6: =SUMPRODUCT(($B$5:$F$14=AN6)*($BS$5:$BS$14))+SUMPRODUCT(($I$5:$M$14=AN6)*($BT$5:$BT$14))+'J01'!AX6 -> 0 | AY6: =SUMPRODUCT(($B$5:$F$14=AN6)*($BU$5:$BU$14))+SUMPRODUCT(($I$5:$M$14=AN6)*($BV$5:$BV$14))+'J01'!AY6 -> 0 | AZ6: =SUMPRODUCT(($B$5:$F$14=AN6)*($BW$5:$BW$14))+SUMPRODUCT(($I$5:$M$14=AN6)*($BX$5:$BX$14))+'J01'!AZ6 -> 0 | BA6: =SUMPRODUCT(($B$5:$F$14=AN6)*($BY$5:$BY$14))+SUMPRODUCT(($I$5:$M$14=AN6)*($BZ$5:$BZ$14))+'J01'!BA6 -> 0 | BB6: =SUMPRODUCT(($B$5:$F$14=AN6)*($CA$5:$CA$14))+SUMPRODUCT(($I$5:$M$14=AN6)*($CB$5:$CB$14))+'J01'!BB6 -> 0 | BC6: =SUMPRODUCT(($B$5:$F$14=AN6)*($CC$5:$CC$14))+SUMPRODUCT(($I$5:$M$14=AN6)*($CD$5:$CD$14))+'J01'!BC6 -> 0 | BD6: =BB6-BC6 -> 0 | BE6: =SUMPRODUCT(($B$5:$F$14=AN6)*($CE$5:$CE$14))+'J01'!BE6 -> 0 | BF6: =SUMPRODUCT(($B$5:$F$14=AN6)*($CF$5:$CF$14))+'J01'!BF6 -> 0 | BG6: =SUMPRODUCT(($B$5:$F$14=AN6)*($CG$5:$CG$14))+'J01'!BG6 -> 0 | BH6: =SUMPRODUCT(($I$5:$M$14=AN6)*($CH$5:$CH$14))+'J01'!BH6 -> 0 | BI6: =SUMPRODUCT(($I$5:$M$14=AN6)*($CI$5:$CI$14))+'J01'!BI6 -> 0 | BJ6: =SUMPRODUCT(($I$5:$M$14=AN6)*($CJ$5:$CJ$14))+'J01'!BJ6 -> 0 | BK6: =SUM(AW6*1000+(BD6)/100+(BB6)/1000) -> 0 | BL6: =BK6+0.0000019 -> 1.9e-06 | BM6: =A6 -> 0 | BN6: =N6 -> 0 | BO6: =IF(G6="",0,IF(G6>H6,3,IF(G6=H6,1,IF(G6<H6,0)))) -> 0 | BP6: =IF(H6="",0,IF(H6>G6,3,IF(H6=G6,1,IF(H6<G6,0)))) -> 0 | BQ6: =BO6-BM6 -> 0 | BR6: 0 | BS6: =IF(G6="",0,1) -> 0 | BT6: 0 | BU6: =IF(G6<>"",IF(G6>H6,1)) -> FALSE | BV6: =IF(H6<>"",IF(H6>G6,1)) -> FALSE | BW6: =IF(G6<>"",IF(G6=H6,1)) -> FALSE | BX6: =IF(H6<>"",IF(H6=G6,1)) -> FALSE | BY6: =IF(G6<>"",IF(G6<H6,1)) -> FALSE | BZ6: =IF(H6<>"",IF(H6<G6,1)) -> FALSE | CA6: =G6 -> 0 | CB6: 0 | CC6: =H6 -> 0 | CD6: =G6 -> 0 | CE6: =IF(G6<>"",IF(G6>H6,1)) -> FALSE | CF6: =IF(G6<>"",IF(G6=H6,1)) -> FALSE | CG6: =IF(G6<>"",IF(G6<H6,1)) -> FALSE | CH6: =IF(H6<>"",IF(H6>G6,1)) -> FALSE | CI6: =IF(H6<>"",IF(H6=G6,1)) -> FALSE | CJ6: =IF(H6<>"",IF(H6<G6,1)) -> FALSE | CL6: =VLOOKUP(AL6,$AM$5:$AR$24,2,0) -> 0 | CM6: =VLOOKUP(CL6,$AN$5:$BK$24,24,0) -> 0 | CN6: =RANK(CM6,$CM$5:$CM$24) -> 1 | CO6: =AN6 -> 0
P7: 0 | U7: 0 | V7: u | W7: =IF(CM7=CM6,CN6,CN7) -> 1 | X7: 0 | Y7: 0 | Z7: 0 | AA7: 0 | AB7: 0 | AC7: 0 | AD7: 0 | AE7: 0 | AF7: 0 | AG7: 0 | AH7: 0 | AI7: 0 | AJ7: 0 | AK7: 0 | AL7: 3 | AM7: 3 | AN7: ='J01'!AN7:AR7 -> 0 | AS7: 1 | AT7: ='J01'!AS7-AS7 -> 0 | AU7: =IF(AS7>'J01'!AS7,'J01'!$AU$25,IF(AS7='J01'!AS7,'J01'!$AT$25,IF(AS7<'J01'!AS7,'J01'!$AS$25))) -> u | AV7: 3 | AW7: =SUMPRODUCT(($B$5:$F$14=AN7)*($BQ$5:$BQ$14))+SUMPRODUCT(($I$5:$M$14=AN7)*($BR$5:$BR$14))+'J01'!AW7 -> 0 | AX7: =SUMPRODUCT(($B$5:$F$14=AN7)*($BS$5:$BS$14))+SUMPRODUCT(($I$5:$M$14=AN7)*($BT$5:$BT$14))+'J01'!AX7 -> 0 | AY7: =SUMPRODUCT(($B$5:$F$14=AN7)*($BU$5:$BU$14))+SUMPRODUCT(($I$5:$M$14=AN7)*($BV$5:$BV$14))+'J01'!AY7 -> 0 | AZ7: =SUMPRODUCT(($B$5:$F$14=AN7)*($BW$5:$BW$14))+SUMPRODUCT(($I$5:$M$14=AN7)*($BX$5:$BX$14))+'J01'!AZ7 -> 0 | BA7: =SUMPRODUCT(($B$5:$F$14=AN7)*($BY$5:$BY$14))+SUMPRODUCT(($I$5:$M$14=AN7)*($BZ$5:$BZ$14))+'J01'!BA7 -> 0 | BB7: =SUMPRODUCT(($B$5:$F$14=AN7)*($CA$5:$CA$14))+SUMPRODUCT(($I$5:$M$14=AN7)*($CB$5:$CB$14))+'J01'!BB7 -> 0 | BC7: =SUMPRODUCT(($B$5:$F$14=AN7)*($CC$5:$CC$14))+SUMPRODUCT(($I$5:$M$14=AN7)*($CD$5:$CD$14))+'J01'!BC7 -> 0 | BD7: 0 | BE7: =SUMPRODUCT(($B$5:$F$14=AN7)*($CE$5:$CE$14))+'J01'!BE7 -> 0 | BF7: =SUMPRODUCT(($B$5:$F$14=AN7)*($CF$5:$CF$14))+'J01'!BF7 -> 0 | BG7: =SUMPRODUCT(($B$5:$F$14=AN7)*($CG$5:$CG$14))+'J01'!BG7 -> 0 | BH7: =SUMPRODUCT(($I$5:$M$14=AN7)*($CH$5:$CH$14))+'J01'!BH7 -> 0 | BI7: =SUMPRODUCT(($I$5:$M$14=AN7)*($CI$5:$CI$14))+'J01'!BI7 -> 0 | BJ7: =SUMPRODUCT(($I$5:$M$14=AN7)*($CJ$5:$CJ$14))+'J01'!BJ7 -> 0 | BK7: 0 | BL7: =BK7+0.0000018 -> 1.8e-06 | BM7: 0 | BN7: 0 | BO7: 0 | BP7: 0 | BQ7: 0 | BR7: 0 | BS7: 0 | BT7: 0 | BU7: FALSE | BV7: FALSE | BW7: FALSE | BX7: FALSE | BY7: FALSE | BZ7: FALSE | CA7: 0 | CB7: 0 | CC7: 0 | CD7: 0 | CE7: FALSE | CF7: FALSE | CG7: FALSE | CH7: FALSE | CI7: FALSE | CJ7: FALSE | CL7: 0 | CM7: 0 | CN7: 1 | CO7: 0
P8: 0 | U8: 0 | V8: u | W8: 1 | X8: 0 | Y8: 0 | Z8: 0 | AA8: 0 | AB8: 0 | AC8: 0 | AD8: 0 | AE8: 0 | AF8: 0 | AG8: 0 | AH8: 0 | AI8: 0 | AJ8: 0 | AK8: 0 | AL8: 4 | AM8: 4 | AN8: ='J01'!AN8:AR8 -> 0 | AS8: 1 | AT8: ='J01'!AS8-AS8 -> 0 | AU8: =IF(AS8>'J01'!AS8,'J01'!$AU$25,IF(AS8='J01'!AS8,'J01'!$AT$25,IF(AS8<'J01'!AS8,'J01'!$AS$25))) -> u | AV8: 4 | AW8: =SUMPRODUCT(($B$5:$F$14=AN8)*($BQ$5:$BQ$14))+SUMPRODUCT(($I$5:$M$14=AN8)*($BR$5:$BR$14))+'J01'!AW8 -> 0 | AX8: =SUMPRODUCT(($B$5:$F$14=AN8)*($BS$5:$BS$14))+SUMPRODUCT(($I$5:$M$14=AN8)*($BT$5:$BT$14))+'J01'!AX8 -> 0 | AY8: =SUMPRODUCT(($B$5:$F$14=AN8)*($BU$5:$BU$14))+SUMPRODUCT(($I$5:$M$14=AN8)*($BV$5:$BV$14))+'J01'!AY8 -> 0 | AZ8: =SUMPRODUCT(($B$5:$F$14=AN8)*($BW$5:$BW$14))+SUMPRODUCT(($I$5:$M$14=AN8)*($BX$5:$BX$14))+'J01'!AZ8 -> 0 | BA8: =SUMPRODUCT(($B$5:$F$14=AN8)*($BY$5:$BY$14))+SUMPRODUCT(($I$5:$M$14=AN8)*($BZ$5:$BZ$14))+'J01'!BA8 -> 0 | BB8: =SUMPRODUCT(($B$5:$F$14=AN8)*($CA$5:$CA$14))+SUMPRODUCT(($I$5:$M$14=AN8)*($CB$5:$CB$14))+'J01'!BB8 -> 0 | BC8: =SUMPRODUCT(($B$5:$F$14=AN8)*($CC$5:$CC$14))+SUMPRODUCT(($I$5:$M$14=AN8)*($CD$5:$CD$14))+'J01'!BC8 -> 0 | BD8: 0 | BE8: =SUMPRODUCT(($B$5:$F$14=AN8)*($CE$5:$CE$14))+'J01'!BE8 -> 0 | BF8: =SUMPRODUCT(($B$5:$F$14=AN8)*($CF$5:$CF$14))+'J01'!BF8 -> 0 | BG8: =SUMPRODUCT(($B$5:$F$14=AN8)*($CG$5:$CG$14))+'J01'!BG8 -> 0 | BH8: =SUMPRODUCT(($I$5:$M$14=AN8)*($CH$5:$CH$14))+'J01'!BH8 -> 0 | BI8: =SUMPRODUCT(($I$5:$M$14=AN8)*($CI$5:$CI$14))+'J01'!BI8 -> 0 | BJ8: =SUMPRODUCT(($I$5:$M$14=AN8)*($CJ$5:$CJ$14))+'J01'!BJ8 -> 0 | BK8: 0 | BL8: =BK8+0.0000017 -> 1.7e-06 | BM8: 0 | BN8: 0 | BO8: 0 | BP8: 0 | BQ8: 0 | BR8: 0 | BS8: 0 | BT8: 0 | BU8: FALSE | BV8: FALSE | BW8: FALSE | BX8: FALSE | BY8: FALSE | BZ8: FALSE | CA8: 0 | CB8: 0 | CC8: 0 | CD8: 0 | CE8: FALSE | CF8: FALSE | CG8: FALSE | CH8: FALSE | CI8: FALSE | CJ8: FALSE | CL8: 0 | CM8: 0 | CN8: 1 | CO8: 0
P9: 0 | U9: 0 | V9: u | W9: 1 | X9: 0 | Y9: 0 | Z9: 0 | AA9: 0 | AB9: 0 | AC9: 0 | AD9: 0 | AE9: 0 | AF9: 0 | AG9: 0 | AH9: 0 | AI9: 0 | AJ9: 0 | AK9: 0 | AL9: 5 | AM9: 5 | AN9: ='J01'!AN9:AR9 -> 0 | AS9: 1 | AT9: ='J01'!AS9-AS9 -> 0 | AU9: =IF(AS9>'J01'!AS9,'J01'!$AU$25,IF(AS9='J01'!AS9,'J01'!$AT$25,IF(AS9<'J01'!AS9,'J01'!$AS$25))) -> u | AV9: 5 | AW9: =SUMPRODUCT(($B$5:$F$14=AN9)*($BQ$5:$BQ$14))+SUMPRODUCT(($I$5:$M$14=AN9)*($BR$5:$BR$14))+'J01'!AW9 -> 0 | AX9: =SUMPRODUCT(($B$5:$F$14=AN9)*($BS$5:$BS$14))+SUMPRODUCT(($I$5:$M$14=AN9)*($BT$5:$BT$14))+'J01'!AX9 -> 0 | AY9: =SUMPRODUCT(($B$5:$F$14=AN9)*($BU$5:$BU$14))+SUMPRODUCT(($I$5:$M$14=AN9)*($BV$5:$BV$14))+'J01'!AY9 -> 0 | AZ9: =SUMPRODUCT(($B$5:$F$14=AN9)*($BW$5:$BW$14))+SUMPRODUCT(($I$5:$M$14=AN9)*($BX$5:$BX$14))+'J01'!AZ9 -> 0 | BA9: =SUMPRODUCT(($B$5:$F$14=AN9)*($BY$5:$BY$14))+SUMPRODUCT(($I$5:$M$14=AN9)*($BZ$5:$BZ$14))+'J01'!BA9 -> 0 | BB9: =SUMPRODUCT(($B$5:$F$14=AN9)*($CA$5:$CA$14))+SUMPRODUCT(($I$5:$M$14=AN9)*($CB$5:$CB$14))+'J01'!BB9 -> 0 | BC9: =SUMPRODUCT(($B$5:$F$14=AN9)*($CC$5:$CC$14))+SUMPRODUCT(($I$5:$M$14=AN9)*($CD$5:$CD$14))+'J01'!BC9 -> 0 | BD9: 0 | BE9: =SUMPRODUCT(($B$5:$F$14=AN9)*($CE$5:$CE$14))+'J01'!BE9 -> 0 | BF9: =SUMPRODUCT(($B$5:$F$14=AN9)*($CF$5:$CF$14))+'J01'!BF9 -> 0 | BG9: =SUMPRODUCT(($B$5:$F$14=AN9)*($CG$5:$CG$14))+'J01'!BG9 -> 0 | BH9: =SUMPRODUCT(($I$5:$M$14=AN9)*($CH$5:$CH$14))+'J01'!BH9 -> 0 | BI9: =SUMPRODUCT(($I$5:$M$14=AN9)*($CI$5:$CI$14))+'J01'!BI9 -> 0 | BJ9: =SUMPRODUCT(($I$5:$M$14=AN9)*($CJ$5:$CJ$14))+'J01'!BJ9 -> 0 | BK9: 0 | BL9: =BK9+0.0000016 -> 1.6e-06 | BM9: 0 | BN9: 0 | BO9: 0 | BP9: 0 | BQ9: 0 | BR9: 0 | BS9: 0 | BT9: 0 | BU9: FALSE | BV9: FALSE | BW9: FALSE | BX9: FALSE | BY9: FALSE | BZ9: FALSE | CA9: 0 | CB9: 0 | CC9: 0 | CD9: 0 | CE9: FALSE | CF9: FALSE | CG9: FALSE | CH9: FALSE | CI9: FALSE | CJ9: FALSE | CL9: 0 | CM9: 0 | CN9: 1 | CO9: 0
P10: 0 | U10: 0 | V10: u | W10: 1 | X10: 0 | Y10: 0 | Z10: 0 | AA10: 0 | AB10: 0 | AC10: 0 | AD10: 0 | AE10: 0 | AF10: 0 | AG10: 0 | AH10: 0 | AI10: 0 | AJ10: 0 | AK10: 0 | AL10: 6 | AM10: 6 | AN10: ='J01'!AN10:AR10 -> 0 | AS10: 1 | AT10: ='J01'!AS10-AS10 -> 0 | AU10: =IF(AS10>'J01'!AS10,'J01'!$AU$25,IF(AS10='J01'!AS10,'J01'!$AT$25,IF(AS10<'J01'!AS10,'J01'!$AS$25))) -> u | AV10: 6 | AW10: =SUMPRODUCT(($B$5:$F$14=AN10)*($BQ$5:$BQ$14))+SUMPRODUCT(($I$5:$M$14=AN10)*($BR$5:$BR$14))+'J01'!AW10 -> 0 | AX10: =SUMPRODUCT(($B$5:$F$14=AN10)*($BS$5:$BS$14))+SUMPRODUCT(($I$5:$M$14=AN10)*($BT$5:$BT$14))+'J01'!AX10 -> 0 | AY10: =SUMPRODUCT(($B$5:$F$14=AN10)*($BU$5:$BU$14))+SUMPRODUCT(($I$5:$M$14=AN10)*($BV$5:$BV$14))+'J01'!AY10 -> 0 | AZ10: =SUMPRODUCT(($B$5:$F$14=AN10)*($BW$5:$BW$14))+SUMPRODUCT(($I$5:$M$14=AN10)*($BX$5:$BX$14))+'J01'!AZ10 -> 0 | BA10: =SUMPRODUCT(($B$5:$F$14=AN10)*($BY$5:$BY$14))+SUMPRODUCT(($I$5:$M$14=AN10)*($BZ$5:$BZ$14))+'J01'!BA10 -> 0 | BB10: =SUMPRODUCT(($B$5:$F$14=AN10)*($CA$5:$CA$14))+SUMPRODUCT(($I$5:$M$14=AN10)*($CB$5:$CB$14))+'J01'!BB10 -> 0 | BC10: =SUMPRODUCT(($B$5:$F$14=AN10)*($CC$5:$CC$14))+SUMPRODUCT(($I$5:$M$14=AN10)*($CD$5:$CD$14))+'J01'!BC10 -> 0 | BD10: 0 | BE10: =SUMPRODUCT(($B$5:$F$14=AN10)*($CE$5:$CE$14))+'J01'!BE10 -> 0 | BF10: =SUMPRODUCT(($B$5:$F$14=AN10)*($CF$5:$CF$14))+'J01'!BF10 -> 0 | BG10: =SUMPRODUCT(($B$5:$F$14=AN10)*($CG$5:$CG$14))+'J01'!BG10 -> 0 | BH10: =SUMPRODUCT(($I$5:$M$14=AN10)*($CH$5:$CH$14))+'J01'!BH10 -> 0 | BI10: =SUMPRODUCT(($I$5:$M$14=AN10)*($CI$5:$CI$14))+'J01'!BI10 -> 0 | BJ10: =SUMPRODUCT(($I$5:$M$14=AN10)*($CJ$5:$CJ$14))+'J01'!BJ10 -> 0 | BK10: 0 | BL10: =BK10+0.0000015 -> 1.5e-06 | BM10: 0 | BN10: 0 | BO10: 0 | BP10: 0 | BQ10: 0 | BR10: 0 | BS10: 0 | BT10: 0 | BU10: FALSE | BV10: FALSE | BW10: FALSE | BX10: FALSE | BY10: FALSE | BZ10: FALSE | CA10: 0 | CB10: 0 | CC10: 0 | CD10: 0 | CE10: FALSE | CF10: FALSE | CG10: FALSE | CH10: FALSE | CI10: FALSE | CJ10: FALSE | CL10: 0 | CM10: 0 | CN10: 1 | CO10: 0
P11: 0 | U11: 0 | V11: u | W11: 1 | X11: 0 | Y11: 0 | Z11: 0 | AA11: 0 | AB11: 0 | AC11: 0 | AD11: 0 | AE11: 0 | AF11: 0 | AG11: 0 | AH11: 0 | AI11: 0 | AJ11: 0 | AK11: 0 | AL11: 7 | AM11: 7 | AN11: ='J01'!AN11:AR11 -> 0 | AS11: 1 | AT11: ='J01'!AS11-AS11 -> 0 | AU11: =IF(AS11>'J01'!AS11,'J01'!$AU$25,IF(AS11='J01'!AS11,'J01'!$AT$25,IF(AS11<'J01'!AS11,'J01'!$AS$25))) -> u | AV11: 7 | AW11: =SUMPRODUCT(($B$5:$F$14=AN11)*($BQ$5:$BQ$14))+SUMPRODUCT(($I$5:$M$14=AN11)*($BR$5:$BR$14))+'J01'!AW11 -> 0 | AX11: =SUMPRODUCT(($B$5:$F$14=AN11)*($BS$5:$BS$14))+SUMPRODUCT(($I$5:$M$14=AN11)*($BT$5:$BT$14))+'J01'!AX11 -> 0 | AY11: =SUMPRODUCT(($B$5:$F$14=AN11)*($BU$5:$BU$14))+SUMPRODUCT(($I$5:$M$14=AN11)*($BV$5:$BV$14))+'J01'!AY11 -> 0 | AZ11: =SUMPRODUCT(($B$5:$F$14=AN11)*($BW$5:$BW$14))+SUMPRODUCT(($I$5:$M$14=AN11)*($BX$5:$BX$14))+'J01'!AZ11 -> 0 | BA11: =SUMPRODUCT(($B$5:$F$14=AN11)*($BY$5:$BY$14))+SUMPRODUCT(($I$5:$M$14=AN11)*($BZ$5:$BZ$14))+'J01'!BA11 -> 0 | BB11: =SUMPRODUCT(($B$5:$F$14=AN11)*($CA$5:$CA$14))+SUMPRODUCT(($I$5:$M$14=AN11)*($CB$5:$CB$14))+'J01'!BB11 -> 0 | BC11: =SUMPRODUCT(($B$5:$F$14=AN11)*($CC$5:$CC$14))+SUMPRODUCT(($I$5:$M$14=AN11)*($CD$5:$CD$14))+'J01'!BC11 -> 0 | BD11: 0 | BE11: =SUMPRODUCT(($B$5:$F$14=AN11)*($CE$5:$CE$14))+'J01'!BE11 -> 0 | BF11: =SUMPRODUCT(($B$5:$F$14=AN11)*($CF$5:$CF$14))+'J01'!BF11 -> 0 | BG11: =SUMPRODUCT(($B$5:$F$14=AN11)*($CG$5:$CG$14))+'J01'!BG11 -> 0 | BH11: =SUMPRODUCT(($I$5:$M$14=AN11)*($CH$5:$CH$14))+'J01'!BH11 -> 0 | BI11: =SUMPRODUCT(($I$5:$M$14=AN11)*($CI$5:$CI$14))+'J01'!BI11 -> 0 | BJ11: =SUMPRODUCT(($I$5:$M$14=AN11)*($CJ$5:$CJ$14))+'J01'!BJ11 -> 0 | BK11: 0 | BL11: =BK11+0.0000014 -> 1.4e-06 | BM11: 0 | BN11: 0 | BO11: 0 | BP11: 0 | BQ11: 0 | BR11: 0 | BS11: 0 | BT11: 0 | BU11: FALSE | BV11: FALSE | BW11: FALSE | BX11: FALSE | BY11: FALSE | BZ11: FALSE | CA11: 0 | CB11: 0 | CC11: 0 | CD11: 0 | CE11: FALSE | CF11: FALSE | CG11: FALSE | CH11: FALSE | CI11: FALSE | CJ11: FALSE | CL11: 0 | CM11: 0 | CN11: 1 | CO11: 0
P12: 0 | U12: 0 | V12: u | W12: 1 | X12: 0 | Y12: 0 | Z12: 0 | AA12: 0 | AB12: 0 | AC12: 0 | AD12: 0 | AE12: 0 | AF12: 0 | AG12: 0 | AH12: 0 | AI12: 0 | AJ12: 0 | AK12: 0 | AL12: 8 | AM12: 8 | AN12: ='J01'!AN12:AR12 -> 0 | AS12: 1 | AT12: ='J01'!AS12-AS12 -> 0 | AU12: =IF(AS12>'J01'!AS12,'J01'!$AU$25,IF(AS12='J01'!AS12,'J01'!$AT$25,IF(AS12<'J01'!AS12,'J01'!$AS$25))) -> u | AV12: 8 | AW12: =SUMPRODUCT(($B$5:$F$14=AN12)*($BQ$5:$BQ$14))+SUMPRODUCT(($I$5:$M$14=AN12)*($BR$5:$BR$14))+'J01'!AW12 -> 0 | AX12: =SUMPRODUCT(($B$5:$F$14=AN12)*($BS$5:$BS$14))+SUMPRODUCT(($I$5:$M$14=AN12)*($BT$5:$BT$14))+'J01'!AX12 -> 0 | AY12: =SUMPRODUCT(($B$5:$F$14=AN12)*($BU$5:$BU$14))+SUMPRODUCT(($I$5:$M$14=AN12)*($BV$5:$BV$14))+'J01'!AY12 -> 0 | AZ12: =SUMPRODUCT(($B$5:$F$14=AN12)*($BW$5:$BW$14))+SUMPRODUCT(($I$5:$M$14=AN12)*($BX$5:$BX$14))+'J01'!AZ12 -> 0 | BA12: =SUMPRODUCT(($B$5:$F$14=AN12)*($BY$5:$BY$14))+SUMPRODUCT(($I$5:$M$14=AN12)*($BZ$5:$BZ$14))+'J01'!BA12 -> 0 | BB12: =SUMPRODUCT(($B$5:$F$14=AN12)*($CA$5:$CA$14))+SUMPRODUCT(($I$5:$M$14=AN12)*($CB$5:$CB$14))+'J01'!BB12 -> 0 | BC12: =SUMPRODUCT(($B$5:$F$14=AN12)*($CC$5:$CC$14))+SUMPRODUCT(($I$5:$M$14=AN12)*($CD$5:$CD$14))+'J01'!BC12 -> 0 | BD12: 0 | BE12: =SUMPRODUCT(($B$5:$F$14=AN12)*($CE$5:$CE$14))+'J01'!BE12 -> 0 | BF12: =SUMPRODUCT(($B$5:$F$14=AN12)*($CF$5:$CF$14))+'J01'!BF12 -> 0 | BG12: =SUMPRODUCT(($B$5:$F$14=AN12)*($CG$5:$CG$14))+'J01'!BG12 -> 0 | BH12: =SUMPRODUCT(($I$5:$M$14=AN12)*($CH$5:$CH$14))+'J01'!BH12 -> 0 | BI12: =SUMPRODUCT(($I$5:$M$14=AN12)*($CI$5:$CI$14))+'J01'!BI12 -> 0 | BJ12: =SUMPRODUCT(($I$5:$M$14=AN12)*($CJ$5:$CJ$14))+'J01'!BJ12 -> 0 | BK12: 0 | BL12: =BK12+0.0000013 -> 1.3e-06 | BM12: 0 | BN12: 0 | BO12: 0 | BP12: 0 | BQ12: 0 | BR12: 0 | BS12: 0 | BT12: 0 | BU12: FALSE | BV12: FALSE | BW12: FALSE | BX12: FALSE | BY12: FALSE | BZ12: FALSE | CA12: 0 | CB12: 0 | CC12: 0 | CD12: 0 | CE12: FALSE | CF12: FALSE | CG12: FALSE | CH12: FALSE | CI12: FALSE | CJ12: FALSE | CL12: 0 | CM12: 0 | CN12: 1 | CO12: 0
P13: 0 | U13: 0 | V13: u | W13: 1 | X13: 0 | Y13: 0 | Z13: 0 | AA13: 0 | AB13: 0 | AC13: 0 | AD13: 0 | AE13: 0 | AF13: 0 | AG13: 0 | AH13: 0 | AI13: 0 | AJ13: 0 | AK13: 0 | AL13: 9 | AM13: 9 | AN13: ='J01'!AN13:AR13 -> 0 | AS13: 1 | AT13: ='J01'!AS13-AS13 -> 0 | AU13: =IF(AS13>'J01'!AS13,'J01'!$AU$25,IF(AS13='J01'!AS13,'J01'!$AT$25,IF(AS13<'J01'!AS13,'J01'!$AS$25))) -> u | AV13: 9 | AW13: =SUMPRODUCT(($B$5:$F$14=AN13)*($BQ$5:$BQ$14))+SUMPRODUCT(($I$5:$M$14=AN13)*($BR$5:$BR$14))+'J01'!AW13 -> 0 | AX13: =SUMPRODUCT(($B$5:$F$14=AN13)*($BS$5:$BS$14))+SUMPRODUCT(($I$5:$M$14=AN13)*($BT$5:$BT$14))+'J01'!AX13 -> 0 | AY13: =SUMPRODUCT(($B$5:$F$14=AN13)*($BU$5:$BU$14))+SUMPRODUCT(($I$5:$M$14=AN13)*($BV$5:$BV$14))+'J01'!AY13 -> 0 | AZ13: =SUMPRODUCT(($B$5:$F$14=AN13)*($BW$5:$BW$14))+SUMPRODUCT(($I$5:$M$14=AN13)*($BX$5:$BX$14))+'J01'!AZ13 -> 0 | BA13: =SUMPRODUCT(($B$5:$F$14=AN13)*($BY$5:$BY$14))+SUMPRODUCT(($I$5:$M$14=AN13)*($BZ$5:$BZ$14))+'J01'!BA13 -> 0 | BB13: =SUMPRODUCT(($B$5:$F$14=AN13)*($CA$5:$CA$14))+SUMPRODUCT(($I$5:$M$14=AN13)*($CB$5:$CB$14))+'J01'!BB13 -> 0 | BC13: =SUMPRODUCT(($B$5:$F$14=AN13)*($CC$5:$CC$14))+SUMPRODUCT(($I$5:$M$14=AN13)*($CD$5:$CD$14))+'J01'!BC13 -> 0 | BD13: 0 | BE13: =SUMPRODUCT(($B$5:$F$14=AN13)*($CE$5:$CE$14))+'J01'!BE13 -> 0 | BF13: =SUMPRODUCT(($B$5:$F$14=AN13)*($CF$5:$CF$14))+'J01'!BF13 -> 0 | BG13: =SUMPRODUCT(($B$5:$F$14=AN13)*($CG$5:$CG$14))+'J01'!BG13 -> 0 | BH13: =SUMPRODUCT(($I$5:$M$14=AN13)*($CH$5:$CH$14))+'J01'!BH13 -> 0 | BI13: =SUMPRODUCT(($I$5:$M$14=AN13)*($CI$5:$CI$14))+'J01'!BI13 -> 0 | BJ13: =SUMPRODUCT(($I$5:$M$14=AN13)*($CJ$5:$CJ$14))+'J01'!BJ13 -> 0 | BK13: 0 | BL13: =BK13+0.0000012 -> 1.2e-06 | BM13: 0 | BN13: 0 | BO13: 0 | BP13: 0 | BQ13: 0 | BR13: 0 | BS13: 0 | BT13: 0 | BU13: FALSE | BV13: FALSE | BW13: FALSE | BX13: FALSE | BY13: FALSE | BZ13: FALSE | CA13: 0 | CB13: 0 | CC13: 0 | CD13: 0 | CE13: FALSE | CF13: FALSE | CG13: FALSE | CH13: FALSE | CI13: FALSE | CJ13: FALSE | CL13: 0 | CM13: 0 | CN13: 1 | CO13: 0
P14: 0 | U14: 0 | V14: u | W14: 1 | X14: 0 | Y14: 0 | Z14: 0 | AA14: 0 | AB14: 0 | AC14: 0 | AD14: 0 | AE14: 0 | AF14: 0 | AG14: 0 | AH14: 0 | AI14: 0 | AJ14: 0 | AK14: 0 | AL14: 10 | AM14: 10 | AN14: ='J01'!AN14:AR14 -> 0 | AS14: 1 | AT14: ='J01'!AS14-AS14 -> 0 | AU14: =IF(AS14>'J01'!AS14,'J01'!$AU$25,IF(AS14='J01'!AS14,'J01'!$AT$25,IF(AS14<'J01'!AS14,'J01'!$AS$25))) -> u | AV14: 10 | AW14: =SUMPRODUCT(($B$5:$F$14=AN14)*($BQ$5:$BQ$14))+SUMPRODUCT(($I$5:$M$14=AN14)*($BR$5:$BR$14))+'J01'!AW14 -> 0 | AX14: =SUMPRODUCT(($B$5:$F$14=AN14)*($BS$5:$BS$14))+SUMPRODUCT(($I$5:$M$14=AN14)*($BT$5:$BT$14))+'J01'!AX14 -> 0 | AY14: =SUMPRODUCT(($B$5:$F$14=AN14)*($BU$5:$BU$14))+SUMPRODUCT(($I$5:$M$14=AN14)*($BV$5:$BV$14))+'J01'!AY14 -> 0 | AZ14: =SUMPRODUCT(($B$5:$F$14=AN14)*($BW$5:$BW$14))+SUMPRODUCT(($I$5:$M$14=AN14)*($BX$5:$BX$14))+'J01'!AZ14 -> 0 | BA14: =SUMPRODUCT(($B$5:$F$14=AN14)*($BY$5:$BY$14))+SUMPRODUCT(($I$5:$M$14=AN14)*($BZ$5:$BZ$14))+'J01'!BA14 -> 0 | BB14: =SUMPRODUCT(($B$5:$F$14=AN14)*($CA$5:$CA$14))+SUMPRODUCT(($I$5:$M$14=AN14)*($CB$5:$CB$14))+'J01'!BB14 -> 0 | BC14: =SUMPRODUCT(($B$5:$F$14=AN14)*($CC$5:$CC$14))+SUMPRODUCT(($I$5:$M$14=AN14)*($CD$5:$CD$14))+'J01'!BC14 -> 0 | BD14: 0 | BE14: =SUMPRODUCT(($B$5:$F$14=AN14)*($CE$5:$CE$14))+'J01'!BE14 -> 0 | BF14: =SUMPRODUCT(($B$5:$F$14=AN14)*($CF$5:$CF$14))+'J01'!BF14 -> 0 | BG14: =SUMPRODUCT(($B$5:$F$14=AN14)*($CG$5:$CG$14))+'J01'!BG14 -> 0 | BH14: =SUMPRODUCT(($I$5:$M$14=AN14)*($CH$5:$CH$14))+'J01'!BH14 -> 0 | BI14: =SUMPRODUCT(($I$5:$M$14=AN14)*($CI$5:$CI$14))+'J01'!BI14 -> 0 | BJ14: =SUMPRODUCT(($I$5:$M$14=AN14)*($CJ$5:$CJ$14))+'J01'!BJ14 -> 0 | BK14: 0 | BL14: =BK14+0.0000011 -> 1.1e-06 | BM14: 0 | BN14: 0 | BO14: 0 | BP14: 0 | BQ14: 0 | BR14: 0 | BS14: 0 | BT14: 0 | BU14: FALSE | BV14: FALSE | BW14: FALSE | BX14: FALSE | BY14: FALSE | BZ14: FALSE | CA14: 0 | CB14: 0 | CC14: 0 | CD14: 0 | CE14: FALSE | CF14: FALSE | CG14: FALSE | CH14: FALSE | CI14: FALSE | CJ14: FALSE | CL14: 0 | CM14: 0 | CN14: 1 | CO14: 0
P15: 0 | U15: 0 | V15: u | W15: 1 | X15: 0 | Y15: 0 | Z15: 0 | AA15: 0 | AB15: 0 | AC15: 0 | AD15: 0 | AE15: 0 | AF15: 0 | AG15: 0 | AH15: 0 | AI15: 0 | AJ15: 0 | AK15: 0 | AL15: 11 | AM15: 11 | AN15: ='J01'!AN15:AR15 -> 0 | AS15: 1 | AT15: ='J01'!AS15-AS15 -> 0 | AU15: =IF(AS15>'J01'!AS15,'J01'!$AU$25,IF(AS15='J01'!AS15,'J01'!$AT$25,IF(AS15<'J01'!AS15,'J01'!$AS$25))) -> u | AV15: 11 | AW15: =SUMPRODUCT(($B$5:$F$14=AN15)*($BQ$5:$BQ$14))+SUMPRODUCT(($I$5:$M$14=AN15)*($BR$5:$BR$14))+'J01'!AW15 -> 0 | AX15: =SUMPRODUCT(($B$5:$F$14=AN15)*($BS$5:$BS$14))+SUMPRODUCT(($I$5:$M$14=AN15)*($BT$5:$BT$14))+'J01'!AX15 -> 0 | AY15: =SUMPRODUCT(($B$5:$F$14=AN15)*($BU$5:$BU$14))+SUMPRODUCT(($I$5:$M$14=AN15)*($BV$5:$BV$14))+'J01'!AY15 -> 0 | AZ15: =SUMPRODUCT(($B$5:$F$14=AN15)*($BW$5:$BW$14))+SUMPRODUCT(($I$5:$M$14=AN15)*($BX$5:$BX$14))+'J01'!AZ15 -> 0 | BA15: =SUMPRODUCT(($B$5:$F$14=AN15)*($BY$5:$BY$14))+SUMPRODUCT(($I$5:$M$14=AN15)*($BZ$5:$BZ$14))+'J01'!BA15 -> 0 | BB15: =SUMPRODUCT(($B$5:$F$14=AN15)*($CA$5:$CA$14))+SUMPRODUCT(($I$5:$M$14=AN15)*($CB$5:$CB$14))+'J01'!BB15 -> 0 | BC15: =SUMPRODUCT(($B$5:$F$14=AN15)*($CC$5:$CC$14))+SUMPRODUCT(($I$5:$M$14=AN15)*($CD$5:$CD$14))+'J01'!BC15 -> 0 | BD15: 0 | BE15: =SUMPRODUCT(($B$5:$F$14=AN15)*($CE$5:$CE$14))+'J01'!BE15 -> 0 | BF15: =SUMPRODUCT(($B$5:$F$14=AN15)*($CF$5:$CF$14))+'J01'!BF15 -> 0 | BG15: =SUMPRODUCT(($B$5:$F$14=AN15)*($CG$5:$CG$14))+'J01'!BG15 -> 0 | BH15: =SUMPRODUCT(($I$5:$M$14=AN15)*($CH$5:$CH$14))+'J01'!BH15 -> 0 | BI15: =SUMPRODUCT(($I$5:$M$14=AN15)*($CI$5:$CI$14))+'J01'!BI15 -> 0 | BJ15: =SUMPRODUCT(($I$5:$M$14=AN15)*($CJ$5:$CJ$14))+'J01'!BJ15 -> 0 | BK15: 0 | BL15: =BK15+0.000001 -> 1e-06 | CL15: 0 | CM15: 0 | CN15: 1 | CO15: 0
P16: 0 | U16: 0 | V16: u | W16: 1 | X16: 0 | Y16: 0 | Z16: 0 | AA16: 0 | AB16: 0 | AC16: 0 | AD16: 0 | AE16: 0 | AF16: 0 | AG16: 0 | AH16: 0 | AI16: 0 | AJ16: 0 | AK16: 0 | AL16: 12 | AM16: 12 | AN16: ='J01'!AN16:AR16 -> 0 | AS16: 1 | AT16: ='J01'!AS16-AS16 -> 0 | AU16: =IF(AS16>'J01'!AS16,'J01'!$AU$25,IF(AS16='J01'!AS16,'J01'!$AT$25,IF(AS16<'J01'!AS16,'J01'!$AS$25))) -> u | AV16: 12 | AW16: =SUMPRODUCT(($B$5:$F$14=AN16)*($BQ$5:$BQ$14))+SUMPRODUCT(($I$5:$M$14=AN16)*($BR$5:$BR$14))+'J01'!AW16 -> 0 | AX16: =SUMPRODUCT(($B$5:$F$14=AN16)*($BS$5:$BS$14))+SUMPRODUCT(($I$5:$M$14=AN16)*($BT$5:$BT$14))+'J01'!AX16 -> 0 | AY16: =SUMPRODUCT(($B$5:$F$14=AN16)*($BU$5:$BU$14))+SUMPRODUCT(($I$5:$M$14=AN16)*($BV$5:$BV$14))+'J01'!AY16 -> 0 | AZ16: =SUMPRODUCT(($B$5:$F$14=AN16)*($BW$5:$BW$14))+SUMPRODUCT(($I$5:$M$14=AN16)*($BX$5:$BX$14))+'J01'!AZ16 -> 0 | BA16: =SUMPRODUCT(($B$5:$F$14=AN16)*($BY$5:$BY$14))+SUMPRODUCT(($I$5:$M$14=AN16)*($BZ$5:$BZ$14))+'J01'!BA16 -> 0 | BB16: =SUMPRODUCT(($B$5:$F$14=AN16)*($CA$5:$CA$14))+SUMPRODUCT(($I$5:$M$14=AN16)*($CB$5:$CB$14))+'J01'!BB16 -> 0 | BC16: =SUMPRODUCT(($B$5:$F$14=AN16)*($CC$5:$CC$14))+SUMPRODUCT(($I$5:$M$14=AN16)*($CD$5:$CD$14))+'J01'!BC16 -> 0 | BD16: 0 | BE16: =SUMPRODUCT(($B$5:$F$14=AN16)*($CE$5:$CE$14))+'J01'!BE16 -> 0 | BF16: =SUMPRODUCT(($B$5:$F$14=AN16)*($CF$5:$CF$14))+'J01'!BF16 -> 0 | BG16: =SUMPRODUCT(($B$5:$F$14=AN16)*($CG$5:$CG$14))+'J01'!BG16 -> 0 | BH16: =SUMPRODUCT(($I$5:$M$14=AN16)*($CH$5:$CH$14))+'J01'!BH16 -> 0 | BI16: =SUMPRODUCT(($I$5:$M$14=AN16)*($CI$5:$CI$14))+'J01'!BI16 -> 0 | BJ16: =SUMPRODUCT(($I$5:$M$14=AN16)*($CJ$5:$CJ$14))+'J01'!BJ16 -> 0 | BK16: 0 | BL16: =BK16+0.0000009 -> 9e-07 | CL16: 0 | CM16: 0 | CN16: 1 | CO16: 0
P17: 0 | U17: 0 | V17: u | W17: 1 | X17: 0 | Y17: 0 | Z17: 0 | AA17: 0 | AB17: 0 | AC17: 0 | AD17: 0 | AE17: 0 | AF17: 0 | AG17: 0 | AH17: 0 | AI17: 0 | AJ17: 0 | AK17: 0 | AL17: 13 | AM17: 13 | AN17: ='J01'!AN17:AR17 -> 0 | AS17: 1 | AT17: ='J01'!AS17-AS17 -> 0 | AU17: =IF(AS17>'J01'!AS17,'J01'!$AU$25,IF(AS17='J01'!AS17,'J01'!$AT$25,IF(AS17<'J01'!AS17,'J01'!$AS$25))) -> u | AV17: 13 | AW17: =SUMPRODUCT(($B$5:$F$14=AN17)*($BQ$5:$BQ$14))+SUMPRODUCT(($I$5:$M$14=AN17)*($BR$5:$BR$14))+'J01'!AW17 -> 0 | AX17: =SUMPRODUCT(($B$5:$F$14=AN17)*($BS$5:$BS$14))+SUMPRODUCT(($I$5:$M$14=AN17)*($BT$5:$BT$14))+'J01'!AX17 -> 0 | AY17: =SUMPRODUCT(($B$5:$F$14=AN17)*($BU$5:$BU$14))+SUMPRODUCT(($I$5:$M$14=AN17)*($BV$5:$BV$14))+'J01'!AY17 -> 0 | AZ17: =SUMPRODUCT(($B$5:$F$14=AN17)*($BW$5:$BW$14))+SUMPRODUCT(($I$5:$M$14=AN17)*($BX$5:$BX$14))+'J01'!AZ17 -> 0 | BA17: =SUMPRODUCT(($B$5:$F$14=AN17)*($BY$5:$BY$14))+SUMPRODUCT(($I$5:$M$14=AN17)*($BZ$5:$BZ$14))+'J01'!BA17 -> 0 | BB17: =SUMPRODUCT(($B$5:$F$14=AN17)*($CA$5:$CA$14))+SUMPRODUCT(($I$5:$M$14=AN17)*($CB$5:$CB$14))+'J01'!BB17 -> 0 | BC17: =SUMPRODUCT(($B$5:$F$14=AN17)*($CC$5:$CC$14))+SUMPRODUCT(($I$5:$M$14=AN17)*($CD$5:$CD$14))+'J01'!BC17 -> 0 | BD17: 0 | BE17: =SUMPRODUCT(($B$5:$F$14=AN17)*($CE$5:$CE$14))+'J01'!BE17 -> 0 | BF17: =SUMPRODUCT(($B$5:$F$14=AN17)*($CF$5:$CF$14))+'J01'!BF17 -> 0 | BG17: =SUMPRODUCT(($B$5:$F$14=AN17)*($CG$5:$CG$14))+'J01'!BG17 -> 0 | BH17: =SUMPRODUCT(($I$5:$M$14=AN17)*($CH$5:$CH$14))+'J01'!BH17 -> 0 | BI17: =SUMPRODUCT(($I$5:$M$14=AN17)*($CI$5:$CI$14))+'J01'!BI17 -> 0 | BJ17: =SUMPRODUCT(($I$5:$M$14=AN17)*($CJ$5:$CJ$14))+'J01'!BJ17 -> 0 | BK17: 0 | BL17: =BK17+0.0000008 -> 8e-07 | CL17: 0 | CM17: 0 | CN17: 1 | CO17: 0
P18: 0 | U18: 0 | V18: u | W18: 1 | X18: 0 | Y18: 0 | Z18: 0 | AA18: 0 | AB18: 0 | AC18: 0 | AD18: 0 | AE18: 0 | AF18: 0 | AG18: 0 | AH18: 0 | AI18: 0 | AJ18: 0 | AK18: 0 | AL18: 14 | AM18: 14 | AN18: ='J01'!AN18:AR18 -> 0 | AS18: 1 | AT18: ='J01'!AS18-AS18 -> 0 | AU18: =IF(AS18>'J01'!AS18,'J01'!$AU$25,IF(AS18='J01'!AS18,'J01'!$AT$25,IF(AS18<'J01'!AS18,'J01'!$AS$25))) -> u | AV18: 14 | AW18: =SUMPRODUCT(($B$5:$F$14=AN18)*($BQ$5:$BQ$14))+SUMPRODUCT(($I$5:$M$14=AN18)*($BR$5:$BR$14))+'J01'!AW18 -> 0 | AX18: =SUMPRODUCT(($B$5:$F$14=AN18)*($BS$5:$BS$14))+SUMPRODUCT(($I$5:$M$14=AN18)*($BT$5:$BT$14))+'J01'!AX18 -> 0 | AY18: =SUMPRODUCT(($B$5:$F$14=AN18)*($BU$5:$BU$14))+SUMPRODUCT(($I$5:$M$14=AN18)*($BV$5:$BV$14))+'J01'!AY18 -> 0 | AZ18: =SUMPRODUCT(($B$5:$F$14=AN18)*($BW$5:$BW$14))+SUMPRODUCT(($I$5:$M$14=AN18)*($BX$5:$BX$14))+'J01'!AZ18 -> 0 | BA18: =SUMPRODUCT(($B$5:$F$14=AN18)*($BY$5:$BY$14))+SUMPRODUCT(($I$5:$M$14=AN18)*($BZ$5:$BZ$14))+'J01'!BA18 -> 0 | BB18: =SUMPRODUCT(($B$5:$F$14=AN18)*($CA$5:$CA$14))+SUMPRODUCT(($I$5:$M$14=AN18)*($CB$5:$CB$14))+'J01'!BB18 -> 0 | BC18: =SUMPRODUCT(($B$5:$F$14=AN18)*($CC$5:$CC$14))+SUMPRODUCT(($I$5:$M$14=AN18)*($CD$5:$CD$14))+'J01'!BC18 -> 0 | BD18: 0 | BE18: =SUMPRODUCT(($B$5:$F$14=AN18)*($CE$5:$CE$14))+'J01'!BE18 -> 0 | BF18: =SUMPRODUCT(($B$5:$F$14=AN18)*($CF$5:$CF$14))+'J01'!BF18 -> 0 | BG18: =SUMPRODUCT(($B$5:$F$14=AN18)*($CG$5:$CG$14))+'J01'!BG18 -> 0 | BH18: =SUMPRODUCT(($I$5:$M$14=AN18)*($CH$5:$CH$14))+'J01'!BH18 -> 0 | BI18: =SUMPRODUCT(($I$5:$M$14=AN18)*($CI$5:$CI$14))+'J01'!BI18 -> 0 | BJ18: =SUMPRODUCT(($I$5:$M$14=AN18)*($CJ$5:$CJ$14))+'J01'!BJ18 -> 0 | BK18: 0 | BL18: =BK18+0.0000007 -> 7e-07 | CL18: 0 | CM18: 0 | CN18: 1 | CO18: 0
P19: 0 | U19: 0 | V19: u | W19: 1 | X19: 0 | Y19: 0 | Z19: 0 | AA19: 0 | AB19: 0 | AC19: 0 | AD19: 0 | AE19: 0 | AF19: 0 | AG19: 0 | AH19: 0 | AI19: 0 | AJ19: 0 | AK19: 0 | AL19: 15 | AM19: 15 | AN19: ='J01'!AN19:AR19 -> 0 | AS19: 1 | AT19: ='J01'!AS19-AS19 -> 0 | AU19: =IF(AS19>'J01'!AS19,'J01'!$AU$25,IF(AS19='J01'!AS19,'J01'!$AT$25,IF(AS19<'J01'!AS19,'J01'!$AS$25))) -> u | AV19: 15 | AW19: =SUMPRODUCT(($B$5:$F$14=AN19)*($BQ$5:$BQ$14))+SUMPRODUCT(($I$5:$M$14=AN19)*($BR$5:$BR$14))+'J01'!AW19 -> 0 | AX19: =SUMPRODUCT(($B$5:$F$14=AN19)*($BS$5:$BS$14))+SUMPRODUCT(($I$5:$M$14=AN19)*($BT$5:$BT$14))+'J01'!AX19 -> 0 | AY19: =SUMPRODUCT(($B$5:$F$14=AN19)*($BU$5:$BU$14))+SUMPRODUCT(($I$5:$M$14=AN19)*($BV$5:$BV$14))+'J01'!AY19 -> 0 | AZ19: =SUMPRODUCT(($B$5:$F$14=AN19)*($BW$5:$BW$14))+SUMPRODUCT(($I$5:$M$14=AN19)*($BX$5:$BX$14))+'J01'!AZ19 -> 0 | BA19: =SUMPRODUCT(($B$5:$F$14=AN19)*($BY$5:$BY$14))+SUMPRODUCT(($I$5:$M$14=AN19)*($BZ$5:$BZ$14))+'J01'!BA19 -> 0 | BB19: =SUMPRODUCT(($B$5:$F$14=AN19)*($CA$5:$CA$14))+SUMPRODUCT(($I$5:$M$14=AN19)*($CB$5:$CB$14))+'J01'!BB19 -> 0 | BC19: =SUMPRODUCT(($B$5:$F$14=AN19)*($CC$5:$CC$14))+SUMPRODUCT(($I$5:$M$14=AN19)*($CD$5:$CD$14))+'J01'!BC19 -> 0 | BD19: 0 | BE19: =SUMPRODUCT(($B$5:$F$14=AN19)*($CE$5:$CE$14))+'J01'!BE19 -> 0 | BF19: =SUMPRODUCT(($B$5:$F$14=AN19)*($CF$5:$CF$14))+'J01'!BF19 -> 0 | BG19: =SUMPRODUCT(($B$5:$F$14=AN19)*($CG$5:$CG$14))+'J01'!BG19 -> 0 | BH19: =SUMPRODUCT(($I$5:$M$14=AN19)*($CH$5:$CH$14))+'J01'!BH19 -> 0 | BI19: =SUMPRODUCT(($I$5:$M$14=AN19)*($CI$5:$CI$14))+'J01'!BI19 -> 0 | BJ19: =SUMPRODUCT(($I$5:$M$14=AN19)*($CJ$5:$CJ$14))+'J01'!BJ19 -> 0 | BK19: 0 | BL19: =BK19+0.0000006 -> 6e-07 | CL19: 0 | CM19: 0 | CN19: 1 | CO19: 0
P20: 0 | U20: 0 | V20: u | W20: 1 | X20: 0 | Y20: 0 | Z20: 0 | AA20: 0 | AB20: 0 | AC20: 0 | AD20: 0 | AE20: 0 | AF20: 0 | AG20: 0 | AH20: 0 | AI20: 0 | AJ20: 0 | AK20: 0 | AL20: 16 | AM20: 16 | AN20: ='J01'!AN20:AR20 -> 0 | AS20: 1 | AT20: ='J01'!AS20-AS20 -> 0 | AU20: =IF(AS20>'J01'!AS20,'J01'!$AU$25,IF(AS20='J01'!AS20,'J01'!$AT$25,IF(AS20<'J01'!AS20,'J01'!$AS$25))) -> u | AV20: 16 | AW20: =SUMPRODUCT(($B$5:$F$14=AN20)*($BQ$5:$BQ$14))+SUMPRODUCT(($I$5:$M$14=AN20)*($BR$5:$BR$14))+'J01'!AW20 -> 0 | AX20: =SUMPRODUCT(($B$5:$F$14=AN20)*($BS$5:$BS$14))+SUMPRODUCT(($I$5:$M$14=AN20)*($BT$5:$BT$14))+'J01'!AX20 -> 0 | AY20: =SUMPRODUCT(($B$5:$F$14=AN20)*($BU$5:$BU$14))+SUMPRODUCT(($I$5:$M$14=AN20)*($BV$5:$BV$14))+'J01'!AY20 -> 0 | AZ20: =SUMPRODUCT(($B$5:$F$14=AN20)*($BW$5:$BW$14))+SUMPRODUCT(($I$5:$M$14=AN20)*($BX$5:$BX$14))+'J01'!AZ20 -> 0 | BA20: =SUMPRODUCT(($B$5:$F$14=AN20)*($BY$5:$BY$14))+SUMPRODUCT(($I$5:$M$14=AN20)*($BZ$5:$BZ$14))+'J01'!BA20 -> 0 | BB20: =SUMPRODUCT(($B$5:$F$14=AN20)*($CA$5:$CA$14))+SUMPRODUCT(($I$5:$M$14=AN20)*($CB$5:$CB$14))+'J01'!BB20 -> 0 | BC20: =SUMPRODUCT(($B$5:$F$14=AN20)*($CC$5:$CC$14))+SUMPRODUCT(($I$5:$M$14=AN20)*($CD$5:$CD$14))+'J01'!BC20 -> 0 | BD20: 0 | BE20: =SUMPRODUCT(($B$5:$F$14=AN20)*($CE$5:$CE$14))+'J01'!BE20 -> 0 | BF20: =SUMPRODUCT(($B$5:$F$14=AN20)*($CF$5:$CF$14))+'J01'!BF20 -> 0 | BG20: =SUMPRODUCT(($B$5:$F$14=AN20)*($CG$5:$CG$14))+'J01'!BG20 -> 0 | BH20: =SUMPRODUCT(($I$5:$M$14=AN20)*($CH$5:$CH$14))+'J01'!BH20 -> 0 | BI20: =SUMPRODUCT(($I$5:$M$14=AN20)*($CI$5:$CI$14))+'J01'!BI20 -> 0 | BJ20: =SUMPRODUCT(($I$5:$M$14=AN20)*($CJ$5:$CJ$14))+'J01'!BJ20 -> 0 | BK20: 0 | BL20: =BK20+0.0000005 -> 5e-07 | CL20: 0 | CM20: 0 | CN20: 1 | CO20: 0
P21: 0 | U21: 0 | V21: u | W21: 1 | X21: 0 | Y21: 0 | Z21: 0 | AA21: 0 | AB21: 0 | AC21: 0 | AD21: 0 | AE21: 0 | AF21: 0 | AG21: 0 | AH21: 0 | AI21: 0 | AJ21: 0 | AK21: 0 | AL21: 17 | AM21: 17 | AN21: ='J01'!AN21:AR21 -> 0 | AS21: 1 | AT21: ='J01'!AS21-AS21 -> 0 | AU21: =IF(AS21>'J01'!AS21,'J01'!$AU$25,IF(AS21='J01'!AS21,'J01'!$AT$25,IF(AS21<'J01'!AS21,'J01'!$AS$25))) -> u | AV21: 17 | AW21: =SUMPRODUCT(($B$5:$F$14=AN21)*($BQ$5:$BQ$14))+SUMPRODUCT(($I$5:$M$14=AN21)*($BR$5:$BR$14))+'J01'!AW21 -> 0 | AX21: =SUMPRODUCT(($B$5:$F$14=AN21)*($BS$5:$BS$14))+SUMPRODUCT(($I$5:$M$14=AN21)*($BT$5:$BT$14))+'J01'!AX21 -> 0 | AY21: =SUMPRODUCT(($B$5:$F$14=AN21)*($BU$5:$BU$14))+SUMPRODUCT(($I$5:$M$14=AN21)*($BV$5:$BV$14))+'J01'!AY21 -> 0 | AZ21: =SUMPRODUCT(($B$5:$F$14=AN21)*($BW$5:$BW$14))+SUMPRODUCT(($I$5:$M$14=AN21)*($BX$5:$BX$14))+'J01'!AZ21 -> 0 | BA21: =SUMPRODUCT(($B$5:$F$14=AN21)*($BY$5:$BY$14))+SUMPRODUCT(($I$5:$M$14=AN21)*($BZ$5:$BZ$14))+'J01'!BA21 -> 0 | BB21: =SUMPRODUCT(($B$5:$F$14=AN21)*($CA$5:$CA$14))+SUMPRODUCT(($I$5:$M$14=AN21)*($CB$5:$CB$14))+'J01'!BB21 -> 0 | BC21: =SUMPRODUCT(($B$5:$F$14=AN21)*($CC$5:$CC$14))+SUMPRODUCT(($I$5:$M$14=AN21)*($CD$5:$CD$14))+'J01'!BC21 -> 0 | BD21: 0 | BE21: =SUMPRODUCT(($B$5:$F$14=AN21)*($CE$5:$CE$14))+'J01'!BE21 -> 0 | BF21: =SUMPRODUCT(($B$5:$F$14=AN21)*($CF$5:$CF$14))+'J01'!BF21 -> 0 | BG21: =SUMPRODUCT(($B$5:$F$14=AN21)*($CG$5:$CG$14))+'J01'!BG21 -> 0 | BH21: =SUMPRODUCT(($I$5:$M$14=AN21)*($CH$5:$CH$14))+'J01'!BH21 -> 0 | BI21: =SUMPRODUCT(($I$5:$M$14=AN21)*($CI$5:$CI$14))+'J01'!BI21 -> 0 | BJ21: =SUMPRODUCT(($I$5:$M$14=AN21)*($CJ$5:$CJ$14))+'J01'!BJ21 -> 0 | BK21: 0 | BL21: =BK21+0.0000004 -> 4e-07 | CL21: 0 | CM21: 0 | CN21: 1 | CO21: 0
P22: 0 | U22: 0 | V22: u | W22: 1 | X22: 0 | Y22: 0 | Z22: 0 | AA22: 0 | AB22: 0 | AC22: 0 | AD22: 0 | AE22: 0 | AF22: 0 | AG22: 0 | AH22: 0 | AI22: 0 | AJ22: 0 | AK22: 0 | AL22: 18 | AM22: 18 | AN22: ='J01'!AN22:AR22 -> 0 | AS22: 1 | AT22: ='J01'!AS22-AS22 -> 0 | AU22: =IF(AS22>'J01'!AS22,'J01'!$AU$25,IF(AS22='J01'!AS22,'J01'!$AT$25,IF(AS22<'J01'!AS22,'J01'!$AS$25))) -> u | AV22: 18 | AW22: =SUMPRODUCT(($B$5:$F$14=AN22)*($BQ$5:$BQ$14))+SUMPRODUCT(($I$5:$M$14=AN22)*($BR$5:$BR$14))+'J01'!AW22 -> 0 | AX22: =SUMPRODUCT(($B$5:$F$14=AN22)*($BS$5:$BS$14))+SUMPRODUCT(($I$5:$M$14=AN22)*($BT$5:$BT$14))+'J01'!AX22 -> 0 | AY22: =SUMPRODUCT(($B$5:$F$14=AN22)*($BU$5:$BU$14))+SUMPRODUCT(($I$5:$M$14=AN22)*($BV$5:$BV$14))+'J01'!AY22 -> 0 | AZ22: =SUMPRODUCT(($B$5:$F$14=AN22)*($BW$5:$BW$14))+SUMPRODUCT(($I$5:$M$14=AN22)*($BX$5:$BX$14))+'J01'!AZ22 -> 0 | BA22: =SUMPRODUCT(($B$5:$F$14=AN22)*($BY$5:$BY$14))+SUMPRODUCT(($I$5:$M$14=AN22)*($BZ$5:$BZ$14))+'J01'!BA22 -> 0 | BB22: =SUMPRODUCT(($B$5:$F$14=AN22)*($CA$5:$CA$14))+SUMPRODUCT(($I$5:$M$14=AN22)*($CB$5:$CB$14))+'J01'!BB22 -> 0 | BC22: =SUMPRODUCT(($B$5:$F$14=AN22)*($CC$5:$CC$14))+SUMPRODUCT(($I$5:$M$14=AN22)*($CD$5:$CD$14))+'J01'!BC22 -> 0 | BD22: 0 | BE22: =SUMPRODUCT(($B$5:$F$14=AN22)*($CE$5:$CE$14))+'J01'!BE22 -> 0 | BF22: =SUMPRODUCT(($B$5:$F$14=AN22)*($CF$5:$CF$14))+'J01'!BF22 -> 0 | BG22: =SUMPRODUCT(($B$5:$F$14=AN22)*($CG$5:$CG$14))+'J01'!BG22 -> 0 | BH22: =SUMPRODUCT(($I$5:$M$14=AN22)*($CH$5:$CH$14))+'J01'!BH22 -> 0 | BI22: =SUMPRODUCT(($I$5:$M$14=AN22)*($CI$5:$CI$14))+'J01'!BI22 -> 0 | BJ22: =SUMPRODUCT(($I$5:$M$14=AN22)*($CJ$5:$CJ$14))+'J01'!BJ22 -> 0 | BK22: 0 | BL22: =BK22+0.0000003 -> 3e-07 | CL22: 0 | CM22: 0 | CN22: 1 | CO22: 0
P23: 0 | U23: 0 | V23: u | W23: 1 | X23: 0 | Y23: 0 | Z23: 0 | AA23: 0 | AB23: 0 | AC23: 0 | AD23: 0 | AE23: 0 | AF23: 0 | AG23: 0 | AH23: 0 | AI23: 0 | AJ23: 0 | AK23: 0 | AL23: 19 | AM23: 19 | AN23: ='J01'!AN23:AR23 -> 0 | AS23: 1 | AT23: ='J01'!AS23-AS23 -> 0 | AU23: =IF(AS23>'J01'!AS23,'J01'!$AU$25,IF(AS23='J01'!AS23,'J01'!$AT$25,IF(AS23<'J01'!AS23,'J01'!$AS$25))) -> u | AV23: 19 | AW23: =SUMPRODUCT(($B$5:$F$14=AN23)*($BQ$5:$BQ$14))+SUMPRODUCT(($I$5:$M$14=AN23)*($BR$5:$BR$14))+'J01'!AW23 -> 0 | AX23: =SUMPRODUCT(($B$5:$F$14=AN23)*($BS$5:$BS$14))+SUMPRODUCT(($I$5:$M$14=AN23)*($BT$5:$BT$14))+'J01'!AX23 -> 0 | AY23: =SUMPRODUCT(($B$5:$F$14=AN23)*($BU$5:$BU$14))+SUMPRODUCT(($I$5:$M$14=AN23)*($BV$5:$BV$14))+'J01'!AY23 -> 0 | AZ23: =SUMPRODUCT(($B$5:$F$14=AN23)*($BW$5:$BW$14))+SUMPRODUCT(($I$5:$M$14=AN23)*($BX$5:$BX$14))+'J01'!AZ23 -> 0 | BA23: =SUMPRODUCT(($B$5:$F$14=AN23)*($BY$5:$BY$14))+SUMPRODUCT(($I$5:$M$14=AN23)*($BZ$5:$BZ$14))+'J01'!BA23 -> 0 | BB23: =SUMPRODUCT(($B$5:$F$14=AN23)*($CA$5:$CA$14))+SUMPRODUCT(($I$5:$M$14=AN23)*($CB$5:$CB$14))+'J01'!BB23 -> 0 | BC23: =SUMPRODUCT(($B$5:$F$14=AN23)*($CC$5:$CC$14))+SUMPRODUCT(($I$5:$M$14=AN23)*($CD$5:$CD$14))+'J01'!BC23 -> 0 | BD23: 0 | BE23: =SUMPRODUCT(($B$5:$F$14=AN23)*($CE$5:$CE$14))+'J01'!BE23 -> 0 | BF23: =SUMPRODUCT(($B$5:$F$14=AN23)*($CF$5:$CF$14))+'J01'!BF23 -> 0 | BG23: =SUMPRODUCT(($B$5:$F$14=AN23)*($CG$5:$CG$14))+'J01'!BG23 -> 0 | BH23: =SUMPRODUCT(($I$5:$M$14=AN23)*($CH$5:$CH$14))+'J01'!BH23 -> 0 | BI23: =SUMPRODUCT(($I$5:$M$14=AN23)*($CI$5:$CI$14))+'J01'!BI23 -> 0 | BJ23: =SUMPRODUCT(($I$5:$M$14=AN23)*($CJ$5:$CJ$14))+'J01'!BJ23 -> 0 | BK23: 0 | BL23: =BK23+0.0000002 -> 2e-07 | CL23: 0 | CM23: 0 | CN23: 1 | CO23: 0
P24: 0 | U24: 0 | V24: u | W24: 1 | X24: 0 | Y24: 0 | Z24: 0 | AA24: 0 | AB24: 0 | AC24: 0 | AD24: 0 | AE24: 0 | AF24: 0 | AG24: 0 | AH24: 0 | AI24: 0 | AJ24: 0 | AK24: 0 | AL24: 20 | AM24: 20 | AN24: ='J01'!AN24:AR24 -> 0 | AS24: 1 | AT24: ='J01'!AS24-AS24 -> 0 | AU24: =IF(AS24>'J01'!AS24,'J01'!$AU$25,IF(AS24='J01'!AS24,'J01'!$AT$25,IF(AS24<'J01'!AS24,'J01'!$AS$25))) -> u | AV24: 20 | AW24: =SUMPRODUCT(($B$5:$F$14=AN24)*($BQ$5:$BQ$14))+SUMPRODUCT(($I$5:$M$14=AN24)*($BR$5:$BR$14))+'J01'!AW24 -> 0 | AX24: =SUMPRODUCT(($B$5:$F$14=AN24)*($BS$5:$BS$14))+SUMPRODUCT(($I$5:$M$14=AN24)*($BT$5:$BT$14))+'J01'!AX24 -> 0 | AY24: =SUMPRODUCT(($B$5:$F$14=AN24)*($BU$5:$BU$14))+SUMPRODUCT(($I$5:$M$14=AN24)*($BV$5:$BV$14))+'J01'!AY24 -> 0 | AZ24: =SUMPRODUCT(($B$5:$F$14=AN24)*($BW$5:$BW$14))+SUMPRODUCT(($I$5:$M$14=AN24)*($BX$5:$BX$14))+'J01'!AZ24 -> 0 | BA24: =SUMPRODUCT(($B$5:$F$14=AN24)*($BY$5:$BY$14))+SUMPRODUCT(($I$5:$M$14=AN24)*($BZ$5:$BZ$14))+'J01'!BA24 -> 0 | BB24: =SUMPRODUCT(($B$5:$F$14=AN24)*($CA$5:$CA$14))+SUMPRODUCT(($I$5:$M$14=AN24)*($CB$5:$CB$14))+'J01'!BB24 -> 0 | BC24: =SUMPRODUCT(($B$5:$F$14=AN24)*($CC$5:$CC$14))+SUMPRODUCT(($I$5:$M$14=AN24)*($CD$5:$CD$14))+'J01'!BC24 -> 0 | BD24: 0 | BE24: =SUMPRODUCT(($B$5:$F$14=AN24)*($CE$5:$CE$14))+'J01'!BE24 -> 0 | BF24: =SUMPRODUCT(($B$5:$F$14=AN24)*($CF$5:$CF$14))+'J01'!BF24 -> 0 | BG24: =SUMPRODUCT(($B$5:$F$14=AN24)*($CG$5:$CG$14))+'J01'!BG24 -> 0 | BH24: =SUMPRODUCT(($I$5:$M$14=AN24)*($CH$5:$CH$14))+'J01'!BH24 -> 0 | BI24: =SUMPRODUCT(($I$5:$M$14=AN24)*($CI$5:$CI$14))+'J01'!BI24 -> 0 | BJ24: =SUMPRODUCT(($I$5:$M$14=AN24)*($CJ$5:$CJ$14))+'J01'!BJ24 -> 0 | BK24: 0 | BL24: =BK24+0.0000001 -> 1e-07 | CL24: 0 | CM24: 0 | CN24: 1 | CO24: 0
AJ25: Buts Journée | AS25: p | AT25: u | AU25: q
AJ26: =SUM(G5:H14) -> 0 | AS26: p | AT26: u | AU26: q
AJ28: Total Buts
AJ29: =AJ26+'J01'!AJ29:AK30 -> 0

Sheet J03
H1: JOURNÉE 03 | P1: CLASSEMENT | AN1: CLASSEMENT
A3: p | B3: Équipes | G3: Buts | H3: Buts | I3: Équipes | N3: p | P3: Équipes | U3: Évolution | W3: R | X3: Pts | Y3: J | Z3: G | AA3: N | AB3: P | AC3: B + | AD3: B - | AE3: Diff | AF3: Domicile | AI3: Extérieur | AN3: Équipes | AS3: R | AT3: Evolution | AV3: R | AW3: Pts | AX3: J | AY3: G | AZ3: N | BA3: P | BB3: B + | BC3: B - | BD3: Diff | BE3: Domicile | BH3: Exterieur | CE3: DOMICILE | CH3: EXTERIRUR
AF4: G | AG4: N | AH4: P | AI4: G | AJ4: N | AK4: P | AM4: R | BE4: G | BF4: N | BG4: P | BH4: G | BI4: N | BJ4: P | BK4: % | BL4: % | BM4: P | BN4: P | BO4: Pts | BP4: Pts | BQ4: T Pts | BR4: T Pts | BS4: J | BT4: J | BU4: G | BV4: G | BW4: N | BX4: N | BY4: P | BZ4: P | CA4: B + | CB4: B + | CC4: B - | CD4: B - | CE4: G | CF4: N | CG4: P | CH4: G | CI4: N | CJ4: P | CL4: Equipes | CM4: % | CN4: R
P5: =VLOOKUP(AL5,$AM$5:$AR$24,2,0) -> 0 | U5: =VLOOKUP(P5,$AN$5:$BJ$24,7,0) -> 0 | V5: =VLOOKUP(P5,$AN$5:$BJ$24,8,0) -> u | W5: 1 | X5: =VLOOKUP(P5,$AN$5:$BJ$24,10,0) -> 0 | Y5: =VLOOKUP(P5,$AN$5:$BJ$24,11,0) -> 0 | Z5: =VLOOKUP(P5,$AN$5:$BJ$24,12,0) -> 0 | AA5: =VLOOKUP(P5,$AN$5:$BJ$24,13,0) -> 0 | AB5: =VLOOKUP(P5,$AN$5:$BJ$24,14,0) -> 0 | AC5: =VLOOKUP(P5,$AN$5:$BJ$24,15,0) -> 0 | AD5: =VLOOKUP(P5,$AN$5:$BJ$24,16,0) -> 0 | AE5: =VLOOKUP(P5,$AN$5:$BJ$24,17,0) -> 0 | AF5: =VLOOKUP(P5,$AN$5:$BJ$24,18,0) -> 0 | AG5: =VLOOKUP(P5,$AN$5:$BJ$24,19,0) -> 0 | AH5: =VLOOKUP(P5,$AN$5:$BJ$24,20,0) -> 0 | AI5: =VLOOKUP(P5,$AN$5:$BJ$24,21,0) -> 0 | AJ5: =VLOOKUP(P5,$AN$5:$BJ$24,22,0) -> 0 | AK5: =VLOOKUP(P5,$AN$5:$BJ$24,23,0) -> 0 | AL5: 1 | AM5: =AV5 -> 1 | AN5: ='J01'!AN5:AR5 -> 0 | AS5: =RANK(BK5,$BK$5:$BK$24) -> 1 | AT5: ='J02'!AS5-AS5 -> 0 | AU5: =IF(AS5>'J02'!AS5,'J02'!$AU$25,IF(AS5='J02'!AS5,'J02'!$AT$25,IF(AS5<'J02'!AS5,'J02'!$AS$25))) -> u | AV5: =RANK(BL5,$BL$5:$BL$24) -> 1 | AW5: =SUMPRODUCT(($B$5:$F$14=AN5)*($BQ$5:$BQ$14))+SUMPRODUCT(($I$5:$M$14=AN5)*($BR$5:$BR$14))+'J02'!AW5 -> 0 | AX5: =SUMPRODUCT(($B$5:$F$14=AN5)*($BS$5:$BS$14))+SUMPRODUCT(($I$5:$M$14=AN5)*($BT$5:$BT$14))+'J02'!AX5 -> 0 | AY5: =SUMPRODUCT(($B$5:$F$14=AN5)*($BU$5:$BU$14))+SUMPRODUCT(($I$5:$M$14=AN5)*($BV$5:$BV$14))+'J02'!AY5 -> 0 | AZ5: =SUMPRODUCT(($B$5:$F$14=AN5)*($BW$5:$BW$14))+SUMPRODUCT(($I$5:$M$14=AN5)*($BX$5:$BX$14))+'J02'!AZ5 -> 0 | BA5: =SUMPRODUCT(($B$5:$F$14=AN5)*($BY$5:$BY$14))+SUMPRODUCT(($I$5:$M$14=AN5)*($BZ$5:$BZ$14))+'J02'!BA5 -> 0 | BB5: =SUMPRODUCT(($B$5:$F$14=AN5)*($CA$5:$CA$14))+SUMPRODUCT(($I$5:$M$14=AN5)*($CB$5:$CB$14))+'J02'!BB5 -> 0 | BC5: =SUMPRODUCT(($B$5:$F$14=AN5)*($CC$5:$CC$14))+SUMPRODUCT(($I$5:$M$14=AN5)*($CD$5:$CD$14))+'J02'!BC5 -> 0 | BD5: =BB5-BC5 -> 0 | BE5: =SUMPRODUCT(($B$5:$F$14=AN5)*($CE$5:$CE$14))+'J02'!BE5 -> 0 | BF5: =SUMPRODUCT(($B$5:$F$14=AN5)*($CF$5:$CF$14))+'J02'!BF5 -> 0 | BG5: =SUMPRODUCT(($B$5:$F$14=AN5)*($CG$5:$CG$14))+'J02'!BG5 -> 0 | BH5: =SUMPRODUCT(($I$5:$M$14=AN5)*($CH$5:$CH$14))+'J02'!BH5 -> 0 | BI5: =SUMPRODUCT(($I$5:$M$14=AN5)*($CI$5:$CI$14))+'J02'!BI5 -> 0 | BJ5: =SUMPRODUCT(($I$5:$M$14=AN5)*($CJ$5:$CJ$14))+'J02'!BJ5 -> 0 | BK5: =SUM(AW5*1000+(BD5)/100+(BB5)/1000) -> 0 | BL5: =BK5+0.000002 -> 2e-06 | BM5: =A5 -> 0 | BN5: =N5 -> 0 | BO5: =IF(G5="",0,IF(G5>H5,3,IF(G5=H5,1,IF(G5<H5,0)))) -> 0 | BP5: =IF(H5="",0,IF(H5>G5,3,IF(H5=G5,1,IF(H5<G5,0)))) -> 0 | BQ5: =BO5-BM5 -> 0 | BR5: =BP5-BN5 -> 0 | BS5: =IF(G5="",0,1) -> 0 | BT5: =IF(H5="",0,1) -> 0 | BU5: =IF(G5<>"",IF(G5>H5,1)) -> FALSE | BV5: =IF(H5<>"",IF(H5>G5,1)) -> FALSE | BW5: =IF(G5<>"",IF(G5=H5,1)) -> FALSE | BX5: =IF(H5<>"",IF(H5=G5,1)) -> FALSE | BY5: =IF(G5<>"",IF(G5<H5,1)) -> FALSE | BZ5: =IF(H5<>"",IF(H5<G5,1)) -> FALSE | CA5: =G5 -> 0 | CB5: =H5 -> 0 | CC5: =H5 -> 0 | CD5: =G5 -> 0 | CE5: =IF(G5<>"",IF(G5>H5,1)) -> FALSE | CF5: =IF(G5<>"",IF(G5=H5,1)) -> FALSE | CG5: =IF(G5<>"",IF(G5<H5,1)) -> FALSE | CH5: =IF(H5<>"",IF(H5>G5,1)) -> FALSE | CI5: =IF(H5<>"",IF(H5=G5,1)) -> FALSE | CJ5: =IF(H5<>"",IF(H5<G5,1)) -> FALSE | CL5: =VLOOKUP(AL5,$AM$5:$AR$24,2,0) -> 0 | CM5: =VLOOKUP(CL5,$AN$5:$BK$24,24,0) -> 0 | CN5: =RANK(CM5,$CM$5:$CM$24) -> 1 | CO5: =AN5 -> 0
P6: =VLOOKUP(AL6,$AM$5:$AR$24,2,0) -> 0 | U6: =VLOOKUP(P6,$AN$5:$BJ$24,7,0) -> 0 | V6: =VLOOKUP(P6,$AN$5:$BJ$24,8,0) -> u | W6: =IF(CM6=CM5,CN5,CN6) -> 1 | X6: =VLOOKUP(P6,$AN$5:$BJ$24,10,0) -> 0 | Y6: =VLOOKUP(P6,$AN$5:$BJ$24,11,0) -> 0 | Z6: =VLOOKUP(P6,$AN$5:$BJ$24,12,0) -> 0 | AA6: =VLOOKUP(P6,$AN$5:$BJ$24,13,0) -> 0 | AB6: =VLOOKUP(P6,$AN$5:$BJ$24,14,0) -> 0 | AC6: =VLOOKUP(P6,$AN$5:$BJ$24,15,0) -> 0 | AD6: =VLOOKUP(P6,$AN$5:$BJ$24,16,0) -> 0 | AE6: =VLOOKUP(P6,$AN$5:$BJ$24,17,0) -> 0 | AF6: =VLOOKUP(P6,$AN$5:$BJ$24,18,0) -> 0 | AG6: =VLOOKUP(P6,$AN$5:$BJ$24,19,0) -> 0 | AH6: =VLOOKUP(P6,$AN$5:$BJ$24,20,0) -> 0 | AI6: =VLOOKUP(P6,$AN$5:$BJ$24,21,0) -> 0 | AJ6: =VLOOKUP(P6,$AN$5:$BJ$24,22,0) -> 0 | AK6: =VLOOKUP(P6,$AN$5:$BJ$24,23,0) -> 0 | AL6: 2 | AM6: =AV6 -> 2 | AN6: ='J01'!AN6:AR6 -> 0 | AS6: =RANK(BK6,$BK$5:$BK$24) -> 1 | AT6: ='J02'!AS6-AS6 -> 0 | AU6: =IF(AS6>'J02'!AS6,'J02'!$AU$25,IF(AS6='J02'!AS6,'J02'!$AT$25,IF(AS6<'J02'!AS6,'J02'!$AS$25))) -> u | AV6: =RANK(BL6,$BL$5:$BL$24) -> 2 | AW6: =SUMPRODUCT(($B$5:$F$14=AN6)*($BQ$5:$BQ$14))+SUMPRODUCT(($I$5:$M$14=AN6)*($BR$5:$BR$14))+'J02'!AW6 -> 0 | AX6: =SUMPRODUCT(($B$5:$F$14=AN6)*($BS$5:$BS$14))+SUMPRODUCT(($I$5:$M$14=AN6)*($BT$5:$BT$14))+'J02'!AX6 -> 0 | AY6: =SUMPRODUCT(($B$5:$F$14=AN6)*($BU$5:$BU$14))+SUMPRODUCT(($I$5:$M$14=AN6)*($BV$5:$BV$14))+'J02'!AY6 -> 0 | AZ6: =SUMPRODUCT(($B$5:$F$14=AN6)*($BW$5:$BW$14))+SUMPRODUCT(($I$5:$M$14=AN6)*($BX$5:$BX$14))+'J02'!AZ6 -> 0 | BA6: =SUMPRODUCT(($B$5:$F$14=AN6)*($BY$5:$BY$14))+SUMPRODUCT(($I$5:$M$14=AN6)*($BZ$5:$BZ$14))+'J02'!BA6 -> 0 | BB6: =SUMPRODUCT(($B$5:$F$14=AN6)*($CA$5:$CA$14))+SUMPRODUCT(($I$5:$M$14=AN6)*($CB$5:$CB$14))+'J02'!BB6 -> 0 | BC6: =SUMPRODUCT(($B$5:$F$14=AN6)*($CC$5:$CC$14))+SUMPRODUCT(($I$5:$M$14=AN6)*($CD$5:$CD$14))+'J02'!BC6 -> 0 | BD6: =BB6-BC6 -> 0 | BE6: =SUMPRODUCT(($B$5:$F$14=AN6)*($CE$5:$CE$14))+'J02'!BE6 -> 0 | BF6: =SUMPRODUCT(($B$5:$F$14=AN6)*($CF$5:$CF$14))+'J02'!BF6 -> 0 | BG6: =SUMPRODUCT(($B$5:$F$14=AN6)*($CG$5:$CG$14))+'J02'!BG6 -> 0 | BH6: =SUMPRODUCT(($I$5:$M$14=AN6)*($CH$5:$CH$14))+'J02'!BH6 -> 0 | BI6: =SUMPRODUCT(($I$5:$M$14=AN6)*($CI$5:$CI$14))+'J02'!BI6 -> 0 | BJ6: =SUMPRODUCT(($I$5:$M$14=AN6)*($CJ$5:$CJ$14))+'J02'!BJ6 -> 0 | BK6: =SUM(AW6*1000+(BD6)/100+(BB6)/1000) -> 0 | BL6: =BK6+0.0000019 -> 1.9e-06 | BM6: =A6 -> 0 | BN6: =N6 -> 0 | BO6: =IF(G6="",0,IF(G6>H6,3,IF(G6=H6,1,IF(G6<H6,0)))) -> 0 | BP6: =IF(H6="",0,IF(H6>G6,3,IF(H6=G6,1,IF(H6<G6,0)))) -> 0 | BQ6: =BO6-BM6 -> 0 | BR6: 0 | BS6: =IF(G6="",0,1) -> 0 | BT6: 0 | BU6: =IF(G6<>"",IF(G6>H6,1)) -> FALSE | BV6: =IF(H6<>"",IF(H6>G6,1)) -> FALSE | BW6: =IF(G6<>"",IF(G6=H6,1)) -> FALSE | BX6: =IF(H6<>"",IF(H6=G6,1)) -> FALSE | BY6: =IF(G6<>"",IF(G6<H6,1)) -> FALSE | BZ6: =IF(H6<>"",IF(H6<G6,1)) -> FALSE | CA6: =G6 -> 0 | CB6: 0 | CC6: =H6 -> 0 | CD6: =G6 -> 0 | CE6: =IF(G6<>"",IF(G6>H6,1)) -> FALSE | CF6: =IF(G6<>"",IF(G6=H6,1)) -> FALSE | CG6: =IF(G6<>"",IF(G6<H6,1)) -> FALSE | CH6: =IF(H6<>"",IF(H6>G6,1)) -> FALSE | CI6: =IF(H6<>"",IF(H6=G6,1)) -> FALSE | CJ6: =IF(H6<>"",IF(H6<G6,1)) -> FALSE | CL6: =VLOOKUP(AL6,$AM$5:$AR$24,2,0) -> 0 | CM6: =VLOOKUP(CL6,$AN$5:$BK$24,24,0) -> 0 | CN6: =RANK(CM6,$CM$5:$CM$24) -> 1 | CO6: =AN6 -> 0
P7: 0 | U7: 0 | V7: u | W7: =IF(CM7=CM6,CN6,CN7) -> 1 | X7: 0 | Y7: 0 | Z7: 0 | AA7: 0 | AB7: 0 | AC7: 0 | AD7: 0 | AE7: 0 | AF7: 0 | AG7: 0 | AH7: 0 | AI7: 0 | AJ7: 0 | AK7: 0 | AL7: 3 | AM7: 3 | AN7: ='J01'!AN7:AR7 -> 0 | AS7: 1 | AT7: ='J02'!AS7-AS7 -> 0 | AU7: =IF(AS7>'J02'!AS7,'J02'!$AU$25,IF(AS7='J02'!AS7,'J02'!$AT$25,IF(AS7<'J02'!AS7,'J02'!$AS$25))) -> u | AV7: 3 | AW7: =SUMPRODUCT(($B$5:$F$14=AN7)*($BQ$5:$BQ$14))+SUMPRODUCT(($I$5:$M$14=AN7)*($BR$5:$BR$14))+'J02'!AW7 -> 0 | AX7: =SUMPRODUCT(($B$5:$F$14=AN7)*($BS$5:$BS$14))+SUMPRODUCT(($I$5:$M$14=AN7)*($BT$5:$BT$14))+'J02'!AX7 -> 0 | AY7: =SUMPRODUCT(($B$5:$F$14=AN7)*($BU$5:$BU$14))+SUMPRODUCT(($I$5:$M$14=AN7)*($BV$5:$BV$14))+'J02'!AY7 -> 0 | AZ7: =SUMPRODUCT(($B$5:$F$14=AN7)*($BW$5:$BW$14))+SUMPRODUCT(($I$5:$M$14=AN7)*($BX$5:$BX$14))+'J02'!AZ7 -> 0 | BA7: =SUMPRODUCT(($B$5:$F$14=AN7)*($BY$5:$BY$14))+SUMPRODUCT(($I$5:$M$14=AN7)*($BZ$5:$BZ$14))+'J02'!BA7 -> 0 | BB7: =SUMPRODUCT(($B$5:$F$14=AN7)*($CA$5:$CA$14))+SUMPRODUCT(($I$5:$M$14=AN7)*($CB$5:$CB$14))+'J02'!BB7 -> 0 | BC7: =SUMPRODUCT(($B$5:$F$14=AN7)*($CC$5:$CC$14))+SUMPRODUCT(($I$5:$M$14=AN7)*($CD$5:$CD$14))+'J02'!BC7 -> 0 | BD7: 0 | BE7: =SUMPRODUCT(($B$5:$F$14=AN7)*($CE$5:$CE$14))+'J02'!BE7 -> 0 | BF7: =SUMPRODUCT(($B$5:$F$14=AN7)*($CF$5:$CF$14))+'J02'!BF7 -> 0 | BG7: =SUMPRODUCT(($B$5:$F$14=AN7)*($CG$5:$CG$14))+'J02'!BG7 -> 0 | BH7: =SUMPRODUCT(($I$5:$M$14=AN7)*($CH$5:$CH$14))+'J02'!BH7 -> 0 | BI7: =SUMPRODUCT(($I$5:$M$14=AN7)*($CI$5:$CI$14))+'J02'!BI7 -> 0 | BJ7: =SUMPRODUCT(($I$5:$M$14=AN7)*($CJ$5:$CJ$14))+'J02'!BJ7 -> 0 | BK7: 0 | BL7: =BK7+0.0000018 -> 1.8e-06 | BM7: 0 | BN7: 0 | BO7: 0 | BP7: 0 | BQ7: 0 | BR7: 0 | BS7: 0 | BT7: 0 | BU7: FALSE | BV7: FALSE | BW7: FALSE | BX7: FALSE | BY7: FALSE | BZ7: FALSE | CA7: 0 | CB7: 0 | CC7: 0 | CD7: 0 | CE7: FALSE | CF7: FALSE | CG7: FALSE | CH7: FALSE | CI7: FALSE | CJ7: FALSE | CL7: 0 | CM7: 0 | CN7: 1 | CO7: 0
P8: 0 | U8: 0 | V8: u | W8: 1 | X8: 0 | Y8: 0 | Z8: 0 | AA8: 0 | AB8: 0 | AC8: 0 | AD8: 0 | AE8: 0 | AF8: 0 | AG8: 0 | AH8: 0 | AI8: 0 | AJ8: 0 | AK8: 0 | AL8: 4 | AM8: 4 | AN8: ='J01'!AN8:AR8 -> 0 | AS8: 1 | AT8: ='J02'!AS8-AS8 -> 0 | AU8: =IF(AS8>'J02'!AS8,'J02'!$AU$25,IF(AS8='J02'!AS8,'J02'!$AT$25,IF(AS8<'J02'!AS8,'J02'!$AS$25))) -> u | AV8: 4 | AW8: =SUMPRODUCT(($B$5:$F$14=AN8)*($BQ$5:$BQ$14))+SUMPRODUCT(($I$5:$M$14=AN8)*($BR$5:$BR$14))+'J02'!AW8 -> 0 | AX8: =SUMPRODUCT(($B$5:$F$14=AN8)*($BS$5:$BS$14))+SUMPRODUCT(($I$5:$M$14=AN8)*($BT$5:$BT$14))+'J02'!AX8 -> 0 | AY8: =SUMPRODUCT(($B$5:$F$14=AN8)*($BU$5:$BU$14))+SUMPRODUCT(($I$5:$M$14=AN8)*($BV$5:$BV$14))+'J02'!AY8 -> 0 | AZ8: =SUMPRODUCT(($B$5:$F$14=AN8)*($BW$5:$BW$14))+SUMPRODUCT(($I$5:$M$14=AN8)*($BX$5:$BX$14))+'J02'!AZ8 -> 0 | BA8: =SUMPRODUCT(($B$5:$F$14=AN8)*($BY$5:$BY$14))+SUMPRODUCT(($I$5:$M$14=AN8)*($BZ$5:$BZ$14))+'J02'!BA8 -> 0 | BB8: =SUMPRODUCT(($B$5:$F$14=AN8)*($CA$5:$CA$14))+SUMPRODUCT(($I$5:$M$14=AN8)*($CB$5:$CB$14))+'J02'!BB8 -> 0 | BC8: =SUMPRODUCT(($B$5:$F$14=AN8)*($CC$5:$CC$14))+SUMPRODUCT(($I$5:$M$14=AN8)*($CD$5:$CD$14))+'J02'!BC8 -> 0 | BD8: 0 | BE8: =SUMPRODUCT(($B$5:$F$14=AN8)*($CE$5:$CE$14))+'J02'!BE8 -> 0 | BF8: =SUMPRODUCT(($B$5:$F$14=AN8)*($CF$5:$CF$14))+'J02'!BF8 -> 0 | BG8: =SUMPRODUCT(($B$5:$F$14=AN8)*($CG$5:$CG$14))+'J02'!BG8 -> 0 | BH8: =SUMPRODUCT(($I$5:$M$14=AN8)*($CH$5:$CH$14))+'J02'!BH8 -> 0 | BI8: =SUMPRODUCT(($I$5:$M$14=AN8)*($CI$5:$CI$14))+'J02'!BI8 -> 0 | BJ8: =SUMPRODUCT(($I$5:$M$14=AN8)*($CJ$5:$CJ$14))+'J02'!BJ8 -> 0 | BK8: 0 | BL8: =BK8+0.0000017 -> 1.7e-06 | BM8: 0 | BN8: 0 | BO8: 0 | BP8: 0 | BQ8: 0 | BR8: 0 | BS8: 0 | BT8: 0 | BU8: FALSE | BV8: FALSE | BW8: FALSE | BX8: FALSE | BY8: FALSE | BZ8: FALSE | CA8: 0 | CB8: 0 | CC8: 0 | CD8: 0 | CE8: FALSE | CF8: FALSE | CG8: FALSE | CH8: FALSE | CI8: FALSE | CJ8: FALSE | CL8: 0 | CM8: 0 | CN8: 1 | CO8: 0
P9: 0 | U9: 0 | V9: u | W9: 1 | X9: 0 | Y9: 0 | Z9: 0 | AA9: 0 | AB9: 0 | AC9: 0 | AD9: 0 | AE9: 0 | AF9: 0 | AG9: 0 | AH9: 0 | AI9: 0 | AJ9: 0 | AK9: 0 | AL9: 5 | AM9: 5 | AN9: ='J01'!AN9:AR9 -> 0 | AS9: 1 | AT9: ='J02'!AS9-AS9 -> 0 | AU9: =IF(AS9>'J02'!AS9,'J02'!$AU$25,IF(AS9='J02'!AS9,'J02'!$AT$25,IF(AS9<'J02'!AS9,'J02'!$AS$25))) -> u | AV9: 5 | AW9: =SUMPRODUCT(($B$5:$F$14=AN9)*($BQ$5:$BQ$14))+SUMPRODUCT(($I$5:$M$14=AN9)*($BR$5:$BR$14))+'J02'!AW9 -> 0 | AX9: =SUMPRODUCT(($B$5:$F$14=AN9)*($BS$5:$BS$14))+SUMPRODUCT(($I$5:$M$14=AN9)*($BT$5:$BT$14))+'J02'!AX9 -> 0 | AY9: =SUMPRODUCT(($B$5:$F$14=AN9)*($BU$5:$BU$14))+SUMPRODUCT(($I$5:$M$14=AN9)*($BV$5:$BV$14))+'J02'!AY9 -> 0 | AZ9: =SUMPRODUCT(($B$5:$F$14=AN9)*($BW$5:$BW$14))+SUMPRODUCT(($I$5:$M$14=AN9)*($BX$5:$BX$14))+'J02'!AZ9 -> 0 | BA9: =SUMPRODUCT(($B$5:$F$14=AN9)*($BY$5:$BY$14))+SUMPRODUCT(($I$5:$M$14=AN9)*($BZ$5:$BZ$14))+'J02'!BA9 -> 0 | BB9: =SUMPRODUCT(($B$5:$F$14=AN9)*($CA$5:$CA$14))+SUMPRODUCT(($I$5:$M$14=AN9)*($CB$5:$CB$14))+'J02'!BB9 -> 0 | BC9: =SUMPRODUCT(($B$5:$F$14=AN9)*($CC$5:$CC$14))+SUMPRODUCT(($I$5:$M$14=AN9)*($CD$5:$CD$14))+'J02'!BC9 -> 0 | BD9: 0 | BE9: =SUMPRODUCT(($B$5:$F$14=AN9)*($CE$5:$CE$14))+'J02'!BE9 -> 0 | BF9: =SUMPRODUCT(($B$5:$F$14=AN9)*($CF$5:$CF$14))+'J02'!BF9 -> 0 | BG9: =SUMPRODUCT(($B$5:$F$14=AN9)*($CG$5:$CG$14))+'J02'!BG9 -> 0 | BH9: =SUMPRODUCT(($I$5:$M$14=AN9)*($CH$5:$CH$14))+'J02'!BH9 -> 0 | BI9: =SUMPRODUCT(($I$5:$M$14=AN9)*($CI$5:$CI$14))+'J02'!BI9 -> 0 | BJ9: =SUMPRODUCT(($I$5:$M$14=AN9)*($CJ$5:$CJ$14))+'J02'!BJ9 -> 0 | BK9: 0 | BL9: =BK9+0.0000016 -> 1.6e-06 | BM9: 0 | BN9: 0 | BO9: 0 | BP9: 0 | BQ9: 0 | BR9: 0 | BS9: 0 | BT9: 0 | BU9: FALSE | BV9: FALSE | BW9: FALSE | BX9: FALSE | BY9: FALSE | BZ9: FALSE | CA9: 0 | CB9: 0 | CC9: 0 | CD9: 0 | CE9: FALSE | CF9: FALSE | CG9: FALSE | CH9: FALSE | CI9: FALSE | CJ9: FALSE | CL9: 0 | CM9: 0 | CN9: 1 | CO9: 0
P10: 0 | U10: 0 | V10: u | W10: 1 | X10: 0 | Y10: 0 | Z10: 0 | AA10: 0 | AB10: 0 | AC10: 0 | AD10: 0 | AE10: 0 | AF10: 0 | AG10: 0 | AH10: 0 | AI10: 0 | AJ10: 0 | AK10: 0 | AL10: 6 | AM10: 6 | AN10: ='J01'!AN10:AR10 -> 0 | AS10: 1 | AT10: ='J02'!AS10-AS10 -> 0 | AU10: =IF(AS10>'J02'!AS10,'J02'!$AU$25,IF(AS10='J02'!AS10,'J02'!$AT$25,IF(AS10<'J02'!AS10,'J02'!$AS$25))) -> u | AV10: 6 | AW10: =SUMPRODUCT(($B$5:$F$14=AN10)*($BQ$5:$BQ$14))+SUMPRODUCT(($I$5:$M$14=AN10)*($BR$5:$BR$14))+'J02'!AW10 -> 0 | AX10: =SUMPRODUCT(($B$5:$F$14=AN10)*($BS$5:$BS$14))+SUMPRODUCT(($I$5:$M$14=AN10)*($BT$5:$BT$14))+'J02'!AX10 -> 0 | AY10: =SUMPRODUCT(($B$5:$F$14=AN10)*($BU$5:$BU$14))+SUMPRODUCT(($I$5:$M$14=AN10)*($BV$5:$BV$14))+'J02'!AY10 -> 0 | AZ10: =SUMPRODUCT(($B$5:$F$14=AN10)*($BW$5:$BW$14))+SUMPRODUCT(($I$5:$M$14=AN10)*($BX$5:$BX$14))+'J02'!AZ10 -> 0 | BA10: =SUMPRODUCT(($B$5:$F$14=AN10)*($BY$5:$BY$14))+SUMPRODUCT(($I$5:$M$14=AN10)*($BZ$5:$BZ$14))+'J02'!BA10 -> 0 | BB10: =SUMPRODUCT(($B$5:$F$14=AN10)*($CA$5:$CA$14))+SUMPRODUCT(($I$5:$M$14=AN10)*($CB$5:$CB$14))+'J02'!BB10 -> 0 | BC10: =SUMPRODUCT(($B$5:$F$14=AN10)*($CC$5:$CC$14))+SUMPRODUCT(($I$5:$M$14=AN10)*($CD$5:$CD$14))+'J02'!BC10 -> 0 | BD10: 0 | BE10: =SUMPRODUCT(($B$5:$F$14=AN10)*($CE$5:$CE$14))+'J02'!BE10 -> 0 | BF10: =SUMPRODUCT(($B$5:$F$14=AN10)*($CF$5:$CF$14))+'J02'!BF10 -> 0 | BG10: =SUMPRODUCT(($B$5:$F$14=AN10)*($CG$5:$CG$14))+'J02'!BG10 -> 0 | BH10: =SUMPRODUCT(($I$5:$M$14=AN10)*($CH$5:$CH$14))+'J02'!BH10 -> 0 | BI10: =SUMPRODUCT(($I$5:$M$14=AN10)*($CI$5:$CI$14))+'J02'!BI10 -> 0 | BJ10: =SUMPRODUCT(($I$5:$M$14=AN10)*($CJ$5:$CJ$14))+'J02'!BJ10 -> 0 | BK10: 0 | BL10: =BK10+0.0000015 -> 1.5e-06 | BM10: 0 | BN10: 0 | BO10: 0 | BP10: 0 | BQ10: 0 | BR10: 0 | BS10: 0 | BT10: 0 | BU10: FALSE | BV10: FALSE | BW10: FALSE | BX10: FALSE | BY10: FALSE | BZ10: FALSE | CA10: 0 | CB10: 0 | CC10: 0 | CD10: 0 | CE10: FALSE | CF10: FALSE | CG10: FALSE | CH10: FALSE | CI10: FALSE | CJ10: FALSE | CL10: 0 | CM10: 0 | CN10: 1 | CO10: 0
P11: 0 | U11: 0 | V11: u | W11: 1 | X11: 0 | Y11: 0 | Z11: 0 | AA11: 0 | AB11: 0 | AC11: 0 | AD11: 0 | AE11: 0 | AF11: 0 | AG11: 0 | AH11: 0 | AI11: 0 | AJ11: 0 | AK11: 0 | AL11: 7 | AM11: 7 | AN11: ='J01'!AN11:AR11 -> 0 | AS11: 1 | AT11: ='J02'!AS11-AS11 -> 0 | AU11: =IF(AS11>'J02'!AS11,'J02'!$AU$25,IF(AS11='J02'!AS11,'J02'!$AT$25,IF(AS11<'J02'!AS11,'J02'!$AS$25))) -> u | AV11: 7 | AW11: =SUMPRODUCT(($B$5:$F$14=AN11)*($BQ$5:$BQ$14))+SUMPRODUCT(($I$5:$M$14=AN11)*($BR$5:$BR$14))+'J02'!AW11 -> 0 | AX11: =SUMPRODUCT(($B$5:$F$14=AN11)*($BS$5:$BS$14))+SUMPRODUCT(($I$5:$M$14=AN11)*($BT$5:$BT$14))+'J02'!AX11 -> 0 | AY11: =SUMPRODUCT(($B$5:$F$14=AN11)*($BU$5:$BU$14))+SUMPRODUCT(($I$5:$M$14=AN11)*($BV$5:$BV$14))+'J02'!AY11 -> 0 | AZ11: =SUMPRODUCT(($B$5:$F$14=AN11)*($BW$5:$BW$14))+SUMPRODUCT(($I$5:$M$14=AN11)*($BX$5:$BX$14))+'J02'!AZ11 -> 0 | BA11: =SUMPRODUCT(($B$5:$F$14=AN11)*($BY$5:$BY$14))+SUMPRODUCT(($I$5:$M$14=AN11)*($BZ$5:$BZ$14))+'J02'!BA11 -> 0 | BB11: =SUMPRODUCT(($B$5:$F$14=AN11)*($CA$5:$CA$14))+SUMPRODUCT(($I$5:$M$14=AN11)*($CB$5:$CB$14))+'J02'!BB11 -> 0 | BC11: =SUMPRODUCT(($B$5:$F$14=AN11)*($CC$5:$CC$14))+SUMPRODUCT(($I$5:$M$14=AN11)*($CD$5:$CD$14))+'J02'!BC11 -> 0 | BD11: 0 | BE11: =SUMPRODUCT(($B$5:$F$14=AN11)*($CE$5:$CE$14))+'J02'!BE11 -> 0 | BF11: =SUMPRODUCT(($B$5:$F$14=AN11)*($CF$5:$CF$14))+'J02'!BF11 -> 0 | BG11: =SUMPRODUCT(($B$5:$F$14=AN11)*($CG$5:$CG$14))+'J02'!BG11 -> 0 | BH11: =SUMPRODUCT(($I$5:$M$14=AN11)*($CH$5:$CH$14))+'J02'!BH11 -> 0 | BI11: =SUMPRODUCT(($I$5:$M$14=AN11)*($CI$5:$CI$14))+'J02'!BI11 -> 0 | BJ11: =SUMPRODUCT(($I$5:$M$14=AN11)*($CJ$5:$CJ$14))+'J02'!BJ11 -> 0 | BK11: 0 | BL11: =BK11+0.0000014 -> 1.4e-06 | BM11: 0 | BN11: 0 | BO11: 0 | BP11: 0 | BQ11: 0 | BR11: 0 | BS11: 0 | BT11: 0 | BU11: FALSE | BV11: FALSE | BW11: FALSE | BX11: FALSE | BY11: FALSE | BZ11: FALSE | CA11: 0 | CB11: 0 | CC11: 0 | CD11: 0 | CE11: FALSE | CF11: FALSE | CG11: FALSE | CH11: FALSE | CI11: FALSE | CJ11: FALSE | CL11: 0 | CM11: 0 | CN11: 1 | CO11: 0
P12: 0 | U12: 0 | V12: u | W12: 1 | X12: 0 | Y12: 0 | Z12: 0 | AA12: 0 | AB12: 0 | AC12: 0 | AD12: 0 | AE12: 0 | AF12: 0 | AG12: 0 | AH12: 0 | AI12: 0 | AJ12: 0 | AK12: 0 | AL12: 8 | AM12: 8 | AN12: ='J01'!AN12:AR12 -> 0 | AS12: 1 | AT12: ='J02'!AS12-AS12 -> 0 | AU12: =IF(AS12>'J02'!AS12,'J02'!$AU$25,IF(AS12='J02'!AS12,'J02'!$AT$25,IF(AS12<'J02'!AS12,'J02'!$AS$25))) -> u | AV12: 8 | AW12: =SUMPRODUCT(($B$5:$F$14=AN12)*($BQ$5:$BQ$14))+SUMPRODUCT(($I$5:$M$14=AN12)*($BR$5:$BR$14))+'J02'!AW12 -> 0 | AX12: =SUMPRODUCT(($B$5:$F$14=AN12)*($BS$5:$BS$14))+SUMPRODUCT(($I$5:$M$14=AN12)*($BT$5:$BT$14))+'J02'!AX12 -> 0 | AY12: =SUMPRODUCT(($B$5:$F$14=AN12)*($BU$5:$BU$14))+SUMPRODUCT(($I$5:$M$14=AN12)*($BV$5:$BV$14))+'J02'!AY12 -> 0 | AZ12: =SUMPRODUCT(($B$5:$F$14=AN12)*($BW$5:$BW$14))+SUMPRODUCT(($I$5:$M$14=AN12)*($BX$5:$BX$14))+'J02'!AZ12 -> 0 | BA12: =SUMPRODUCT(($B$5:$F$14=AN12)*($BY$5:$BY$14))+SUMPRODUCT(($I$5:$M$14=AN12)*($BZ$5:$BZ$14))+'J02'!BA12 -> 0 | BB12: =SUMPRODUCT(($B$5:$F$14=AN12)*($CA$5:$CA$14))+SUMPRODUCT(($I$5:$M$14=AN12)*($CB$5:$CB$14))+'J02'!BB12 -> 0 | BC12: =SUMPRODUCT(($B$5:$F$14=AN12)*($CC$5:$CC$14))+SUMPRODUCT(($I$5:$M$14=AN12)*($CD$5:$CD$14))+'J02'!BC12 -> 0 | BD12: 0 | BE12: =SUMPRODUCT(($B$5:$F$14=AN12)*($CE$5:$CE$14))+'J02'!BE12 -> 0 | BF12: =SUMPRODUCT(($B$5:$F$14=AN12)*($CF$5:$CF$14))+'J02'!BF12 -> 0 | BG12: =SUMPRODUCT(($B$5:$F$14=AN12)*($CG$5:$CG$14))+'J02'!BG12 -> 0 | BH12: =SUMPRODUCT(($I$5:$M$14=AN12)*($CH$5:$CH$14))+'J02'!BH12 -> 0 | BI12: =SUMPRODUCT(($I$5:$M$14=AN12)*($CI$5:$CI$14))+'J02'!BI12 -> 0 | BJ12: =SUMPRODUCT(($I$5:$M$14=AN12)*($CJ$5:$CJ$14))+'J02'!BJ12 -> 0 | BK12: 0 | BL12: =BK12+0.0000013 -> 1.3e-06 | BM12: 0 | BN12: 0 | BO12: 0 | BP12: 0 | BQ12: 0 | BR12: 0 | BS12: 0 | BT12: 0 | BU12: FALSE | BV12: FALSE | BW12: FALSE | BX12: FALSE | BY12: FALSE | BZ12: FALSE | CA12: 0 | CB12: 0 | CC12: 0 | CD12: 0 | CE12: FALSE | CF12: FALSE | CG12: FALSE | CH12: FALSE | CI12: FALSE | CJ12: FALSE | CL12: 0 | CM12: 0 | CN12: 1 | CO12: 0
P13: 0 | U13: 0 | V13: u | W13: 1 | X13: 0 | Y13: 0 | Z13: 0 | AA13: 0 | AB13: 0 | AC13: 0 | AD13: 0 | AE13: 0 | AF13: 0 | AG13: 0 | AH13: 0 | AI13: 0 | AJ13: 0 | AK13: 0 | AL13: 9 | AM13: 9 | AN13: ='J01'!AN13:AR13 -> 0 | AS13: 1 | AT13: ='J02'!AS13-AS13 -> 0 | AU13: =IF(AS13>'J02'!AS13,'J02'!$AU$25,IF(AS13='J02'!AS13,'J02'!$AT$25,IF(AS13<'J02'!AS13,'J02'!$AS$25))) -> u | AV13: 9 | AW13: =SUMPRODUCT(($B$5:$F$14=AN13)*($BQ$5:$BQ$14))+SUMPRODUCT(($I$5:$M$14=AN13)*($BR$5:$BR$14))+'J02'!AW13 -> 0 | AX13: =SUMPRODUCT(($B$5:$F$14=AN13)*($BS$5:$BS$14))+SUMPRODUCT(($I$5:$M$14=AN13)*($BT$5:$BT$14))+'J02'!AX13 -> 0 | AY13: =SUMPRODUCT(($B$5:$F$14=AN13)*($BU$5:$BU$14))+SUMPRODUCT(($I$5:$M$14=AN13)*($BV$5:$BV$14))+'J02'!AY13 -> 0 | AZ13: =SUMPRODUCT(($B$5:$F$14=AN13)*($BW$5:$BW$14))+SUMPRODUCT(($I$5:$M$14=AN13)*($BX$5:$BX$14))+'J02'!AZ13 -> 0 | BA13: =SUMPRODUCT(($B$5:$F$14=AN13)*($BY$5:$BY$14))+SUMPRODUCT(($I$5:$M$14=AN13)*($BZ$5:$BZ$14))+'J02'!BA13 -> 0 | BB13: =SUMPRODUCT(($B$5:$F$14=AN13)*($CA$5:$CA$14))+SUMPRODUCT(($I$5:$M$14=AN13)*($CB$5:$CB$14))+'J02'!BB13 -> 0 | BC13: =SUMPRODUCT(($B$5:$F$14=AN13)*($CC$5:$CC$14))+SUMPRODUCT(($I$5:$M$14=AN13)*($CD$5:$CD$14))+'J02'!BC13 -> 0 | BD13: 0 | BE13: =SUMPRODUCT(($B$5:$F$14=AN13)*($CE$5:$CE$14))+'J02'!BE13 -> 0 | BF13: =SUMPRODUCT(($B$5:$F$14=AN13)*($CF$5:$CF$14))+'J02'!BF13 -> 0 | BG13: =SUMPRODUCT(($B$5:$F$14=AN13)*($CG$5:$CG$14))+'J02'!BG13 -> 0 | BH13: =SUMPRODUCT(($I$5:$M$14=AN13)*($CH$5:$CH$14))+'J02'!BH13 -> 0 | BI13: =SUMPRODUCT(($I$5:$M$14=AN13)*($CI$5:$CI$14))+'J02'!BI13 -> 0 | BJ13: =SUMPRODUCT(($I$5:$M$14=AN13)*($CJ$5:$CJ$14))+'J02'!BJ13 -> 0 | BK13: 0 | BL13: =BK13+0.0000012 -> 1.2e-06 | BM13: 0 | BN13: 0 | BO13: 0 | BP13: 0 | BQ13: 0 | BR13: 0 | BS13: 0 | BT13: 0 | BU13: FALSE | BV13: FALSE | BW13: FALSE | BX13: FALSE | BY13: FALSE | BZ13: FALSE | CA13: 0 | CB13: 0 | CC13: 0 | CD13: 0 | CE13: FALSE | CF13: FALSE | CG13: FALSE | CH13: FALSE | CI13: FALSE | CJ13: FALSE | CL13: 0 | CM13: 0 | CN13: 1 | CO13: 0
P14: 0 | U14: 0 | V14: u | W14: 1 | X14: 0 | Y14: 0 | Z14: 0 | AA14: 0 | AB14: 0 | AC14: 0 | AD14: 0 | AE14: 0 | AF14: 0 | AG14: 0 | AH14: 0 | AI14: 0 | AJ14: 0 | AK14: 0 | AL14: 10 | AM14: 10 | AN14: ='J01'!AN14:AR14 -> 0 | AS14: 1 | AT14: ='J02'!AS14-AS14 -> 0 | AU14: =IF(AS14>'J02'!AS14,'J02'!$AU$25,IF(AS14='J02'!AS14,'J02'!$AT$25,IF(AS14<'J02'!AS14,'J02'!$AS$25))) -> u | AV14: 10 | AW14: =SUMPRODUCT(($B$5:$F$14=AN14)*($BQ$5:$BQ$14))+SUMPRODUCT(($I$5:$M$14=AN14)*($BR$5:$BR$14))+'J02'!AW14 -> 0 | AX14: =SUMPRODUCT(($B$5:$F$14=AN14)*($BS$5:$BS$14))+SUMPRODUCT(($I$5:$M$14=AN14)*($BT$5:$BT$14))+'J02'!AX14 -> 0 | AY14: =SUMPRODUCT(($B$5:$F$14=AN14)*($BU$5:$BU$14))+SUMPRODUCT(($I$5:$M$14=AN14)*($BV$5:$BV$14))+'J02'!AY14 -> 0 | AZ14: =SUMPRODUCT(($B$5:$F$14=AN14)*($BW$5:$BW$14))+SUMPRODUCT(($I$5:$M$14=AN14)*($BX$5:$BX$14))+'J02'!AZ14 -> 0 | BA14: =SUMPRODUCT(($B$5:$F$14=AN14)*($BY$5:$BY$14))+SUMPRODUCT(($I$5:$M$14=AN14)*($BZ$5:$BZ$14))+'J02'!BA14 -> 0 | BB14: =SUMPRODUCT(($B$5:$F$14=AN14)*($CA$5:$CA$14))+SUMPRODUCT(($I$5:$M$14=AN14)*($CB$5:$CB$14))+'J02'!BB14 -> 0 | BC14: =SUMPRODUCT(($B$5:$F$14=AN14)*($CC$5:$CC$14))+SUMPRODUCT(($I$5:$M$14=AN14)*($CD$5:$CD$14))+'J02'!BC14 -> 0 | BD14: 0 | BE14: =SUMPRODUCT(($B$5:$F$14=AN14)*($CE$5:$CE$14))+'J02'!BE14 -> 0 | BF14: =SUMPRODUCT(($B$5:$F$14=AN14)*($CF$5:$CF$14))+'J02'!BF14 -> 0 | BG14: =SUMPRODUCT(($B$5:$F$14=AN14)*($CG$5:$CG$14))+'J02'!BG14 -> 0 | BH14: =SUMPRODUCT(($I$5:$M$14=AN14)*($CH$5:$CH$14))+'J02'!BH14 -> 0 | BI14: =SUMPRODUCT(($I$5:$M$14=AN14)*($CI$5:$CI$14))+'J02'!BI14 -> 0 | BJ14: =SUMPRODUCT(($I$5:$M$14=AN14)*($CJ$5:$CJ$14))+'J02'!BJ14 -> 0 | BK14: 0 | BL14: =BK14+0.0000011 -> 1.1e-06 | BM14: 0 | BN14: 0 | BO14: 0 | BP14: 0 | BQ14: 0 | BR14: 0 | BS14: 0 | BT14: 0 | BU14: FALSE | BV14: FALSE | BW14: FALSE | BX14: FALSE | BY14: FALSE | BZ14: FALSE | CA14: 0 | CB14: 0 | CC14: 0 | CD14: 0 | CE14: FALSE | CF14: FALSE | CG14: FALSE | CH14: FALSE | CI14: FALSE | CJ14: FALSE | CL14: 0 | CM14: 0 | CN14: 1 | CO14: 0
P15: 0 | U15: 0 | V15: u | W15: 1 | X15: 0 | Y15: 0 | Z15: 0 | AA15: 0 | AB15: 0 | AC15: 0 | AD15: 0 | AE15: 0 | AF15: 0 | AG15: 0 | AH15: 0 | AI15: 0 | AJ15: 0 | AK15: 0 | AL15: 11 | AM15: 11 | AN15: ='J01'!AN15:AR15 -> 0 | AS15: 1 | AT15: ='J02'!AS15-AS15 -> 0 | AU15: =IF(AS15>'J02'!AS15,'J02'!$AU$25,IF(AS15='J02'!AS15,'J02'!$AT$25,IF(AS15<'J02'!AS15,'J02'!$AS$25))) -> u | AV15: 11 | AW15: =SUMPRODUCT(($B$5:$F$14=AN15)*($BQ$5:$BQ$14))+SUMPRODUCT(($I$5:$M$14=AN15)*($BR$5:$BR$14))+'J02'!AW15 -> 0 | AX15: =SUMPRODUCT(($B$5:$F$14=AN15)*($BS$5:$BS$14))+SUMPRODUCT(($I$5:$M$14=AN15)*($BT$5:$BT$14))+'J02'!AX15 -> 0 | AY15: =SUMPRODUCT(($B$5:$F$14=AN15)*($BU$5:$BU$14))+SUMPRODUCT(($I$5:$M$14=AN15)*($BV$5:$BV$14))+'J02'!AY15 -> 0 | AZ15: =SUMPRODUCT(($B$5:$F$14=AN15)*($BW$5:$BW$14))+SUMPRODUCT(($I$5:$M$14=AN15)*($BX$5:$BX$14))+'J02'!AZ15 -> 0 | BA15: =SUMPRODUCT(($B$5:$F$14=AN15)*($BY$5:$BY$14))+SUMPRODUCT(($I$5:$M$14=AN15)*($BZ$5:$BZ$14))+'J02'!BA15 -> 0 | BB15: =SUMPRODUCT(($B$5:$F$14=AN15)*($CA$5:$CA$14))+SUMPRODUCT(($I$5:$M$14=AN15)*($CB$5:$CB$14))+'J02'!BB15 -> 0 | BC15: =SUMPRODUCT(($B$5:$F$14=AN15)*($CC$5:$CC$14))+SUMPRODUCT(($I$5:$M$14=AN15)*($CD$5:$CD$14))+'J02'!BC15 -> 0 | BD15: 0 | BE15: =SUMPRODUCT(($B$5:$F$14=AN15)*($CE$5:$CE$14))+'J02'!BE15 -> 0 | BF15: =SUMPRODUCT(($B$5:$F$14=AN15)*($CF$5:$CF$14))+'J02'!BF15 -> 0 | BG15: =SUMPRODUCT(($B$5:$F$14=AN15)*($CG$5:$CG$14))+'J02'!BG15 -> 0 | BH15: =SUMPRODUCT(($I$5:$M$14=AN15)*($CH$5:$CH$14))+'J02'!BH15 -> 0 | BI15: =SUMPRODUCT(($I$5:$M$14=AN15)*($CI$5:$CI$14))+'J02'!BI15 -> 0 | BJ15: =SUMPRODUCT(($I$5:$M$14=AN15)*($CJ$5:$CJ$14))+'J02'!BJ15 -> 0 | BK15: 0 | BL15: =BK15+0.000001 -> 1e-06 | CL15: 0 | CM15: 0 | CN15: 1 | CO15: 0
P16: 0 | U16: 0 | V16: u | W16: 1 | X16: 0 | Y16: 0 | Z16: 0 | AA16: 0 | AB16: 0 | AC16: 0 | AD16: 0 | AE16: 0 | AF16: 0 | AG16: 0 | AH16: 0 | AI16: 0 | AJ16: 0 | AK16: 0 | AL16: 12 | AM16: 12 | AN16: ='J01'!AN16:AR16 -> 0 | AS16: 1 | AT16: ='J02'!AS16-AS16 -> 0 | AU16: =IF(AS16>'J02'!AS16,'J02'!$AU$25,IF(AS16='J02'!AS16,'J02'!$AT$25,IF(AS16<'J02'!AS16,'J02'!$AS$25))) -> u | AV16: 12 | AW16: =SUMPRODUCT(($B$5:$F$14=AN16)*($BQ$5:$BQ$14))+SUMPRODUCT(($I$5:$M$14=AN16)*($BR$5:$BR$14))+'J02'!AW16 -> 0 | AX16: =SUMPRODUCT(($B$5:$F$14=AN16)*($BS$5:$BS$14))+SUMPRODUCT(($I$5:$M$14=AN16)*($BT$5:$BT$14))+'J02'!AX16 -> 0 | AY16: =SUMPRODUCT(($B$5:$F$14=AN16)*($BU$5:$BU$14))+SUMPRODUCT(($I$5:$M$14=AN16)*($BV$5:$BV$14))+'J02'!AY16 -> 0 | AZ16: =SUMPRODUCT(($B$5:$F$14=AN16)*($BW$5:$BW$14))+SUMPRODUCT(($I$5:$M$14=AN16)*($BX$5:$BX$14))+'J02'!AZ16 -> 0 | BA16: =SUMPRODUCT(($B$5:$F$14=AN16)*($BY$5:$BY$14))+SUMPRODUCT(($I$5:$M$14=AN16)*($BZ$5:$BZ$14))+'J02'!BA16 -> 0 | BB16: =SUMPRODUCT(($B$5:$F$14=AN16)*($CA$5:$CA$14))+SUMPRODUCT(($I$5:$M$14=AN16)*($CB$5:$CB$14))+'J02'!BB16 -> 0 | BC16: =SUMPRODUCT(($B$5:$F$14=AN16)*($CC$5:$CC$14))+SUMPRODUCT(($I$5:$M$14=AN16)*($CD$5:$CD$14))+'J02'!BC16 -> 0 | BD16: 0 | BE16: =SUMPRODUCT(($B$5:$F$14=AN16)*($CE$5:$CE$14))+'J02'!BE16 -> 0 | BF16: =SUMPRODUCT(($B$5:$F$14=AN16)*($CF$5:$CF$14))+'J02'!BF16 -> 0 | BG16: =SUMPRODUCT(($B$5:$F$14=AN16)*($CG$5:$CG$14))+'J02'!BG16 -> 0 | BH16: =SUMPRODUCT(($I$5:$M$14=AN16)*($CH$5:$CH$14))+'J02'!BH16 -> 0 | BI16: =SUMPRODUCT(($I$5:$M$14=AN16)*($CI$5:$CI$14))+'J02'!BI16 -> 0 | BJ16: =SUMPRODUCT(($I$5:$M$14=AN16)*($CJ$5:$CJ$14))+'J02'!BJ16 -> 0 | BK16: 0 | BL16: =BK16+0.0000009 -> 9e-07 | CL16: 0 | CM16: 0 | CN16: 1 | CO16: 0
P17: 0 | U17: 0 | V17: u | W17: 1 | X17: 0 | Y17: 0 | Z17: 0 | AA17: 0 | AB17: 0 | AC17: 0 | AD17: 0 | AE17: 0 | AF17: 0 | AG17: 0 | AH17: 0 | AI17: 0 | AJ17: 0 | AK17: 0 | AL17: 13 | AM17: 13 | AN17: ='J01'!AN17:AR17 -> 0 | AS17: 1 | AT17: ='J02'!AS17-AS17 -> 0 | AU17: =IF(AS17>'J02'!AS17,'J02'!$AU$25,IF(AS17='J02'!AS17,'J02'!$AT$25,IF(AS17<'J02'!AS17,'J02'!$AS$25))) -> u | AV17: 13 | AW17: =SUMPRODUCT(($B$5:$F$14=AN17)*($BQ$5:$BQ$14))+SUMPRODUCT(($I$5:$M$14=AN17)*($BR$5:$BR$14))+'J02'!AW17 -> 0 | AX17: =SUMPRODUCT(($B$5:$F$14=AN17)*($BS$5:$BS$14))+SUMPRODUCT(($I$5:$M$14=AN17)*($BT$5:$BT$14))+'J02'!AX17 -> 0 | AY17: =SUMPRODUCT(($B$5:$F$14=AN17)*($BU$5:$BU$14))+SUMPRODUCT(($I$5:$M$14=AN17)*($BV$5:$BV$14))+'J02'!AY17 -> 0 | AZ17: =SUMPRODUCT(($B$5:$F$14=AN17)*($BW$5:$BW$14))+SUMPRODUCT(($I$5:$M$14=AN17)*($BX$5:$BX$14))+'J02'!AZ17 -> 0 | BA17: =SUMPRODUCT(($B$5:$F$14=AN17)*($BY$5:$BY$14))+SUMPRODUCT(($I$5:$M$14=AN17)*($BZ$5:$BZ$14))+'J02'!BA17 -> 0 | BB17: =SUMPRODUCT(($B$5:$F$14=AN17)*($CA$5:$CA$14))+SUMPRODUCT(($I$5:$M$14=AN17)*($CB$5:$CB$14))+'J02'!BB17 -> 0 | BC17: =SUMPRODUCT(($B$5:$F$14=AN17)*($CC$5:$CC$14))+SUMPRODUCT(($I$5:$M$14=AN17)*($CD$5:$CD$14))+'J02'!BC17 -> 0 | BD17: 0 | BE17: =SUMPRODUCT(($B$5:$F$14=AN17)*($CE$5:$CE$14))+'J02'!BE17 -> 0 | BF17: =SUMPRODUCT(($B$5:$F$14=AN17)*($CF$5:$CF$14))+'J02'!BF17 -> 0 | BG17: =SUMPRODUCT(($B$5:$F$14=AN17)*($CG$5:$CG$14))+'J02'!BG17 -> 0 | BH17: =SUMPRODUCT(($I$5:$M$14=AN17)*($CH$5:$CH$14))+'J02'!BH17 -> 0 | BI17: =SUMPRODUCT(($I$5:$M$14=AN17)*($CI$5:$CI$14))+'J02'!BI17 -> 0 | BJ17: =SUMPRODUCT(($I$5:$M$14=AN17)*($CJ$5:$CJ$14))+'J02'!BJ17 -> 0 | BK17: 0 | BL17: =BK17+0.0000008 -> 8e-07 | CL17: 0 | CM17: 0 | CN17: 1 | CO17: 0
P18: 0 | U18: 0 | V18: u | W18: 1 | X18: 0 | Y18: 0 | Z18: 0 | AA18: 0 | AB18: 0 | AC18: 0 | AD18: 0 | AE18: 0 | AF18: 0 | AG18: 0 | AH18: 0 | AI18: 0 | AJ18: 0 | AK18: 0 | AL18: 14 | AM18: 14 | AN18: ='J01'!AN18:AR18 -> 0 | AS18: 1 | AT18: ='J02'!AS18-AS18 -> 0 | AU18: =IF(AS18>'J02'!AS18,'J02'!$AU$25,IF(AS18='J02'!AS18,'J02'!$AT$25,IF(AS18<'J02'!AS18,'J02'!$AS$25))) -> u | AV18: 14 | AW18: =SUMPRODUCT(($B$5:$F$14=AN18)*($BQ$5:$BQ$14))+SUMPRODUCT(($I$5:$M$14=AN18)*($BR$5:$BR$14))+'J02'!AW18 -> 0 | AX18: =SUMPRODUCT(($B$5:$F$14=AN18)*($BS$5:$BS$14))+SUMPRODUCT(($I$5:$M$14=AN18)*($BT$5:$BT$14))+'J02'!AX18 -> 0 | AY18: =SUMPRODUCT(($B$5:$F$14=AN18)*($BU$5:$BU$14))+SUMPRODUCT(($I$5:$M$14=AN18)*($BV$5:$BV$14))+'J02'!AY18 -> 0 | AZ18: =SUMPRODUCT(($B$5:$F$14=AN18)*($BW$5:$BW$14))+SUMPRODUCT(($I$5:$M$14=AN18)*($BX$5:$BX$14))+'J02'!AZ18 -> 0 | BA18: =SUMPRODUCT(($B$5:$F$14=AN18)*($BY$5:$BY$14))+SUMPRODUCT(($I$5:$M$14=AN18)*($BZ$5:$BZ$14))+'J02'!BA18 -> 0 | BB18: =SUMPRODUCT(($B$5:$F$14=AN18)*($CA$5:$CA$14))+SUMPRODUCT(($I$5:$M$14=AN18)*($CB$5:$CB$14))+'J02'!BB18 -> 0 | BC18: =SUMPRODUCT(($B$5:$F$14=AN18)*($CC$5:$CC$14))+SUMPRODUCT(($I$5:$M$14=AN18)*($CD$5:$CD$14))+'J02'!BC18 -> 0 | BD18: 0 | BE18: =SUMPRODUCT(($B$5:$F$14=AN18)*($CE$5:$CE$14))+'J02'!BE18 -> 0 | BF18: =SUMPRODUCT(($B$5:$F$14=AN18)*($CF$5:$CF$14))+'J02'!BF18 -> 0 | BG18: =SUMPRODUCT(($B$5:$F$14=AN18)*($CG$5:$CG$14))+'J02'!BG18 -> 0 | BH18: =SUMPRODUCT(($I$5:$M$14=AN18)*($CH$5:$CH$14))+'J02'!BH18 -> 0 | BI18: =SUMPRODUCT(($I$5:$M$14=AN18)*($CI$5:$CI$14))+'J02'!BI18 -> 0 | BJ18: =SUMPRODUCT(($I$5:$M$14=AN18)*($CJ$5:$CJ$14))+'J02'!BJ18 -> 0 | BK18: 0 | BL18: =BK18+0.0000007 -> 7e-07 | CL18: 0 | CM18: 0 | CN18: 1 | CO18: 0
P19: 0 | U19: 0 | V19: u | W19: 1 | X19: 0 | Y19: 0 | Z19: 0 | AA19: 0 | AB19: 0 | AC19: 0 | AD19: 0 | AE19: 0 | AF19: 0 | AG19: 0 | AH19: 0 | AI19: 0 | AJ19: 0 | AK19: 0 | AL19: 15 | AM19: 15 | AN19: ='J01'!AN19:AR19 -> 0 | AS19: 1 | AT19: ='J02'!AS19-AS19 -> 0 | AU19: =IF(AS19>'J02'!AS19,'J02'!$AU$25,IF(AS19='J02'!AS19,'J02'!$AT$25,IF(AS19<'J02'!AS19,'J02'!$AS$25))) -> u | AV19: 15 | AW19: =SUMPRODUCT(($B$5:$F$14=AN19)*($BQ$5:$BQ$14))+SUMPRODUCT(($I$5:$M$14=AN19)*($BR$5:$BR$14))+'J02'!AW19 -> 0 | AX19: =SUMPRODUCT(($B$5:$F$14=AN19)*($BS$5:$BS$14))+SUMPRODUCT(($I$5:$M$14=AN19)*($BT$5:$BT$14))+'J02'!AX19 -> 0 | AY19: =SUMPRODUCT(($B$5:$F$14=AN19)*($BU$5:$BU$14))+SUMPRODUCT(($I$5:$M$14=AN19)*($BV$5:$BV$14))+'J02'!AY19 -> 0 | AZ19: =SUMPRODUCT(($B$5:$F$14=AN19)*($BW$5:$BW$14))+SUMPRODUCT(($I$5:$M$14=AN19)*($BX$5:$BX$14))+'J02'!AZ19 -> 0 | BA19: =SUMPRODUCT(($B$5:$F$14=AN19)*($BY$5:$BY$14))+SUMPRODUCT(($I$5:$M$14=AN19)*($BZ$5:$BZ$14))+'J02'!BA19 -> 0 | BB19: =SUMPRODUCT(($B$5:$F$14=AN19)*($CA$5:$CA$14))+SUMPRODUCT(($I$5:$M$14=AN19)*($CB$5:$CB$14))+'J02'!BB19 -> 0 | BC19: =SUMPRODUCT(($B$5:$F$14=AN19)*($CC$5:$CC$14))+SUMPRODUCT(($I$5:$M$14=AN19)*($CD$5:$CD$14))+'J02'!BC19 -> 0 | BD19: 0 | BE19: =SUMPRODUCT(($B$5:$F$14=AN19)*($CE$5:$CE$14))+'J02'!BE19 -> 0 | BF19: =SUMPRODUCT(($B$5:$F$14=AN19)*($CF$5:$CF$14))+'J02'!BF19 -> 0 | BG19: =SUMPRODUCT(($B$5:$F$14=AN19)*($CG$5:$CG$14))+'J02'!BG19 -> 0 | BH19: =SUMPRODUCT(($I$5:$M$14=AN19)*($CH$5:$CH$14))+'J02'!BH19 -> 0 | BI19: =SUMPRODUCT(($I$5:$M$14=AN19)*($CI$5:$CI$14))+'J02'!BI19 -> 0 | BJ19: =SUMPRODUCT(($I$5:$M$14=AN19)*($CJ$5:$CJ$14))+'J02'!BJ19 -> 0 | BK19: 0 | BL19: =BK19+0.0000006 -> 6e-07 | CL19: 0 | CM19: 0 | CN19: 1 | CO19: 0
P20: 0 | U20: 0 | V20: u | W20: 1 | X20: 0 | Y20: 0 | Z20: 0 | AA20: 0 | AB20: 0 | AC20: 0 | AD20: 0 | AE20: 0 | AF20: 0 | AG20: 0 | AH20: 0 | AI20: 0 | AJ20: 0 | AK20: 0 | AL20: 16 | AM20: 16 | AN20: ='J01'!AN20:AR20 -> 0 | AS20: 1 | AT20: ='J02'!AS20-AS20 -> 0 | AU20: =IF(AS20>'J02'!AS20,'J02'!$AU$25,IF(AS20='J02'!AS20,'J02'!$AT$25,IF(AS20<'J02'!AS20,'J02'!$AS$25))) -> u | AV20: 16 | AW20: =SUMPRODUCT(($B$5:$F$14=AN20)*($BQ$5:$BQ$14))+SUMPRODUCT(($I$5:$M$14=AN20)*($BR$5:$BR$14))+'J02'!AW20 -> 0 | AX20: =SUMPRODUCT(($B$5:$F$14=AN20)*($BS$5:$BS$14))+SUMPRODUCT(($I$5:$M$14=AN20)*($BT$5:$BT$14))+'J02'!AX20 -> 0 | AY20: =SUMPRODUCT(($B$5:$F$14=AN20)*($BU$5:$BU$14))+SUMPRODUCT(($I$5:$M$14=AN20)*($BV$5:$BV$14))+'J02'!AY20 -> 0 | AZ20: =SUMPRODUCT(($B$5:$F$14=AN20)*($BW$5:$BW$14))+SUMPRODUCT(($I$5:$M$14=AN20)*($BX$5:$BX$14))+'J02'!AZ20 -> 0 | BA20: =SUMPRODUCT(($B$5:$F$14=AN20)*($BY$5:$BY$14))+SUMPRODUCT(($I$5:$M$14=AN20)*($BZ$5:$BZ$14))+'J02'!BA20 -> 0 | BB20: =SUMPRODUCT(($B$5:$F$14=AN20)*($CA$5:$CA$14))+SUMPRODUCT(($I$5:$M$14=AN20)*($CB$5:$CB$14))+'J02'!BB20 -> 0 | BC20: =SUMPRODUCT(($B$5:$F$14=AN20)*($CC$5:$CC$14))+SUMPRODUCT(($I$5:$M$14=AN20)*($CD$5:$CD$14))+'J02'!BC20 -> 0 | BD20: 0 | BE20: =SUMPRODUCT(($B$5:$F$14=AN20)*($CE$5:$CE$14))+'J02'!BE20 -> 0 | BF20: =SUMPRODUCT(($B$5:$F$14=AN20)*($CF$5:$CF$14))+'J02'!BF20 -> 0 | BG20: =SUMPRODUCT(($B$5:$F$14=AN20)*($CG$5:$CG$14))+'J02'!BG20 -> 0 | BH20: =SUMPRODUCT(($I$5:$M$14=AN20)*($CH$5:$CH$14))+'J02'!BH20 -> 0 | BI20: =SUMPRODUCT(($I$5:$M$14=AN20)*($CI$5:$CI$14))+'J02'!BI20 -> 0 | BJ20: =SUMPRODUCT(($I$5:$M$14=AN20)*($CJ$5:$CJ$14))+'J02'!BJ20 -> 0 | BK20: 0 | BL20: =BK20+0.0000005 -> 5e-07 | CL20: 0 | CM20: 0 | CN20: 1 | CO20: 0
P21: 0 | U21: 0 | V21: u | W21: 1 | X21: 0 | Y21: 0 | Z21: 0 | AA21: 0 | AB21: 0 | AC21: 0 | AD21: 0 | AE21: 0 | AF21: 0 | AG21: 0 | AH21: 0 | AI21: 0 | AJ21: 0 | AK21: 0 | AL21: 17 | AM21: 17 | AN21: ='J01'!AN21:AR21 -> 0 | AS21: 1 | AT21: ='J02'!AS21-AS21 -> 0 | AU21: =IF(AS21>'J02'!AS21,'J02'!$AU$25,IF(AS21='J02'!AS21,'J02'!$AT$25,IF(AS21<'J02'!AS21,'J02'!$AS$25))) -> u | AV21: 17 | AW21: =SUMPRODUCT(($B$5:$F$14=AN21)*($BQ$5:$BQ$14))+SUMPRODUCT(($I$5:$M$14=AN21)*($BR$5:$BR$14))+'J02'!AW21 -> 0 | AX21: =SUMPRODUCT(($B$5:$F$14=AN21)*($BS$5:$BS$14))+SUMPRODUCT(($I$5:$M$14=AN21)*($BT$5:$BT$14))+'J02'!AX21 -> 0 | AY21: =SUMPRODUCT(($B$5:$F$14=AN21)*($BU$5:$BU$14))+SUMPRODUCT(($I$5:$M$14=AN21)*($BV$5:$BV$14))+'J02'!AY21 -> 0 | AZ21: =SUMPRODUCT(($B$5:$F$14=AN21)*($BW$5:$BW$14))+SUMPRODUCT(($I$5:$M$14=AN21)*($BX$5:$BX$14))+'J02'!AZ21 -> 0 | BA21: =SUMPRODUCT(($B$5:$F$14=AN21)*($BY$5:$BY$14))+SUMPRODUCT(($I$5:$M$14=AN21)*($BZ$5:$BZ$14))+'J02'!BA21 -> 0 | BB21: =SUMPRODUCT(($B$5:$F$14=AN21)*($CA$5:$CA$14))+SUMPRODUCT(($I$5:$M$14=AN21)*($CB$5:$CB$14))+'J02'!BB21 -> 0 | BC21: =SUMPRODUCT(($B$5:$F$14=AN21)*($CC$5:$CC$14))+SUMPRODUCT(($I$5:$M$14=AN21)*($CD$5:$CD$14))+'J02'!BC21 -> 0 | BD21: 0 | BE21: =SUMPRODUCT(($B$5:$F$14=AN21)*($CE$5:$CE$14))+'J02'!BE21 -> 0 | BF21: =SUMPRODUCT(($B$5:$F$14=AN21)*($CF$5:$CF$14))+'J02'!BF21 -> 0 | BG21: =SUMPRODUCT(($B$5:$F$14=AN21)*($CG$5:$CG$14))+'J02'!BG21 -> 0 | BH21: =SUMPRODUCT(($I$5:$M$14=AN21)*($CH$5:$CH$14))+'J02'!BH21 -> 0 | BI21: =SUMPRODUCT(($I$5:$M$14=AN21)*($CI$5:$CI$14))+'J02'!BI21 -> 0 | BJ21: =SUMPRODUCT(($I$5:$M$14=AN21)*($CJ$5:$CJ$14))+'J02'!BJ21 -> 0 | BK21: 0 | BL21: =BK21+0.0000004 -> 4e-07 | CL21: 0 | CM21: 0 | CN21: 1 | CO21: 0
P22: 0 | U22: 0 | V22: u | W22: 1 | X22: 0 | Y22: 0 | Z22: 0 | AA22: 0 | AB22: 0 | AC22: 0 | AD22: 0 | AE22: 0 | AF22: 0 | AG22: 0 | AH22: 0 | AI22: 0 | AJ22: 0 | AK22: 0 | AL22: 18 | AM22: 18 | AN22: ='J01'!AN22:AR22 -> 0 | AS22: 1 | AT22: ='J02'!AS22-AS22 -> 0 | AU22: =IF(AS22>'J02'!AS22,'J02'!$AU$25,IF(AS22='J02'!AS22,'J02'!$AT$25,IF(AS22<'J02'!AS22,'J02'!$AS$25))) -> u | AV22: 18 | AW22: =SUMPRODUCT(($B$5:$F$14=AN22)*($BQ$5:$BQ$14))+SUMPRODUCT(($I$5:$M$14=AN22)*($BR$5:$BR$14))+'J02'!AW22 -> 0 | AX22: =SUMPRODUCT(($B$5:$F$14=AN22)*($BS$5:$BS$14))+SUMPRODUCT(($I$5:$M$14=AN22)*($BT$5:$BT$14))+'J02'!AX22 -> 0 | AY22: =SUMPRODUCT(($B$5:$F$14=AN22)*($BU$5:$BU$14))+SUMPRODUCT(($I$5:$M$14=AN22)*($BV$5:$BV$14))+'J02'!AY22 -> 0 | AZ22: =SUMPRODUCT(($B$5:$F$14=AN22)*($BW$5:$BW$14))+SUMPRODUCT(($I$5:$M$14=AN22)*($BX$5:$BX$14))+'J02'!AZ22 -> 0 | BA22: =SUMPRODUCT(($B$5:$F$14=AN22)*($BY$5:$BY$14))+SUMPRODUCT(($I$5:$M$14=AN22)*($BZ$5:$BZ$14))+'J02'!BA22 -> 0 | BB22: =SUMPRODUCT(($B$5:$F$14=AN22)*($CA$5:$CA$14))+SUMPRODUCT(($I$5:$M$14=AN22)*($CB$5:$CB$14))+'J02'!BB22 -> 0 | BC22: =SUMPRODUCT(($B$5:$F$14=AN22)*($CC$5:$CC$14))+SUMPRODUCT(($I$5:$M$14=AN22)*($CD$5:$CD$14))+'J02'!BC22 -> 0 | BD22: 0 | BE22: =SUMPRODUCT(($B$5:$F$14=AN22)*($CE$5:$CE$14))+'J02'!BE22 -> 0 | BF22: =SUMPRODUCT(($B$5:$F$14=AN22)*($CF$5:$CF$14))+'J02'!BF22 -> 0 | BG22: =SUMPRODUCT(($B$5:$F$14=AN22)*($CG$5:$CG$14))+'J02'!BG22 -> 0 | BH22: =SUMPRODUCT(($I$5:$M$14=AN22)*($CH$5:$CH$14))+'J02'!BH22 -> 0 | BI22: =SUMPRODUCT(($I$5:$M$14=AN22)*($CI$5:$CI$14))+'J02'!BI22 -> 0 | BJ22: =SUMPRODUCT(($I$5:$M$14=AN22)*($CJ$5:$CJ$14))+'J02'!BJ22 -> 0 | BK22: 0 | BL22: =BK22+0.0000003 -> 3e-07 | CL22: 0 | CM22: 0 | CN22: 1 | CO22: 0
P23: 0 | U23: 0 | V23: u | W23: 1 | X23: 0 | Y23: 0 | Z23: 0 | AA23: 0 | AB23: 0 | AC23: 0 | AD23: 0 | AE23: 0 | AF23: 0 | AG23: 0 | AH23: 0 | AI23: 0 | AJ23: 0 | AK23: 0 | AL23: 19 | AM23: 19 | AN23: ='J01'!AN23:AR23 -> 0 | AS23: 1 | AT23: ='J02'!AS23-AS23 -> 0 | AU23: =IF(AS23>'J02'!AS23,'J02'!$AU$25,IF(AS23='J02'!AS23,'J02'!$AT$25,IF(AS23<'J02'!AS23,'J02'!$AS$25))) -> u | AV23: 19 | AW23: =SUMPRODUCT(($B$5:$F$14=AN23)*($BQ$5:$BQ$14))+SUMPRODUCT(($I$5:$M$14=AN23)*($BR$5:$BR$14))+'J02'!AW23 -> 0 | AX23: =SUMPRODUCT(($B$5:$F$14=AN23)*($BS$5:$BS$14))+SUMPRODUCT(($I$5:$M$14=AN23)*($BT$5:$BT$14))+'J02'!AX23 -> 0 | AY23: =SUMPRODUCT(($B$5:$F$14=AN23)*($BU$5:$BU$14))+SUMPRODUCT(($I$5:$M$14=AN23)*($BV$5:$BV$14))+'J02'!AY23 -> 0 | AZ23: =SUMPRODUCT(($B$5:$F$14=AN23)*($BW$5:$BW$14))+SUMPRODUCT(($I$5:$M$14=AN23)*($BX$5:$BX$14))+'J02'!AZ23 -> 0 | BA23: =SUMPRODUCT(($B$5:$F$14=AN23)*($BY$5:$BY$14))+SUMPRODUCT(($I$5:$M$14=AN23)*($BZ$5:$BZ$14))+'J02'!BA23 -> 0 | BB23: =SUMPRODUCT(($B$5:$F$14=AN23)*($CA$5:$CA$14))+SUMPRODUCT(($I$5:$M$14=AN23)*($CB$5:$CB$14))+'J02'!BB23 -> 0 | BC23: =SUMPRODUCT(($B$5:$F$14=AN23)*($CC$5:$CC$14))+SUMPRODUCT(($I$5:$M$14=AN23)*($CD$5:$CD$14))+'J02'!BC23 -> 0 | BD23: 0 | BE23: =SUMPRODUCT(($B$5:$F$14=AN23)*($CE$5:$CE$14))+'J02'!BE23 -> 0 | BF23: =SUMPRODUCT(($B$5:$F$14=AN23)*($CF$5:$CF$14))+'J02'!BF23 -> 0 | BG23: =SUMPRODUCT(($B$5:$F$14=AN23)*($CG$5:$CG$14))+'J02'!BG23 -> 0 | BH23: =SUMPRODUCT(($I$5:$M$14=AN23)*($CH$5:$CH$14))+'J02'!BH23 -> 0 | BI23: =SUMPRODUCT(($I$5:$M$14=AN23)*($CI$5:$CI$14))+'J02'!BI23 -> 0 | BJ23: =SUMPRODUCT(($I$5:$M$14=AN23)*($CJ$5:$CJ$14))+'J02'!BJ23 -> 0 | BK23: 0 | BL23: =BK23+0.0000002 -> 2e-07 | CL23: 0 | CM23: 0 | CN23: 1 | CO23: 0
P24: 0 | U24: 0 | V24: u | W24: 1 | X24: 0 | Y24: 0 | Z24: 0 | AA24: 0 | AB24: 0 | AC24: 0 | AD24: 0 | AE24: 0 | AF24: 0 | AG24: 0 | AH24: 0 | AI24: 0 | AJ24: 0 | AK24: 0 | AL24: 20 | AM24: 20 | AN24: ='J01'!AN24:AR24 -> 0 | AS24: 1 | AT24: ='J02'!AS24-AS24 -> 0 | AU24: =IF(AS24>'J02'!AS24,'J02'!$AU$25,IF(AS24='J02'!AS24,'J02'!$AT$25,IF(AS24<'J02'!AS24,'J02'!$AS$25))) -> u | AV24: 20 | AW24: =SUMPRODUCT(($B$5:$F$14=AN24)*($BQ$5:$BQ$14))+SUMPRODUCT(($I$5:$M$14=AN24)*($BR$5:$BR$14))+'J02'!AW24 -> 0 | AX24: =SUMPRODUCT(($B$5:$F$14=AN24)*($BS$5:$BS$14))+SUMPRODUCT(($I$5:$M$14=AN24)*($BT$5:$BT$14))+'J02'!AX24 -> 0 | AY24: =SUMPRODUCT(($B$5:$F$14=AN24)*($BU$5:$BU$14))+SUMPRODUCT(($I$5:$M$14=AN24)*($BV$5:$BV$14))+'J02'!AY24 -> 0 | AZ24: =SUMPRODUCT(($B$5:$F$14=AN24)*($BW$5:$BW$14))+SUMPRODUCT(($I$5:$M$14=AN24)*($BX$5:$BX$14))+'J02'!AZ24 -> 0 | BA24: =SUMPRODUCT(($B$5:$F$14=AN24)*($BY$5:$BY$14))+SUMPRODUCT(($I$5:$M$14=AN24)*($BZ$5:$BZ$14))+'J02'!BA24 -> 0 | BB24: =SUMPRODUCT(($B$5:$F$14=AN24)*($CA$5:$CA$14))+SUMPRODUCT(($I$5:$M$14=AN24)*($CB$5:$CB$14))+'J02'!BB24 -> 0 | BC24: =SUMPRODUCT(($B$5:$F$14=AN24)*($CC$5:$CC$14))+SUMPRODUCT(($I$5:$M$14=AN24)*($CD$5:$CD$14))+'J02'!BC24 -> 0 | BD24: 0 | BE24: =SUMPRODUCT(($B$5:$F$14=AN24)*($CE$5:$CE$14))+'J02'!BE24 -> 0 | BF24: =SUMPRODUCT(($B$5:$F$14=AN24)*($CF$5:$CF$14))+'J02'!BF24 -> 0 | BG24: =SUMPRODUCT(($B$5:$F$14=AN24)*($CG$5:$CG$14))+'J02'!BG24 -> 0 | BH24: =SUMPRODUCT(($I$5:$M$14=AN24)*($CH$5:$CH$14))+'J02'!BH24 -> 0 | BI24: =SUMPRODUCT(($I$5:$M$14=AN24)*($CI$5:$CI$14))+'J02'!BI24 -> 0 | BJ24: =SUMPRODUCT(($I$5:$M$14=AN24)*($CJ$5:$CJ$14))+'J02'!BJ24 -> 0 | BK24: 0 | BL24: =BK24+0.0000001 -> 1e-07 | CL24: 0 | CM24: 0 | CN24: 1 | CO24: 0
AJ25: Buts Journée | AS25: p | AT25: u | AU25: q
AJ26: =SUM(G5:H14) -> 0 | AS26: p | AT26: u | AU26: q
AJ28: Total Buts
AJ29: =AJ26+'J02'!AJ29:AK30 -> 0

Sheet J04
H1: JOURNÉE 04 | P1: CLASSEMENT | AN1: CLASSEMENT
A3: p | B3: Équipes | G3: Buts | H3: Buts | I3: Équipes | N3: p | P3: Équipes | U3: Évolution | W3: R | X3: Pts | Y3: J | Z3: G | AA3: N | AB3: P | AC3: B + | AD3: B - | AE3: Diff | AF3: Domicile | AI3: Extérieur | AN3: Équipes | AS3: R | AT3: Evolution | AV3: R | AW3: Pts | AX3: J | AY3: G | AZ3: N | BA3: P | BB3: B + | BC3: B - | BD3: Diff | BE3: Domicile | BH3: Exterieur | CE3: DOMICILE | CH3: EXTERIRUR
AF4: G | AG4: N | AH4: P | AI4: G | AJ4: N | AK4: P | AM4: R | BE4: G | BF4: N | BG4: P | BH4: G | BI4: N | BJ4: P | BK4: % | BL4: % | BM4: P | BN4: P | BO4: Pts | BP4: Pts | BQ4: T Pts | BR4: T Pts | BS4: J | BT4: J | BU4: G | BV4: G | BW4: N | BX4: N | BY4: P | BZ4: P | CA4: B + | CB4: B + | CC4: B - | CD4: B - | CE4: G | CF4: N | CG4: P | CH4: G | CI4: N | CJ4: P | CL4: Equipes | CM4: % | CN4: R
P5: =VLOOKUP(AL5,$AM$5:$AR$24,2,0) -> 0 | U5: =VLOOKUP(P5,$AN$5:$BJ$24,7,0) -> 0 | V5: =VLOOKUP(P5,$AN$5:$BJ$24,8,0) -> u | W5: 1 | X5: =VLOOKUP(P5,$AN$5:$BJ$24,10,0) -> 0 | Y5: =VLOOKUP(P5,$AN$5:$BJ$24,11,0) -> 0 | Z5: =VLOOKUP(P5,$AN$5:$BJ$24,12,0) -> 0 | AA5: =VLOOKUP(P5,$AN$5:$BJ$24,13,0) -> 0 | AB5: =VLOOKUP(P5,$AN$5:$BJ$24,14,0) -> 0 | AC5: =VLOOKUP(P5,$AN$5:$BJ$24,15,0) -> 0 | AD5: =VLOOKUP(P5,$AN$5:$BJ$24,16,0) -> 0 | AE5: =VLOOKUP(P5,$AN$5:$BJ$24,17,0) -> 0 | AF5: =VLOOKUP(P5,$AN$5:$BJ$24,18,0) -> 0 | AG5: =VLOOKUP(P5,$AN$5:$BJ$24,19,0) -> 0 | AH5: =VLOOKUP(P5,$AN$5:$BJ$24,20,0) -> 0 | AI5: =VLOOKUP(P5,$AN$5:$BJ$24,21,0) -> 0 | AJ5: =VLOOKUP(P5,$AN$5:$BJ$24,22,0) -> 0 | AK5: =VLOOKUP(P5,$AN$5:$BJ$24,23,0) -> 0 | AL5: 1 | AM5: =AV5 -> 1 | AN5: ='J01'!AN5:AR5 -> 0 | AS5: =RANK(BK5,$BK$5:$BK$24) -> 1 | AT5: ='J03'!AS5-AS5 -> 0 | AU5: =IF(AS5>'J03'!AS5,'J03'!$AU$25,IF(AS5='J03'!AS5,'J03'!$AT$25,IF(AS5<'J03'!AS5,'J03'!$AS$25))) -> u | AV5: =RANK(BL5,$BL$5:$BL$24) -> 1 | AW5: =SUMPRODUCT(($B$5:$F$14=AN5)*($BQ$5:$BQ$14))+SUMPRODUCT(($I$5:$M$14=AN5)*($BR$5:$BR$14))+'J03'!AW5 -> 0 | AX5: =SUMPRODUCT(($B$5:$F$14=AN5)*($BS$5:$BS$14))+SUMPRODUCT(($I$5:$M$14=AN5)*($BT$5:$BT$14))+'J03'!AX5 -> 0 | AY5: =SUMPRODUCT(($B$5:$F$14=AN5)*($BU$5:$BU$14))+SUMPRODUCT(($I$5:$M$14=AN5)*($BV$5:$BV$14))+'J03'!AY5 -> 0 | AZ5: =SUMPRODUCT(($B$5:$F$14=AN5)*($BW$5:$BW$14))+SUMPRODUCT(($I$5:$M$14=AN5)*($BX$5:$BX$14))+'J03'!AZ5 -> 0 | BA5: =SUMPRODUCT(($B$5:$F$14=AN5)*($BY$5:$BY$14))+SUMPRODUCT(($I$5:$M$14=AN5)*($BZ$5:$BZ$14))+'J03'!BA5 -> 0 | BB5: =SUMPRODUCT(($B$5:$F$14=AN5)*($CA$5:$CA$14))+SUMPRODUCT(($I$5:$M$14=AN5)*($CB$5:$CB$14))+'J03'!BB5 -> 0 | BC5: =SUMPRODUCT(($B$5:$F$14=AN5)*($CC$5:$CC$14))+SUMPRODUCT(($I$5:$M$14=AN5)*($CD$5:$CD$14))+'J03'!BC5 -> 0 | BD5: =BB5-BC5 -> 0 | BE5: =SUMPRODUCT(($B$5:$F$14=AN5)*($CE$5:$CE$14))+'J03'!BE5 -> 0 | BF5: =SUMPRODUCT(($B$5:$F$14=AN5)*($CF$5:$CF$14))+'J03'!BF5 -> 0 | BG5: =SUMPRODUCT(($B$5:$F$14=AN5)*($CG$5:$CG$14))+'J03'!BG5 -> 0 | BH5: =SUMPRODUCT(($I$5:$M$14=AN5)*($CH$5:$CH$14))+'J03'!BH5 -> 0 | BI5: =SUMPRODUCT(($I$5:$M$14=AN5)*($CI$5:$CI$14))+'J03'!BI5 -> 0 | BJ5: =SUMPRODUCT(($I$5:$M$14=AN5)*($CJ$5:$CJ$14))+'J03'!BJ5 -> 0 | BK5: =SUM(AW5*1000+(BD5)/100+(BB5)/1000) -> 0 | BL5: =BK5+0.000002 -> 2e-06 | BM5: =A5 -> 0 | BN5: =N5 -> 0 | BO5: =IF(G5="",0,IF(G5>H5,3,IF(G5=H5,1,IF(G5<H5,0)))) -> 0 | BP5: =IF(H5="",0,IF(H5>G5,3,IF(H5=G5,1,IF(H5<G5,0)))) -> 0 | BQ5: =BO5-BM5 -> 0 | BR5: =BP5-BN5 -> 0 | BS5: =IF(G5="",0,1) -> 0 | BT5: =IF(H5="",0,1) -> 0 | BU5: =IF(G5<>"",IF(G5>H5,1)) -> FALSE | BV5: =IF(H5<>"",IF(H5>G5,1)) -> FALSE | BW5: =IF(G5<>"",IF(G5=H5,1)) -> FALSE | BX5: =IF(H5<>"",IF(H5=G5,1)) -> FALSE | BY5: =IF(G5<>"",IF(G5<H5,1)) -> FALSE | BZ5: =IF(H5<>"",IF(H5<G5,1)) -> FALSE | CA5: =G5 -> 0 | CB5: =H5 -> 0 | CC5: =H5 -> 0 | CD5: =G5 -> 0 | CE5: =IF(G5<>"",IF(G5>H5,1)) -> FALSE | CF5: =IF(G5<>"",IF(G5=H5,1)) -> FALSE | CG5: =IF(G5<>"",IF(G5<H5,1)) -> FALSE | CH5: =IF(H5<>"",IF(H5>G5,1)) -> FALSE | CI5: =IF(H5<>"",IF(H5=G5,1)) -> FALSE | CJ5: =IF(H5<>"",IF(H5<G5,1)) -> FALSE | CL5: =VLOOKUP(AL5,$AM$5:$AR$24,2,0) -> 0 | CM5: =VLOOKUP(CL5,$AN$5:$BK$24,24,0) -> 0 | CN5: =RANK(CM5,$CM$5:$CM$24) -> 1 | CO5: =AN5 -> 0
P6: =VLOOKUP(AL6,$AM$5:$AR$24,2,0) -> 0 | U6: =VLOOKUP(P6,$AN$5:$BJ$24,7,0) -> 0 | V6: =VLOOKUP(P6,$AN$5:$BJ$24,8,0) -> u | W6: =IF(CM6=CM5,CN5,CN6) -> 1 | X6: =VLOOKUP(P6,$AN$5:$BJ$24,10,0) -> 0 | Y6: =VLOOKUP(P6,$AN$5:$BJ$24,11,0) -> 0 | Z6: =VLOOKUP(P6,$AN$5:$BJ$24,12,0) -> 0 | AA6: =VLOOKUP(P6,$AN$5:$BJ$24,13,0) -> 0 | AB6: =VLOOKUP(P6,$AN$5:$BJ$24,14,0) -> 0 | AC6: =VLOOKUP(P6,$AN$5:$BJ$24,15,0) -> 0 | AD6: =VLOOKUP(P6,$AN$5:$BJ$24,16,0) -> 0 | AE6: =VLOOKUP(P6,$AN$5:$BJ$24,17,0) -> 0 | AF6: =VLOOKUP(P6,$AN$5:$BJ$24,18,0) -> 0 | AG6: =VLOOKUP(P6,$AN$5:$BJ$24,19,0) -> 0 | AH6: =VLOOKUP(P6,$AN$5:$BJ$24,20,0) -> 0 | AI6: =VLOOKUP(P6,$AN$5:$BJ$24,21,0) -> 0 | AJ6: =VLOOKUP(P6,$AN$5:$BJ$24,22,0) -> 0 | AK6: =VLOOKUP(P6,$AN$5:$BJ$24,23,0) -> 0 | AL6: 2 | AM6: =AV6 -> 2 | AN6: ='J01'!AN6:AR6 -> 0 | AS6: =RANK(BK6,$BK$5:$BK$24) -> 1 | AT6: ='J03'!AS6-AS6 -> 0 | AU6: =IF(AS6>'J03'!AS6,'J03'!$AU$25,IF(AS6='J03'!AS6,'J03'!$AT$25,IF(AS6<'J03'!AS6,'J03'!$AS$25))) -> u | AV6: =RANK(BL6,$BL$5:$BL$24) -> 2 | AW6: =SUMPRODUCT(($B$5:$F$14=AN6)*($BQ$5:$BQ$14))+SUMPRODUCT(($I$5:$M$14=AN6)*($BR$5:$BR$14))+'J03'!AW6 -> 0 | AX6: =SUMPRODUCT(($B$5:$F$14=AN6)*($BS$5:$BS$14))+SUMPRODUCT(($I$5:$M$14=AN6)*($BT$5:$BT$14))+'J03'!AX6 -> 0 | AY6: =SUMPRODUCT(($B$5:$F$14=AN6)*($BU$5:$BU$14))+SUMPRODUCT(($I$5:$M$14=AN6)*($BV$5:$BV$14))+'J03'!AY6 -> 0 | AZ6: =SUMPRODUCT(($B$5:$F$14=AN6)*($BW$5:$BW$14))+SUMPRODUCT(($I$5:$M$14=AN6)*($BX$5:$BX$14))+'J03'!AZ6 -> 0 | BA6: =SUMPRODUCT(($B$5:$F$14=AN6)*($BY$5:$BY$14))+SUMPRODUCT(($I$5:$M$14=AN6)*($BZ$5:$BZ$14))+'J03'!BA6 -> 0 | BB6: =SUMPRODUCT(($B$5:$F$14=AN6)*($CA$5:$CA$14))+SUMPRODUCT(($I$5:$M$14=AN6)*($CB$5:$CB$14))+'J03'!BB6 -> 0 | BC6: =SUMPRODUCT(($B$5:$F$14=AN6)*($CC$5:$CC$14))+SUMPRODUCT(($I$5:$M$14=AN6)*($CD$5:$CD$14))+'J03'!BC6 -> 0 | BD6: =BB6-BC6 -> 0 | BE6: =SUMPRODUCT(($B$5:$F$14=AN6)*($CE$5:$CE$14))+'J03'!BE6 -> 0 | BF6: =SUMPRODUCT(($B$5:$F$14=AN6)*($CF$5:$CF$14))+'J03'!BF6 -> 0 | BG6: =SUMPRODUCT(($B$5:$F$14=AN6)*($CG$5:$CG$14))+'J03'!BG6 -> 0 | BH6: =SUMPRODUCT(($I$5:$M$14=AN6)*($CH$5:$CH$14))+'J03'!BH6 -> 0 | BI6: =SUMPRODUCT(($I$5:$M$14=AN6)*($CI$5:$CI$14))+'J03'!BI6 -> 0 | BJ6: =SUMPRODUCT(($I$5:$M$14=AN6)*($CJ$5:$CJ$14))+'J03'!BJ6 -> 0 | BK6: =SUM(AW6*1000+(BD6)/100+(BB6)/1000) -> 0 | BL6: =BK6+0.0000019 -> 1.9e-06 | BM6: =A6 -> 0 | BN6: =N6 -> 0 | BO6: =IF(G6="",0,IF(G6>H6,3,IF(G6=H6,1,IF(G6<H6,0)))) -> 0 | BP6: =IF(H6="",0,IF(H6>G6,3,IF(H6=G6,1,IF(H6<G6,0)))) -> 0 | BQ6: =BO6-BM6 -> 0 | BR6: 0 | BS6: =IF(G6="",0,1) -> 0 | BT6: 0 | BU6: =IF(G6<>"",IF(G6>H6,1)) -> FALSE | BV6: =IF(H6<>"",IF(H6>G6,1)) -> FALSE | BW6: =IF(G6<>"",IF(G6=H6,1)) -> FALSE | BX6: =IF(H6<>"",IF(H6=G6,1)) -> FALSE | BY6: =IF(G6<>"",IF(G6<H6,1)) -> FALSE | BZ6: =IF(H6<>"",IF(H6<G6,1)) -> FALSE | CA6: =G6 -> 0 | CB6: 0 | CC6: =H6 -> 0 | CD6: =G6 -> 0 | CE6: =IF(G6<>"",IF(G6>H6,1)) -> FALSE | CF6: =IF(G6<>"",IF(G6=H6,1)) -> FALSE | CG6: =IF(G6<>"",IF(G6<H6,1)) -> FALSE | CH6: =IF(H6<>"",IF(H6>G6,1)) -> FALSE | CI6: =IF(H6<>"",IF(H6=G6,1)) -> FALSE | CJ6: =IF(H6<>"",IF(H6<G6,1)) -> FALSE | CL6: =VLOOKUP(AL6,$AM$5:$AR$24,2,0) -> 0 | CM6: =VLOOKUP(CL6,$AN$5:$BK$24,24,0) -> 0 | CN6: =RANK(CM6,$CM$5:$CM$24) -> 1 | CO6: =AN6 -> 0
P7: 0 | U7: 0 | V7: u | W7: =IF(CM7=CM6,CN6,CN7) -> 1 | X7: 0 | Y7: 0 | Z7: 0 | AA7: 0 | AB7: 0 | AC7: 0 | AD7: 0 | AE7: 0 | AF7: 0 | AG7: 0 | AH7: 0 | AI7: 0 | AJ7: 0 | AK7: 0 | AL7: 3 | AM7: 3 | AN7: ='J01'!AN7:AR7 -> 0 | AS7: 1 | AT7: ='J03'!AS7-AS7 -> 0 | AU7: =IF(AS7>'J03'!AS7,'J03'!$AU$25,IF(AS7='J03'!AS7,'J03'!$AT$25,IF(AS7<'J03'!AS7,'J03'!$AS$25))) -> u | AV7: 3 | AW7: =SUMPRODUCT(($B$5:$F$14=AN7)*($BQ$5:$BQ$14))+SUMPRODUCT(($I$5:$M$14=AN7)*($BR$5:$BR$14))+'J03'!AW7 -> 0 | AX7: =SUMPRODUCT(($B$5:$F$14=AN7)*($BS$5:$BS$14))+SUMPRODUCT(($I$5:$M$14=AN7)*($BT$5:$BT$14))+'J03'!AX7 -> 0 | AY7: =SUMPRODUCT(($B$5:$F$14=AN7)*($BU$5:$BU$14))+SUMPRODUCT(($I$5:$M$14=AN7)*($BV$5:$BV$14))+'J03'!AY7 -> 0 | AZ7: =SUMPRODUCT(($B$5:$F$14=AN7)*($BW$5:$BW$14))+SUMPRODUCT(($I$5:$M$14=AN7)*($BX$5:$BX$14))+'J03'!AZ7 -> 0 | BA7: =SUMPRODUCT(($B$5:$F$14=AN7)*($BY$5:$BY$14))+SUMPRODUCT(($I$5:$M$14=AN7)*($BZ$5:$BZ$14))+'J03'!BA7 -> 0 | BB7: =SUMPRODUCT(($B$5:$F$14=AN7)*($CA$5:$CA$14))+SUMPRODUCT(($I$5:$M$14=AN7)*($CB$5:$CB$14))+'J03'!BB7 -> 0 | BC7: =SUMPRODUCT(($B$5:$F$14=AN7)*($CC$5:$CC$14))+SUMPRODUCT(($I$5:$M$14=AN7)*($CD$5:$CD$14))+'J03'!BC7 -> 0 | BD7: 0 | BE7: =SUMPRODUCT(($B$5:$F$14=AN7)*($CE$5:$CE$14))+'J03'!BE7 -> 0 | BF7: =SUMPRODUCT(($B$5:$F$14=AN7)*($CF$5:$CF$14))+'J03'!BF7 -> 0 | BG7: =SUMPRODUCT(($B$5:$F$14=AN7)*($CG$5:$CG$14))+'J03'!BG7 -> 0 | BH7: =SUMPRODUCT(($I$5:$M$14=AN7)*($CH$5:$CH$14))+'J03'!BH7 -> 0 | BI7: =SUMPRODUCT(($I$5:$M$14=AN7)*($CI$5:$CI$14))+'J03'!BI7 -> 0 | BJ7: =SUMPRODUCT(($I$5:$M$14=AN7)*($CJ$5:$CJ$14))+'J03'!BJ7 -> 0 | BK7: 0 | BL7: =BK7+0.0000018 -> 1.8e-06 | BM7: 0 | BN7: 0 | BO7: 0 | BP7: 0 | BQ7: 0 | BR7: 0 | BS7: 0 | BT7: 0 | BU7: FALSE | BV7: FALSE | BW7: FALSE | BX7: FALSE | BY7: FALSE | BZ7: FALSE | CA7: 0 | CB7: 0 | CC7: 0 | CD7: 0 | CE7: FALSE | CF7: FALSE | CG7: FALSE | CH7: FALSE | CI7: FALSE | CJ7: FALSE | CL7: 0 | CM7: 0 | CN7: 1 | CO7: 0
P8: 0 | U8: 0 | V8: u | W8: 1 | X8: 0 | Y8: 0 | Z8: 0 | AA8: 0 | AB8: 0 | AC8: 0 | AD8: 0 | AE8: 0 | AF8: 0 | AG8: 0 | AH8: 0 | AI8: 0 | AJ8: 0 | AK8: 0 | AL8: 4 | AM8: 4 | AN8: ='J01'!AN8:AR8 -> 0 | AS8: 1 | AT8: ='J03'!AS8-AS8 -> 0 | AU8: =IF(AS8>'J03'!AS8,'J03'!$AU$25,IF(AS8='J03'!AS8,'J03'!$AT$25,IF(AS8<'J03'!AS8,'J03'!$AS$25))) -> u | AV8: 4 | AW8: =SUMPRODUCT(($B$5:$F$14=AN8)*($BQ$5:$BQ$14))+SUMPRODUCT(($I$5:$M$14=AN8)*($BR$5:$BR$14))+'J03'!AW8 -> 0 | AX8: =SUMPRODUCT(($B$5:$F$14=AN8)*($BS$5:$BS$14))+SUMPRODUCT(($I$5:$M$14=AN8)*($BT$5:$BT$14))+'J03'!AX8 -> 0 | AY8: =SUMPRODUCT(($B$5:$F$14=AN8)*($BU$5:$BU$14))+SUMPRODUCT(($I$5:$M$14=AN8)*($BV$5:$BV$14))+'J03'!AY8 -> 0 | AZ8: =SUMPRODUCT(($B$5:$F$14=AN8)*($BW$5:$BW$14))+SUMPRODUCT(($I$5:$M$14=AN8)*($BX$5:$BX$14))+'J03'!AZ8 -> 0 | BA8: =SUMPRODUCT(($B$5:$F$14=AN8)*($BY$5:$BY$14))+SUMPRODUCT(($I$5:$M$14=AN8)*($BZ$5:$BZ$14))+'J03'!BA8 -> 0 | BB8: =SUMPRODUCT(($B$5:$F$14=AN8)*($CA$5:$CA$14))+SUMPRODUCT(($I$5:$M$14=AN8)*($CB$5:$CB$14))+'J03'!BB8 -> 0 | BC8: =SUMPRODUCT(($B$5:$F$14=AN8)*($CC$5:$CC$14))+SUMPRODUCT(($I$5:$M$14=AN8)*($CD$5:$CD$14))+'J03'!BC8 -> 0 | BD8: 0 | BE8: =SUMPRODUCT(($B$5:$F$14=AN8)*($CE$5:$CE$14))+'J03'!BE8 -> 0 | BF8: =SUMPRODUCT(($B$5:$F$14=AN8)*($CF$5:$CF$14))+'J03'!BF8 -> 0 | BG8: =SUMPRODUCT(($B$5:$F$14=AN8)*($CG$5:$CG$14))+'J03'!BG8 -> 0 | BH8: =SUMPRODUCT(($I$5:$M$14=AN8)*($CH$5:$CH$14))+'J03'!BH8 -> 0 | BI8: =SUMPRODUCT(($I$5:$M$14=AN8)*($CI$5:$CI$14))+'J03'!BI8 -> 0 | BJ8: =SUMPRODUCT(($I$5:$M$14=AN8)*($CJ$5:$CJ$14))+'J03'!BJ8 -> 0 | BK8: 0 | BL8: =BK8+0.0000017 -> 1.7e-06 | BM8: 0 | BN8: 0 | BO8: 0 | BP8: 0 | BQ8: 0 | BR8: 0 | BS8: 0 | BT8: 0 | BU8: FALSE | BV8: FALSE | BW8: FALSE | BX8: FALSE | BY8: FALSE | BZ8: FALSE | CA8: 0 | CB8: 0 | CC8: 0 | CD8: 0 | CE8: FALSE | CF8: FALSE | CG8: FALSE | CH8: FALSE | CI8: FALSE | CJ8: FALSE | CL8: 0 | CM8: 0 | CN8: 1 | CO8: 0
P9: 0 | U9: 0 | V9: u | W9: 1 | X9: 0 | Y9: 0 | Z9: 0 | AA9: 0 | AB9: 0 | AC9: 0 | AD9: 0 | AE9: 0 | AF9: 0 | AG9: 0 | AH9: 0 | AI9: 0 | AJ9: 0 | AK9: 0 | AL9: 5 | AM9: 5 | AN9: ='J01'!AN9:AR9 -> 0 | AS9: 1 | AT9: ='J03'!AS9-AS9 -> 0 | AU9: =IF(AS9>'J03'!AS9,'J03'!$AU$25,IF(AS9='J03'!AS9,'J03'!$AT$25,IF(AS9<'J03'!AS9,'J03'!$AS$25))) -> u | AV9: 5 | AW9: =SUMPRODUCT(($B$5:$F$14=AN9)*($BQ$5:$BQ$14))+SUMPRODUCT(($I$5:$M$14=AN9)*($BR$5:$BR$14))+'J03'!AW9 -> 0 | AX9: =SUMPRODUCT(($B$5:$F$14=AN9)*($BS$5:$BS$14))+SUMPRODUCT(($I$5:$M$14=AN9)*($BT$5:$BT$14))+'J03'!AX9 -> 0 | AY9: =SUMPRODUCT(($B$5:$F$14=AN9)*($BU$5:$BU$14))+SUMPRODUCT(($I$5:$M$14=AN9)*($BV$5:$BV$14))+'J03'!AY9 -> 0 | AZ9: =SUMPRODUCT(($B$5:$F$14=AN9)*($BW$5:$BW$14))+SUMPRODUCT(($I$5:$M$14=AN9)*($BX$5:$BX$14))+'J03'!AZ9 -> 0 | BA9: =SUMPRODUCT(($B$5:$F$14=AN9)*($BY$5:$BY$14))+SUMPRODUCT(($I$5:$M$14=AN9)*($BZ$5:$BZ$14))+'J03'!BA9 -> 0 | BB9: =SUMPRODUCT(($B$5:$F$14=AN9)*($CA$5:$CA$14))+SUMPRODUCT(($I$5:$M$14=AN9)*($CB$5:$CB$14))+'J03'!BB9 -> 0 | BC9: =SUMPRODUCT(($B$5:$F$14=AN9)*($CC$5:$CC$14))+SUMPRODUCT(($I$5:$M$14=AN9)*($CD$5:$CD$14))+'J03'!BC9 -> 0 | BD9: 0 | BE9: =SUMPRODUCT(($B$5:$F$14=AN9)*($CE$5:$CE$14))+'J03'!BE9 -> 0 | BF9: =SUMPRODUCT(($B$5:$F$14=AN9)*($CF$5:$CF$14))+'J03'!BF9 -> 0 | BG9: =SUMPRODUCT(($B$5:$F$14=AN9)*($CG$5:$CG$14))+'J03'!BG9 -> 0 | BH9: =SUMPRODUCT(($I$5:$M$14=AN9)*($CH$5:$CH$14))+'J03'!BH9 -> 0 | BI9: =SUMPRODUCT(($I$5:$M$14=AN9)*($CI$5:$CI$14))+'J03'!BI9 -> 0 | BJ9: =SUMPRODUCT(($I$5:$M$14=AN9)*($CJ$5:$CJ$14))+'J03'!BJ9 -> 0 | BK9: 0 | BL9: =BK9+0.0000016 -> 1.6e-06 | BM9: 0 | BN9: 0 | BO9: 0 | BP9: 0 | BQ9: 0 | BR9: 0 | BS9: 0 | BT9: 0 | BU9: FALSE | BV9: FALSE | BW9: FALSE | BX9: FALSE | BY9: FALSE | BZ9: FALSE | CA9: 0 | CB9: 0 | CC9: 0 | CD9: 0 | CE9: FALSE | CF9: FALSE | CG9: FALSE | CH9: FALSE | CI9: FALSE | CJ9: FALSE | CL9: 0 | CM9: 0 | CN9: 1 | CO9: 0
P10: 0 | U10: 0 | V10: u | W10: 1 | X10: 0 | Y10: 0 | Z10: 0 | AA10: 0 | AB10: 0 | AC10: 0 | AD10: 0 | AE10: 0 | AF10: 0 | AG10: 0 | AH10: 0 | AI10: 0 | AJ10: 0 | AK10: 0 | AL10: 6 | AM10: 6 | AN10: ='J01'!AN10:AR10 -> 0 | AS10: 1 | AT10: ='J03'!AS10-AS10 -> 0 | AU10: =IF(AS10>'J03'!AS10,'J03'!$AU$25,IF(AS10='J03'!AS10,'J03'!$AT$25,IF(AS10<'J03'!AS10,'J03'!$AS$25))) -> u | AV10: 6 | AW10: =SUMPRODUCT(($B$5:$F$14=AN10)*($BQ$5:$BQ$14))+SUMPRODUCT(($I$5:$M$14=AN10)*($BR$5:$BR$14))+'J03'!AW10 -> 0 | AX10: =SUMPRODUCT(($B$5:$F$14=AN10)*($BS$5:$BS$14))+SUMPRODUCT(($I$5:$M$14=AN10)*($BT$5:$BT$14))+'J03'!AX10 -> 0 | AY10: =SUMPRODUCT(($B$5:$F$14=AN10)*($BU$5:$BU$14))+SUMPRODUCT(($I$5:$M$14=AN10)*($BV$5:$BV$14))+'J03'!AY10 -> 0 | AZ10: =SUMPRODUCT(($B$5:$F$14=AN10)*($BW$5:$BW$14))+SUMPRODUCT(($I$5:$M$14=AN10)*($BX$5:$BX$14))+'J03'!AZ10 -> 0 | BA10: =SUMPRODUCT(($B$5:$F$14=AN10)*($BY$5:$BY$14))+SUMPRODUCT(($I$5:$M$14=AN10)*($BZ$5:$BZ$14))+'J03'!BA10 -> 0 | BB10: =SUMPRODUCT(($B$5:$F$14=AN10)*($CA$5:$CA$14))+SUMPRODUCT(($I$5:$M$14=AN10)*($CB$5:$CB$14))+'J03'!BB10 -> 0 | BC10: =SUMPRODUCT(($B$5:$F$14=AN10)*($CC$5:$CC$14))+SUMPRODUCT(($I$5:$M$14=AN10)*($CD$5:$CD$14))+'J03'!BC10 -> 0 | BD10: 0 | BE10: =SUMPRODUCT(($B$5:$F$14=AN10)*($CE$5:$CE$14))+'J03'!BE10 -> 0 | BF10: =SUMPRODUCT(($B$5:$F$14=AN10)*($CF$5:$CF$14))+'J03'!BF10 -> 0 | BG10: =SUMPRODUCT(($B$5:$F$14=AN10)*($CG$5:$CG$14))+'J03'!BG10 -> 0 | BH10: =SUMPRODUCT(($I$5:$M$14=AN10)*($CH$5:$CH$14))+'J03'!BH10 -> 0 | BI10: =SUMPRODUCT(($I$5:$M$14=AN10)*($CI$5:$CI$14))+'J03'!BI10 -> 0 | BJ10: =SUMPRODUCT(($I$5:$M$14=AN10)*($CJ$5:$CJ$14))+'J03'!BJ10 -> 0 | BK10: 0 | BL10: =BK10+0.0000015 -> 1.5e-06 | BM10: 0 | BN10: 0 | BO10: 0 | BP10: 0 | BQ10: 0 | BR10: 0 | BS10: 0 | BT10: 0 | BU10: FALSE | BV10: FALSE | BW10: FALSE | BX10: FALSE | BY10: FALSE | BZ10: FALSE | CA10: 0 | CB10: 0 | CC10: 0 | CD10: 0 | CE10: FALSE | CF10: FALSE | CG10: FALSE | CH10: FALSE | CI10: FALSE | CJ10: FALSE | CL10: 0 | CM10: 0 | CN10: 1 | CO10: 0
P11: 0 | U11: 0 | V11: u | W11: 1 | X11: 0 | Y11: 0 | Z11: 0 | AA11: 0 | AB11: 0 | AC11: 0 | AD11: 0 | AE11: 0 | AF11: 0 | AG11: 0 | AH11: 0 | AI11: 0 | AJ11: 0 | AK11: 0 | AL11: 7 | AM11: 7 | AN11: ='J01'!AN11:AR11 -> 0 | AS11: 1 | AT11: ='J03'!AS11-AS11 -> 0 | AU11: =IF(AS11>'J03'!AS11,'J03'!$AU$25,IF(AS11='J03'!AS11,'J03'!$AT$25,IF(AS11<'J03'!AS11,'J03'!$AS$25))) -> u | AV11: 7 | AW11: =SUMPRODUCT(($B$5:$F$14=AN11)*($BQ$5:$BQ$14))+SUMPRODUCT(($I$5:$M$14=AN11)*($BR$5:$BR$14))+'J03'!AW11 -> 0 | AX11: =SUMPRODUCT(($B$5:$F$14=AN11)*($BS$5:$BS$14))+SUMPRODUCT(($I$5:$M$14=AN11)*($BT$5:$BT$14))+'J03'!AX11 -> 0 | AY11: =SUMPRODUCT(($B$5:$F$14=AN11)*($BU$5:$BU$14))+SUMPRODUCT(($I$5:$M$14=AN11)*($BV$5:$BV$14))+'J03'!AY11 -> 0 | AZ11: =SUMPRODUCT(($B$5:$F$14=AN11)*($BW$5:$BW$14))+SUMPRODUCT(($I$5:$M$14=AN11)*($BX$5:$BX$14))+'J03'!AZ11 -> 0 | BA11: =SUMPRODUCT(($B$5:$F$14=AN11)*($BY$5:$BY$14))+SUMPRODUCT(($I$5:$M$14=AN11)*($BZ$5:$BZ$14))+'J03'!BA11 -> 0 | BB11: =SUMPRODUCT(($B$5:$F$14=AN11)*($CA$5:$CA$14))+SUMPRODUCT(($I$5:$M$14=AN11)*($CB$5:$CB$14))+'J03'!BB11 -> 0 | BC11: =SUMPRODUCT(($B$5:$F$14=AN11)*($CC$5:$CC$14))+SUMPRODUCT(($I$5:$M$14=AN11)*($CD$5:$CD$14))+'J03'!BC11 -> 0 | BD11: 0 | BE11: =SUMPRODUCT(($B$5:$F$14=AN11)*($CE$5:$CE$14))+'J03'!BE11 -> 0 | BF11: =SUMPRODUCT(($B$5:$F$14=AN11)*($CF$5:$CF$14))+'J03'!BF11 -> 0 | BG11: =SUMPRODUCT(($B$5:$F$14=AN11)*($CG$5:$CG$14))+'J03'!BG11 -> 0 | BH11: =SUMPRODUCT(($I$5:$M$14=AN11)*($CH$5:$CH$14))+'J03'!BH11 -> 0 | BI11: =SUMPRODUCT(($I$5:$M$14=AN11)*($CI$5:$CI$14))+'J03'!BI11 -> 0 | BJ11: =SUMPRODUCT(($I$5:$M$14=AN11)*($CJ$5:$CJ$14))+'J03'!BJ11 -> 0 | BK11: 0 | BL11: =BK11+0.0000014 -> 1.4e-06 | BM11: 0 | BN11: 0 | BO11: 0 | BP11: 0 | BQ11: 0 | BR11: 0 | BS11: 0 | BT11: 0 | BU11: FALSE | BV11: FALSE | BW11: FALSE | BX11: FALSE | BY11: FALSE | BZ11: FALSE | CA11: 0 | CB11: 0 | CC11: 0 | CD11: 0 | CE11: FALSE | CF11: FALSE | CG11: FALSE | CH11: FALSE | CI11: FALSE | CJ11: FALSE | CL11: 0 | CM11: 0 | CN11: 1 | CO11: 0
P12: 0 | U12: 0 | V12: u | W12: 1 | X12: 0 | Y12: 0 | Z12: 0 | AA12: 0 | AB12: 0 | AC12: 0 | AD12: 0 | AE12: 0 | AF12: 0 | AG12: 0 | AH12: 0 | AI12: 0 | AJ12: 0 | AK12: 0 | AL12: 8 | AM12: 8 | AN12: ='J01'!AN12:AR12 -> 0 | AS12: 1 | AT12: ='J03'!AS12-AS12 -> 0 | AU12: =IF(AS12>'J03'!AS12,'J03'!$AU$25,IF(AS12='J03'!AS12,'J03'!$AT$25,IF(AS12<'J03'!AS12,'J03'!$AS$25))) -> u | AV12: 8 | AW12: =SUMPRODUCT(($B$5:$F$14=AN12)*($BQ$5:$BQ$14))+SUMPRODUCT(($I$5:$M$14=AN12)*($BR$5:$BR$14))+'J03'!AW12 -> 0 | AX12: =SUMPRODUCT(($B$5:$F$14=AN12)*($BS$5:$BS$14))+SUMPRODUCT(($I$5:$M$14=AN12)*($BT$5:$BT$14))+'J03'!AX12 -> 0 | AY12: =SUMPRODUCT(($B$5:$F$14=AN12)*($BU$5:$BU$14))+SUMPRODUCT(($I$5:$M$14=AN12)*($BV$5:$BV$14))+'J03'!AY12 -> 0 | AZ12: =SUMPRODUCT(($B$5:$F$14=AN12)*($BW$5:$BW$14))+SUMPRODUCT(($I$5:$M$14=AN12)*($BX$5:$BX$14))+'J03'!AZ12 -> 0 | BA12: =SUMPRODUCT(($B$5:$F$14=AN12)*($BY$5:$BY$14))+SUMPRODUCT(($I$5:$M$14=AN12)*($BZ$5:$BZ$14))+'J03'!BA12 -> 0 | BB12: =SUMPRODUCT(($B$5:$F$14=AN12)*($CA$5:$CA$14))+SUMPRODUCT(($I$5:$M$14=AN12)*($CB$5:$CB$14))+'J03'!BB12 -> 0 | BC12: =SUMPRODUCT(($B$5:$F$14=AN12)*($CC$5:$CC$14))+SUMPRODUCT(($I$5:$M$14=AN12)*($CD$5:$CD$14))+'J03'!BC12 -> 0 | BD12: 0 | BE12: =SUMPRODUCT(($B$5:$F$14=AN12)*($CE$5:$CE$14))+'J03'!BE12 -> 0 | BF12: =SUMPRODUCT(($B$5:$F$14=AN12)*($CF$5:$CF$14))+'J03'!BF12 -> 0 | BG12: =SUMPRODUCT(($B$5:$F$14=AN12)*($CG$5:$CG$14))+'J03'!BG12 -> 0 | BH12: =SUMPRODUCT(($I$5:$M$14=AN12)*($CH$5:$CH$14))+'J03'!BH12 -> 0 | BI12: =SUMPRODUCT(($I$5:$M$14=AN12)*($CI$5:$CI$14))+'J03'!BI12 -> 0 | BJ12: =SUMPRODUCT(($I$5:$M$14=AN12)*($CJ$5:$CJ$14))+'J03'!BJ12 -> 0 | BK12: 0 | BL12: =BK12+0.0000013 -> 1.3e-06 | BM12: 0 | BN12: 0 | BO12: 0 | BP12: 0 | BQ12: 0 | BR12: 0 | BS12: 0 | BT12: 0 | BU12: FALSE | BV12: FALSE | BW12: FALSE | BX12: FALSE | BY12: FALSE | BZ12: FALSE | CA12: 0 | CB12: 0 | CC12: 0 | CD12: 0 | CE12: FALSE | CF12: FALSE | CG12: FALSE | CH12: FALSE | CI12: FALSE | CJ12: FALSE | CL12: 0 | CM12: 0 | CN12: 1 | CO12: 0
P13: 0 | U13: 0 | V13: u | W13: 1 | X13: 0 | Y13: 0 | Z13: 0 | AA13: 0 | AB13: 0 | AC13: 0 | AD13: 0 | AE13: 0 | AF13: 0 | AG13: 0 | AH13: 0 | AI13: 0 | AJ13: 0 | AK13: 0 | AL13: 9 | AM13: 9 | AN13: ='J01'!AN13:AR13 -> 0 | AS13: 1 | AT13: ='J03'!AS13-AS13 -> 0 | AU13: =IF(AS13>'J03'!AS13,'J03'!$AU$25,IF(AS13='J03'!AS13,'J03'!$AT$25,IF(AS13<'J03'!AS13,'J03'!$AS$25))) -> u | AV13: 9 | AW13: =SUMPRODUCT(($B$5:$F$14=AN13)*($BQ$5:$BQ$14))+SUMPRODUCT(($I$5:$M$14=AN13)*($BR$5:$BR$14))+'J03'!AW13 -> 0 | AX13: =SUMPRODUCT(($B$5:$F$14=AN13)*($BS$5:$BS$14))+SUMPRODUCT(($I$5:$M$14=AN13)*($BT$5:$BT$14))+'J03'!AX13 -> 0 | AY13: =SUMPRODUCT(($B$5:$F$14=AN13)*($BU$5:$BU$14))+SUMPRODUCT(($I$5:$M$14=AN13)*($BV$5:$BV$14))+'J03'!AY13 -> 0 | AZ13: =SUMPRODUCT(($B$5:$F$14=AN13)*($BW$5:$BW$14))+SUMPRODUCT(($I$5:$M$14=AN13)*($BX$5:$BX$14))+'J03'!AZ13 -> 0 | BA13: =SUMPRODUCT(($B$5:$F$14=AN13)*($BY$5:$BY$14))+SUMPRODUCT(($I$5:$M$14=AN13)*($BZ$5:$BZ$14))+'J03'!BA13 -> 0 | BB13: =SUMPRODUCT(($B$5:$F$14=AN13)*($CA$5:$CA$14))+SUMPRODUCT(($I$5:$M$14=AN13)*($CB$5:$CB$14))+'J03'!BB13 -> 0 | BC13: =SUMPRODUCT(($B$5:$F$14=AN13)*($CC$5:$CC$14))+SUMPRODUCT(($I$5:$M$14=AN13)*($CD$5:$CD$14))+'J03'!BC13 -> 0 | BD13: 0 | BE13: =SUMPRODUCT(($B$5:$F$14=AN13)*($CE$5:$CE$14))+'J03'!BE13 -> 0 | BF13: =SUMPRODUCT(($B$5:$F$14=AN13)*($CF$5:$CF$14))+'J03'!BF13 -> 0 | BG13: =SUMPRODUCT(($B$5:$F$14=AN13)*($CG$5:$CG$14))+'J03'!BG13 -> 0 | BH13: =SUMPRODUCT(($I$5:$M$14=AN13)*($CH$5:$CH$14))+'J03'!BH13 -> 0 | BI13: =SUMPRODUCT(($I$5:$M$14=AN13)*($CI$5:$CI$14))+'J03'!BI13 -> 0 | BJ13: =SUMPRODUCT(($I$5:$M$14=AN13)*($CJ$5:$CJ$14))+'J03'!BJ13 -> 0 | BK13: 0 | BL13: =BK13+0.0000012 -> 1.2e-06 | BM13: 0 | BN13: 0 | BO13: 0 | BP13: 0 | BQ13: 0 | BR13: 0 | BS13: 0 | BT13: 0 | BU13: FALSE | BV13: FALSE | BW13: FALSE | BX13: FALSE | BY13: FALSE | BZ13: FALSE | CA13: 0 | CB13: 0 | CC13: 0 | CD13: 0 | CE13: FALSE | CF13: FALSE | CG13: FALSE | CH13: FALSE | CI13: FALSE | CJ13: FALSE | CL13: 0 | CM13: 0 | CN13: 1 | CO13: 0
P14: 0 | U14: 0 | V14: u | W14: 1 | X14: 0 | Y14: 0 | Z14: 0 | AA14: 0 | AB14: 0 | AC14: 0 | AD14: 0 | AE14: 0 | AF14: 0 | AG14: 0 | AH14: 0 | AI14: 0 | AJ14: 0 | AK14: 0 | AL14: 10 | AM14: 10 | AN14: ='J01'!AN14:AR14 -> 0 | AS14: 1 | AT14: ='J03'!AS14-AS14 -> 0 | AU14: =IF(AS14>'J03'!AS14,'J03'!$AU$25,IF(AS14='J03'!AS14,'J03'!$AT$25,IF(AS14<'J03'!AS14,'J03'!$AS$25))) -> u | AV14: 10 | AW14: =SUMPRODUCT(($B$5:$F$14=AN14)*($BQ$5:$BQ$14))+SUMPRODUCT(($I$5:$M$14=AN14)*($BR$5:$BR$14))+'J03'!AW14 -> 0 | AX14: =SUMPRODUCT(($B$5:$F$14=AN14)*($BS$5:$BS$14))+SUMPRODUCT(($I$5:$M$14=AN14)*($BT$5:$BT$14))+'J03'!AX14 -> 0 | AY14: =SUMPRODUCT(($B$5:$F$14=AN14)*($BU$5:$BU$14))+SUMPRODUCT(($I$5:$M$14=AN14)*($BV$5:$BV$14))+'J03'!AY14 -> 0 | AZ14: =SUMPRODUCT(($B$5:$F$14=AN14)*($BW$5:$BW$14))+SUMPRODUCT(($I$5:$M$14=AN14)*($BX$5:$BX$14))+'J03'!AZ14 -> 0 | BA14: =SUMPRODUCT(($B$5:$F$14=AN14)*($BY$5:$BY$14))+SUMPRODUCT(($I$5:$M$14=AN14)*($BZ$5:$BZ$14))+'J03'!BA14 -> 0 | BB14: =SUMPRODUCT(($B$5:$F$14=AN14)*($CA$5:$CA$14))+SUMPRODUCT(($I$5:$M$14=AN14)*($CB$5:$CB$14))+'J03'!BB14 -> 0 | BC14: =SUMPRODUCT(($B$5:$F$14=AN14)*($CC$5:$CC$14))+SUMPRODUCT(($I$5:$M$14=AN14)*($CD$5:$CD$14))+'J03'!BC14 -> 0 | BD14: 0 | BE14: =SUMPRODUCT(($B$5:$F$14=AN14)*($CE$5:$CE$14))+'J03'!BE14 -> 0 | BF14: =SUMPRODUCT(($B$5:$F$14=AN14)*($CF$5:$CF$14))+'J03'!BF14 -> 0 | BG14: =SUMPRODUCT(($B$5:$F$14=AN14)*($CG$5:$CG$14))+'J03'!BG14 -> 0 | BH14: =SUMPRODUCT(($I$5:$M$14=AN14)*($CH$5:$CH$14))+'J03'!BH14 -> 0 | BI14: =SUMPRODUCT(($I$5:$M$14=AN14)*($CI$5:$CI$14))+'J03'!BI14 -> 0 | BJ14: =SUMPRODUCT(($I$5:$M$14=AN14)*($CJ$5:$CJ$14))+'J03'!BJ14 -> 0 | BK14: 0 | BL14: =BK14+0.0000011 -> 1.1e-06 | BM14: 0 | BN14: 0 | BO14: 0 | BP14: 0 | BQ14: 0 | BR14: 0 | BS14: 0 | BT14: 0 | BU14: FALSE | BV14: FALSE | BW14: FALSE | BX14: FALSE | BY14: FALSE | BZ14: FALSE | CA14: 0 | CB14: 0 | CC14: 0 | CD14: 0 | CE14: FALSE | CF14: FALSE | CG14: FALSE | CH14: FALSE | CI14: FALSE | CJ14: FALSE | CL14: 0 | CM14: 0 | CN14: 1 | CO14: 0
P15: 0 | U15: 0 | V15: u | W15: 1 | X15: 0 | Y15: 0 | Z15: 0 | AA15: 0 | AB15: 0 | AC15: 0 | AD15: 0 | AE15: 0 | AF15: 0 | AG15: 0 | AH15: 0 | AI15: 0 | AJ15: 0 | AK15: 0 | AL15: 11 | AM15: 11 | AN15: ='J01'!AN15:AR15 -> 0 | AS15: 1 | AT15: ='J03'!AS15-AS15 -> 0 | AU15: =IF(AS15>'J03'!AS15,'J03'!$AU$25,IF(AS15='J03'!AS15,'J03'!$AT$25,IF(AS15<'J03'!AS15,'J03'!$AS$25))) -> u | AV15: 11 | AW15: =SUMPRODUCT(($B$5:$F$14=AN15)*($BQ$5:$BQ$14))+SUMPRODUCT(($I$5:$M$14=AN15)*($BR$5:$BR$14))+'J03'!AW15 -> 0 | AX15: =SUMPRODUCT(($B$5:$F$14=AN15)*($BS$5:$BS$14))+SUMPRODUCT(($I$5:$M$14=AN15)*($BT$5:$BT$14))+'J03'!AX15 -> 0 | AY15: =SUMPRODUCT(($B$5:$F$14=AN15)*($BU$5:$BU$14))+SUMPRODUCT(($I$5:$M$14=AN15)*($BV$5:$BV$14))+'J03'!AY15 -> 0 | AZ15: =SUMPRODUCT(($B$5:$F$14=AN15)*($BW$5:$BW$14))+SUMPRODUCT(($I$5:$M$14=AN15)*($BX$5:$BX$14))+'J03'!AZ15 -> 0 | BA15: =SUMPRODUCT(($B$5:$F$14=AN15)*($BY$5:$BY$14))+SUMPRODUCT(($I$5:$M$14=AN15)*($BZ$5:$BZ$14))+'J03'!BA15 -> 0 | BB15: =SUMPRODUCT(($B$5:$F$14=AN15)*($CA$5:$CA$14))+SUMPRODUCT(($I$5:$M$14=AN15)*($CB$5:$CB$14))+'J03'!BB15 -> 0 | BC15: =SUMPRODUCT(($B$5:$F$14=AN15)*($CC$5:$CC$14))+SUMPRODUCT(($I$5:$M$14=AN15)*($CD$5:$CD$14))+'J03'!BC15 -> 0 | BD15: 0 | BE15: =SUMPRODUCT(($B$5:$F$14=AN15)*($CE$5:$CE$14))+'J03'!BE15 -> 0 | BF15: =SUMPRODUCT(($B$5:$F$14=AN15)*($CF$5:$CF$14))+'J03'!BF15 -> 0 | BG15: =SUMPRODUCT(($B$5:$F$14=AN15)*($CG$5:$CG$14))+'J03'!BG15 -> 0 | BH15: =SUMPRODUCT(($I$5:$M$14=AN15)*($CH$5:$CH$14))+'J03'!BH15 -> 0 | BI15: =SUMPRODUCT(($I$5:$M$14=AN15)*($CI$5:$CI$14))+'J03'!BI15 -> 0 | BJ15: =SUMPRODUCT(($I$5:$M$14=AN15)*($CJ$5:$CJ$14))+'J03'!BJ15 -> 0 | BK15: 0 | BL15: =BK15+0.000001 -> 1e-06 | CL15: 0 | CM15: 0 | CN15: 1 | CO15: 0
P16: 0 | U16: 0 | V16: u | W16: 1 | X16: 0 | Y16: 0 | Z16: 0 | AA16: 0 | AB16: 0 | AC16: 0 | AD16: 0 | AE16: 0 | AF16: 0 | AG16: 0 | AH16: 0 | AI16: 0 | AJ16: 0 | AK16: 0 | AL16: 12 | AM16: 12 | AN16: ='J01'!AN16:AR16 -> 0 | AS16: 1 | AT16: ='J03'!AS16-AS16 -> 0 | AU16: =IF(AS16>'J03'!AS16,'J03'!$AU$25,IF(AS16='J03'!AS16,'J03'!$AT$25,IF(AS16<'J03'!AS16,'J03'!$AS$25))) -> u | AV16: 12 | AW16: =SUMPRODUCT(($B$5:$F$14=AN16)*($BQ$5:$BQ$14))+SUMPRODUCT(($I$5:$M$14=AN16)*($BR$5:$BR$14))+'J03'!AW16 -> 0 | AX16: =SUMPRODUCT(($B$5:$F$14=AN16)*($BS$5:$BS$14))+SUMPRODUCT(($I$5:$M$14=AN16)*($BT$5:$BT$14))+'J03'!AX16 -> 0 | AY16: =SUMPRODUCT(($B$5:$F$14=AN16)*($BU$5:$BU$14))+SUMPRODUCT(($I$5:$M$14=AN16)*($BV$5:$BV$14))+'J03'!AY16 -> 0 | AZ16: =SUMPRODUCT(($B$5:$F$14=AN16)*($BW$5:$BW$14))+SUMPRODUCT(($I$5:$M$14=AN16)*($BX$5:$BX$14))+'J03'!AZ16 -> 0 | BA16: =SUMPRODUCT(($B$5:$F$14=AN16)*($BY$5:$BY$14))+SUMPRODUCT(($I$5:$M$14=AN16)*($BZ$5:$BZ$14))+'J03'!BA16 -> 0 | BB16: =SUMPRODUCT(($B$5:$F$14=AN16)*($CA$5:$CA$14))+SUMPRODUCT(($I$5:$M$14=AN16)*($CB$5:$CB$14))+'J03'!BB16 -> 0 | BC16: =SUMPRODUCT(($B$5:$F$14=AN16)*($CC$5:$CC$14))+SUMPRODUCT(($I$5:$M$14=AN16)*($CD$5:$CD$14))+'J03'!BC16 -> 0 | BD16: 0 | BE16: =SUMPRODUCT(($B$5:$F$14=AN16)*($CE$5:$CE$14))+'J03'!BE16 -> 0 | BF16: =SUMPRODUCT(($B$5:$F$14=AN16)*($CF$5:$CF$14))+'J03'!BF16 -> 0 | BG16: =SUMPRODUCT(($B$5:$F$14=AN16)*($CG$5:$CG$14))+'J03'!BG16 -> 0 | BH16: =SUMPRODUCT(($I$5:$M$14=AN16)*($CH$5:$CH$14))+'J03'!BH16 -> 0 | BI16: =SUMPRODUCT(($I$5:$M$14=AN16)*($CI$5:$CI$14))+'J03'!BI16 -> 0 | BJ16: =SUMPRODUCT(($I$5:$M$14=AN16)*($CJ$5:$CJ$14))+'J03'!BJ16 -> 0 | BK16: 0 | BL16: =BK16+0.0000009 -> 9e-07 | CL16: 0 | CM16: 0 | CN16: 1 | CO16: 0
P17: 0 | U17: 0 | V17: u | W17: 1 | X17: 0 | Y17: 0 | Z17: 0 | AA17: 0 | AB17: 0 | AC17: 0 | AD17: 0 | AE17: 0 | AF17: 0 | AG17: 0 | AH17: 0 | AI17: 0 | AJ17: 0 | AK17: 0 | AL17: 13 | AM17: 13 | AN17: ='J01'!AN17:AR17 -> 0 | AS17: 1 | AT17: ='J03'!AS17-AS17 -> 0 | AU17: =IF(AS17>'J03'!AS17,'J03'!$AU$25,IF(AS17='J03'!AS17,'J03'!$AT$25,IF(AS17<'J03'!AS17,'J03'!$AS$25))) -> u | AV17: 13 | AW17: =SUMPRODUCT(($B$5:$F$14=AN17)*($BQ$5:$BQ$14))+SUMPRODUCT(($I$5:$M$14=AN17)*($BR$5:$BR$14))+'J03'!AW17 -> 0 | AX17: =SUMPRODUCT(($B$5:$F$14=AN17)*($BS$5:$BS$14))+SUMPRODUCT(($I$5:$M$14=AN17)*($BT$5:$BT$14))+'J03'!AX17 -> 0 | AY17: =SUMPRODUCT(($B$5:$F$14=AN17)*($BU$5:$BU$14))+SUMPRODUCT(($I$5:$M$14=AN17)*($BV$5:$BV$14))+'J03'!AY17 -> 0 | AZ17: =SUMPRODUCT(($B$5:$F$14=AN17)*($BW$5:$BW$14))+SUMPRODUCT(($I$5:$M$14=AN17)*($BX$5:$BX$14))+'J03'!AZ17 -> 0 | BA17: =SUMPRODUCT(($B$5:$F$14=AN17)*($BY$5:$BY$14))+SUMPRODUCT(($I$5:$M$14=AN17)*($BZ$5:$BZ$14))+'J03'!BA17 -> 0 | BB17: =SUMPRODUCT(($B$5:$F$14=AN17)*($CA$5:$CA$14))+SUMPRODUCT(($I$5:$M$14=AN17)*($CB$5:$CB$14))+'J03'!BB17 -> 0 | BC17: =SUMPRODUCT(($B$5:$F$14=AN17)*($CC$5:$CC$14))+SUMPRODUCT(($I$5:$M$14=AN17)*($CD$5:$CD$14))+'J03'!BC17 -> 0 | BD17: 0 | BE17: =SUMPRODUCT(($B$5:$F$14=AN17)*($CE$5:$CE$14))+'J03'!BE17 -> 0 | BF17: =SUMPRODUCT(($B$5:$F$14=AN17)*($CF$5:$CF$14))+'J03'!BF17 -> 0 | BG17: =SUMPRODUCT(($B$5:$F$14=AN17)*($CG$5:$CG$14))+'J03'!BG17 -> 0 | BH17: =SUMPRODUCT(($I$5:$M$14=AN17)*($CH$5:$CH$14))+'J03'!BH17 -> 0 | BI17: =SUMPRODUCT(($I$5:$M$14=AN17)*($CI$5:$CI$14))+'J03'!BI17 -> 0 | BJ17: =SUMPRODUCT(($I$5:$M$14=AN17)*($CJ$5:$CJ$14))+'J03'!BJ17 -> 0 | BK17: 0 | BL17: =BK17+0.0000008 -> 8e-07 | CL17: 0 | CM17: 0 | CN17: 1 | CO17: 0
P18: 0 | U18: 0 | V18: u | W18: 1 | X18: 0 | Y18: 0 | Z18: 0 | AA18: 0 | AB18: 0 | AC18: 0 | AD18: 0 | AE18: 0 | AF18: 0 | AG18: 0 | AH18: 0 | AI18: 0 | AJ18: 0 | AK18: 0 | AL18: 14 | AM18: 14 | AN18: ='J01'!AN18:AR18 -> 0 | AS18: 1 | AT18: ='J03'!AS18-AS18 -> 0 | AU18: =IF(AS18>'J03'!AS18,'J03'!$AU$25,IF(AS18='J03'!AS18,'J03'!$AT$25,IF(AS18<'J03'!AS18,'J03'!$AS$25))) -> u | AV18: 14 | AW18: =SUMPRODUCT(($B$5:$F$14=AN18)*($BQ$5:$BQ$14))+SUMPRODUCT(($I$5:$M$14=AN18)*($BR$5:$BR$14))+'J03'!AW18 -> 0 | AX18: =SUMPRODUCT(($B$5:$F$14=AN18)*($BS$5:$BS$14))+SUMPRODUCT(($I$5:$M$14=AN18)*($BT$5:$BT$14))+'J03'!AX18 -> 0 | AY18: =SUMPRODUCT(($B$5:$F$14=AN18)*($BU$5:$BU$14))+SUMPRODUCT(($I$5:$M$14=AN18)*($BV$5:$BV$14))+'J03'!AY18 -> 0 | AZ18: =SUMPRODUCT(($B$5:$F$14=AN18)*($BW$5:$BW$14))+SUMPRODUCT(($I$5:$M$14=AN18)*($BX$5:$BX$14))+'J03'!AZ18 -> 0 | BA18: =SUMPRODUCT(($B$5:$F$14=AN18)*($BY$5:$BY$14))+SUMPRODUCT(($I$5:$M$14=AN18)*($BZ$5:$BZ$14))+'J03'!BA18 -> 0 | BB18: =SUMPRODUCT(($B$5:$F$14=AN18)*($CA$5:$CA$14))+SUMPRODUCT(($I$5:$M$14=AN18)*($CB$5:$CB$14))+'J03'!BB18 -> 0 | BC18: =SUMPRODUCT(($B$5:$F$14=AN18)*($CC$5:$CC$14))+SUMPRODUCT(($I$5:$M$14=AN18)*($CD$5:$CD$14))+'J03'!BC18 -> 0 | BD18: 0 | BE18: =SUMPRODUCT(($B$5:$F$14=AN18)*($CE$5:$CE$14))+'J03'!BE18 -> 0 | BF18: =SUMPRODUCT(($B$5:$F$14=AN18)*($CF$5:$CF$14))+'J03'!BF18 -> 0 | BG18: =SUMPRODUCT(($B$5:$F$14=AN18)*($CG$5:$CG$14))+'J03'!BG18 -> 0 | BH18: =SUMPRODUCT(($I$5:$M$14=AN18)*($CH$5:$CH$14))+'J03'!BH18 -> 0 | BI18: =SUMPRODUCT(($I$5:$M$14=AN18)*($CI$5:$CI$14))+'J03'!BI18 -> 0 | BJ18: =SUMPRODUCT(($I$5:$M$14=AN18)*($CJ$5:$CJ$14))+'J03'!BJ18 -> 0 | BK18: 0 | BL18: =BK18+0.0000007 -> 7e-07 | CL18: 0 | CM18: 0 | CN18: 1 | CO18: 0
P19: 0 | U19: 0 | V19: u | W19: 1 | X19: 0 | Y19: 0 | Z19: 0 | AA19: 0 | AB19: 0 | AC19: 0 | AD19: 0 | AE19: 0 | AF19: 0 | AG19: 0 | AH19: 0 | AI19: 0 | AJ19: 0 | AK19: 0 | AL19: 15 | AM19: 15 | AN19: ='J01'!AN19:AR19 -> 0 | AS19: 1 | AT19: ='J03'!AS19-AS19 -> 0 | AU19: =IF(AS19>'J03'!AS19,'J03'!$AU$25,IF(AS19='J03'!AS19,'J03'!$AT$25,IF(AS19<'J03'!AS19,'J03'!$AS$25))) -> u | AV19: 15 | AW19: =SUMPRODUCT(($B$5:$F$14=AN19)*($BQ$5:$BQ$14))+SUMPRODUCT(($I$5:$M$14=AN19)*($BR$5:$BR$14))+'J03'!AW19 -> 0 | AX19: =SUMPRODUCT(($B$5:$F$14=AN19)*($BS$5:$BS$14))+SUMPRODUCT(($I$5:$M$14=AN19)*($BT$5:$BT$14))+'J03'!AX19 -> 0 | AY19: =SUMPRODUCT(($B$5:$F$14=AN19)*($BU$5:$BU$14))+SUMPRODUCT(($I$5:$M$14=AN19)*($BV$5:$BV$14))+'J03'!AY19 -> 0 | AZ19: =SUMPRODUCT(($B$5:$F$14=AN19)*($BW$5:$BW$14))+SUMPRODUCT(($I$5:$M$14=AN19)*($BX$5:$BX$14))+'J03'!AZ19 -> 0 | BA19: =SUMPRODUCT(($B$5:$F$14=AN19)*($BY$5:$BY$14))+SUMPRODUCT(($I$5:$M$14=AN19)*($BZ$5:$BZ$14))+'J03'!BA19 -> 0 | BB19: =SUMPRODUCT(($B$5:$F$14=AN19)*($CA$5:$CA$14))+SUMPRODUCT(($I$5:$M$14=AN19)*($CB$5:$CB$14))+'J03'!BB19 -> 0 | BC19: =SUMPRODUCT(($B$5:$F$14=AN19)*($CC$5:$CC$14))+SUMPRODUCT(($I$5:$M$14=AN19)*($CD$5:$CD$14))+'J03'!BC19 -> 0 | BD19: 0 | BE19: =SUMPRODUCT(($B$5:$F$14=AN19)*($CE$5:$CE$14))+'J03'!BE19 -> 0 | BF19: =SUMPRODUCT(($B$5:$F$14=AN19)*($CF$5:$CF$14))+'J03'!BF19 -> 0 | BG19: =SUMPRODUCT(($B$5:$F$14=AN19)*($CG$5:$CG$14))+'J03'!BG19 -> 0 | BH19: =SUMPRODUCT(($I$5:$M$14=AN19)*($CH$5:$CH$14))+'J03'!BH19 -> 0 | BI19: =SUMPRODUCT(($I$5:$M$14=AN19)*($CI$5:$CI$14))+'J03'!BI19 -> 0 | BJ19: =SUMPRODUCT(($I$5:$M$14=AN19)*($CJ$5:$CJ$14))+'J03'!BJ19 -> 0 | BK19: 0 | BL19: =BK19+0.0000006 -> 6e-07 | CL19: 0 | CM19: 0 | CN19: 1 | CO19: 0
P20: 0 | U20: 0 | V20: u | W20: 1 | X20: 0 | Y20: 0 | Z20: 0 | AA20: 0 | AB20: 0 | AC20: 0 | AD20: 0 | AE20: 0 | AF20: 0 | AG20: 0 | AH20: 0 | AI20: 0 | AJ20: 0 | AK20: 0 | AL20: 16 | AM20: 16 | AN20: ='J01'!AN20:AR20 -> 0 | AS20: 1 | AT20: ='J03'!AS20-AS20 -> 0 | AU20: =IF(AS20>'J03'!AS20,'J03'!$AU$25,IF(AS20='J03'!AS20,'J03'!$AT$25,IF(AS20<'J03'!AS20,'J03'!$AS$25))) -> u | AV20: 16 | AW20: =SUMPRODUCT(($B$5:$F$14=AN20)*($BQ$5:$BQ$14))+SUMPRODUCT(($I$5:$M$14=AN20)*($BR$5:$BR$14))+'J03'!AW20 -> 0 | AX20: =SUMPRODUCT(($B$5:$F$14=AN20)*($BS$5:$BS$14))+SUMPRODUCT(($I$5:$M$14=AN20)*($BT$5:$BT$14))+'J03'!AX20 -> 0 | AY20: =SUMPRODUCT(($B$5:$F$14=AN20)*($BU$5:$BU$14))+SUMPRODUCT(($I$5:$M$14=AN20)*($BV$5:$BV$14))+'J03'!AY20 -> 0 | AZ20: =SUMPRODUCT(($B$5:$F$14=AN20)*($BW$5:$BW$14))+SUMPRODUCT(($I$5:$M$14=AN20)*($BX$5:$BX$14))+'J03'!AZ20 -> 0 | BA20: =SUMPRODUCT(($B$5:$F$14=AN20)*($BY$5:$BY$14))+SUMPRODUCT(($I$5:$M$14=AN20)*($BZ$5:$BZ$14))+'J03'!BA20 -> 0 | BB20: =SUMPRODUCT(($B$5:$F$14=AN20)*($CA$5:$CA$14))+SUMPRODUCT(($I$5:$M$14=AN20)*($CB$5:$CB$14))+'J03'!BB20 -> 0 | BC20: =SUMPRODUCT(($B$5:$F$14=AN20)*($CC$5:$CC$14))+SUMPRODUCT(($I$5:$M$14=AN20)*($CD$5:$CD$14))+'J03'!BC20 -> 0 | BD20: 0 | BE20: =SUMPRODUCT(($B$5:$F$14=AN20)*($CE$5:$CE$14))+'J03'!BE20 -> 0 | BF20: =SUMPRODUCT(($B$5:$F$14=AN20)*($CF$5:$CF$14))+'J03'!BF20 -> 0 | BG20: =SUMPRODUCT(($B$5:$F$14=AN20)*($CG$5:$CG$14))+'J03'!BG20 -> 0 | BH20: =SUMPRODUCT(($I$5:$M$14=AN20)*($CH$5:$CH$14))+'J03'!BH20 -> 0 | BI20: =SUMPRODUCT(($I$5:$M$14=AN20)*($CI$5:$CI$14))+'J03'!BI20 -> 0 | BJ20: =SUMPRODUCT(($I$5:$M$14=AN20)*($CJ$5:$CJ$14))+'J03'!BJ20 -> 0 | BK20: 0 | BL20: =BK20+0.0000005 -> 5e-07 | CL20: 0 | CM20: 0 | CN20: 1 | CO20: 0
P21: 0 | U21: 0 | V21: u | W21: 1 | X21: 0 | Y21: 0 | Z21: 0 | AA21: 0 | AB21: 0 | AC21: 0 | AD21: 0 | AE21: 0 | AF21: 0 | AG21: 0 | AH21: 0 | AI21: 0 | AJ21: 0 | AK21: 0 | AL21: 17 | AM21: 17 | AN21: ='J01'!AN21:AR21 -> 0 | AS21: 1 | AT21: ='J03'!AS21-AS21 -> 0 | AU21: =IF(AS21>'J03'!AS21,'J03'!$AU$25,IF(AS21='J03'!AS21,'J03'!$AT$25,IF(AS21<'J03'!AS21,'J03'!$AS$25))) -> u | AV21: 17 | AW21: =SUMPRODUCT(($B$5:$F$14=AN21)*($BQ$5:$BQ$14))+SUMPRODUCT(($I$5:$M$14=AN21)*($BR$5:$BR$14))+'J03'!AW21 -> 0 | AX21: =SUMPRODUCT(($B$5:$F$14=AN21)*($BS$5:$BS$14))+SUMPRODUCT(($I$5:$M$14=AN21)*($BT$5:$BT$14))+'J03'!AX21 -> 0 | AY21: =SUMPRODUCT(($B$5:$F$14=AN21)*($BU$5:$BU$14))+SUMPRODUCT(($I$5:$M$14=AN21)*($BV$5:$BV$14))+'J03'!AY21 -> 0 | AZ21: =SUMPRODUCT(($B$5:$F$14=AN21)*($BW$5:$BW$14))+SUMPRODUCT(($I$5:$M$14=AN21)*($BX$5:$BX$14))+'J03'!AZ21 -> 0 | BA21: =SUMPRODUCT(($B$5:$F$14=AN21)*($BY$5:$BY$14))+SUMPRODUCT(($I$5:$M$14=AN21)*($BZ$5:$BZ$14))+'J03'!BA21 -> 0 | BB21: =SUMPRODUCT(($B$5:$F$14=AN21)*($CA$5:$CA$14))+SUMPRODUCT(($I$5:$M$14=AN21)*($CB$5:$CB$14))+'J03'!BB21 -> 0 | BC21: =SUMPRODUCT(($B$5:$F$14=AN21)*($CC$5:$CC$14))+SUMPRODUCT(($I$5:$M$14=AN21)*($CD$5:$CD$14))+'J03'!BC21 -> 0 | BD21: 0 | BE21: =SUMPRODUCT(($B$5:$F$14=AN21)*($CE$5:$CE$14))+'J03'!BE21 -> 0 | BF21: =SUMPRODUCT(($B$5:$F$14=AN21)*($CF$5:$CF$14))+'J03'!BF21 -> 0 | BG21: =SUMPRODUCT(($B$5:$F$14=AN21)*($CG$5:$CG$14))+'J03'!BG21 -> 0 | BH21: =SUMPRODUCT(($I$5:$M$14=AN21)*($CH$5:$CH$14))+'J03'!BH21 -> 0 | BI21: =SUMPRODUCT(($I$5:$M$14=AN21)*($CI$5:$CI$14))+'J03'!BI21 -> 0 | BJ21: =SUMPRODUCT(($I$5:$M$14=AN21)*($CJ$5:$CJ$14))+'J03'!BJ21 -> 0 | BK21: 0 | BL21: =BK21+0.0000004 -> 4e-07 | CL21: 0 | CM21: 0 | CN21: 1 | CO21: 0
P22: 0 | U22: 0 | V22: u | W22: 1 | X22: 0 | Y22: 0 | Z22: 0 | AA22: 0 | AB22: 0 | AC22: 0 | AD22: 0 | AE22: 0 | AF22: 0 | AG22: 0 | AH22: 0 | AI22: 0 | AJ22: 0 | AK22: 0 | AL22: 18 | AM22: 18 | AN22: ='J01'!AN22:AR22 -> 0 | AS22: 1 | AT22: ='J03'!AS22-AS22 -> 0 | AU22: =IF(AS22>'J03'!AS22,'J03'!$AU$25,IF(AS22='J03'!AS22,'J03'!$AT$25,IF(AS22<'J03'!AS22,'J03'!$AS$25))) -> u | AV22: 18 | AW22: =SUMPRODUCT(($B$5:$F$14=AN22)*($BQ$5:$BQ$14))+SUMPRODUCT(($I$5:$M$14=AN22)*($BR$5:$BR$14))+'J03'!AW22 -> 0 | AX22: =SUMPRODUCT(($B$5:$F$14=AN22)*($BS$5:$BS$14))+SUMPRODUCT(($I$5:$M$14=AN22)*($BT$5:$BT$14))+'J03'!AX22 -> 0 | AY22: =SUMPRODUCT(($B$5:$F$14=AN22)*($BU$5:$BU$14))+SUMPRODUCT(($I$5:$M$14=AN22)*($BV$5:$BV$14))+'J03'!AY22 -> 0 | AZ22: =SUMPRODUCT(($B$5:$F$14=AN22)*($BW$5:$BW$14))+SUMPRODUCT(($I$5:$M$14=AN22)*($BX$5:$BX$14))+'J03'!AZ22 -> 0 | BA22: =SUMPRODUCT(($B$5:$F$14=AN22)*($BY$5:$BY$14))+SUMPRODUCT(($I$5:$M$14=AN22)*($BZ$5:$BZ$14))+'J03'!BA22 -> 0 | BB22: =SUMPRODUCT(($B$5:$F$14=AN22)*($CA$5:$CA$14))+SUMPRODUCT(($I$5:$M$14=AN22)*($CB$5:$CB$14))+'J03'!BB22 -> 0 | BC22: =SUMPRODUCT(($B$5:$F$14=AN22)*($CC$5:$CC$14))+SUMPRODUCT(($I$5:$M$14=AN22)*($CD$5:$CD$14))+'J03'!BC22 -> 0 | BD22: 0 | BE22: =SUMPRODUCT(($B$5:$F$14=AN22)*($CE$5:$CE$14))+'J03'!BE22 -> 0 | BF22: =SUMPRODUCT(($B$5:$F$14=AN22)*($CF$5:$CF$14))+'J03'!BF22 -> 0 | BG22: =SUMPRODUCT(($B$5:$F$14=AN22)*($CG$5:$CG$14))+'J03'!BG22 -> 0 | BH22: =SUMPRODUCT(($I$5:$M$14=AN22)*($CH$5:$CH$14))+'J03'!BH22 -> 0 | BI22: =SUMPRODUCT(($I$5:$M$14=AN22)*($CI$5:$CI$14))+'J03'!BI22 -> 0 | BJ22: =SUMPRODUCT(($I$5:$M$14=AN22)*($CJ$5:$CJ$14))+'J03'!BJ22 -> 0 | BK22: 0 | BL22: =BK22+0.0000003 -> 3e-07 | CL22: 0 | CM22: 0 | CN22: 1 | CO22: 0
P23: 0 | U23: 0 | V23: u | W23: 1 | X23: 0 | Y23: 0 | Z23: 0 | AA23: 0 | AB23: 0 | AC23: 0 | AD23: 0 | AE23: 0 | AF23: 0 | AG23: 0 | AH23: 0 | AI23: 0 | AJ23: 0 | AK23: 0 | AL23: 19 | AM23: 19 | AN23: ='J01'!AN23:AR23 -> 0 | AS23: 1 | AT23: ='J03'!AS23-AS23 -> 0 | AU23: =IF(AS23>'J03'!AS23,'J03'!$AU$25,IF(AS23='J03'!AS23,'J03'!$AT$25,IF(AS23<'J03'!AS23,'J03'!$AS$25))) -> u | AV23: 19 | AW23: =SUMPRODUCT(($B$5:$F$14=AN23)*($BQ$5:$BQ$14))+SUMPRODUCT(($I$5:$M$14=AN23)*($BR$5:$BR$14))+'J03'!AW23 -> 0 | AX23: =SUMPRODUCT(($B$5:$F$14=AN23)*($BS$5:$BS$14))+SUMPRODUCT(($I$5:$M$14=AN23)*($BT$5:$BT$14))+'J03'!AX23 -> 0 | AY23: =SUMPRODUCT(($B$5:$F$14=AN23)*($BU$5:$BU$14))+SUMPRODUCT(($I$5:$M$14=AN23)*($BV$5:$BV$14))+'J03'!AY23 -> 0 | AZ23: =SUMPRODUCT(($B$5:$F$14=AN23)*($BW$5:$BW$14))+SUMPRODUCT(($I$5:$M$14=AN23)*($BX$5:$BX$14))+'J03'!AZ23 -> 0 | BA23: =SUMPRODUCT(($B$5:$F$14=AN23)*($BY$5:$BY$14))+SUMPRODUCT(($I$5:$M$14=AN23)*($BZ$5:$BZ$14))+'J03'!BA23 -> 0 | BB23: =SUMPRODUCT(($B$5:$F$14=AN23)*($CA$5:$CA$14))+SUMPRODUCT(($I$5:$M$14=AN23)*($CB$5:$CB$14))+'J03'!BB23 -> 0 | BC23: =SUMPRODUCT(($B$5:$F$14=AN23)*($CC$5:$CC$14))+SUMPRODUCT(($I$5:$M$14=AN23)*($CD$5:$CD$14))+'J03'!BC23 -> 0 | BD23: 0 | BE23: =SUMPRODUCT(($B$5:$F$14=AN23)*($CE$5:$CE$14))+'J03'!BE23 -> 0 | BF23: =SUMPRODUCT(($B$5:$F$14=AN23)*($CF$5:$CF$14))+'J03'!BF23 -> 0 | BG23: =SUMPRODUCT(($B$5:$F$14=AN23)*($CG$5:$CG$14))+'J03'!BG23 -> 0 | BH23: =SUMPRODUCT(($I$5:$M$14=AN23)*($CH$5:$CH$14))+'J03'!BH23 -> 0 | BI23: =SUMPRODUCT(($I$5:$M$14=AN23)*($CI$5:$CI$14))+'J03'!BI23 -> 0 | BJ23: =SUMPRODUCT(($I$5:$M$14=AN23)*($CJ$5:$CJ$14))+'J03'!BJ23 -> 0 | BK23: 0 | BL23: =BK23+0.0000002 -> 2e-07 | CL23: 0 | CM23: 0 | CN23: 1 | CO23: 0
P24: 0 | U24: 0 | V24: u | W24: 1 | X24: 0 | Y24: 0 | Z24: 0 | AA24: 0 | AB24: 0 | AC24: 0 | AD24: 0 | AE24: 0 | AF24: 0 | AG24: 0 | AH24: 0 | AI24: 0 | AJ24: 0 | AK24: 0 | AL24: 20 | AM24: 20 | AN24: ='J01'!AN24:AR24 -> 0 | AS24: 1 | AT24: ='J03'!AS24-AS24 -> 0 | AU24: =IF(AS24>'J03'!AS24,'J03'!$AU$25,IF(AS24='J03'!AS24,'J03'!$AT$25,IF(AS24<'J03'!AS24,'J03'!$AS$25))) -> u | AV24: 20 | AW24: =SUMPRODUCT(($B$5:$F$14=AN24)*($BQ$5:$BQ$14))+SUMPRODUCT(($I$5:$M$14=AN24)*($BR$5:$BR$14))+'J03'!AW24 -> 0 | AX24: =SUMPRODUCT(($B$5:$F$14=AN24)*($BS$5:$BS$14))+SUMPRODUCT(($I$5:$M$14=AN24)*($BT$5:$BT$14))+'J03'!AX24 -> 0 | AY24: =SUMPRODUCT(($B$5:$F$14=AN24)*($BU$5:$BU$14))+SUMPRODUCT(($I$5:$M$14=AN24)*($BV$5:$BV$14))+'J03'!AY24 -> 0 | AZ24: =SUMPRODUCT(($B$5:$F$14=AN24)*($BW$5:$BW$14))+SUMPRODUCT(($I$5:$M$14=AN24)*($BX$5:$BX$14))+'J03'!AZ24 -> 0 | BA24: =SUMPRODUCT(($B$5:$F$14=AN24)*($BY$5:$BY$14))+SUMPRODUCT(($I$5:$M$14=AN24)*($BZ$5:$BZ$14))+'J03'!BA24 -> 0 | BB24: =SUMPRODUCT(($B$5:$F$14=AN24)*($CA$5:$CA$14))+SUMPRODUCT(($I$5:$M$14=AN24)*($CB$5:$CB$14))+'J03'!BB24 -> 0 | BC24: =SUMPRODUCT(($B$5:$F$14=AN24)*($CC$5:$CC$14))+SUMPRODUCT(($I$5:$M$14=AN24)*($CD$5:$CD$14))+'J03'!BC24 -> 0 | BD24: 0 | BE24: =SUMPRODUCT(($B$5:$F$14=AN24)*($CE$5:$CE$14))+'J03'!BE24 -> 0 | BF24: =SUMPRODUCT(($B$5:$F$14=AN24)*($CF$5:$CF$14))+'J03'!BF24 -> 0 | BG24: =SUMPRODUCT(($B$5:$F$14=AN24)*($CG$5:$CG$14))+'J03'!BG24 -> 0 | BH24: =SUMPRODUCT(($I$5:$M$14=AN24)*($CH$5:$CH$14))+'J03'!BH24 -> 0 | BI24: =SUMPRODUCT(($I$5:$M$14=AN24)*($CI$5:$CI$14))+'J03'!BI24 -> 0 | BJ24: =SUMPRODUCT(($I$5:$M$14=AN24)*($CJ$5:$CJ$14))+'J03'!BJ24 -> 0 | BK24: 0 | BL24: =BK24+0.0000001 -> 1e-07 | CL24: 0 | CM24: 0 | CN24: 1 | CO24: 0
AJ25: Buts Journée | AS25: p | AT25: u | AU25: q
AJ26: =SUM(G5:H14) -> 0 | AS26: p | AT26: u | AU26: q
AJ28: Total Buts
AJ29: =AJ26+'J03'!AJ29:AK30 -> 0

Sheet J05
H1: JOURNÉE 05 | P1: CLASSEMENT | AN1: CLASSEMENT
A3: p | B3: Équipes | G3: Buts | H3: Buts | I3: Équipes | N3: p | P3: Équipes | U3: Évolution | W3: R | X3: Pts | Y3: J | Z3: G | AA3: N | AB3: P | AC3: B + | AD3: B - | AE3: Diff | AF3: Domicile | AI3: Extérieur | AN3: Équipes | AS3: R | AT3: Evolution | AV3: R | AW3: Pts | AX3: J | AY3: G | AZ3: N | BA3: P | BB3: B + | BC3: B - | BD3: Diff | BE3: Domicile | BH3: Exterieur | CE3: DOMICILE | CH3: EXTERIRUR
AF4: G | AG4: N | AH4: P | AI4: G | AJ4: N | AK4: P | AM4: R | BE4: G | BF4: N | BG4: P | BH4: G | BI4: N | BJ4: P | BK4: % | BL4: % | BM4: P | BN4: P | BO4: Pts | BP4: Pts | BQ4: T Pts | BR4: T Pts | BS4: J | BT4: J | BU4: G | BV4: G | BW4: N | BX4: N | BY4: P | BZ4: P | CA4: B + | CB4: B + | CC4: B - | CD4: B - | CE4: G | CF4: N | CG4: P | CH4: G | CI4: N | CJ4: P | CL4: Equipes | CM4: % | CN4: R
P5: =VLOOKUP(AL5,$AM$5:$AR$24,2,0) -> 0 | U5: =VLOOKUP(P5,$AN$5:$BJ$24,7,0) -> 0 | V5: =VLOOKUP(P5,$AN$5:$BJ$24,8,0) -> u | W5: 1 | X5: =VLOOKUP(P5,$AN$5:$BJ$24,10,0) -> 0 | Y5: =VLOOKUP(P5,$AN$5:$BJ$24,11,0) -> 0 | Z5: =VLOOKUP(P5,$AN$5:$BJ$24,12,0) -> 0 | AA5: =VLOOKUP(P5,$AN$5:$BJ$24,13,0) -> 0 | AB5: =VLOOKUP(P5,$AN$5:$BJ$24,14,0) -> 0 | AC5: =VLOOKUP(P5,$AN$5:$BJ$24,15,0) -> 0 | AD5: =VLOOKUP(P5,$AN$5:$BJ$24,16,0) -> 0 | AE5: =VLOOKUP(P5,$AN$5:$BJ$24,17,0) -> 0 | AF5: =VLOOKUP(P5,$AN$5:$BJ$24,18,0) -> 0 | AG5: =VLOOKUP(P5,$AN$5:$BJ$24,19,0) -> 0 | AH5: =VLOOKUP(P5,$AN$5:$BJ$24,20,0) -> 0 | AI5: =VLOOKUP(P5,$AN$5:$BJ$24,21,0) -> 0 | AJ5: =VLOOKUP(P5,$AN$5:$BJ$24,22,0) -> 0 | AK5: =VLOOKUP(P5,$AN$5:$BJ$24,23,0) -> 0 | AL5: 1 | AM5: =AV5 -> 1 | AN5: ='J01'!AN5:AR5 -> 0 | AS5: =RANK(BK5,$BK$5:$BK$24) -> 1 | AT5: ='J04'!AS5-AS5 -> 0 | AU5: =IF(AS5>'J04'!AS5,'J04'!$AU$25,IF(AS5='J04'!AS5,'J04'!$AT$25,IF(AS5<'J04'!AS5,'J04'!$AS$25))) -> u | AV5: =RANK(BL5,$BL$5:$BL$24) -> 1 | AW5: =SUMPRODUCT(($B$5:$F$14=AN5)*($BQ$5:$BQ$14))+SUMPRODUCT(($I$5:$M$14=AN5)*($BR$5:$BR$14))+'J04'!AW5 -> 0 | AX5: =SUMPRODUCT(($B$5:$F$14=AN5)*($BS$5:$BS$14))+SUMPRODUCT(($I$5:$M$14=AN5)*($BT$5:$BT$14))+'J04'!AX5 -> 0 | AY5: =SUMPRODUCT(($B$5:$F$14=AN5)*($BU$5:$BU$14))+SUMPRODUCT(($I$5:$M$14=AN5)*($BV$5:$BV$14))+'J04'!AY5 -> 0 | AZ5: =SUMPRODUCT(($B$5:$F$14=AN5)*($BW$5:$BW$14))+SUMPRODUCT(($I$5:$M$14=AN5)*($BX$5:$BX$14))+'J04'!AZ5 -> 0 | BA5: =SUMPRODUCT(($B$5:$F$14=AN5)*($BY$5:$BY$14))+SUMPRODUCT(($I$5:$M$14=AN5)*($BZ$5:$BZ$14))+'J04'!BA5 -> 0 | BB5: =SUMPRODUCT(($B$5:$F$14=AN5)*($CA$5:$CA$14))+SUMPRODUCT(($I$5:$M$14=AN5)*($CB$5:$CB$14))+'J04'!BB5 -> 0 | BC5: =SUMPRODUCT(($B$5:$F$14=AN5)*($CC$5:$CC$14))+SUMPRODUCT(($I$5:$M$14=AN5)*($CD$5:$CD$14))+'J04'!BC5 -> 0 | BD5: =BB5-BC5 -> 0 | BE5: =SUMPRODUCT(($B$5:$F$14=AN5)*($CE$5:$CE$14))+'J04'!BE5 -> 0 | BF5: =SUMPRODUCT(($B$5:$F$14=AN5)*($CF$5:$CF$14))+'J04'!BF5 -> 0 | BG5: =SUMPRODUCT(($B$5:$F$14=AN5)*($CG$5:$CG$14))+'J04'!BG5 -> 0 | BH5: =SUMPRODUCT(($I$5:$M$14=AN5)*($CH$5:$CH$14))+'J04'!BH5 -> 0 | BI5: =SUMPRODUCT(($I$5:$M$14=AN5)*($CI$5:$CI$14))+'J04'!BI5 -> 0 | BJ5: =SUMPRODUCT(($I$5:$M$14=AN5)*($CJ$5:$CJ$14))+'J04'!BJ5 -> 0 | BK5: =SUM(AW5*1000+(BD5)/100+(BB5)/1000) -> 0 | BL5: =BK5+0.000002 -> 2e-06 | BM5: =A5 -> 0 | BN5: =N5 -> 0 | BO5: =IF(G5="",0,IF(G5>H5,3,IF(G5=H5,1,IF(G5<H5,0)))) -> 0 | BP5: =IF(H5="",0,IF(H5>G5,3,IF(H5=G5,1,IF(H5<G5,0)))) -> 0 | BQ5: =BO5-BM5 -> 0 | BR5: =BP5-BN5 -> 0 | BS5: =IF(G5="",0,1) -> 0 | BT5: =IF(H5="",0,1) -> 0 | BU5: =IF(G5<>"",IF(G5>H5,1)) -> FALSE | BV5: =IF(H5<>"",IF(H5>G5,1)) -> FALSE | BW5: =IF(G5<>"",IF(G5=H5,1)) -> FALSE | BX5: =IF(H5<>"",IF(H5=G5,1)) -> FALSE | BY5: =IF(G5<>"",IF(G5<H5,1)) -> FALSE | BZ5: =IF(H5<>"",IF(H5<G5,1)) -> FALSE | CA5: =G5 -> 0 | CB5: =H5 -> 0 | CC5: =H5 -> 0 | CD5: =G5 -> 0 | CE5: =IF(G5<>"",IF(G5>H5,1)) -> FALSE | CF5: =IF(G5<>"",IF(G5=H5,1)) -> FALSE | CG5: =IF(G5<>"",IF(G5<H5,1)) -> FALSE | CH5: =IF(H5<>"",IF(H5>G5,1)) -> FALSE | CI5: =IF(H5<>"",IF(H5=G5,1)) -> FALSE | CJ5: =IF(H5<>"",IF(H5<G5,1)) -> FALSE | CL5: =VLOOKUP(AL5,$AM$5:$AR$24,2,0) -> 0 | CM5: =VLOOKUP(CL5,$AN$5:$BK$24,24,0) -> 0 | CN5: =RANK(CM5,$CM$5:$CM$24) -> 1 | CO5: =AN5 -> 0
P6: =VLOOKUP(AL6,$AM$5:$AR$24,2,0) -> 0 | U6: =VLOOKUP(P6,$AN$5:$BJ$24,7,0) -> 0 | V6: =VLOOKUP(P6,$AN$5:$BJ$24,8,0) -> u | W6: =IF(CM6=CM5,CN5,CN6) -> 1 | X6: =VLOOKUP(P6,$AN$5:$BJ$24,10,0) -> 0 | Y6: =VLOOKUP(P6,$AN$5:$BJ$24,11,0) -> 0 | Z6: =VLOOKUP(P6,$AN$5:$BJ$24,12,0) -> 0 | AA6: =VLOOKUP(P6,$AN$5:$BJ$24,13,0) -> 0 | AB6: =VLOOKUP(P6,$AN$5:$BJ$24,14,0) -> 0 | AC6: =VLOOKUP(P6,$AN$5:$BJ$24,15,0) -> 0 | AD6: =VLOOKUP(P6,$AN$5:$BJ$24,16,0) -> 0 | AE6: =VLOOKUP(P6,$AN$5:$BJ$24,17,0) -> 0 | AF6: =VLOOKUP(P6,$AN$5:$BJ$24,18,0) -> 0 | AG6: =VLOOKUP(P6,$AN$5:$BJ$24,19,0) -> 0 | AH6: =VLOOKUP(P6,$AN$5:$BJ$24,20,0) -> 0 | AI6: =VLOOKUP(P6,$AN$5:$BJ$24,21,0) -> 0 | AJ6: =VLOOKUP(P6,$AN$5:$BJ$24,22,0) -> 0 | AK6: =VLOOKUP(P6,$AN$5:$BJ$24,23,0) -> 0 | AL6: 2 | AM6: =AV6 -> 2 | AN6: ='J01'!AN6:AR6 -> 0 | AS6: =RANK(BK6,$BK$5:$BK$24) -> 1 | AT6: ='J04'!AS6-AS6 -> 0 | AU6: =IF(AS6>'J04'!AS6,'J04'!$AU$25,IF(AS6='J04'!AS6,'J04'!$AT$25,IF(AS6<'J04'!AS6,'J04'!$AS$25))) -> u | AV6: =RANK(BL6,$BL$5:$BL$24) -> 2 | AW6: =SUMPRODUCT(($B$5:$F$14=AN6)*($BQ$5:$BQ$14))+SUMPRODUCT(($I$5:$M$14=AN6)*($BR$5:$BR$14))+'J04'!AW6 -> 0 | AX6: =SUMPRODUCT(($B$5:$F$14=AN6)*($BS$5:$BS$14))+SUMPRODUCT(($I$5:$M$14=AN6)*($BT$5:$BT$14))+'J04'!AX6 -> 0 | AY6: =SUMPRODUCT(($B$5:$F$14=AN6)*($BU$5:$BU$14))+SUMPRODUCT(($I$5:$M$14=AN6)*($BV$5:$BV$14))+'J04'!AY6 -> 0 | AZ6: =SUMPRODUCT(($B$5:$F$14=AN6)*($BW$5:$BW$14))+SUMPRODUCT(($I$5:$M$14=AN6)*($BX$5:$BX$14))+'J04'!AZ6 -> 0 | BA6: =SUMPRODUCT(($B$5:$F$14=AN6)*($BY$5:$BY$14))+SUMPRODUCT(($I$5:$M$14=AN6)*($BZ$5:$BZ$14))+'J04'!BA6 -> 0 | BB6: =SUMPRODUCT(($B$5:$F$14=AN6)*($CA$5:$CA$14))+SUMPRODUCT(($I$5:$M$14=AN6)*($CB$5:$CB$14))+'J04'!BB6 -> 0 | BC6: =SUMPRODUCT(($B$5:$F$14=AN6)*($CC$5:$CC$14))+SUMPRODUCT(($I$5:$M$14=AN6)*($CD$5:$CD$14))+'J04'!BC6 -> 0 | BD6: =BB6-BC6 -> 0 | BE6: =SUMPRODUCT(($B$5:$F$14=AN6)*($CE$5:$CE$14))+'J04'!BE6 -> 0 | BF6: =SUMPRODUCT(($B$5:$F$14=AN6)*($CF$5:$CF$14))+'J04'!BF6 -> 0 | BG6: =SUMPRODUCT(($B$5:$F$14=AN6)*($CG$5:$CG$14))+'J04'!BG6 -> 0 | BH6: =SUMPRODUCT(($I$5:$M$14=AN6)*($CH$5:$CH$14))+'J04'!BH6 -> 0 | BI6: =SUMPRODUCT(($I$5:$M$14=AN6)*($CI$5:$CI$14))+'J04'!BI6 -> 0 | BJ6: =SUMPRODUCT(($I$5:$M$14=AN6)*($CJ$5:$CJ$14))+'J04'!BJ6 -> 0 | BK6: =SUM(AW6*1000+(BD6)/100+(BB6)/1000) -> 0 | BL6: =BK6+0.0000019 -> 1.9e-06 | BM6: =A6 -> 0 | BN6: =N6 -> 0 | BO6: =IF(G6="",0,IF(G6>H6,3,IF(G6=H6,1,IF(G6<H6,0)))) -> 0 | BP6: =IF(H6="",0,IF(H6>G6,3,IF(H6=G6,1,IF(H6<G6,0)))) -> 0 | BQ6: =BO6-BM6 -> 0 | BR6: 0 | BS6: =IF(G6="",0,1) -> 0 | BT6: 0 | BU6: =IF(G6<>"",IF(G6>H6,1)) -> FALSE | BV6: =IF(H6<>"",IF(H6>G6,1)) -> FALSE | BW6: =IF(G6<>"",IF(G6=H6,1)) -> FALSE | BX6: =IF(H6<>"",IF(H6=G6,1)) -> FALSE | BY6: =IF(G6<>"",IF(G6<H6,1)) -> FALSE | BZ6: =IF(H6<>"",IF(H6<G6,1)) -> FALSE | CA6: =G6 -> 0 | CB6: 0 | CC6: =H6 -> 0 | CD6: =G6 -> 0 | CE6: =IF(G6<>"",IF(G6>H6,1)) -> FALSE | CF6: =IF(G6<>"",IF(G6=H6,1)) -> FALSE | CG6: =IF(G6<>"",IF(G6<H6,1)) -> FALSE | CH6: =IF(H6<>"",IF(H6>G6,1)) -> FALSE | CI6: =IF(H6<>"",IF(H6=G6,1)) -> FALSE | CJ6: =IF(H6<>"",IF(H6<G6,1)) -> FALSE | CL6: =VLOOKUP(AL6,$AM$5:$AR$24,2,0) -> 0 | CM6: =VLOOKUP(CL6,$AN$5:$BK$24,24,0) -> 0 | CN6: =RANK(CM6,$CM$5:$CM$24) -> 1 | CO6: =AN6 -> 0
P7: 0 | U7: 0 | V7: u | W7: =IF(CM7=CM6,CN6,CN7) -> 1 | X7: 0 | Y7: 0 | Z7: 0 | AA7: 0 | AB7: 0 | AC7: 0 | AD7: 0 | AE7: 0 | AF7: 0 | AG7: 0 | AH7: 0 | AI7: 0 | AJ7: 0 | AK7: 0 | AL7: 3 | AM7: 3 | AN7: ='J01'!AN7:AR7 -> 0 | AS7: 1 | AT7: ='J04'!AS7-AS7 -> 0 | AU7: =IF(AS7>'J04'!AS7,'J04'!$AU$25,IF(AS7='J04'!AS7,'J04'!$AT$25,IF(AS7<'J04'!AS7,'J04'!$AS$25))) -> u | AV7: 3 | AW7: =SUMPRODUCT(($B$5:$F$14=AN7)*($BQ$5:$BQ$14))+SUMPRODUCT(($I$5:$M$14=AN7)*($BR$5:$BR$14))+'J04'!AW7 -> 0 | AX7: =SUMPRODUCT(($B$5:$F$14=AN7)*($BS$5:$BS$14))+SUMPRODUCT(($I$5:$M$14=AN7)*($BT$5:$BT$14))+'J04'!AX7 -> 0 | AY7: =SUMPRODUCT(($B$5:$F$14=AN7)*($BU$5:$BU$14))+SUMPRODUCT(($I$5:$M$14=AN7)*($BV$5:$BV$14))+'J04'!AY7 -> 0 | AZ7: =SUMPRODUCT(($B$5:$F$14=AN7)*($BW$5:$BW$14))+SUMPRODUCT(($I$5:$M$14=AN7)*($BX$5:$BX$14))+'J04'!AZ7 -> 0 | BA7: =SUMPRODUCT(($B$5:$F$14=AN7)*($BY$5:$BY$14))+SUMPRODUCT(($I$5:$M$14=AN7)*($BZ$5:$BZ$14))+'J04'!BA7 -> 0 | BB7: =SUMPRODUCT(($B$5:$F$14=AN7)*($CA$5:$CA$14))+SUMPRODUCT(($I$5:$M$14=AN7)*($CB$5:$CB$14))+'J04'!BB7 -> 0 | BC7: =SUMPRODUCT(($B$5:$F$14=AN7)*($CC$5:$CC$14))+SUMPRODUCT(($I$5:$M$14=AN7)*($CD$5:$CD$14))+'J04'!BC7 -> 0 | BD7: 0 | BE7: =SUMPRODUCT(($B$5:$F$14=AN7)*($CE$5:$CE$14))+'J04'!BE7 -> 0 | BF7: =SUMPRODUCT(($B$5:$F$14=AN7)*($CF$5:$CF$14))+'J04'!BF7 -> 0 | BG7: =SUMPRODUCT(($B$5:$F$14=AN7)*($CG$5:$CG$14))+'J04'!BG7 -> 0 | BH7: =SUMPRODUCT(($I$5:$M$14=AN7)*($CH$5:$CH$14))+'J04'!BH7 -> 0 | BI7: =SUMPRODUCT(($I$5:$M$14=AN7)*($CI$5:$CI$14))+'J04'!BI7 -> 0 | BJ7: =SUMPRODUCT(($I$5:$M$14=AN7)*($CJ$5:$CJ$14))+'J04'!BJ7 -> 0 | BK7: 0 | BL7: =BK7+0.0000018 -> 1.8e-06 | BM7: 0 | BN7: 0 | BO7: 0 | BP7: 0 | BQ7: 0 | BR7: 0 | BS7: 0 | BT7: 0 | BU7: FALSE | BV7: FALSE | BW7: FALSE | BX7: FALSE | BY7: FALSE | BZ7: FALSE | CA7: 0 | CB7: 0 | CC7: 0 | CD7: 0 | CE7: FALSE | CF7: FALSE | CG7: FALSE | CH7: FALSE | CI7: FALSE | CJ7: FALSE | CL7: 0 | CM7: 0 | CN7: 1 | CO7: 0
